{"text_format":"1","workbook":"xlsx","n_sheets":2,"sheets":["BranchList","Data"],"not_rendered":{"charts":0,"images":0,"macros":1,"external_links":0,"defined_names":1,"comments":0,"pivot_tables":0},"unopened":[],"bounds":{"document_bytes":16777216,"sheet_cells":100000,"rows_first":2000,"rows_last":500,"rows_between":2000,"halvings":0,"cell_chars":16384,"cell_head_chars":4096},"cells_cut":0,"cells_raw":0,"read":"whole","date_system":"1900"}

{"sheet":"BranchList","index":0,"n_rows":1164,"n_cols":25,"rows_kept":1164,"cut":false,"hidden":false,"merged":[]}
["STAT","Sol Id","Text Sol","Type","Branch Name","Zone ","Cluster","Alpha Code ","Zone Code","Cluster Code","IFSC Code ","Email Id","Address","DISTRICT","City ","Tehsil ","STATE","Region","Pin Code","MICR Code ","BSR Code ","Latitude","Longitude","05-07-2026","TextSol"]
["A",1124,1124,"EBU","EBU CHARASA",null,null,null,"LAD","LADUND",null,null,null,null,null,null,null,null,null,null,null,null,null,null,{"$f":"TEXT(branch332[[#This Row],[Sol Id]],\"0000\")","v":"1124"}]
["A",1128,1128,"EBU","EBU MAAN",null,null,null,"LAD","LADUND",null,null,null,null,null,null,null,null,null,null,null,null,null,null,{"$f":"TEXT(branch332[[#This Row],[Sol Id]],\"0000\")","v":"1128"}]
["A",1131,1131,"EBU","KHARDONG",null,null,null,"LAD","LADUND",null,null,null,null,null,null,null,null,null,null,null,null,null,null,{"$f":"TEXT(branch332[[#This Row],[Sol Id]],\"0000\")","v":"1131"}]
["A",1134,1134,"EBU","EBU WARIS",null,null,null,"LAD","LADUND",null,null,null,null,null,null,null,null,null,null,null,null,null,null,{"$f":"TEXT(branch332[[#This Row],[Sol Id]],\"0000\")","v":"1134"}]
["A",955,955,"I","IARB BENGALURU",null,null,"IMPBNG","MUM","CHQ","JAKA0IMPBNG",null,null,null,null,null,null,null,null,null,null,null,null,null,{"$f":"TEXT(branch332[[#This Row],[Sol Id]],\"0000\")","v":"0955"}]
["A",1097,1097,"EBU","EBU CHOKIAN",null,null,null,"RAJ","RAJUND",null,null,null,null,null,null,null,null,null,null,null,null,null,null,{"$f":"TEXT(branch332[[#This Row],[Sol Id]],\"0000\")","v":"1097"}]
["A",1501,1501,"B","LAL BAZAR SRINAGAR","SRINAGAR","ZO SRINAGAR CLSTR -2 SRINAGAR","EXPORT","SGR","SGRCL2","JAKA0EXPORT","NEAR MOLVI STOP, LAL BAZAR","SRINAGAR","SRINAGAR","SRINAGAR","J&K",null,"KASHMIR",190011,190051034,6320316,34.122900000000001,74.816720000000004,null,{"$f":"TEXT(branch332[[#This Row],[Sol Id]],\"0000\")","v":"1501"}]
["A",1198,1198,"B","RAHAIN","KATHUA","ZO KATHUA CLSTR SAMBA","RAHAIN","KAT","KATSAM","JAKA0RAHAIN","VILLAGE RAHAIN, POST OFFICE SAMBA, TEHSIL & DISTRICT SAMBA","SAMBA","SAMBA","SAMBA","J&K",null,"JAMMU",184121,184051041,"632003U",null,null,null,{"$f":"TEXT(branch332[[#This Row],[Sol Id]],\"0000\")","v":"1198"}]
["A",1121,1121,"EBU","EBU GIA",null,null,null,"LAD","LADUND",null,null,null,null,null,null,null,null,null,null,null,null,null,null,{"$f":"TEXT(branch332[[#This Row],[Sol Id]],\"0000\")","v":"1121"}]
["A",924,924,"B","DUDU","UDHAMPUR","ZO UDHAMPUR CLSTR UDHAMPUR","DUDDUU","UDM","UDMUDM","JAKA0DUDDUU","VILLAGE AND POST OFFICE, DUDU, TEHSIL-LATTEE, DISTRICT-UDHAMPUR, LAND MARK: NEAR BUS STAND DUDU, J&K-182128","UDHAMPUR","UDHAMPUR","RAMNAGAR","J&K",null,"JAMMU",182128,182051033,6320920,null,null,null,{"$f":"TEXT(branch332[[#This Row],[Sol Id]],\"0000\")","v":"0924"}]
["A",925,925,"B","KULWANTA","UDHAMPUR","ZO UDHAMPUR CLSTR UDHAMPUR","KULWNT","UDM","UDMUDM","JAKA0KULWNT","VILLAGE KULWANTA, POST OFFICE AMROH, TEHSIL RAMNAGAR, DISTRCT-UDHAMPUR, J&K-182122","UDHAMPUR","UDHAMPUR","RAMNAGAR","J&K",null,"JAMMU",182122,182051034,6320921,null,null,null,{"$f":"TEXT(branch332[[#This Row],[Sol Id]],\"0000\")","v":"0925"}]
["A",926,926,"B","JOHNU","UDHAMPUR","ZO UDHAMPUR CLSTR UDHAMPUR","JOHNUU","UDM","UDMUDM","JAKA0JOHNUU","VILLAGE AND POST OFFICE JOHNU, TEHSIL AND DISTRICT UDHAMPUR, J&K-182124","UDHAMPUR","UDHAMPUR","CHENANI","J&K",null,"JAMMU",182124,182051035,6320922,null,null,null,{"$f":"TEXT(branch332[[#This Row],[Sol Id]],\"0000\")","v":"0926"}]
["A",927,927,"B","WADURA","BARAMULLA","ZO BARAMULLA CLSTR SOPORE","WADURA","BAR","BARSOP","JAKA0WADURA","SKUAST WADOORA, SOPORE, J&K-193201","BARAMULLA","SOPORE","ZANEGEER","J&K",null,"KASHMIR",193201,193051046,6320923,null,null,null,{"$f":"TEXT(branch332[[#This Row],[Sol Id]],\"0000\")","v":"0927"}]
["A",928,928,"B","NEGRIMALPORA KUPAWRA","BARAMULLA","ZO BARAMULLA CLSTR KUPWARA","NEGRIM","BAR","BARKUP","JAKA0NEGRIM","NAGRIMALPORA, KUPWARA, J&K-193222Â Â Â Â ","KUPWARA","KUPWARA","KUPWARA","J&K",null,"KASHMIR",193222,193051232,6320924,null,null,null,{"$f":"TEXT(branch332[[#This Row],[Sol Id]],\"0000\")","v":"0928"}]
["A",929,929,"B","NADIHAL BANDIPORA","BARAMULLA","ZO BARAMULLA CLSTR BANDIPORA","NADHAL","BAR","BARBAN","JAKA0NADHAL","NADIHAL, BANDIPORA, J&K-193502","BANDIPORA","BANDIPORA","BANDIPORA","J&K",null,"KASHMIR",193502,193051414,6320925,null,null,null,{"$f":"TEXT(branch332[[#This Row],[Sol Id]],\"0000\")","v":"0929"}]
["A",930,930,"B","ASHIPORA","BARAMULLA","ZO BARAMULLA CLSTR KUPWARA","ASHPOR","BAR","BARKUP","JAKA0ASHPOR","ASHIPORA LANGATE, KUPWARA, J&K-193303","KUPWARA","KUPWARA","LANGATE","J&K",null,"KASHMIR",193303,193051233,6320926,null,null,null,{"$f":"TEXT(branch332[[#This Row],[Sol Id]],\"0000\")","v":"0930"}]
["A",931,931,"B","SHALIMAR GARDEN GHAZIABAD","DELHI","ZO DELHI CLSTR -2 DELHI","SALIMR","DEL","DELCL2","JAKA0SALIMR","PLOT NO.C18, SPACE NO.04, EXTENSION-2, SHALIMAR GARDEN, GHAZIABAD, UTTAR PRADESH-","GHAZIABAD","GHAZIABAD",null,"UP",null,"ROI",201005,110051036,6320935,null,null,null,{"$f":"TEXT(branch332[[#This Row],[Sol Id]],\"0000\")","v":"0931"}]
["A",932,932,"B","MOTI MARKET LEH","LADAKH","ZO LADAKH CLSTR LEH","MOTTII","LAD","LADLEH","JAKA0MOTTII","LBA COMPLEX, MOTI MARKET, NEAR OLD BUS STAND, LEH â€“ LADAKH.","LEH","LEH","LEH","LADAKH",null,"LADAKH",194101,194051032,6320919,null,null,null,{"$f":"TEXT(branch332[[#This Row],[Sol Id]],\"0000\")","v":"0932"}]
["M",933,933,"B","BOULEVARD ROAD SRINAGAR (MERGED WITH 0048)",null,null,"BULVAD","SGR","NA","JAKA0BULVAD",null,null,null,null,null,null,null,null,null,null,null,null,null,{"$f":"TEXT(branch332[[#This Row],[Sol Id]],\"0000\")","v":"0933"}]
["A",934,934,"B","MURADPUR RAJOURI","RAJOURI","ZO RAJOURI CLSTR RAJOURI","MURDPR","RAJ","RAJRAJ","JAKA0MURDPR","MURADPUR, RAJOURI, J&K-185131","RAJOURI","RAJOURI","RAJOURI","J&K",null,"JAMMU",185131,185051032,6320910,null,null,null,{"$f":"TEXT(branch332[[#This Row],[Sol Id]],\"0000\")","v":"0934"}]
["A",935,935,"B","BUS STAND POONCH","RAJOURI","ZO RAJOURI CLSTR POONCH","BPONCH","RAJ","RAJPOO","JAKA0BPONCH","BUS STAND POONCH, J&K-185101","POONCH","POONCH","HAVELI","J&K",null,"JAMMU",185101,185051123,6320911,null,null,null,{"$f":"TEXT(branch332[[#This Row],[Sol Id]],\"0000\")","v":"0935"}]
["A",936,936,"B","MARTA NAGROTA","KATHUA","ZO KATHUA CLSTR KATHUA","MARTAA","KAT","KATKAT","JAKA0MARTAA","MARTA NAGROTA, PLAKH-PLASSI ROAD TEHSIL-BASOHLI, DISTRICT-KATHUA, J&K-184201","KATHUA","KATHUA","BASOHLI","J&K",null,"JAMMU",184201,184051035,6320930,null,null,null,{"$f":"TEXT(branch332[[#This Row],[Sol Id]],\"0000\")","v":"0936"}]
["A",937,937,"B","WASHBUG, PULWAMA","PULWAMA","ZO PULWAMA CLSTR PULWAMA","WASHBG","PUL","PULPUL","JAKA0WASHBG","TAHAB ROAD, NEAR GIRLS HIGHER SECONDARY SCHOOL, WASHBUGH, PULWAMA, J&K-192301","PULWAMA","PULWAMA","PULWAMA","J&K",null,"KASHMIR",192301,192051142,6320912,null,null,null,{"$f":"TEXT(branch332[[#This Row],[Sol Id]],\"0000\")","v":"0937"}]
["A",938,938,"B","MAIN MARKET AWANTIPORA","PULWAMA","ZO PULWAMA CLSTR PULWAMA","MAINMK","PUL","PULPUL","JAKA0MAINMK","OPPOSITE MUNICIPAL COMMITTEE AWANTIPORA, PULWAMA, J&K-192122","PULWAMA","AWANTIPORA","AWANTIPORA","J&K",null,"KASHMIR",192122,192051143,6320913,null,null,null,{"$f":"TEXT(branch332[[#This Row],[Sol Id]],\"0000\")","v":"0938"}]
["A",939,939,"B","DK PORA SHOPIAN","PULWAMA","ZO PULWAMA CLSTR SHOPIAN","DKPORA","PUL","PULSHO","JAKA0DKPORA","NEAR PRIMARY HEALTH CENTRE, D K PORA, SHOPIAN, J&K-192303","SHOPIAN","SHOPIAN","SHOPIAN","J&K",null,"KASHMIR",192303,192051215,6320914,null,null,null,{"$f":"TEXT(branch332[[#This Row],[Sol Id]],\"0000\")","v":"0939"}]
["A",940,940,"B","PANZGAM PULWAMA","PULWAMA","ZO PULWAMA CLSTR PULWAMA","PANZGM","PUL","PULPUL","JAKA0PANZGM","NEAR JAMIA MASJID, PANZGAM, PULWAMA, J&K-192124","PULWAMA","PULWAMA","AWANTIPORA","J&K",null,"KASHMIR",192124,192051144,6320915,null,null,null,{"$f":"TEXT(branch332[[#This Row],[Sol Id]],\"0000\")","v":"0940"}]
["A",941,941,"B","MURRAN PULWAMA","PULWAMA","ZO PULWAMA CLSTR PULWAMA","MURNPL","PUL","PULPUL","JAKA0MURNPL","NEAR ANIMAL HUSBANDARY DEPARTMENT, MURRAN, PULWAMA, J&K-192301","PULWAMA","PULWAMA","PULWAMA","J&K",null,"KASHMIR",192301,192051145,6320916,null,null,null,{"$f":"TEXT(branch332[[#This Row],[Sol Id]],\"0000\")","v":"0941"}]
["A",942,942,"B","MIGRANT COLONY HAAL","PULWAMA","ZO PULWAMA CLSTR SHOPIAN","MIGRNT","PUL","PULSHO","JAKA0MIGRNT","NEAR SHEIKH-UL- ALAM PUBLIC HGH SCHOOL, MIGRANT COLONY HAAL, PULWAMA, J&K-192302","PULWAMA","PULWAMA","PULWAMA","J&K",null,"KASHMIR",192302,192051146,6320917,null,null,null,{"$f":"TEXT(branch332[[#This Row],[Sol Id]],\"0000\")","v":"0942"}]
["A",943,943,"B","DURGA NAGAR","JAMMU","ZO JAMMU CLSTR -3 JAMMU","DURGAN","JAM","JAMCL3","JAKA0DURGAN","NEAR AMARNATH VAISHNAVI MARG, MAIN ROAD, DURGA NAGAR, JAMMU,","JAMMU","DURGA NAGAR JAMMU","JAMMU","J&K",null,"JAMMU",180013,180051117,6320907,null,null,null,{"$f":"TEXT(branch332[[#This Row],[Sol Id]],\"0000\")","v":"0943"}]
["A",944,944,"B","CHAKROI","JAMMU","ZO JAMMU CLSTR -2 JAMMU","CHAKRO","JAM","JAMCL2","JAKA0CHAKRO","TEHSIL-SUCHETGARH (R.S. PURA) DISTRICT-JAMMU,","JAMMU","R S PORA JAMMU","R S PORA","J&K",null,"JAMMU",181102,180051118,6320908,null,null,null,{"$f":"TEXT(branch332[[#This Row],[Sol Id]],\"0000\")","v":"0944"}]
["A",945,945,"B","CHOWKI CHAURA","JAMMU","ZO JAMMU CLSTR -3 JAMMU","CHOWKI","JAM","JAMCL3","JAKA0CHOWKI","POST OFFICE & TEHSIL-CHOWKI CHAURA, DISTRICT-JAMMU","JAMMU","CHOWKI CHAURA","AKHNOOR","J&K",null,"JAMMU",185154,180051119,6320909,null,null,null,{"$f":"TEXT(branch332[[#This Row],[Sol Id]],\"0000\")","v":"0945"}]
["A",946,946,"B","PUSKYUM","LADAKH","ZO LADAKH CLSTR KARGIL","PUSKUM","LAD","LADKAR","JAKA0PUSKUM","FAROOL PUSKYUM, NEAR PHC(PRIMARY HEALTH CENTRE), PUSKYUM, KARGIL, J&K-","KARGIL",null,"KARGIL","LADAKH",null,"LADAKH",194103,194051031,6320918,null,null,null,{"$f":"TEXT(branch332[[#This Row],[Sol Id]],\"0000\")","v":"0946"}]
["A",947,947,"B","HILLAR ARHAMA","ANANTNAG","ZO ANANTNAG CLSTR -1 ANANTNAG","HILLAR","ANT","ANTCL1","JAKA0HILLAR","HILLAR ARHAMA, OPPOSITE JAMIA MASJID, HILLAR, ANANTNAG, J&K- 192201","ANANTNAG","ANANTNAG","KOKERNAG","J&K",null,"KASHMIR",192201,192051079,6320928,null,null,null,{"$f":"TEXT(branch332[[#This Row],[Sol Id]],\"0000\")","v":"0947"}]
["A",948,948,"B","KHANABAL ANANTNAG","ANANTNAG","ZO ANANTNAG CLSTR -2 ANANTNAG","KHANBL","ANT","ANTCL2","JAKA0KHANBL","K.P.CHOWK, KHANABAL, ANANTNAG, J&K- 192101","ANANTNAG","ANANTNAG","ACHABAL","J&K",null,"KASHMIR",192101,192051080,6320929,null,null,null,{"$f":"TEXT(branch332[[#This Row],[Sol Id]],\"0000\")","v":"0948"}]
["A",949,949,"B","SOLAN","KATHUA","ZO KATHUA CLSTR MOHALI","SOLAAN","KAT","KATMOH","JAKA0SOLAAN","BHASIN COMPLEX, RAJGARH ROAD, SOLAN , HIMACHAL PRADESH","SOLAN","SOLAN",null,"HIMACHAL PRADESH",null,"ROI",173212,173051002,6320931,null,null,null,{"$f":"TEXT(branch332[[#This Row],[Sol Id]],\"0000\")","v":"0949"}]
["A",950,950,"B","PATIALA","KATHUA","ZO KATHUA CLSTR MOHALI","PATIAL","KAT","KATMOH","JAKA0PATIAL","SCO-4, OPP INCOME TAX OFFICE, CANTT ROAD, PATIALA, PUNJAB","PATALIA","PATIALA",null,"PUNJAB",null,"ROI",147001,147051002,6320932,null,null,null,{"$f":"TEXT(branch332[[#This Row],[Sol Id]],\"0000\")","v":"0950"}]
["A",951,951,"EC","EC - CHANDIGARH UNIVERSITY GHARAUN",null,null,"SECTOR","KAT","KATMOH","JAKA0SECTOR",null,null,null,null,null,null,null,null,null,null,null,null,null,{"$f":"TEXT(branch332[[#This Row],[Sol Id]],\"0000\")","v":"0951"}]
["A",952,952,"B","GAJOTH","DODA","ZO DODA CLSTR DODA","GAJOTH","DOD","DODDOD","JAKA0GAJOTH","POST OFFICE MALOTHI, TEHSIL BHALLA","DODA","DODA","BHADERWAH","J&K",null,"JAMMU",182221,182051132,6320905,null,null,null,{"$f":"TEXT(branch332[[#This Row],[Sol Id]],\"0000\")","v":"0952"}]
["A",953,953,"B","GAI DESSA","DODA","ZO DODA CLSTR DODA","GAIDES","DOD","DODDOD","JAKA0GAIDES","TEHSIL BHAGWA, DISTRICT-DODA, J&K-182202","DODA","DODA","DODA","J&K",null,"JAMMU",1822202,182051133,6320906,null,null,null,{"$f":"TEXT(branch332[[#This Row],[Sol Id]],\"0000\")","v":"0953"}]
["A",956,956,"B","JKEDI PAMPORE","PULWAMA","ZO PULWAMA CLSTR PULWAMA","JKEDIP","PUL","PULPUL","JAKA0JKEDIP","JKEDI BUILDING SEMPORE PAMPORE 192121","PULWAMA","PULWAMA","PAMPORE","J&K",null,"KASHMIR",192121,192051147,6320941,null,null,null,{"$f":"TEXT(branch332[[#This Row],[Sol Id]],\"0000\")","v":"0956"}]
["A",957,957,"B","SANJAY PALACE","DELHI","ZO DELHI CLSTR LUCKNOW","SANJAY","DEL","DELLUC","JAKA0SANJAY","SHOPS NO. 5,6,8 AND 10, BLOCK NO. 38/4A,SANJAY PLACE COMMERCIAL COMPLEX,AGRA-UP.","AGRA","AGRA",null,"UP",null,"ROI",282002,282051003,6320945,null,null,null,{"$f":"TEXT(branch332[[#This Row],[Sol Id]],\"0000\")","v":"0957"}]
["A",958,958,"B","CHAMALWAS, RAMBAN","DODA","ZO DODA CLSTR RAMBAN","CHAMAL","DOD","DODRAM","JAKA0CHAMAL","CHAMALVAS, TEHSIL BANIHAL, DISTRICT RAMBAN- Â PIN-182146","RAMBAN","RAMBAN",null,"J&K",null,"JAMMU",182146,182051311,6320946,null,null,null,{"$f":"TEXT(branch332[[#This Row],[Sol Id]],\"0000\")","v":"0958"}]
["A",959,959,"B","MAJUA UTTAMI.","JAMMU","ZO JAMMU CLSTR -2 JAMMU","MAJUAU","JAM","JAMCL2","JAKA0MAJUAU","P.O RAIKA, TEHSIL BISHNAH, DISTT JAMMU-181132Â  (J&K)","JAMMU","JAMMU","BISNAH","J&K",null,"JAMMU",181132,180051120,6320944,null,null,null,{"$f":"TEXT(branch332[[#This Row],[Sol Id]],\"0000\")","v":"0959"}]
["A",960,960,"B","DEETHU","ANANTNAG","ZO ANANTNAG CLSTR -2 ANANTNAG","DEETHU","ANT","ANTCL2","JAKA0DEETHU","DEETHU NEAR OLD EIDGAH, BLOCK SHANGUS , ANANTNAG, KASHMI(J&K) -192201","ANANTNAG","ANANTNAG",null,"J&K",null,"KASHMIR",192201,192051081,6320947,null,null,null,{"$f":"TEXT(branch332[[#This Row],[Sol Id]],\"0000\")","v":"0960"}]
["A",961,961,"B","DRUROO","BARAMULLA","ZO BARAMULLA CLSTR BARAMULLA","DRUROO","BAR","BARBAR","JAKA0DRUROO","DRUROO TANGMARG 193402","BARAMULLA","BARAMULLA",null,"J&K",null,"KASHMIR",193402,193051047,6320950,null,null,null,{"$f":"TEXT(branch332[[#This Row],[Sol Id]],\"0000\")","v":"0961"}]
["A",962,962,"B","NOWSHEHRA URI","BARAMULLA","ZO BARAMULLA CLSTR BARAMULLA","NOWSHE","BAR","BARBAR","JAKA0NOWSHE","NOWSHEHRA BONIYAR URI 193122","BARAMULLA","BARAMULLA",null,"J&K",null,"KASHMIR",193122,193051048,6320951,null,null,null,{"$f":"TEXT(branch332[[#This Row],[Sol Id]],\"0000\")","v":"0962"}]
["A",963,963,"B","SHAHGUND","BARAMULLA","ZO BARAMULLA CLSTR BANDIPORA","SHGUND","BAR","BARBAN","JAKA0SHGUND","SHAHGUND SONAWARI BANDIPORA 193501","BANDIPORA","BANDIPORA",null,"J&K",null,"KASHMIR",193501,193051415,6320952,null,null,null,{"$f":"TEXT(branch332[[#This Row],[Sol Id]],\"0000\")","v":"0963"}]
["A",964,964,"B","PREMIUM BRANCH, JAWAHAR NAGAR, SRINAGAR","SRINAGAR","ZO SRINAGAR CLSTR -1 SRINAGAR","LBJNGR","SGR","SGRCL1","JAKA0LBJNGR","JAWAHAR NAGAR NEAR BEECO GALLERY, SRINAGARPIN-190008","SRINAGAR","SRINAGAR",null,"J&K",null,"KASHMIR",190008,190051108,6320955,null,null,null,{"$f":"TEXT(branch332[[#This Row],[Sol Id]],\"0000\")","v":"0964"}]
["A",965,965,"B","SAMBORA","PULWAMA","ZO PULWAMA CLSTR PULWAMA","SAMBOR","PUL","PULPUL","JAKA0SAMBOR","SAMBOORA KAKPORA PULWAMA 192304","PULWAMA","PULWAMA",null,"J&K",null,"KASHMIR",192304,192051148,6320949,null,null,null,{"$f":"TEXT(branch332[[#This Row],[Sol Id]],\"0000\")","v":"0965"}]
["A",966,966,"B","WAHIBUG","PULWAMA","ZO PULWAMA CLSTR PULWAMA","WAHBUG","PUL","PULPUL","JAKA0WAHBUG","WAHIBUG PULWAMA 192301","PULWAMA","PULWAMA",null,"J&K",null,"KASHMIR",192301,192051149,6320948,null,null,null,{"$f":"TEXT(branch332[[#This Row],[Sol Id]],\"0000\")","v":"0966"}]
["A",967,967,"B","UPSHI LEH","LADAKH","ZO LADAKH CLSTR LEH","UPSHEE","LAD","LADLEH","JAKA0UPSHEE","MAIN MARKET, UPSHI PIN: 194201","LEH","LEH",null,"LADAKH",null,"LADAKH",194201,194051033,6320953,null,null,null,{"$f":"TEXT(branch332[[#This Row],[Sol Id]],\"0000\")","v":"0967"}]
["A",968,968,"B","G.G.M.SCIENCE COLLEGE (CLUSTER UNIVERSITY) JAMMU","JAMMU","ZO JAMMU CLSTR -3 JAMMU","GGMCOL","JAM","JAMCL3","JAKA0GGMCOL","G.G.M. SCIENCE COLLEGE (CLUSTER UNIVERSITY), JAMMU, PIN-180001","JAMMU","JAMMU",null,"J&K",null,"JAMMU",180001,180051121,6320957,null,null,null,{"$f":"TEXT(branch332[[#This Row],[Sol Id]],\"0000\")","v":"0968"}]
["A",969,969,"B","PANAMIK","LADAKH","ZO LADAKH CLSTR LEH","PANMIK","LAD","LADLEH","JAKA0PANMIK","PANAMIK, BLOCK PANAMIK NUBRA, LEH (J&K) PIN - 194401","LEH","LEH",null,"LADAKH",null,"LADAKH",194401,194051034,6320964,null,null,null,{"$f":"TEXT(branch332[[#This Row],[Sol Id]],\"0000\")","v":"0969"}]
["A",970,970,"B","INDUSTRIAL ESTATE SICOP COMPLEX UDHAMPUR","UDHAMPUR","ZO UDHAMPUR CLSTR UDHAMPUR","INDUDH","UDM","UDMUDM","JAKA0INDUDH","IID CENTRE, BATTAL BALLION, UDHAMPUR, PIN-182101","UDHAMPUR","UDHAMPUR",null,"J&K",null,"JAMMU",182102,182051036,6320958,null,null,null,{"$f":"TEXT(branch332[[#This Row],[Sol Id]],\"0000\")","v":"0970"}]
["A",971,971,"B","SHAHDRA SHARIEF","RAJOURI","ZO RAJOURI CLSTR RAJOURI","SHADSH","RAJ","RAJRAJ","JAKA0SHADSH","THANNAMANDI, RAJOURI,PIN-185212","RAJOURI","RAJOURI",null,"J&K",null,"JAMMU",185212,185051033,6320956,null,null,null,{"$f":"TEXT(branch332[[#This Row],[Sol Id]],\"0000\")","v":"0971"}]
["A",972,972,"B","LOHARAKOTE, SUNDERBANI","RAJOURI","ZO RAJOURI CLSTR RAJOURI","LOHARA","RAJ","RAJRAJ","JAKA0LOHARA","NEAR LIC OFFICE LOHARAKOTE, SUNDERBANI, RAJOURI.PIN: 185153","RAJOURI","RAJOURI",null,"J&K",null,"JAMMU",185153,185051034,6320965,null,null,null,{"$f":"TEXT(branch332[[#This Row],[Sol Id]],\"0000\")","v":"0972"}]
["A",973,973,"B","BUS STAND MENDHER","RAJOURI","ZO RAJOURI CLSTR POONCH","BSMEND","RAJ","RAJPOO","JAKA0BSMEND","NEAR BUS STAND MENDHER,POONCH PIN: 185111","POONCH","POONCH",null,"J&K",null,"JAMMU",185111,185051124,6320967,null,null,null,{"$f":"TEXT(branch332[[#This Row],[Sol Id]],\"0000\")","v":"0973"}]
["M",974,974,"B","INDUSTRIAL ESTATE ZAINAKOTE (MERGED WITH 0258)",null,null,"INDZAN","SGR","NA","JAKA0INDZAN",null,null,null,null,null,null,null,null,null,null,null,null,null,{"$f":"TEXT(branch332[[#This Row],[Sol Id]],\"0000\")","v":"0974"}]
["A",975,975,"B","FRUIT MANDI BATENGOO","ANANTNAG","ZO ANANTNAG CLSTR -2 ANANTNAG","FRBTNG","ANT","ANTCL2","JAKA0FRBTNG","Â FRUIT MANDI BATENGOO, ANANTNAG, PIN-192101","ANANTNAG","ANANTNAG",null,"J&K",null,"KASHMIR",192101,192051083,6320960,null,null,null,{"$f":"TEXT(branch332[[#This Row],[Sol Id]],\"0000\")","v":"0975"}]
["A",976,976,"B","GAROORA, BANDIPORA","BARAMULLA","ZO BARAMULLA CLSTR BANDIPORA","GAROOR","BAR","BARBAN","JAKA0GAROOR","GAROORA, BANDIPORA,PIN-193502.","BANDIPORA","BANDIPORA",null,"J&K",null,"KASHMIR",193502,193051416,6320966,null,null,null,{"$f":"TEXT(branch332[[#This Row],[Sol Id]],\"0000\")","v":"0976"}]
["A",977,977,"B","AMARGARH, SOPORE","BARAMULLA","ZO BARAMULLA CLSTR SOPORE","AMARGH","BAR","BARSOP","JAKA0AMARGH","ZONAL OFFICE BUILDING NEAR SOPORE KUPWARA BYE PASS AMARGARH SOPORE, PIN-193201","BARAMULLA","BARAMULLA",null,"J&K",null,"KASHMIR",193201,193051049,6320961,null,null,null,{"$f":"TEXT(branch332[[#This Row],[Sol Id]],\"0000\")","v":"0977"}]
["A",978,978,"B","MINI SECTT.KISHTWAR","DODA","ZO DODA CLSTR KISHTWAR","MINKIS","DOD","DODKIS","JAKA0MINKIS","HALL NO-6, NEW MINI-SECRETARIAT, D.C.OFFICE COMPLEX, KISHTWAR, PIN-182204","KISHTWAR","KISHTWAR",null,"J&K",null,"JAMMU",182204,182051417,6320962,null,null,null,{"$f":"TEXT(branch332[[#This Row],[Sol Id]],\"0000\")","v":"0978"}]
["A",982,982,"B","CHINIGUND, DOORU","ANANTNAG","ZO ANANTNAG CLSTR -1 ANANTNAG","CHINGD","ANT","ANTCL1","JAKA0CHINGD","CHINIGUND, TEHSIL-DOORU, PIN-192211","ANANTNAG","ANANTNAG",null,"J&K",null,"KASHMIR",192211,192051084,6320963,null,null,null,{"$f":"TEXT(branch332[[#This Row],[Sol Id]],\"0000\")","v":"0982"}]
["A",991,991,"B","MAGARMAL BAGH SRINAGAR","SRINAGAR","ZO SRINAGAR CLSTR -3 SRINAGAR","MAGRML","SGR","SGRCL3","JAKA0MAGRML","NEAR RANI MANDIR MAGARMAL BAGH SRINAGARÂ Â PIN-190001","SRINAGAR","SRINAGAR",null,"J&K",null,"KASHMIR",190001,190051110,"632000A",null,null,null,{"$f":"TEXT(branch332[[#This Row],[Sol Id]],\"0000\")","v":"0991"}]
["A",992,992,"B","DINGA AMB, KATHUA","KATHUA","ZO KATHUA CLSTR KATHUA","DINAMB","KAT","KATKAT","JAKA0DINAMB","DINGA AMBTEHSIL & POÂ DINGA AMBDISTRICT KATHUA PIN-184144","KATHUA","KATHUA",null,"J&K",null,"JAMMU",184144,184051036,"632000B",null,null,null,{"$f":"TEXT(branch332[[#This Row],[Sol Id]],\"0000\")","v":"0992"}]
["A",993,993,"CQ","CHQ",null,null,null,"CHQ","NA",null,null,null,null,null,null,null,null,null,null,null,null,null,null,{"$f":"TEXT(branch332[[#This Row],[Sol Id]],\"0000\")","v":"0993"}]
["A",994,994,"B","DANDAL, DODA","DODA","ZO DODA CLSTR DODA","DANDAL","DOD","DODDOD","JAKA0DANDAL","DHANDAL TEHSIL KASTIGARH DISTRICT DODA - 182147","DODA","DODA",null,"J&K",null,"JAMMU",182147,182051134,"632000C",null,null,null,{"$f":"TEXT(branch332[[#This Row],[Sol Id]],\"0000\")","v":"0994"}]
["A",995,995,"B","GUNDANA, DODA","DODA","ZO DODA CLSTR DODA","GUNDNA","DOD","DODDOD","JAKA0GUNDNA","GUNDANA, TEHSIL GUNDANA DISTRICT DODA - 182202","DODA","DODA",null,"J&K",null,"JAMMU",182202,182051135,"632000D",null,null,null,{"$f":"TEXT(branch332[[#This Row],[Sol Id]],\"0000\")","v":"0995"}]
["A",997,997,"B","TIYARI KISHTWAR","DODA","ZO DODA CLSTR KISHTWAR","TIYARI","DOD","DODKIS","JAKA0TIYARI","TIYARI TEHSIL PADDAR KISHTWAR - 182204","KISHTWAR","KISHTWAR",null,"J&K",null,"JAMMU",182204,182051418,"632000E",null,null,null,{"$f":"TEXT(branch332[[#This Row],[Sol Id]],\"0000\")","v":"0997"}]
["A",999,999,"DP","ATM SWITCH DEPARTMENT CHQ",null,null,null,"CHQ","NA",null,null,null,null,null,null,null,null,null,null,null,null,null,null,{"$f":"TEXT(branch332[[#This Row],[Sol Id]],\"0000\")","v":"0999"}]
["A",1000,1000,"B","BARSOO AWANTIPORA","PULWAMA","ZO PULWAMA CLSTR PULWAMA","BARSOO","PUL","PULPUL","JAKA0BARSOO","BARSOO AWANTIPORA PIN-192122","PULWAMA","PULWAMA",null,"J&K",null,"KASHMIR",192122,192051150,"632000F",null,null,null,{"$f":"TEXT(branch332[[#This Row],[Sol Id]],\"0000\")","v":"1000"}]
["A",1001,1001,"B","TUMLAHAL, PULWAMA","PULWAMA","ZO PULWAMA CLSTR PULWAMA","TUMHAL","PUL","PULPUL","JAKA0TUMHAL","TUMLAHAL PULWAMA PIN-192301","PULWAMA","PULWAMA",null,"J&K",null,"KASHMIR",192301,192051151,"632000G",null,null,null,{"$f":"TEXT(branch332[[#This Row],[Sol Id]],\"0000\")","v":"1001"}]
["A",1002,1002,"B","TIKEN, BATPORA","PULWAMA","ZO PULWAMA CLSTR SHOPIAN","TIKENB","PUL","PULSHO","JAKA0TIKENB","TIKEN BATPORA PIN PIN-192301","PULWAMA","PULWAMA",null,"J&K",null,"KASHMIR",192301,192051153,"632000H",null,null,null,{"$f":"TEXT(branch332[[#This Row],[Sol Id]],\"0000\")","v":"1002"}]
["A",1003,1003,"B","GULZARPORA TOKUNA, PULWAMA","PULWAMA","ZO PULWAMA CLSTR PULWAMA","TOKUNA","PUL","PULPUL","JAKA0TOKUNA","GULZARPORA TOKUNA","PULWAMA","PULWAMA",null,"J&K",null,"KASHMIR",192124,192051152,"632000L",null,null,null,{"$f":"TEXT(branch332[[#This Row],[Sol Id]],\"0000\")","v":"1003"}]
["A",1004,1004,"B","HEFF, SHOPIAN","PULWAMA","ZO PULWAMA CLSTR SHOPIAN","HEFFSH","PUL","PULSHO","JAKA0HEFFSH","HEFF SHOPIAN","SHOPIAN","SHOPIAN",null,"J&K",null,"KASHMIR",192305,192051216,"632000I",null,null,null,{"$f":"TEXT(branch332[[#This Row],[Sol Id]],\"0000\")","v":"1004"}]
["A",1005,1005,"B","BUFLIAZ, POONCH","RAJOURI","ZO RAJOURI CLSTR POONCH","BUFLAZ","RAJ","RAJPOO","JAKA0BUFLAZ","POST OFFICE BUFLIAZ TEHSIL SURANKOT DISTRICT POONCH - 185121","POONCH","POONCH",null,"J&K",null,"JAMMU",185121,185051125,"632000J",null,null,null,{"$f":"TEXT(branch332[[#This Row],[Sol Id]],\"0000\")","v":"1005"}]
["A",1006,1006,"B","KHANETAR KANUYIAN, POONCH","RAJOURI","ZO RAJOURI CLSTR POONCH","KHANTR","RAJ","RAJPOO","JAKA0KHANTR","POST OFFICE KHANETAR BLOCK POONCH DISTRICT POONCH - 185101","POONCH","POONCH",null,"J&K",null,"JAMMU",185101,185051126,"632000K",null,null,null,{"$f":"TEXT(branch332[[#This Row],[Sol Id]],\"0000\")","v":"1006"}]
["A",1007,1007,"B","GOPALPORA KULGAM","ANANTNAG","ZO ANANTNAG CLSTR KULGAM","GOPALK","ANT","ANTKUL","JAKA0GOPALK","GOPALPORA DISTT KULGAM 192233","KULGAM","KULGAM",null,"J&K",null,"KASHMIR",192233,192051313,"632000M",null,null,null,{"$f":"TEXT(branch332[[#This Row],[Sol Id]],\"0000\")","v":"1007"}]
["A",1008,1008,"B","KHARAK NEW DELHI","DELHI","ZO DELHI CLSTR -2 DELHI","KHARAK","DEL","DELCL2","JAKA0KHARAK","A-7 BABA KHARAK SINGH MARG","DELHI","DELHI",null,"DELHI",null,"ROI",110001,110051037,"632000N",null,null,null,{"$f":"TEXT(branch332[[#This Row],[Sol Id]],\"0000\")","v":"1008"}]
["A",1009,1009,"B","AJMER RAJASTHAN","DELHI","ZO DELHI CLSTR -1 DELHI","AJMERR","DEL","DELCL1","JAKA0AJMERR","GROUND FLOOR AND FIRST FLOOR, COMMERCIAL AREA NO. 303/22 (AMC NO. OLD VII/979), PLAZA CINEMA ROAD, DIGGHI CHOWK, AJMER- 305001","AJMER","AJMER",null,"RAJASTHAN",null,"ROI",305001,305051002,"632000O",null,null,null,{"$f":"TEXT(branch332[[#This Row],[Sol Id]],\"0000\")","v":"1009"}]
["A",1010,1010,"B","SHIV NAGAR, DHARBADAN","DODA","ZO DODA CLSTR KISHTWAR","SHIVNG","DOD","DODKIS","JAKA0SHIVNG","POST OFFICE- SHIV NAGAR,THAKRAI KISHTWAR, PIN-182205","KISHTWAR","KISHTWAR",null,"J&K",null,"JAMMU",182205,182051419,"632000P",null,null,null,{"$f":"TEXT(branch332[[#This Row],[Sol Id]],\"0000\")","v":"1010"}]
["A",1011,1011,"B","SHIRDI, MAHARASHTRA","MUMBAI","ZO MUMBAI CLSTR MUMBAI","SAIRAM","MUM","MUMMUM","JAKA0SAIRAM","SHIRDI AHMEDNAGAR","AHMEDNAGAR","MUMBAI",null,"MAHARASHTRA",null,"ROI",423109,423051301,"632000Q",null,null,null,{"$f":"TEXT(branch332[[#This Row],[Sol Id]],\"0000\")","v":"1011"}]
["A",1012,1012,"B","CHANNI RAMA","JAMMU","ZO JAMMU CLSTR -1 JAMMU","CHARAM","JAM","JAMCL1","JAKA0CHARAM","CHANNI RAMA, JAMMU - 180015","JAMMU","JAMMU",null,"J&K",null,"JAMMU",180015,180051122,"632000R",null,null,null,{"$f":"TEXT(branch332[[#This Row],[Sol Id]],\"0000\")","v":"1012"}]
["A",1013,1013,"B","SIGDI, KISHTWAR","DODA","ZO DODA CLSTR KISHTWAR","SIGDEE","DOD","DODKIS","JAKA0SIGDEE","VILLAGE SIGDI, TEHSIL-MUGHAL MAIDAN,DISTRICT- KISHTWAR, PIN-182205.","KISHTWAR","KISHTWAR",null,"J&K",null,"JAMMU",182205,182051420,"632000S",null,null,null,{"$f":"TEXT(branch332[[#This Row],[Sol Id]],\"0000\")","v":"1013"}]
["A",1016,1016,"B","MIL, BADAMI BAGH CANTONMENT","SRINAGAR","ZO SRINAGAR CLSTR -1 SRINAGAR","MILCAN","SGR","SGRCL1","JAKA0MILCAN","BADAMI BAGH ,CANTONMENT PIN- 190004","SRINAGAR","SRINAGAR",null,"J&K",null,"KASHMIR",190004,190051111,"632000U",null,null,null,{"$f":"TEXT(branch332[[#This Row],[Sol Id]],\"0000\")","v":"1016"}]
["A",1017,1017,"B","TALLI MORH, JAMMU","JAMMU","ZO JAMMU CLSTR -2 JAMMU","TALMOR","JAM","JAMCL2","JAKA0TALMOR","TALLI MORH JAMMU","JAMMU","JAMMU",null,"J&K",null,"JAMMU",181101,180051123,"632000W",null,null,null,{"$f":"TEXT(branch332[[#This Row],[Sol Id]],\"0000\")","v":"1017"}]
["A",1018,1018,"B","POUNI CHAK JAMMU","JAMMU","ZO JAMMU CLSTR -3 JAMMU","POCHAK","JAM","JAMCL3","JAKA0POCHAK","VILLAGE POUNI CHAK, P.O. AKALPUR, JAMMU, JK, PIN CODE-180002","JAMMU","JAMMU",null,"J&K",null,"JAMMU",180002,180051124,"632000Z",null,null,null,{"$f":"TEXT(branch332[[#This Row],[Sol Id]],\"0000\")","v":"1018"}]
["A",1019,1019,"B","MAIRA MANDRIAN, JAMMU","JAMMU","ZO JAMMU CLSTR -3 JAMMU","MARMAN","JAM","JAMCL3","JAKA0MARMAN","MAIRA MADRIAN","JAMMU","JAMMU",null,"J&K",null,"JAMMU",181201,180051125,"632000Y",null,null,null,{"$f":"TEXT(branch332[[#This Row],[Sol Id]],\"0000\")","v":"1019"}]
["A",1020,1020,"B","NUD, SAMBA","KATHUA","ZO KATHUA CLSTR SAMBA","NUDSAM","KAT","KATSAM","JAKA0NUDSAM","VILLAGE NUD, TEHIL K, SAMBA, JK, PIN CODE-184121","SAMBA","SAMBA",null,"J&K",null,"JAMMU",184121,180051126,"632001A",null,null,null,{"$f":"TEXT(branch332[[#This Row],[Sol Id]],\"0000\")","v":"1020"}]
["A",1021,1021,"B","SANJAK, KARGIL","LADAKH","ZO LADAKH CLSTR KARGIL","SANJAK","LAD","LADKAR","JAKA0SANJAK","VILLAGE SANJAK,TEHSIL K CHIKTAN.","KARGIL","KARGIL",null,"LADAKH",null,"LADAKH",194109,194051035,"632001B",null,null,null,{"$f":"TEXT(branch332[[#This Row],[Sol Id]],\"0000\")","v":"1021"}]
["A",1022,1022,"B","BAGGAN, KATHUA","KATHUA","ZO KATHUA CLSTR KATHUA","BAGGAN","KAT","KATKAT","JAKA0BAGGAN","VILLAGE BAGGAN, TEHSIL BILLAWER KATHUA.","KATHUA","KATHUA","BILLAWER","J&K",null,"JAMMU",184204,184051037,"632001C",null,null,null,{"$f":"TEXT(branch332[[#This Row],[Sol Id]],\"0000\")","v":"1022"}]
["A",1023,1023,"B","KOHAG, KATHUA","KATHUA","ZO KATHUA CLSTR KATHUA","KOHAGG","KAT","KATKAT","JAKA0KOHAGG","VILLAGE KOHAGG, TEHSIL KILLAWER KATHUA.","KATHUA","KATHUA","BILLAWER","J&K",null,"JAMMU",184207,184051038,"632001D",null,null,null,{"$f":"TEXT(branch332[[#This Row],[Sol Id]],\"0000\")","v":"1023"}]
["A",1024,1024,"B","CITY CHOWK, RAJOURI","RAJOURI","ZO RAJOURI CLSTR RAJOURI","CITYCH","RAJ","RAJRAJ","JAKA0CITYCH","WARD NO-9, NEAR OLD BUS STAND, RAJOURI, PIN-185131","RAJOURI","RAJOURI","RAJOURI","J&K",null,"JAMMU",185131,185051035,"632001E",null,null,null,{"$f":"TEXT(branch332[[#This Row],[Sol Id]],\"0000\")","v":"1024"}]
["A",1025,1025,"B","KADLABAL, PAMPORE","PULWAMA","ZO PULWAMA CLSTR PULWAMA","KADBAL","PUL","PULPUL","JAKA0KADBAL","KADLABAL CHOWK PAMPORE, PIN- 192121","PULWAMA","PULWAMA",null,"J&K",null,"KASHMIR",192121,192051154,"632001F",null,null,null,{"$f":"TEXT(branch332[[#This Row],[Sol Id]],\"0000\")","v":"1025"}]
["A",1026,1026,"B","SMVD,NARAYANA HOSPITAL,KAKRYAL","UDHAMPUR","ZO UDHAMPUR CLSTR REASI","SMVDNH","UDM","UDMREA","JAKA0SMVDNH","NARAYANA HOSPITAL CAMPUS, KAKRYAL, KATRA, REASI JK- 182320","REASI","REASI",null,"J&K",null,"JAMMU",182320,182051205,"632001H",null,null,null,{"$f":"TEXT(branch332[[#This Row],[Sol Id]],\"0000\")","v":"1026"}]
["A",1027,1027,"B","KALOOSA","BARAMULLA","ZO BARAMULLA CLSTR BANDIPORA","KALOSA","BAR","BARBAN","JAKA0KALOSA","KALOOSA BANDIPORA, TEHSIL AND DISTRICT BANDIPORA, PIN-193502","BANDIPORA","BANDIPORA",null,"J&K",null,"KASHMIR",193502,193051417,"632001I",null,null,null,{"$f":"TEXT(branch332[[#This Row],[Sol Id]],\"0000\")","v":"1027"}]
["A",1028,1028,"B","GENERAL BUS STAND LAROO KULGAM","ANANTNAG","ZO ANANTNAG CLSTR KULGAM","GBLARO","ANT","ANTKUL","JAKA0GBLARO","LAROO, DISTRICT KULGAM, PIN- 192231","KULGAM","KULGAM",null,"J&K",null,"KASHMIR",192231,192051314,"632001J",null,null,null,{"$f":"TEXT(branch332[[#This Row],[Sol Id]],\"0000\")","v":"1028"}]
["A",1029,1029,"B","SAWJIAN, POONCH","RAJOURI","ZO RAJOURI CLSTR POONCH","SAWJAN","RAJ","RAJPOO","JAKA0SAWJAN","SAWJIAN, GAGERIAN,Â TEHSIL :MANDI,Â DISTRICT: POONCH,Â PIN- 185102","POONCH","POONCH","MANDI","J&K",null,"JAMMU",185102,185051127,"632001K",null,null,null,{"$f":"TEXT(branch332[[#This Row],[Sol Id]],\"0000\")","v":"1029"}]
["A",1031,1031,"B","SAMOTE, BUDHAL - RAJOURI","RAJOURI","ZO RAJOURI CLSTR RAJOURI","SAMRAJ","RAJ","RAJRAJ","JAKA0SAMRAJ","WARD NO. 5, LOWER SAMOTE TEHSIL : KOTRANKA (BUDHAL) POST OFFICE: SAMOTE","RAJOURI","RAJOURI","KOTRANKA","J&K",null,"JAMMU",185233,185051036,"632001L",null,null,null,{"$f":"TEXT(branch332[[#This Row],[Sol Id]],\"0000\")","v":"1031"}]
["A",1032,1032,"B","MEMENDER","PULWAMA","ZO PULWAMA CLSTR SHOPIAN","MEMEND","PUL","PULSHO","JAKA0MEMEND","MEMENDER, SHOPIAN","SHOPIAN","SHOPIAN","SHOPIAN","J&K",null,"KASHMIR",192303,192051217,"632001M",null,null,null,{"$f":"TEXT(branch332[[#This Row],[Sol Id]],\"0000\")","v":"1032"}]
["A",1033,1033,"B","DHOBIWAN","BARAMULLA","ZO BARAMULLA CLSTR BARAMULLA","DHOBWN","BAR","BARBAR","JAKA0DHOBWN","DHOBIWN, KUNZER","BARAMULLA","BARAMULLA","KUNZER","J&K",null,"KASHMIR",193404,193051050,"632001N",null,null,null,{"$f":"TEXT(branch332[[#This Row],[Sol Id]],\"0000\")","v":"1033"}]
["A",1034,1034,"B","BATGUND","PULWAMA","ZO PULWAMA CLSTR PULWAMA","BTGUND","PUL","PULPUL","JAKA0BTGUND","BATGUND, PULWAMA","PULWAMA","PULWAMA","TRAL","J&K",null,"KASHMIR",192123,192051155,"632001P",null,null,null,{"$f":"TEXT(branch332[[#This Row],[Sol Id]],\"0000\")","v":"1034"}]
["A",1035,1035,"B","WARPORA","BARAMULLA","ZO BARAMULLA CLSTR SOPORE","WARPOR","BAR","BARSOP","JAKA0WARPOR","WARPORA Â Â TEHSIL : SOPORE,Â DISTRICT: BARAMULLA.","BARAMULLA","BARAMULLA","SOPORE","J&K",null,"KASHMIR",193201,193051052,"632001O",null,null,null,{"$f":"TEXT(branch332[[#This Row],[Sol Id]],\"0000\")","v":"1035"}]
["A",1036,1036,"B","HARDUSHOORA","BARAMULLA","ZO BARAMULLA CLSTR BARAMULLA","HARDUS","BAR","BARBAR","JAKA0HARDUS","HARDUSHOORA, KUNZER","BARAMULLA","BARAMULLA","KUNZER","J&K",null,"KASHMIR",193404,193051051,"632001Q",null,null,null,{"$f":"TEXT(branch332[[#This Row],[Sol Id]],\"0000\")","v":"1036"}]
["A",1037,1037,"B","NEW BUS STAND, BUDGAM","BUDGAM","ZO BUDGAM CLSTR -1 BUDGAM","BUSBUD","BUD","BUDCL1","JAKA0BUSBUD","NEW BUS STAND, BUDGAM, TEHSIL : BUDGAM,","BUDGAM","BUDGAM","BUDGAM","J&K",null,"KASHMIR",191111,191051049,"632001R",null,null,null,{"$f":"TEXT(branch332[[#This Row],[Sol Id]],\"0000\")","v":"1037"}]
["A",1038,1038,"B","WUSSAN","BUDGAM","ZO BUDGAM CLSTR GANDERBAL","WUSSAN","BUD","BUDGAN","JAKA0WUSSAN","WUSSAN, TEHSIL : KANGAN","GANDERBAL","GANDERBAL","KANGAN","J&K",null,"KASHMIR",191201,191051121,"632001S",null,null,null,{"$f":"TEXT(branch332[[#This Row],[Sol Id]],\"0000\")","v":"1038"}]
["A",1039,1039,"B","KANTHI","DODA","ZO DODA CLSTR RAMBAN","KANTHI","DOD","DODRAM","JAKA0KANTHI","KANTHI, TEHSIL K: RAMBAN","RAMBAN","RAMBAN","RAMBAN","J&K",null,"JAMMU",182148,182051313,"632001T",null,null,null,{"$f":"TEXT(branch332[[#This Row],[Sol Id]],\"0000\")","v":"1039"}]
["A",1040,1040,"B","GANDHRI","DODA","ZO DODA CLSTR RAMBAN","GANDRI","DOD","DODRAM","JAKA0GANDRI","GANDHRI,Â Â Â TEHSIL K: RAMBAN","RAMBAN","RAMBAN","RAMBAN","J&K",null,"JAMMU",182144,182051314,"632001U",null,null,null,{"$f":"TEXT(branch332[[#This Row],[Sol Id]],\"0000\")","v":"1040"}]
["A",1041,1041,"B","HALLA","DODA","ZO DODA CLSTR RAMBAN","HALLAA","DOD","DODRAM","JAKA0HALLAA","HALLA, TEHSIL K: RAMBAN","RAMBAN","RAMBAN","RAMBAN","J&K",null,"JAMMU",182148,182051312,"632001V",null,null,null,{"$f":"TEXT(branch332[[#This Row],[Sol Id]],\"0000\")","v":"1041"}]
["A",1042,1042,"B","CHUCHOT SHAMMA","LADAKH","ZO LADAKH CLSTR LEH","CHUSHA","LAD","LADLEH","JAKA0CHUSHA","KHOMIENI CHOWK, CHUCHOT SHAMMA , POST OFFICE : BPO CHUCHOT SHAMMA","LEH","LEH","LEH","LADAKH",null,"LADAKH",194101,194051036,"632001X",null,null,null,{"$f":"TEXT(branch332[[#This Row],[Sol Id]],\"0000\")","v":"1042"}]
["A",1043,1043,"B","AGORE","JAMMU","ZO JAMMU CLSTR -3 JAMMU","AGHORE","JAM","JAMCL3","JAKA0AGHORE","AGORE, BHALWAL","JAMMU","JAMMU","BHALWAL","J&K",null,"JAMMU",181122,180051127,"632001W",null,null,null,{"$f":"TEXT(branch332[[#This Row],[Sol Id]],\"0000\")","v":"1043"}]
["A",1044,1044,"B","ARAI, POONCH","RAJOURI","ZO RAJOURI CLSTR POONCH","ARAYEE","RAJ","RAJPOO","JAKA0ARAYEE","ARAI, POONCH","POONCH","POONCH","MANDI","J&K",null,"JAMMU",185102,185051128,"632001Y",null,null,null,{"$f":"TEXT(branch332[[#This Row],[Sol Id]],\"0000\")","v":"1044"}]
["A",1045,1045,"B","KULLAN","BUDGAM","ZO BUDGAM CLSTR GANDERBAL","KULANG","BUD","BUDGAN","JAKA0KULANG","KULLAN","GANDERBAL","GANDERBAL","GUND","J&K",null,"KASHMIR",191202,191051122,"632002B",null,null,null,{"$f":"TEXT(branch332[[#This Row],[Sol Id]],\"0000\")","v":"1045"}]
["A",1046,1046,"B","BHAGHA, REASI","UDHAMPUR","ZO UDHAMPUR CLSTR REASI","BHAGHA","UDM","UDMREA","JAKA0BHAGHA","BHAGHA","REASI","REASI","REASI","J&K",null,"JAMMU",182311,182051266,"632001Z",null,null,null,{"$f":"TEXT(branch332[[#This Row],[Sol Id]],\"0000\")","v":"1046"}]
["A",1047,1047,"B","SALAL","UDHAMPUR","ZO UDHAMPUR CLSTR REASI","SALLAL","UDM","UDMREA","JAKA0SALLAL","SALAL, POST OFFICE SALAL, TEHSIL, REASI","REASI","REASI","REASI","J&K",null,"JAMMU",182312,182051267,"632002A",null,null,null,{"$f":"TEXT(branch332[[#This Row],[Sol Id]],\"0000\")","v":"1047"}]
["A",1048,1048,"B","BUDHAN","UDHAMPUR","ZO UDHAMPUR CLSTR REASI","BUDHAN","UDM","UDMREA","JAKA0BUDHAN","BUDHAN, TEHSIL : THUROO ,DISTRICT : REASI ,PIN: 182313Â ","REASI","REASI","THUROO","J&K",null,"JAMMU",182313,182051265,"632002C",null,null,null,{"$f":"TEXT(branch332[[#This Row],[Sol Id]],\"0000\")","v":"1048"}]
["A",1049,1049,"B","ATI, RAJOURI","RAJOURI","ZO RAJOURI CLSTR RAJOURI","ATIRAJ","RAJ","RAJRAJ","JAKA0ATIRAJ","ATI, THANAMANDI ROAD, NEAR DARHALI BRIDGE, POST OFFICE FATEHPUR","RAJOURI","RAJOURI","RAJOURI","J&K",null,"JAMMU",185133,185051038,"632002D",null,null,null,{"$f":"TEXT(branch332[[#This Row],[Sol Id]],\"0000\")","v":"1049"}]
["A",1050,1050,"B","RAJAL ROAD NOWSHERA, RAJOURI","RAJOURI","ZO RAJOURI CLSTR RAJOURI","RAJALL","RAJ","RAJRAJ","JAKA0RAJALL","RAJAL ROAD NEAR CHANDI MATA MANDIR, POST OFFICE: NOWSHERA","RAJOURI","RAJOURI","NOWSHERA","J&K",null,"JAMMU",185151,185051037,"632002E",null,null,null,{"$f":"TEXT(branch332[[#This Row],[Sol Id]],\"0000\")","v":"1050"}]
["A",1051,1051,"B","MODEL TOWN SOPORE","BARAMULLA","ZO BARAMULLA CLSTR SOPORE","MODSOP","BAR","BARSOP","JAKA0MODSOP","MODEL TOWN, POST OFFICE SOPORE TEHSIL SOPORE, DISTRICT BARAMULLA.","BARAMULLA","BARAMULLA","SOPORE","J&K",null,"KASHMIR",193201,null,"632002F",null,null,null,{"$f":"TEXT(branch332[[#This Row],[Sol Id]],\"0000\")","v":"1051"}]
["A",1052,1052,"B","PATTAN VILLAGE","BARAMULLA","ZO BARAMULLA CLSTR SOPORE","PATVIL","BAR","BARSOP","JAKA0PATVIL","PATTAN VILLAGE, POST OFFICE PATTAN, TEHSIL PATTAN, DISTRICT BARAMULLA.","BARAMULLA","BARAMULLA","PATTAN","J&K",null,"KASHMIR",193121,null,"632002G",null,null,null,{"$f":"TEXT(branch332[[#This Row],[Sol Id]],\"0000\")","v":"1052"}]
["A",1053,1053,"B","BAKURA GANDERBAL","BUDGAM","ZO BUDGAM CLSTR GANDERBAL","BAKURA","BUD","BUDGAN","JAKA0BAKURA","BAKURA, GANDERBAL, POST OFFICE SHUHAMA, TEHSIL GANDERBAL","GANDERBAL","GANDERBAL","GANDERBAL","J&K",null,"KASHMIR",190006,191051123,"632002H",null,null,null,{"$f":"TEXT(branch332[[#This Row],[Sol Id]],\"0000\")","v":"1053"}]
["A",1054,1054,"B","NARKARA BUDGAM","BUDGAM","ZO BUDGAM CLSTR -1 BUDGAM","NARKAR","BUD","BUDCL1","JAKA0NARKAR","NARKARA, BUDGAM, POST OFFICE BEMINA, TEHSIL BUDGAM DISTRICT BUDGAM PIN CODE:190018","BUDGAM","BUDGAM","BUDGAM","J&K",null,"KASHMIR",190018,191051050,"632002I",null,null,null,{"$f":"TEXT(branch332[[#This Row],[Sol Id]],\"0000\")","v":"1054"}]
["A",1055,1055,"B","DRUSOO PULWAMA","PULWAMA","ZO PULWAMA CLSTR PULWAMA","DRUSOO","PUL","PULPUL","JAKA0DRUSOO","DRUSOO PULWAMA, POST OFFICE: PULWAMA, TEHSIL K: PULWAMA PIN CODE: 192301","PULWAMA","PULWAMA","PULWAMA","J&K",null,"KASHMIR",192301,192051156,"632002J",33.871839999999999,74.899379999999994,null,{"$f":"TEXT(branch332[[#This Row],[Sol Id]],\"0000\")","v":"1055"}]
["A",1056,1056,"DBU","DIGITAL BANKING UNIT SRINAGAR","SRINAGAR","ZO SRINAGAR CLSTR -1 SRINAGAR","DBUSGR","SGR","SGRCL1","JAKA0DBUSGR","LAL CHOWK, NEAR GHANTA GHAR SRINAGAR JK 190001","SRINAGAR","SRINAGAR","SRINAGAR","J&K",null,"KASHMIR",190001,190051112,"632002T",null,null,null,{"$f":"TEXT(branch332[[#This Row],[Sol Id]],\"0000\")","v":"1056"}]
["A",1057,1057,"DBU","DIGITAL BANKING UNIT JAMMU","JAMMU","ZO JAMMU CLSTR -2 JAMMU","DBUJMU","JAM","JAMCL2","JAKA0DBUJMU","CHANNI RAMA, OPPOSITE GURDUWARA, NEAR WAVE MALL JAMMU - 180015","JAMMU","JAMMU","JAMMU","J&K",null,"JAMMU",180015,180051128,"632002U",null,null,null,{"$f":"TEXT(branch332[[#This Row],[Sol Id]],\"0000\")","v":"1057"}]
["A",1058,1058,"B","SWANKHA MORH","KATHUA","ZO KATHUA CLSTR SAMBA","SWANKH","KAT","KATSAM","JAKA0SWANKH","SWANKH MORH","SAMBA","VIJAYPUR","VIJAYPUR","J&K",null,"JAMMU",184120,180051129,"632002L",32.570300000000003,75.001869999999997,null,{"$f":"TEXT(branch332[[#This Row],[Sol Id]],\"0000\")","v":"1058"}]
["A",1059,1059,"B","JAWALAPORA","BUDGAM","ZO BUDGAM CLSTR -1 BUDGAM","JAWALP","BUD","BUDCL1","JAKA0JAWALP","JAWALAPORA, POST OFFICE: JAWALAPORA, TEHSIL BUDGAM PIN CODE:191111","BUDGAM","BUDGAM","BUDGAM","J&K",null,"KASHMIR",191111,191051051,"632002K",33.988549999999996,74.68083,null,{"$f":"TEXT(branch332[[#This Row],[Sol Id]],\"0000\")","v":"1059"}]
["A",1060,1060,"L","LCU POLOVIEW SRINAGAR","SRINAGAR","UNDER ZO SRINAGAR","LCUPVW","SGR","SGRUND","JAKA0LCUPVW","2ND FLOOR, ZONAL OFFICE , MA ROAD SRINAGAR. PIN 190001","SRINAGAR","Srinagar","Srinagar","J&K",null,"KASHMIR",190001,null,null,null,null,null,{"$f":"TEXT(branch332[[#This Row],[Sol Id]],\"0000\")","v":"1060"}]
["A",1061,1061,"L","LCU BARZULLA, SRINAGAR","SRINAGAR","UNDER ZO SRINAGAR","LCUBAR","SGR","SGRUND","JAKA0LCUBAR","NIRMAN COMPLEX, BARZULLA, SRINAGAR. PIN 190005","SRINAGAR","Srinagar","Srinagar","J&K",null,"KASHMIR",190005,null,null,null,null,null,{"$f":"TEXT(branch332[[#This Row],[Sol Id]],\"0000\")","v":"1061"}]
["A",1063,1063,"L","LCU LASSIPORA, PULWAMA","PULWAMA","UNDER ZO PULWAMA","LCUPUL","PUL","PULUND","JAKA0LCUPUL","JK BANK LCU LASSIPORA PULWAMA (UT JK) PIN CODE 192305","PULWAMA","Pulwama","LITTER","J&K",null,"KASHMIR",192305,null,null,null,null,null,{"$f":"TEXT(branch332[[#This Row],[Sol Id]],\"0000\")","v":"1063"}]
["A",1067,1067,"L","LCU RAIL HEAD COMPLEX JAMMU","JAMMU","UNDER ZO JAMMU","LCUJMU","JAM","JAMUND","JAKA0LCUJMU","JK BANK, LARGE CREDIT UNIT, RAIL HEAD COMPLEX, JAMMU-180012","JAMMU","Jammu","Jammu","J&K",null,"JAMMU",180012,null,null,null,null,null,{"$f":"TEXT(branch332[[#This Row],[Sol Id]],\"0000\")","v":"1067"}]
["A",1068,1068,"L","LCU IC BARI BRAHAMNA","KATHUA","UNDER ZO KATHUA","LCUBBA","KAT","KATUND","JAKA0LCUBBA","JK BANK, INDUSTRIAL COMPLEX, BARI BRAHMANA, DISTRICT SAMBA (JK)-181133","SAMBA","SAMBA","Bari- Brahmana","J&K",null,"JAMMU",181133,null,null,null,null,null,{"$f":"TEXT(branch332[[#This Row],[Sol Id]],\"0000\")","v":"1068"}]
["A",1070,1070,"L","LCU GOVINDSAR, KATHUA","KATHUA","UNDER ZO KATHUA","LCUGVD","KAT","KATUND","JAKA0LCUGVD","HATLI MORH,INDUSTRIAL AREA, GOVINDSAR, KATHUA.","Kathua","Kathua","KATHUA","J&K",null,"JAMMU",184102,null,null,null,null,null,{"$f":"TEXT(branch332[[#This Row],[Sol Id]],\"0000\")","v":"1070"}]
["A",1074,1074,"L","LCU RAJINDRA PALACE, NEW DELHI","DELHI","UNDER ZO DELHI","LCURAJ","DEL","DELUND","JAKA0LCURAJ","2/5 WEST PATEL NAGAR","Central Delhi","West Delhi","New Delhi","Delhi",null,"ROI",110008,null,null,null,null,null,{"$f":"TEXT(branch332[[#This Row],[Sol Id]],\"0000\")","v":"1074"}]
["A",1075,1075,"L","LCU ANSAL PLAZA NEW DELHI","DELHI","UNDER ZO DELHI","LCUDEL","DEL","DELUND","JAKA0LCUDEL","B 307-310, 3RD FLOOR, ANSAL PLAZA KHEL GAON MARG, HUDCO PLACE ANDREWS GANJ NEW DELHI-110049","South-East Delhi","New Delhi","New Delhi","Delhi",null,"ROI",110049,null,null,null,null,null,{"$f":"TEXT(branch332[[#This Row],[Sol Id]],\"0000\")","v":"1075"}]
["A",1076,1076,"L","LCU INFANTRY ROAD,BANGLORE","MUMBAI","UNDER ZO MUMBAI","LCUBEN","MUM","MUMUND","JAKA0LCUBEN","LCU- BANGALORE THE JAMMU BANK LTD B 36 DYAVASANDRA INDUSTRIAL ESTATE MAHADEVPURA WHITE FIELD ROAD BANGALORE 560048","BANGALORE URBAN","BANGALURU","Bangalore","KARNATAKA",null,"ROI",560048,null,null,null,null,null,{"$f":"TEXT(branch332[[#This Row],[Sol Id]],\"0000\")","v":"1076"}]
["A",1077,1077,"L","LCU FORT, MUMBAI","MUMBAI","UNDER ZO MUMBAI","LCUMUM","MUM","MUMUND","JAKA0LCUMUM","79 A MEHTA HOUSE, BOMBAY SAMACHAR MARG, FORT MUMBAI","Mumbai","MUMBAI","GREATER MUMBAI","Maharashtra",null,"ROI",400023,null,null,null,null,null,{"$f":"TEXT(branch332[[#This Row],[Sol Id]],\"0000\")","v":"1077"}]
["A",1079,1079,"B","KAGHOTE","UDHAMPUR","ZO UDHAMPUR CLSTR UDHAMPUR","KAGHOT","UDM","UDMUDM","JAKA0KAGHOT","KAGHOTE, POST OFFICE KAGHOTE, TEHSIL RAMNAGAR, DISTRICT UDHAMPUR, PINCODE: 182126","UDHAMPUR","UDHAMPUR","Ramnagar","J&K",null,"JAMMU",182126,null,null,null,null,null,{"$f":"TEXT(branch332[[#This Row],[Sol Id]],\"0000\")","v":"1079"}]
["A",1080,1080,"B","GHOOM AHMADPORA","BARAMULLA","ZO BARAMULLA CLSTR BARAMULLA","GAPORA","BAR","BARBAR","JAKA0GAPORA","GHOOM AHMADPORA, PO MAGAM, TEHSIL PATTAN, DISTRICT BARAMULLA, PIN CODE: 193401","BARAMULLA","Pattan","Pattan","J&K",null,"KASHMIR",193401,null,null,null,null,null,{"$f":"TEXT(branch332[[#This Row],[Sol Id]],\"0000\")","v":"1080"}]
["A",1081,1081,"B","SALISKOTE KARGIL","LADAKH","ZO LADAKH CLSTR KARGIL","SALISK","LAD","LADKAR","JAKA0SALISK","SALISKOTE KARGIL, PO SALISKOTE, TEHSIL SANKOO, DISTRICT KARGIL, PIN CODE: 194105.","KARGIL","KARGIL","Sankoo","LADAKH",null,"LADAKH",194105,null,null,null,null,null,{"$f":"TEXT(branch332[[#This Row],[Sol Id]],\"0000\")","v":"1081"}]
["A",1082,1082,"B","WASOORA PULWAMA","PULWAMA","ZO PULWAMA CLSTR PULWAMA","WASORA","PUL","PULPUL","JAKA0WASORA","WASOORA PULWAMA, PO ACHEN, TEHSIL LITTER SHAHOORA, DISTRICT PULWAMA, PIN CODE: 192305","PULWAMA","Pulwama","Shahoora","J&K",null,"KASHMIR",192305,null,null,null,null,null,{"$f":"TEXT(branch332[[#This Row],[Sol Id]],\"0000\")","v":"1082"}]
["A",1083,1083,"B","KHIMBER","SRINAGAR","ZO SRINAGAR CLSTR -2 SRINAGAR","KHIMBR","SGR","SGRCL2","JAKA0KHIMBR","KHIMBER, PO KASHMIR UNIVERSITY, TEHSIL SRINAGAR NORTH, DISTRICT SRINAGAR, PIN CODE 190006","SRINAGAR","Srinagar","Srinagar North","J&K",null,"KASHMIR",190006,null,null,null,null,null,{"$f":"TEXT(branch332[[#This Row],[Sol Id]],\"0000\")","v":"1083"}]
["A",1084,1084,"B","TENGPORA SRINAGAR","SRINAGAR","ZO SRINAGAR CLSTR -3 SRINAGAR","TENGPO","SGR","SGRCL3","JAKA0TENGPO","LAL CHOWK, SRINAGAR 190001","SRINAGAR","Srinagar","SRINAGAR","J&K",null,"KASHMIR",190009,190051114,"632002W",null,null,null,{"$f":"TEXT(branch332[[#This Row],[Sol Id]],\"0000\")","v":"1084"}]
["A",1085,1085,"B","DHARAT","RAJOURI","ZO RAJOURI CLSTR RAJOURI","DHARAT","RAJ","RAJRAJ","JAKA0DHARAT","DHARAT, POST OFFICE KHERI, TEHSIL NOWSHERA, DISTRICT RAJOURI, PINCODE 185151","RAJOURI","Nowshera","RAJOURI","J&K",null,"JAMMU",185151,185051039,"632002V",null,null,null,{"$f":"TEXT(branch332[[#This Row],[Sol Id]],\"0000\")","v":"1085"}]
["A",1111,1111,"B","APEX BRANCH CHQ","SRINAGAR","ZO SRINAGAR CLSTR -1 SRINAGAR","APEXBR","SGR","SGRCL1","JAKA0APEXBR","CORPORATE HEADQUARTER,M.A.ROAD","SRINAGAR","SRINAGAR","SRINAGAR","J&K",null,"KASHMIR",190001,190051014,6320396,34.082619999999999,74.798230000000004,null,{"$f":"TEXT(branch332[[#This Row],[Sol Id]],\"0000\")","v":"1111"}]
["A",1112,1112,"B","POLO VIEW SRINAGAR","SRINAGAR","ZO SRINAGAR CLSTR -1 SRINAGAR","POLOVW","SGR","SGRCL1","JAKA0POLOVW","THE BUND, M A ROAD","SRINAGAR","SRINAGAR","SRINAGAR","J&K",null,"KASHMIR",190001,190051050,6320403,34.072009999999999,74.818569999999994,null,{"$f":"TEXT(branch332[[#This Row],[Sol Id]],\"0000\")","v":"1112"}]
["A",1148,1148,"B","ARIPANTHAN","BUDGAM","ZO BUDGAM CLSTR -1 BUDGAM","EBARIP","BUD","BUDCL1","JAKA0EBARIP","ARIPANTHAN, BUDGAM","BUDGAM","BUDGAM","BEERWAH","J&K",null,"KASHMIR",193401,null,null,null,null,null,{"$f":"TEXT(branch332[[#This Row],[Sol Id]],\"0000\")","v":"1148"}]
["A",1183,1183,"B","SAKET","DELHI","ZO DELHI CLSTR -1 DELHI","SAKETD","DEL","DELCL1","JAKA0SAKETD","B-1/1 GROUND FLOOR SAKET, POST OFFICE SAKET, TEHSIL SAKET, DISTRICT SOUTH DELHI, PIN: 110017","South Delhi","South Delhi","Saket","Delhi",null,"ROI",110017,null,null,null,null,null,{"$f":"TEXT(branch332[[#This Row],[Sol Id]],\"0000\")","v":"1183"}]
["A",1184,1184,"B","WHITEFIELD BENGALURU","BENGALURU","ZO BENGALURU CLSTR BENGALURU","WHITEF","BEN","BENBEN","JAKA0WHITEF","BANGALORE","BANGALORE URBAN","BANGALURU","Bengaluru South","KARNATAKA",null,"ROI",560048,null,null,null,null,null,{"$f":"TEXT(branch332[[#This Row],[Sol Id]],\"0000\")","v":"1184"}]
["A",1187,1187,"B","JAYANAGAR","BENGALURU","ZO BENGALURU CLSTR BENGALURU","JAYANA","BEN","BENBEN","JAKA0JAYANA","BANGLORE","BANGALORE URBAN","BANGALURU","Bengaluru South","KARNATAKA",null,"ROI",560041,null,null,null,null,null,{"$f":"TEXT(branch332[[#This Row],[Sol Id]],\"0000\")","v":"1187"}]
["A",1188,1188,"B","MALAD","MUMBAI","ZO MUMBAI CLSTR MUMBAI","MALAAD","MUM","MUMMUM","JAKA0MALAAD","MALAD, POST OFFICE MALAD (WEST), TEHSIL BORIVALI, DISTRICT MUMBAI SUB-URBAN, PIN: 400064","Mumbai","MUMBAI","Borivali","Maharashtra",null,"ROI",400064,null,null,null,null,null,{"$f":"TEXT(branch332[[#This Row],[Sol Id]],\"0000\")","v":"1188"}]
["A",1189,1189,"B","BHOOND","KATHUA","ZO KATHUA CLSTR KATHUA","BHOOND","KAT","KATKAT","JAKA0BHOOND","MAIN BUS STAND KATHUA","Kathua","Kathua","Basholi","J&K",null,"JAMMU",184201,null,null,null,null,null,{"$f":"TEXT(branch332[[#This Row],[Sol Id]],\"0000\")","v":"1189"}]
["A",1190,1190,"B","GOMTI NAGAR","DELHI","ZO DELHI CLSTR LUCKNOW","GOMTIN","DEL","DELLUC","JAKA0GOMTIN","GOMTI NAGAR, POST OFFICE GOMTI NAGAR, TEHSIL LUCKNOW, DISTRICT LUCKNOW, PIN: 226010.","Lucknow","Lucknow","Lucknow","UP",null,"ROI",226010,null,null,null,null,null,{"$f":"TEXT(branch332[[#This Row],[Sol Id]],\"0000\")","v":"1190"}]
["A",1201,1201,"EC","EC - T P AKHNOOR","JAMMU","ZO JAMMU CLSTR -1 JAMMU","EAKNOR","JAM","JAMCL1","JAKA0EAKNOR","TEHSIL PREMISES, AKHNOOR JAMMU",null,null,null,null,null,null,null,null,null,null,null,null,{"$f":"TEXT(branch332[[#This Row],[Sol Id]],\"0000\")","v":"1201"}]
["A",1203,1203,"B","SMGS HOSPITAL JAMMU","JAMMU","ZO JAMMU CLSTR -1 JAMMU","EMCJAM","JAM","JAMCL1","JAKA0EMCJAM","SMGS HOSPITAL,SHALIMAR ROAD","JAMMU","JAMMU","JAMMU","J&K",null,"JAMMU",180001,180051041,6320563,32.726599999999998,74.857029999999995,null,{"$f":"TEXT(branch332[[#This Row],[Sol Id]],\"0000\")","v":"1203"}]
["A",1204,1204,"B","T P BANDIPUR","BARAMULLA","ZO BARAMULLA CLSTR BANDIPORA","TPBAND","BAR","BARBAN","JAKA0TPBAND","OPP SPORTS STADIUM TEHSIL PREMISES","BANDIPORA","BANDIPORA","BANDIPORA","J&K",null,"KASHMIR",193502,193051402,6320545,34.418419999999998,74.642629999999997,null,{"$f":"TEXT(branch332[[#This Row],[Sol Id]],\"0000\")","v":"1204"}]
["A",1205,1205,"B","NARSINGH DEVJI MANDIR BIRPUR","KATHUA","ZO KATHUA CLSTR SAMBA","BIRPUR","KAT","KATSAM","JAKA0BIRPUR","NARSINGH DEV MANDIR,","SAMBA","SAMBA","BARI BRAHAMANA","J&K",null,"JAMMU",181133,180051052,6320636,32.642499999999998,74.911010000000005,null,{"$f":"TEXT(branch332[[#This Row],[Sol Id]],\"0000\")","v":"1205"}]
["A",1206,1206,"B","JVMC SRINAGAR","SRINAGAR","ZO SRINAGAR CLSTR -3 SRINAGAR","EJVBEM","SGR","SGRCL3","JAKA0EJVBEM","BEMINA","SRINAGAR","SRINAGAR","SRINAGAR CENTRAL","J&K",null,"KASHMIR",190017,190051018,6320555,34.085900000000002,74.761009999999999,null,{"$f":"TEXT(branch332[[#This Row],[Sol Id]],\"0000\")","v":"1206"}]
["A",1209,1209,"B","ARNIA","JAMMU","ZO JAMMU CLSTR -2 JAMMU","EARNIA","JAM","JAMCL2","JAKA0EARNIA","BILLS & POST OFFICE ARNIA NEAR POLICE STATION","JAMMU","JAMMU","ARNIA","J&K",null,"JAMMU",181131,180051068,6320559,32.519219999999997,74.799530000000004,null,{"$f":"TEXT(branch332[[#This Row],[Sol Id]],\"0000\")","v":"1209"}]
["A",1210,1210,"B","OLD SECRETARIAT JAMMU","JAMMU","ZO JAMMU CLSTR -1 JAMMU","EOSJAM","JAM","JAMCL1","JAKA0EOSJAM","OLD SECRETRAIT PANJTRITHI","JAMMU","JAMMU","JAMMU","J&K",null,"JAMMU",180001,180051045,6320567,32.736179999999997,74.867450000000005,null,{"$f":"TEXT(branch332[[#This Row],[Sol Id]],\"0000\")","v":"1210"}]
["A",1211,1211,"B","CHEST DISEASE HOSPITAL SRINAGAR","SRINAGAR","ZO SRINAGAR CLSTR -1 SRINAGAR","ECHEST","SGR","SGRCL1","JAKA0ECHEST","DALGATE,","SRINAGAR","SRINAGAR","SRINAGAR SOUTH","J&K",null,"KASHMIR",190001,190051016,6320553,34.080469999999998,74.829620000000006,null,{"$f":"TEXT(branch332[[#This Row],[Sol Id]],\"0000\")","v":"1211"}]
["A",1212,1212,"B","GUJJAR CHARITABLE TRUST JAMMU","JAMMU","ZO JAMMU CLSTR -1 JAMMU","GUJCCJ","JAM","JAMCL1","JAKA0GUJCCJ","NEAR JAMKASH VEHCILADES,OPP CHANNI HIMAT, BYE PASS RD","JAMMU","JAMMU","BAHU","J&K",null,"JAMMU",180015,180051055,6320637,32.685679999999998,74.905190000000005,null,{"$f":"TEXT(branch332[[#This Row],[Sol Id]],\"0000\")","v":"1212"}]
["A",1213,1213,"B","ASCOMS HOSPITAL SIDHRA","JAMMU","ZO JAMMU CLSTR -1 JAMMU","EBATRA","JAM","JAMCL1","JAKA0EBATRA","ASCOMS HOSPITAL SIDHRA","JAMMU","JAMMU","JAMMU","J&K",null,"JAMMU",180017,180051046,6320554,32.751910000000002,74.909959999999998,null,{"$f":"TEXT(branch332[[#This Row],[Sol Id]],\"0000\")","v":"1213"}]
["A",1214,1214,"B","TP SHASTRI NAGAR JAMMU","JAMMU","ZO JAMMU CLSTR -2 JAMMU","EGANDI","JAM","JAMCL2","JAKA0EGANDI","371-372, SHASTRI NAGAR","JAMMU","JAMMU","JAMMU","J&K",null,"JAMMU",180004,180051044,6320638,32.690190000000001,74.855590000000007,null,{"$f":"TEXT(branch332[[#This Row],[Sol Id]],\"0000\")","v":"1214"}]
["A",1216,1216,"EC","EC - BARJANI MEEN CHARKAN, MAHEEN","KATHUA","ZO KATHUA CLSTR SAMBA","EBARJN","KAT","KATSAM","JAKA0EBARJN","MEEN SARKAR, BARJANI, BARI BRAHMANA, SAMBA",null,null,null,null,null,null,null,null,null,null,null,null,{"$f":"TEXT(branch332[[#This Row],[Sol Id]],\"0000\")","v":"1216"}]
["A",1217,1217,"B","PATLI MORH SAMBA","KATHUA","ZO KATHUA CLSTR SAMBA","PATLIM","KAT","KATSAM","JAKA0PATLIM","POST OFFICE ROAD PARORE","SAMBA","SAMBA","BARI BRAHAMANA","J&K",null,"JAMMU",181133,180051053,6320639,32.55301,75.110749999999996,null,{"$f":"TEXT(branch332[[#This Row],[Sol Id]],\"0000\")","v":"1217"}]
["A",1218,1218,"B","PRITHVIRAJ ROAD (UPGRADED EC)","DELHI","ZO DELHI CLSTR -2 DELHI","PRROAD","DEL","DELCL2","JAKA0PRROAD","5-PRITHVIRAJ ROAD","DELHI","DELHI",null,"DELHI",null,"ROI",110011,110051035,6320816,28.597300000000001,77.218350000000001,null,{"$f":"TEXT(branch332[[#This Row],[Sol Id]],\"0000\")","v":"1218"}]
["A",1219,1219,"B","TP BAROO","LADAKH","ZO LADAKH CLSTR KARGIL","EBAROO","LAD","LADKAR","JAKA0EBAROO","BAROO KARGIL","KARGIL","KARGIL","KARGIL","LADAKH",null,"LADAKH",194105,194051024,6320623,34.540649999999999,76.140270000000001,null,{"$f":"TEXT(branch332[[#This Row],[Sol Id]],\"0000\")","v":"1219"}]
["A",1221,1221,"EC","EC - ADH KUWARI","UDHAMPUR","ZO UDHAMPUR CLSTR REASI","EKATRA","UDM","UDMREA","JAKA0EKATRA","REASI, KATRA PIN 182301",null,null,null,null,null,null,null,null,null,null,null,null,{"$f":"TEXT(branch332[[#This Row],[Sol Id]],\"0000\")","v":"1221"}]
["A",1222,1222,"EC","EC - JK CEMENT KHREW","PULWAMA","ZO PULWAMA CLSTR PULWAMA","EKHREW","PUL","PULPUL","JAKA0EKHREW","EC KHREW PAMPORE",null,null,null,null,null,null,null,null,null,null,null,null,{"$f":"TEXT(branch332[[#This Row],[Sol Id]],\"0000\")","v":"1222"}]
["A",1223,1223,"B","NHPC KISHTWAR","DODA","ZO DODA CLSTR KISHTWAR","ESEMNA","DOD","DODKIS","JAKA0ESEMNA","SEMA COLONY","KISHTWAR","KISHTWAR","KISHTWAR","J&K",null,"JAMMU",182206,182051414,6320622,33.311590000000002,75.766220000000004,null,{"$f":"TEXT(branch332[[#This Row],[Sol Id]],\"0000\")","v":"1223"}]
["A",1224,1224,"B","ZIRIPORA","ANANTNAG","ZO ANANTNAG CLSTR -2 ANANTNAG","EZIRIP","ANT","ANTCL2","JAKA0EZIRIP","ZIRPORA MAIN, BIJBEHARA","ANANTNAG","ANANTNAG","BIJBEHARA","J&K",null,"KASHMIR",null,192051043,6320548,33.795409999999997,75.102699999999999,null,{"$f":"TEXT(branch332[[#This Row],[Sol Id]],\"0000\")","v":"1224"}]
["A",1225,1225,"B","DC OFFICE COMPEX KUPWARA","BARAMULLA","ZO BARAMULLA CLSTR KUPWARA","EDOCOM","BAR","BARKUP","JAKA0EDOCOM","D.C OFFICE COMPLEX KUPWARA","KUPWARA","KUPWARA","KUPWARA","J&K",null,"KASHMIR",193222,193051224,6320626,34.90719,74.036869999999993,null,{"$f":"TEXT(branch332[[#This Row],[Sol Id]],\"0000\")","v":"1225"}]
["A",1226,1226,"B","KOOTAH MORH","KATHUA","ZO KATHUA CLSTR KATHUA","EKUTAM","KAT","KATKAT","JAKA0EKUTAM","J&K BANK, KOOTAH MORH POST OFFICE: KOOTAH, TEHSIL- HIRANAGAR, DISTRICT-KATHUA ,J&K, PIN: 184141","KATHUA","KATHUA","HIRANAGAR","J&K",null,"JAMMU",184141,184051034,6320901,null,null,null,{"$f":"TEXT(branch332[[#This Row],[Sol Id]],\"0000\")","v":"1226"}]
["A",1229,1229,"B","GOUSHBUG","BARAMULLA","ZO BARAMULLA CLSTR SOPORE","EGOUSH","BAR","BARSOP","JAKA0EGOUSH","GOSHBUGH, PATTAN","BARAMULLA","BARAMULLA","PATTAN","J&K",null,"KASHMIR",193121,193051024,6320544,34.188609999999997,74.594660000000005,null,{"$f":"TEXT(branch332[[#This Row],[Sol Id]],\"0000\")","v":"1229"}]
["A",1230,1230,"B","OLD BUS STAND PARLIWAND","KATHUA","ZO KATHUA CLSTR KATHUA","OLDBUS","KAT","KATKAT","JAKA0OLDBUS","NEAR OLD BUS STAND","KATHUA","KATHUA","KATHUA","J&K",null,"JAMMU",184101,184051002,6320640,null,null,null,{"$f":"TEXT(branch332[[#This Row],[Sol Id]],\"0000\")","v":"1230"}]
["A",1232,1232,"EC","EC - DISTT POLICE LINES JAMMU","JAMMU","ZO JAMMU CLSTR -2 JAMMU","ELINES","JAM","JAMCL2","JAKA0ELINES","DISTT POLICE LINES GANDHI NAGAR JAMMU",null,null,null,null,null,null,null,null,null,null,null,null,{"$f":"TEXT(branch332[[#This Row],[Sol Id]],\"0000\")","v":"1232"}]
["A",1235,1235,"B","SKUAST CHATTA","JAMMU","ZO JAMMU CLSTR -2 JAMMU","EAURSP","JAM","JAMCL2","JAKA0EAURSP","SKUAST CHATTA","JAMMU","JAMMU","JAMMU (SOUTH)","J&K",null,"JAMMU",180004,180051087,6320629,32.683759999999999,74.824389999999994,null,{"$f":"TEXT(branch332[[#This Row],[Sol Id]],\"0000\")","v":"1235"}]
["A",1236,1236,"B","KAMBAL DANGA","UDHAMPUR","ZO UDHAMPUR CLSTR UDHAMPUR","EDANGA","UDM","UDMUDM","JAKA0EDANGA","SUNARI ROAD KAMAL DANGA","UDHAMPUR","UDHAMPUR","UDHAMPUR","J&K",null,"JAMMU",182121,182051017,6320560,32.565190000000001,75.022580000000005,null,{"$f":"TEXT(branch332[[#This Row],[Sol Id]],\"0000\")","v":"1236"}]
["A",1237,1237,"B","TRC SRINAGR","SRINAGAR","ZO SRINAGAR CLSTR -1 SRINAGAR","TRCSGR","SGR","SGRCL1","JAKA0TRCSGR","TRC, EXTENSION, OPPOSITE SBI BANK,RAJBAGH","SRINAGAR","SRINAGAR","SRINAGAR CENTRAL","J&K",null,"KASHMIR",190001,190051067,6320566,34.064839999999997,74.828599999999994,null,{"$f":"TEXT(branch332[[#This Row],[Sol Id]],\"0000\")","v":"1237"}]
["A",1238,1238,"B","SAINIK SCHOOL MANASBAL","BUDGAM","ZO BUDGAM CLSTR GANDERBAL","ESANIK","BUD","BUDGAN","JAKA0ESANIK","BARSOO","GANDERBAL","GANDERBAL","LAAR","J&K",null,"KASHMIR",191131,193051404,6320661,34.256140000000002,74.676270000000002,null,{"$f":"TEXT(branch332[[#This Row],[Sol Id]],\"0000\")","v":"1238"}]
["A",1239,1239,"EC","EC - MAIN BAZAR SAMBA","KATHUA","ZO KATHUA CLSTR SAMBA","ESAMBA","KAT","KATSAM","JAKA0ESAMBA","NEAR BUS STAND",null,null,null,null,null,null,null,null,null,null,null,null,{"$f":"TEXT(branch332[[#This Row],[Sol Id]],\"0000\")","v":"1239"}]
["A",1241,1241,"B","CAMA HOUSING COLONY","UDHAMPUR","ZO UDHAMPUR CLSTR UDHAMPUR","ESHKTI","UDM","UDMUDM","JAKA0ESHKTI","CAMA HOUSING COLONY,NEAR NATIONAL HIGHWAY","UDHAMPUR","UDHAMPUR","UDHAMPUR","J&K",null,"JAMMU",182101,182051003,6320641,32.936100000000003,75.141400000000004,null,{"$f":"TEXT(branch332[[#This Row],[Sol Id]],\"0000\")","v":"1241"}]
["A",1242,1242,"B","J&K BOSE REHARI","JAMMU","ZO JAMMU CLSTR -1 JAMMU","ELUXUR","JAM","JAMCL1","JAKA0ELUXUR","RAJ PORA REHARI","JAMMU","JAMMU","JAMMU","J&K",null,"JAMMU",180005,180051042,6320557,32.74306,74.849620000000002,null,{"$f":"TEXT(branch332[[#This Row],[Sol Id]],\"0000\")","v":"1242"}]
["A",1243,1243,"B","NEW THEED","SRINAGAR","ZO SRINAGAR CLSTR -2 SRINAGAR","ETHEED","SGR","SGRCL2","JAKA0ETHEED","NEW THEED HARWAN","SRINAGAR","SRINAGAR","SRINAGAR KHAS","J&K",null,"KASHMIR",191121,190051086,6320565,null,null,null,{"$f":"TEXT(branch332[[#This Row],[Sol Id]],\"0000\")","v":"1243"}]
["A",1244,1244,"B","H R SHOPIAN","PULWAMA","ZO PULWAMA CLSTR SHOPIAN","HRSHOP","PUL","PULSHO","JAKA0HRSHOP","NEAR POLICE STATION,HOSPITAL ROAD","SHOPIAN","SHOPIAN","SHOPIAN","J&K",null,"KASHMIR",192303,192051202,6320416,33.719270000000002,74.832499999999996,null,{"$f":"TEXT(branch332[[#This Row],[Sol Id]],\"0000\")","v":"1244"}]
["A",1246,1246,"B","TIRATH NAGAR JAMMU","JAMMU","ZO JAMMU CLSTR -3 JAMMU","TTALAB","JAM","JAMCL3","JAKA0TTALAB","OPPOSITE TREASURY,TALAB TILLO","JAMMU","JAMMU","JAMMU (WEST)","J&K",null,"JAMMU",180001,180051050,6320561,32.780070000000002,74.729749999999996,null,{"$f":"TEXT(branch332[[#This Row],[Sol Id]],\"0000\")","v":"1246"}]
["A",1247,1247,"B","NAGROTA (TOLL POST)","JAMMU","ZO JAMMU CLSTR -1 JAMMU","NAGROT","JAM","JAMCL1","JAKA0NAGROT","KANDOLI NAGROTA","JAMMU","JAMMU","NAGROTA","J&K",null,"JAMMU",181221,180051056,6320546,32.796669999999999,74.915189999999996,null,{"$f":"TEXT(branch332[[#This Row],[Sol Id]],\"0000\")","v":"1247"}]
["A",1250,1250,"EC","EC - GOVT. COLLEGE FOR ENGG & TECH JAMMU",null,null,"EGCENG","JAM","JAMCL2","JAKA0EGCENG",null,null,null,null,null,null,null,null,null,null,null,null,null,{"$f":"TEXT(branch332[[#This Row],[Sol Id]],\"0000\")","v":"1250"}]
["A",1251,1251,"B","LAGAMA URI","BARAMULLA","ZO BARAMULLA CLSTR BARAMULLA","ELAGAM","BAR","BARBAR","JAKA0ELAGAM","LAGAMA URI, TEHSIL URI","BARAMULLA","BARAMULLA","URI","J&K",null,"KASHMIR",193123,193051035,6320625,34.080460000000002,74.059809999999999,null,{"$f":"TEXT(branch332[[#This Row],[Sol Id]],\"0000\")","v":"1251"}]
["A",1252,1252,"B","RAMGARH","KATHUA","ZO KATHUA CLSTR SAMBA","RAMGAR","KAT","KATSAM","JAKA0RAMGAR","RAMGARH SAMBA","SAMBA","SAMBA","RAMGARH","J&K",null,"JAMMU",181141,180051057,6320645,32.507669999999997,74.96472,null,{"$f":"TEXT(branch332[[#This Row],[Sol Id]],\"0000\")","v":"1252"}]
["A",1254,1254,"B","BUS STAND TRAL","PULWAMA","ZO PULWAMA CLSTR PULWAMA","BSTRAL","PUL","PULPUL","JAKA0BSTRAL","BUS STAND TRAL","PULWAMA","PULWAMA","TRAL","J&K",null,"KASHMIR",192123,192051104,6320707,33.931939999999997,75.113829999999993,null,{"$f":"TEXT(branch332[[#This Row],[Sol Id]],\"0000\")","v":"1254"}]
["A",1255,1255,"B","ZEWAN","SRINAGAR","ZO SRINAGAR CLSTR -1 SRINAGAR","ECZEWN","SGR","SGRCL1","JAKA0ECZEWN","ZEVAN PANTHA CHOWK","SRINAGAR","SRINAGAR","PANTHACHOWK","J&K",null,"KASHMIR",191101,190051092,6320642,null,null,null,{"$f":"TEXT(branch332[[#This Row],[Sol Id]],\"0000\")","v":"1255"}]
["A",1256,1256,"B","ACHABAL ANANTNAG","ANANTNAG","ZO ANANTNAG CLSTR -1 ANANTNAG","ACHNAG","ANT","ANTCL1","JAKA0ACHNAG","ACHBAL ANANTNAG","ANANTNAG","ANANTNAG","ACHABAL","J&K",null,"KASHMIR",192201,192051012,6320451,33.683259999999997,75.219089999999994,null,{"$f":"TEXT(branch332[[#This Row],[Sol Id]],\"0000\")","v":"1256"}]
["A",1257,1257,"B","GULMARG","BARAMULLA","ZO BARAMULLA CLSTR BARAMULLA","EGMARG","BAR","BARBAR","JAKA0EGMARG","GULMARG","BARAMULLA","BARAMULLA","GULMARG","J&K",null,"KASHMIR",193403,193051037,6320624,34.149090000000001,76.825969999999998,null,{"$f":"TEXT(branch332[[#This Row],[Sol Id]],\"0000\")","v":"1257"}]
["A",1258,1258,"B","PCR BATAMALOO","SRINAGAR","ZO SRINAGAR CLSTR -3 SRINAGAR","ECROOM","SGR","SGRCL3","JAKA0ECROOM","POLICE CONTROL ROOM","SRINAGAR","SRINAGAR","SRINAGAR","J&K",null,"KASHMIR",190010,190051093,6320630,34.070970000000003,74.799170000000004,null,{"$f":"TEXT(branch332[[#This Row],[Sol Id]],\"0000\")","v":"1258"}]
["A",1259,1259,"B","NOORPORA (TRAL)","PULWAMA","ZO PULWAMA CLSTR PULWAMA","ENPORA","PUL","PULPUL","JAKA0ENPORA","NOORPORA TRAL,TEHSIL AWANTIPORA","PULWAMA","PULWAMA","AWANTIPORA","J&K",null,"KASHMIR",192122,192051126,6320643,33.903799999999997,75.039199999999994,null,{"$f":"TEXT(branch332[[#This Row],[Sol Id]],\"0000\")","v":"1259"}]
["A",1262,1262,"B","NSM PATTA BOHRI JAMMU","JAMMU","ZO JAMMU CLSTR -3 JAMMU","ENSMCE","JAM","JAMCL3","JAKA0ENSMCE","NSM COLLEGE OF EDUCATION,PATTA BOHRI","JAMMU","JAMMU","JAMMU","J&K",null,"JAMMU",180002,180051043,6320646,32.744660000000003,74.820740000000001,null,{"$f":"TEXT(branch332[[#This Row],[Sol Id]],\"0000\")","v":"1262"}]
["A",2222,2222,"B","PARRYS CHENNAI","BENGALURU","ZO BENGALURU CLSTR BENGALURU","PARRYS","BEN","BENBEN","JAKA0PARRYS","52, ARMENIAN STREET","CHENNAI","CHENNAI",null,"TAMIL NADU",null,"ROI",600001,600051003,6320389,13.0939,80.288529999999994,null,{"$f":"TEXT(branch332[[#This Row],[Sol Id]],\"0000\")","v":"2222"}]
["A",3333,3333,"B","KOCHI","BENGALURU","ZO BENGALURU CLSTR BENGALURU","KUCHIE","BEN","BENBEN","JAKA0KUCHIE","ERNAKULAM, M.G ROAD","ERNAKULAM","KOCHI",null,"KERALA",null,"ROI",628035,682051002,6320401,9.9799749999999996,76.283370000000005,null,{"$f":"TEXT(branch332[[#This Row],[Sol Id]],\"0000\")","v":"3333"}]
["A",4444,4444,"B","THIRUVANANTHAPURAM","BENGALURU","ZO BENGALURU CLSTR BENGALURU","TPURAM","BEN","BENBEN","JAKA0TPURAM","T.C NO.28/2222(4),M.G ROAD","THIRUVANANTHAPURAM","THIRUVANANTHAPURAM",null,"KERALA",null,"ROI",695023,695051002,6320400,8.4863510000000009,76.947659999999999,null,{"$f":"TEXT(branch332[[#This Row],[Sol Id]],\"0000\")","v":"4444"}]
["A",490,490,"I","IARB KASHMIR",null,null,"IMPIRD","CHQ","CHQ","JAKA0IMPIRD",null,null,null,null,null,null,null,null,null,null,null,null,null,{"$f":"TEXT(branch332[[#This Row],[Sol Id]],\"0000\")","v":"0490"}]
["A",582,582,"I","IARB DELHI",null,null,"IARDEL","DEL","CHQ","JAKA0IARDEL",null,null,null,null,null,null,null,null,null,null,null,null,null,{"$f":"TEXT(branch332[[#This Row],[Sol Id]],\"0000\")","v":"0582"}]
["A",954,954,"I","IARB MUMBAI",null,null,"IMPMUM","MUM","CHQ","JAKA0IMPMUM",null,null,null,null,null,null,null,null,null,null,null,null,null,{"$f":"TEXT(branch332[[#This Row],[Sol Id]],\"0000\")","v":"0954"}]
["A",1064,1064,"L","LCU AMARGARH SOPORE","BARAMULLA","UNDER ZO BARAMULLA","LCUBLA","BAR","BARUND","JAKA0LCUBLA","JK BANK LCU AMARGARH (UT JK) PIN CODE 193201",null,null,null,null,null,null,null,null,null,null,null,null,{"$f":"TEXT(branch332[[#This Row],[Sol Id]],\"0000\")","v":"1064"}]
["A",1065,1065,"L","LCU T.P. ANANTNAG","ANANTNAG","ZO ANANTNAG CLSTR ANANTNAG","LCUANG","ANT","ANTANT","JAKA0LCUANG","KP CHOWK KHANABAL, ANANTNAG",null,null,null,null,null,null,null,null,null,null,null,null,{"$f":"TEXT(branch332[[#This Row],[Sol Id]],\"0000\")","v":"1065"}]
["A",1066,1066,"L","LCU LEH MAIN",null,null,"LCULEH","LAD","LADUND","JAKA0LCULEH",null,null,null,null,null,null,null,null,null,null,null,null,null,{"$f":"TEXT(branch332[[#This Row],[Sol Id]],\"0000\")","v":"1066"}]
["A",1069,1069,"L","LCU MOHALI PUNJAB",null,null,"LCUMOH","KAT","KATMOH","JAKA0LCUMOH",null,null,null,null,null,null,null,null,null,null,null,null,null,{"$f":"TEXT(branch332[[#This Row],[Sol Id]],\"0000\")","v":"1069"}]
["A",1071,1071,"L","LCU KATRA MAIN, JAMMU","UDHAMPUR","ZO UDHAMPUR CLSTR REASI","LCUKAT","UDM","UDMREA","JAKA0LCUKAT","C/O ANURAG HOTEL COUNTER NO. 2 KATRA",null,null,null,null,null,null,null,null,null,null,null,null,{"$f":"TEXT(branch332[[#This Row],[Sol Id]],\"0000\")","v":"1071"}]
["A",1072,1072,"L","LCU DODA MAIN",null,null,"LCUDOD","DOD","DODUND","JAKA0LCUDOD",null,null,null,null,null,null,null,null,null,null,null,null,null,{"$f":"TEXT(branch332[[#This Row],[Sol Id]],\"0000\")","v":"1072"}]
["A",1073,1073,"L","LCU POONCH, JAMMU",null,null,"LCUPOO","RAJ","RAJPOO","JAKA0LCUPOO",null,null,null,null,null,null,null,null,null,null,null,null,null,{"$f":"TEXT(branch332[[#This Row],[Sol Id]],\"0000\")","v":"1073"}]
["A",1192,1192,"B","KURLA","MUMBAI","ZO MUMBAI CLSTR MUMBAI","KURLAA","MUM","MUMMUM","JAKA0KURLAA","KURLA, NEHRU NAGAR ROAD, EAST MUMBAI, POST OFFICE KURLA, TESHIL KURLA, DISTRICT MUMBAI SUBURBAN",null,null,null,null,null,null,null,null,null,null,null,null,{"$f":"TEXT(branch332[[#This Row],[Sol Id]],\"0000\")","v":"1192"}]
["A",1193,1193,"B","GURDASPUR","KATHUA","ZO KATHUA CLSTR MOHALI","GURDAS","KAT","KATMOH","JAKA0GURDAS","SANGALPORA ROAD",null,null,null,null,null,null,null,null,null,null,null,null,{"$f":"TEXT(branch332[[#This Row],[Sol Id]],\"0000\")","v":"1193"}]
["A",1062,1062,"L","LCU BARZULLA, SRINAGAR",null,null,"LCUBAR","SGR","SGRCL1","JAKA0LCUBAR",null,null,null,null,null,null,null,null,null,null,null,null,null,{"$f":"TEXT(branch332[[#This Row],[Sol Id]],\"0000\")","v":"1062"}]
["A",1091,1091,"EBU","EBU SEVER THENDI PORA",null,null,"EBSEVE","BAR","BARKUP","JAKA0EBSEVE",null,null,null,null,null,null,null,null,null,null,null,null,null,{"$f":"TEXT(branch332[[#This Row],[Sol Id]],\"0000\")","v":"1091"}]
["A",1161,1161,"EBU","EBU CHUKER",null,null,"EBCHUK","BAR","BARBAR","JAKA0EBCHUK",null,null,null,null,null,null,null,null,null,null,null,null,null,{"$f":"TEXT(branch332[[#This Row],[Sol Id]],\"0000\")","v":"1161"}]
["A",1165,1165,"EBU","EBU YARIKHAK",null,null,"EBYARI","BUD","BUDBUD","JAKA0EBYARI",null,null,null,null,null,null,null,null,null,null,null,null,null,{"$f":"TEXT(branch332[[#This Row],[Sol Id]],\"0000\")","v":"1165"}]
["A",1086,1086,"EBU","EBU SUMLAR SHOK BABA",null,null,null,"BUD","BUDGAN",null,null,null,null,null,null,null,null,null,null,null,null,null,null,{"$f":"TEXT(branch332[[#This Row],[Sol Id]],\"0000\")","v":"1086"}]
["A",1087,1087,"EBU","EBU SADHUNARA HASTI KHAN",null,null,null,"BUD","BUDGAN",null,null,null,null,null,null,null,null,null,null,null,null,null,null,{"$f":"TEXT(branch332[[#This Row],[Sol Id]],\"0000\")","v":"1087"}]
["A",1088,1088,"EBU","EBU HARDSHIVA SOPORE",null,null,null,"BAR","BARBAR",null,null,null,null,null,null,null,null,null,null,null,null,null,null,{"$f":"TEXT(branch332[[#This Row],[Sol Id]],\"0000\")","v":"1088"}]
["A",1089,1089,"EBU","EBU PANZGAM",null,null,null,"BAR","BARKUP",null,null,null,null,null,null,null,null,null,null,null,null,null,null,{"$f":"TEXT(branch332[[#This Row],[Sol Id]],\"0000\")","v":"1089"}]
["A",1090,1090,"EBU","EBU DARD PORA",null,null,null,"BAR","BARKUP",null,null,null,null,null,null,null,null,null,null,null,null,null,null,{"$f":"TEXT(branch332[[#This Row],[Sol Id]],\"0000\")","v":"1090"}]
["A",1092,1092,"EBU","EBU KACHI HAMA",null,null,null,"BAR","BARKUP",null,null,null,null,null,null,null,null,null,null,null,null,null,null,{"$f":"TEXT(branch332[[#This Row],[Sol Id]],\"0000\")","v":"1092"}]
["A",1093,1093,"EBU","EBU MANIGAH",null,null,null,"BAR","BARKUP",null,null,null,null,null,null,null,null,null,null,null,null,null,null,{"$f":"TEXT(branch332[[#This Row],[Sol Id]],\"0000\")","v":"1093"}]
["A",1094,1094,"EBU","EBU KANDI KHAS",null,null,null,"BAR","BARKUP",null,null,null,null,null,null,null,null,null,null,null,null,null,null,{"$f":"TEXT(branch332[[#This Row],[Sol Id]],\"0000\")","v":"1094"}]
["A",1095,1095,"EBU","EBU KATLI",null,null,null,"KAT","KATSAM",null,null,null,null,null,null,null,null,null,null,null,null,null,null,{"$f":"TEXT(branch332[[#This Row],[Sol Id]],\"0000\")","v":"1095"}]
["A",1096,1096,"EBU","EBU NUNIAL",null,null,null,"RAJ","RAJUND",null,null,null,null,null,null,null,null,null,null,null,null,null,null,{"$f":"TEXT(branch332[[#This Row],[Sol Id]],\"0000\")","v":"1096"}]
["A",1098,1098,"EBU","EBU TARERU",null,null,null,"RAJ","RAJUND",null,null,null,null,null,null,null,null,null,null,null,null,null,null,{"$f":"TEXT(branch332[[#This Row],[Sol Id]],\"0000\")","v":"1098"}]
["A",1099,1099,"EBU","EBU ARI",null,null,null,"RAJ","RAJPOO",null,null,null,null,null,null,null,null,null,null,null,null,null,null,{"$f":"TEXT(branch332[[#This Row],[Sol Id]],\"0000\")","v":"1099"}]
["A",1100,1100,"EBU","EBU MANGUE",null,null,null,"LAD","LADUND",null,null,null,null,null,null,null,null,null,null,null,null,null,null,{"$f":"TEXT(branch332[[#This Row],[Sol Id]],\"0000\")","v":"1100"}]
["A",1101,1101,"EBU","EBU SPITUK",null,null,null,"LAD","LADUND",null,null,null,null,null,null,null,null,null,null,null,null,null,null,{"$f":"TEXT(branch332[[#This Row],[Sol Id]],\"0000\")","v":"1101"}]
["A",1102,1102,"EBU","EBU TSAGA",null,null,null,"LAD","LADUND",null,null,null,null,null,null,null,null,null,null,null,null,null,null,{"$f":"TEXT(branch332[[#This Row],[Sol Id]],\"0000\")","v":"1102"}]
["A",1103,1103,"EBU","EBU CHUMUR",null,null,null,"LAD","LADUND",null,null,null,null,null,null,null,null,null,null,null,null,null,null,{"$f":"TEXT(branch332[[#This Row],[Sol Id]],\"0000\")","v":"1103"}]
["A",1104,1104,"EBU","EBU CHEMREY",null,null,null,"LAD","LADUND",null,null,null,null,null,null,null,null,null,null,null,null,null,null,{"$f":"TEXT(branch332[[#This Row],[Sol Id]],\"0000\")","v":"1104"}]
["A",1105,1105,"EBU","EBU ANLAY",null,null,null,"LAD","LADUND",null,null,null,null,null,null,null,null,null,null,null,null,null,null,{"$f":"TEXT(branch332[[#This Row],[Sol Id]],\"0000\")","v":"1105"}]
["A",1106,1106,"EBU","EBU BEMA (HANU)",null,null,null,"LAD","LADUND",null,null,null,null,null,null,null,null,null,null,null,null,null,null,{"$f":"TEXT(branch332[[#This Row],[Sol Id]],\"0000\")","v":"1106"}]
["A",1107,1107,"EBU","EBU DOMKHAR",null,null,null,"LAD","LADUND",null,null,null,null,null,null,null,null,null,null,null,null,null,null,{"$f":"TEXT(branch332[[#This Row],[Sol Id]],\"0000\")","v":"1107"}]
["A",1108,1108,"EBU","EBU HEMIS SHUKPACHAN",null,null,null,"LAD","LADUND",null,null,null,null,null,null,null,null,null,null,null,null,null,null,{"$f":"TEXT(branch332[[#This Row],[Sol Id]],\"0000\")","v":"1108"}]
["A",1109,1109,"EBU","EBU WANLA",null,null,null,"LAD","LADUND",null,null,null,null,null,null,null,null,null,null,null,null,null,null,{"$f":"TEXT(branch332[[#This Row],[Sol Id]],\"0000\")","v":"1109"}]
["A",1110,1110,"EBU","EBU LAMAYURU",null,null,null,"LAD","LADUND",null,null,null,null,null,null,null,null,null,null,null,null,null,null,{"$f":"TEXT(branch332[[#This Row],[Sol Id]],\"0000\")","v":"1110"}]
["A",1113,1113,"EBU","EBU CHILLING",null,null,null,"LAD","LADUND",null,null,null,null,null,null,null,null,null,null,null,null,null,null,{"$f":"TEXT(branch332[[#This Row],[Sol Id]],\"0000\")","v":"1113"}]
["A",1114,1114,"EBU","EBU TARU",null,null,null,"LAD","LADUND",null,null,null,null,null,null,null,null,null,null,null,null,null,null,{"$f":"TEXT(branch332[[#This Row],[Sol Id]],\"0000\")","v":"1114"}]
["A",1115,1115,"EBU","EBU PHYANG",null,null,null,"LAD","LADUND",null,null,null,null,null,null,null,null,null,null,null,null,null,null,{"$f":"TEXT(branch332[[#This Row],[Sol Id]],\"0000\")","v":"1115"}]
["A",1116,1116,"EBU","EBU ALCHI",null,null,null,"LAD","LADUND",null,null,null,null,null,null,null,null,null,null,null,null,null,null,{"$f":"TEXT(branch332[[#This Row],[Sol Id]],\"0000\")","v":"1116"}]
["A",1117,1117,"EBU","EBU MATHO",null,null,null,"LAD","LADUND",null,null,null,null,null,null,null,null,null,null,null,null,null,null,{"$f":"TEXT(branch332[[#This Row],[Sol Id]],\"0000\")","v":"1117"}]
["A",1118,1118,"EBU","EBU SABOO",null,null,null,"LAD","LADUND",null,null,null,null,null,null,null,null,null,null,null,null,null,null,{"$f":"TEXT(branch332[[#This Row],[Sol Id]],\"0000\")","v":"1118"}]
["A",1119,1119,"EBU","EBU SAKTI",null,null,null,"LAD","LADUND",null,null,null,null,null,null,null,null,null,null,null,null,null,null,{"$f":"TEXT(branch332[[#This Row],[Sol Id]],\"0000\")","v":"1119"}]
["A",1120,1120,"EBU","EBU EGU",null,null,null,"LAD","LADUND",null,null,null,null,null,null,null,null,null,null,null,null,null,null,{"$f":"TEXT(branch332[[#This Row],[Sol Id]],\"0000\")","v":"1120"}]
["A",1122,1122,"EBU","EBU LIKTSEY",null,null,null,"LAD","LADUND",null,null,null,null,null,null,null,null,null,null,null,null,null,null,{"$f":"TEXT(branch332[[#This Row],[Sol Id]],\"0000\")","v":"1122"}]
["A",1123,1123,"EBU","EBU KARGYAM",null,null,null,"LAD","LADUND",null,null,null,null,null,null,null,null,null,null,null,null,null,null,{"$f":"TEXT(branch332[[#This Row],[Sol Id]],\"0000\")","v":"1123"}]
["A",1125,1125,"EBU","EBU KUYUL",null,null,null,"LAD","LADUND",null,null,null,null,null,null,null,null,null,null,null,null,null,null,{"$f":"TEXT(branch332[[#This Row],[Sol Id]],\"0000\")","v":"1125"}]
["A",1126,1126,"EBU","EBU KORZOK",null,null,null,"LAD","LADUND",null,null,null,null,null,null,null,null,null,null,null,null,null,null,{"$f":"TEXT(branch332[[#This Row],[Sol Id]],\"0000\")","v":"1126"}]
["A",1127,1127,"EBU","EBU CHUSHUL",null,null,null,"LAD","LADUND",null,null,null,null,null,null,null,null,null,null,null,null,null,null,{"$f":"TEXT(branch332[[#This Row],[Sol Id]],\"0000\")","v":"1127"}]
["A",1129,1129,"EBU","EBU SHASHUKUL",null,null,null,"LAD","LADUND",null,null,null,null,null,null,null,null,null,null,null,null,null,null,{"$f":"TEXT(branch332[[#This Row],[Sol Id]],\"0000\")","v":"1129"}]
["A",1130,1130,"EBU","EBU DIGGER",null,null,null,"LAD","LADUND",null,null,null,null,null,null,null,null,null,null,null,null,null,null,{"$f":"TEXT(branch332[[#This Row],[Sol Id]],\"0000\")","v":"1130"}]
["A",1132,1132,"EBU","EBU TERCHEY",null,null,null,"LAD","LADUND",null,null,null,null,null,null,null,null,null,null,null,null,null,null,{"$f":"TEXT(branch332[[#This Row],[Sol Id]],\"0000\")","v":"1132"}]
["A",1133,1133,"EBU","EBU LARGYAB",null,null,null,"LAD","LADUND",null,null,null,null,null,null,null,null,null,null,null,null,null,null,{"$f":"TEXT(branch332[[#This Row],[Sol Id]],\"0000\")","v":"1133"}]
["A",1135,1135,"EBU","EBU HUNDER",null,null,null,"LAD","LADUND",null,null,null,null,null,null,null,null,null,null,null,null,null,null,{"$f":"TEXT(branch332[[#This Row],[Sol Id]],\"0000\")","v":"1135"}]
["A",1136,1136,"EBU","EBU BASGO",null,null,null,"LAD","LADUND",null,null,null,null,null,null,null,null,null,null,null,null,null,null,{"$f":"TEXT(branch332[[#This Row],[Sol Id]],\"0000\")","v":"1136"}]
["A",1137,1137,"EBU","EBU MATHWAR",null,null,null,"JAM","JAMCL1",null,null,null,null,null,null,null,null,null,null,null,null,null,null,{"$f":"TEXT(branch332[[#This Row],[Sol Id]],\"0000\")","v":"1137"}]
["A",1138,1138,"EBU","EBU PARMANDAL",null,null,null,"KAT","KATSAM",null,null,null,null,null,null,null,null,null,null,null,null,null,null,{"$f":"TEXT(branch332[[#This Row],[Sol Id]],\"0000\")","v":"1138"}]
["A",1139,1139,"EBU","EBU UTTERBEHNI",null,null,null,"KAT","KATSAM",null,null,null,null,null,null,null,null,null,null,null,null,null,null,{"$f":"TEXT(branch332[[#This Row],[Sol Id]],\"0000\")","v":"1139"}]
["A",1140,1140,"EBU","EBU PALLI",null,null,null,"KAT","KATKAT",null,null,null,null,null,null,null,null,null,null,null,null,null,null,{"$f":"TEXT(branch332[[#This Row],[Sol Id]],\"0000\")","v":"1140"}]
["A",1141,1141,"EBU","EBU BARIAN",null,null,null,"KAT","KATSAM",null,null,null,null,null,null,null,null,null,null,null,null,null,null,{"$f":"TEXT(branch332[[#This Row],[Sol Id]],\"0000\")","v":"1141"}]
["A",1142,1142,"EBU","EBU MALIK MARKET",null,null,null,"DOD","DODKIS",null,null,null,null,null,null,null,null,null,null,null,null,null,null,{"$f":"TEXT(branch332[[#This Row],[Sol Id]],\"0000\")","v":"1142"}]
["A",1143,1143,"EBU","EBU DADPETH",null,null,null,"DOD","DODKIS",null,null,null,null,null,null,null,null,null,null,null,null,null,null,{"$f":"TEXT(branch332[[#This Row],[Sol Id]],\"0000\")","v":"1143"}]
["A",1144,1144,"EBU","EBU HATTA POCHALL",null,null,null,"DOD","DODKIS",null,null,null,null,null,null,null,null,null,null,null,null,null,null,{"$f":"TEXT(branch332[[#This Row],[Sol Id]],\"0000\")","v":"1144"}]
["A",1145,1145,"EBU","EBU CHIRAYI MUTTAL",null,null,null,"UDM","UDMUND",null,null,null,null,null,null,null,null,null,null,null,null,null,null,{"$f":"TEXT(branch332[[#This Row],[Sol Id]],\"0000\")","v":"1145"}]
["A",1146,1146,"EBU","EBU SHALLABUGH",null,null,null,"BUD","BUDGAN",null,null,null,null,null,null,null,null,null,null,null,null,null,null,{"$f":"TEXT(branch332[[#This Row],[Sol Id]],\"0000\")","v":"1146"}]
["A",1147,1147,"EBU","EBU CHANDAPORA",null,null,null,"BUD","BUDBUD",null,null,null,null,null,null,null,null,null,null,null,null,null,null,{"$f":"TEXT(branch332[[#This Row],[Sol Id]],\"0000\")","v":"1147"}]
["A",1149,1149,"EBU","EBU KAWOOSA KHALISA",null,null,null,"BUD","BUDBUD",null,null,null,null,null,null,null,null,null,null,null,null,null,null,{"$f":"TEXT(branch332[[#This Row],[Sol Id]],\"0000\")","v":"1149"}]
["A",1150,1150,"EBU","EBU HARI GANIWAN",null,null,null,"BUD","BUDGAN",null,null,null,null,null,null,null,null,null,null,null,null,null,null,{"$f":"TEXT(branch332[[#This Row],[Sol Id]],\"0000\")","v":"1150"}]
["A",1151,1151,"EBU","EBU YOUNGORA",null,null,null,"BUD","BUDGAN",null,null,null,null,null,null,null,null,null,null,null,null,null,null,{"$f":"TEXT(branch332[[#This Row],[Sol Id]],\"0000\")","v":"1151"}]
["A",1152,1152,"EBU","EBU SADDAL PANJAR",null,null,null,"UDM","UDMUND",null,null,null,null,null,null,null,null,null,null,null,null,null,null,{"$f":"TEXT(branch332[[#This Row],[Sol Id]],\"0000\")","v":"1152"}]
["A",1153,1153,"EBU","EBU ZERO MORTH, TALWARA",null,null,null,"UDM","UDMREA",null,null,null,null,null,null,null,null,null,null,null,null,null,null,{"$f":"TEXT(branch332[[#This Row],[Sol Id]],\"0000\")","v":"1153"}]
["A",1154,1154,"EBU","EBU JHAKHAR",null,null,null,"UDM","UDMUND",null,null,null,null,null,null,null,null,null,null,null,null,null,null,{"$f":"TEXT(branch332[[#This Row],[Sol Id]],\"0000\")","v":"1154"}]
["A",1155,1155,"EBU","EBU KUCHAL",null,null,null,"DOD","DODKIS",null,null,null,null,null,null,null,null,null,null,null,null,null,null,{"$f":"TEXT(branch332[[#This Row],[Sol Id]],\"0000\")","v":"1155"}]
["A",1156,1156,"EBU","EBU PARNALLA",null,null,null,"KAT","KATKAT",null,null,null,null,null,null,null,null,null,null,null,null,null,null,{"$f":"TEXT(branch332[[#This Row],[Sol Id]],\"0000\")","v":"1156"}]
["A",1157,1157,"EBU","EBU SERI MUNI",null,null,null,"KAT","KATKAT",null,null,null,null,null,null,null,null,null,null,null,null,null,null,{"$f":"TEXT(branch332[[#This Row],[Sol Id]],\"0000\")","v":"1157"}]
["A",1158,1158,"EBU","EBU SARNA",null,null,null,"KAT","KATSAM",null,null,null,null,null,null,null,null,null,null,null,null,null,null,{"$f":"TEXT(branch332[[#This Row],[Sol Id]],\"0000\")","v":"1158"}]
["A",1159,1159,"EBU","EBU CHANDILOORA",null,null,null,"BAR","BARBAR",null,null,null,null,null,null,null,null,null,null,null,null,null,null,{"$f":"TEXT(branch332[[#This Row],[Sol Id]],\"0000\")","v":"1159"}]
["A",1160,1160,"EBU","EBU SHIRPORA BANGIL",null,null,null,"BAR","BARBAR",null,null,null,null,null,null,null,null,null,null,null,null,null,null,{"$f":"TEXT(branch332[[#This Row],[Sol Id]],\"0000\")","v":"1160"}]
["A",1162,1162,"EBU","EBU RAJGARH",null,null,null,"DOD","DODRAM",null,null,null,null,null,null,null,null,null,null,null,null,null,null,{"$f":"TEXT(branch332[[#This Row],[Sol Id]],\"0000\")","v":"1162"}]
["A",1163,1163,"EBU","EBU MOHALLA, DODA",null,null,null,"DOD","DODUND",null,null,null,null,null,null,null,null,null,null,null,null,null,null,{"$f":"TEXT(branch332[[#This Row],[Sol Id]],\"0000\")","v":"1163"}]
["A",1164,1164,"EBU","EBU GHAMBIR MUGHLAN",null,null,null,"RAJ","RAJUND",null,null,null,null,null,null,null,null,null,null,null,null,null,null,{"$f":"TEXT(branch332[[#This Row],[Sol Id]],\"0000\")","v":"1164"}]
["A",1166,1166,"EBU","EBU GUNDIPORA",null,null,null,"BUD","BUDBUD",null,null,null,null,null,null,null,null,null,null,null,null,null,null,{"$f":"TEXT(branch332[[#This Row],[Sol Id]],\"0000\")","v":"1166"}]
["A",1167,1167,"EBU","EBU BABA RESHI",null,null,null,"BAR","BARBAR",null,null,null,null,null,null,null,null,null,null,null,null,null,null,{"$f":"TEXT(branch332[[#This Row],[Sol Id]],\"0000\")","v":"1167"}]
["A",1168,1168,"EBU","EBU KAPRAN VERINAG",null,null,null,"ANT","ANTANT",null,null,null,null,null,null,null,null,null,null,null,null,null,null,{"$f":"TEXT(branch332[[#This Row],[Sol Id]],\"0000\")","v":"1168"}]
["A",1169,1169,"EBU","EBU FOREST BLOCK KANGAN",null,null,null,"BUD","BUDGAN",null,null,null,null,null,null,null,null,null,null,null,null,null,null,{"$f":"TEXT(branch332[[#This Row],[Sol Id]],\"0000\")","v":"1169"}]
["A",1170,1170,"EBU","EBU PATNAZI",null,null,null,"DOD","DODKIS",null,null,null,null,null,null,null,null,null,null,null,null,null,null,{"$f":"TEXT(branch332[[#This Row],[Sol Id]],\"0000\")","v":"1170"}]
["A",1171,1171,"EBU","EBU MACHAIL",null,null,null,"DOD","DODKIS",null,null,null,null,null,null,null,null,null,null,null,null,null,null,{"$f":"TEXT(branch332[[#This Row],[Sol Id]],\"0000\")","v":"1171"}]
["A",1172,1172,"EBU","EBU LOPARA",null,null,null,"DOD","DODKIS",null,null,null,null,null,null,null,null,null,null,null,null,null,null,{"$f":"TEXT(branch332[[#This Row],[Sol Id]],\"0000\")","v":"1172"}]
["A",1173,1173,"EBU","EBU KHARAH BALI",null,null,null,"JAM","JAMCL1",null,null,null,null,null,null,null,null,null,null,null,null,null,null,{"$f":"TEXT(branch332[[#This Row],[Sol Id]],\"0000\")","v":"1173"}]
["A",1174,1174,"EBU","EBU DHANU",null,null,null,"JAM","JAMCL1",null,null,null,null,null,null,null,null,null,null,null,null,null,null,{"$f":"TEXT(branch332[[#This Row],[Sol Id]],\"0000\")","v":"1174"}]
["A",1175,1175,"EBU","EBU GARKHAL AKHNOOR",null,null,null,"JAM","JAMCL1",null,null,null,null,null,null,null,null,null,null,null,null,null,null,{"$f":"TEXT(branch332[[#This Row],[Sol Id]],\"0000\")","v":"1175"}]
["A",1176,1176,"EBU","EBU JAMOLA LOWER",null,null,null,"RAJ","RAJUND",null,null,null,null,null,null,null,null,null,null,null,null,null,null,{"$f":"TEXT(branch332[[#This Row],[Sol Id]],\"0000\")","v":"1176"}]
["A",1177,1177,"EBU","EBU SURINSAR",null,null,null,"JAM","JAMCL1",null,null,null,null,null,null,null,null,null,null,null,null,null,null,{"$f":"TEXT(branch332[[#This Row],[Sol Id]],\"0000\")","v":"1177"}]
["A",1178,1178,"EBU","EBU SHIENDRA",null,null,null,"RAJ","RAJPOO",null,null,null,null,null,null,null,null,null,null,null,null,null,null,{"$f":"TEXT(branch332[[#This Row],[Sol Id]],\"0000\")","v":"1178"}]
["A",1179,1179,"EBU","EBU DHARAM",null,null,null,"DOD","DODRAM",null,null,null,null,null,null,null,null,null,null,null,null,null,null,{"$f":"TEXT(branch332[[#This Row],[Sol Id]],\"0000\")","v":"1179"}]
["A",1180,1180,"EBU","EBU CHILLY PAYEN",null,null,null,"DOD","DODUND",null,null,null,null,null,null,null,null,null,null,null,null,null,null,{"$f":"TEXT(branch332[[#This Row],[Sol Id]],\"0000\")","v":"1180"}]
["A",1181,1181,"EBU","EBU DALI UDHYANPUR",null,null,null,"DOD","DODUND",null,null,null,null,null,null,null,null,null,null,null,null,null,null,{"$f":"TEXT(branch332[[#This Row],[Sol Id]],\"0000\")","v":"1181"}]
["A",1182,1182,"EBU","EBU SERI KHAWAJA",null,null,null,"RAJ","RAJPOO",null,null,null,null,null,null,null,null,null,null,null,null,null,null,{"$f":"TEXT(branch332[[#This Row],[Sol Id]],\"0000\")","v":"1182"}]
["A",1185,1185,"EBU","EBU LIKIR",null,null,null,"LAD","LADUND",null,null,null,null,null,null,null,null,null,null,null,null,null,null,{"$f":"TEXT(branch332[[#This Row],[Sol Id]],\"0000\")","v":"1185"}]
["A",1207,1207,"B","UMERABAD-SHALTENG","SRINAGAR","ZO SRINAGAR CLSTR -3 SRINAGAR","UMERAB","SGR","SGRCL3","JAKA0UMERAB","UMERABAD SHALTENG ROAD,SHALTENG","SRINAGAR","Srinagar","Srinagar North","J&K",null,"KASHMIR",190006,null,null,null,null,null,{"$f":"TEXT(branch332[[#This Row],[Sol Id]],\"0000\")","v":"1207"}]
["A",1228,1228,"B","KHARAR PUNJAB","KATHUA","ZO KATHUA CLSTR MOHALI","KHARAR","KAT","KATMOH","JAKA0KHARAR","CHANDIGARH-KURALI ROAD UBBER NEWS GATE KHARAR","SASNAGAR","SASNAGAR","KHARAR","PUNJAB",null,"PUNJAB",140301,null,null,null,null,null,{"$f":"TEXT(branch332[[#This Row],[Sol Id]],\"0000\")","v":"1228"}]
["A",1227,1227,"B","SANGRAMA SOPORE","BARAMULLA","ZO BARAMULLA CLSTR SOPORE","SANGRM","BAR","BARSOP","JAKA0SANGRM","VILLAGE SANGRAMA,TEHSIL SOPORE","BARAMULLA","BARAMULLA","BARAMULLA","J&K",null,"KASHMIR",193101,null,null,null,null,null,{"$f":"TEXT(branch332[[#This Row],[Sol Id]],\"0000\")","v":"1227"}]
["A",194,194,"B","WORLI MUMBAI","MUMBAI","ZO MUMBAI CLSTR MUMBAI","WORLIM","MUM","MUMMUM","JAKA0WORLIM","1ST FLOOR, D-BLOCK, SHIV SAGAR ESTATE, DR. ANNIE BESANT ROAD, WORLI MUMBAI-400018.","MUMBAI","MUMBAI","MUMBAI","MAHARASHTRA",null,"ROI",400018,null,null,null,null,null,{"$f":"TEXT(branch332[[#This Row],[Sol Id]],\"0000\")","v":"0194"}]
["A",1196,1196,"B","90-FEET ROAD SOURA-BUCHPORA","SRINAGAR","ZO SRINAGAR CLSTR -2 SRINAGAR","NFSOUR","SGR","SGRCL2","JAKA0NFSOUR","90-FEET ROAD, UPPER SOURA, BUCHPORA, POST OFFICE BUCHPORA, TEHSIL EIDGAH",null,null,null,null,null,null,null,null,null,null,null,null,{"$f":"TEXT(branch332[[#This Row],[Sol Id]],\"0000\")","v":"1196"}]
["A",1220,1220,"B","BUMHAMA, KUPWARA","BARAMULLA","ZO BARAMULLA CLSTR KUPWARA","BUMHAM","BAR","BARKUP","JAKA0BUMHAM","VILLAGE BUMHAMA NEAR FRUIT MANDI, BUMHAMA","KUPWARA","KUPWARA","KUPWARA","J&K",null,"KASHMIR",193222,null,null,null,null,null,{"$f":"TEXT(branch332[[#This Row],[Sol Id]],\"0000\")","v":"1220"}]
["A",1215,1215,"B","NANAK BHAWAN, BARAMULLA","BARAMULLA","ZO BARAMULLA CLSTR BARAMULLA","NBAWAN","BAR","BARBAR","JAKA0NBAWAN","NANAK BHAWAN NEAR GOVT BOYS HIGHER SECONDARY SCHOOL, NANAK NAGAR","BARAMULLA","BARAMULLA","BARAMULLA","J&K",null,"KASHMIR",193101,null,null,null,null,null,{"$f":"TEXT(branch332[[#This Row],[Sol Id]],\"0000\")","v":"1215"}]
["A",1186,1186,"EBU","EBU PATTANGARH",null,null,null,"UDM","UDMUND",null,null,null,null,null,null,null,null,null,null,null,null,null,null,{"$f":"TEXT(branch332[[#This Row],[Sol Id]],\"0000\")","v":"1186"}]
["A",1191,1191,"EBU","EBU CHACHWA",null,null,null,"DOD","DODRAM",null,null,null,null,null,null,null,null,null,null,null,null,null,null,{"$f":"TEXT(branch332[[#This Row],[Sol Id]],\"0000\")","v":"1191"}]
["A",1194,1194,"B","BHAYANDER","MUMBAI","ZO MUMBAI CLSTR MUMBAI","BHAYAN","MUM","MUMMUM","JAKA0BHAYAN","BHAYANDER, POST OFFICE BHAYANDER, TEHSIL & DISTRICT THANE, PIN: 401101",null,null,null,null,null,null,null,null,null,null,null,null,{"$f":"TEXT(branch332[[#This Row],[Sol Id]],\"0000\")","v":"1194"}]
["A",1195,1195,"B","KORAMANGALA","BENGALURU","ZO BENGALURU CLSTR BENGALURU","KORMNG","BEN","BENBEN","JAKA0KORMNG","KORMANGALA, POST OFFICE KORAMANGALA, TEHSIL BENGALURU SOUTH, DISTRICT BENGALURU URBAN, PIN 560095",null,null,null,null,null,null,null,null,null,null,null,null,{"$f":"TEXT(branch332[[#This Row],[Sol Id]],\"0000\")","v":"1195"}]
["A",5555,5555,"DP","CREDIT CARD",null,null,"CHQ","CHQ","NA",null,null,null,null,null,null,null,null,null,null,null,null,null,null,{"$f":"TEXT(branch332[[#This Row],[Sol Id]],\"0000\")","v":"5555"}]
["A",1202,1202,"B","INDUSTRIAL ESTATE GHATTI","KATHUA","ZO KATHUA CLSTR KATHUA","IEGHAT","KAT","KATKAT","JAKA0IEGHAT","INDUSTRIAL ESTATE GHATTI, PO BARNOTE","KATHUA","KATHUA","KATHUA","J&K",null,"JAMMU",184143,null,null,null,null,null,{"$f":"TEXT(branch332[[#This Row],[Sol Id]],\"0000\")","v":"1202"}]
["A",1200,1200,"B","RAMNAGRI SHOPIAN","PULWAMA","ZO PULWAMA CLSTR SHOPIAN","RNAGRI","PUL","PULSHO","JAKA0RNAGRI","VILLAGE RAMNAGRI, POST-OFFICE SHOPIAN, TEHSIL & DISTRICT SHOPIAN,","SHOPIAN","SHOPIAN","SHOPIAN","J&K",null,"KASHMIR",192303,null,null,null,null,null,{"$f":"TEXT(branch332[[#This Row],[Sol Id]],\"0000\")","v":"1200"}]
["A",1197,1197,"B","WAKAD, PUNE","MUMBAI","ZO MUMBAI CLSTR MUMBAI","WAKKAD","MUM","MUMMUM","JAKA0WAKKAD","HOP NO 1-3, GROUND FLOOR, BUILDING \" MI COMMERCIAâ€\u009d, WAKAD, TEHSIL MULSHI, DISTRICT PUNE","PUNE","PUNE","MULSHI","MAHARASHTRA",null,"ROI",411057,null,null,null,null,null,{"$f":"TEXT(branch332[[#This Row],[Sol Id]],\"0000\")","v":"1197"}]
["A",1199,1199,"B","RAIKA MORH","KATHUA","ZO KATHUA CLSTR SAMBA","RAIKAA","KAT","KATSAM","JAKA0RRAIKAA","ILLAGE RAIKA MORH, POST OFFICE GHOBARAHMANA","SAMBA","SAMBA","RAMGARH","J&K",null,"JAMMU",184120,null,null,null,null,null,{"$f":"TEXT(branch332[[#This Row],[Sol Id]],\"0000\")","v":"1199"}]
["A",606,606,"B","ASSAR","DODA","ZO DODA CLSTR DODA","ASSARR","DOD","DODDOD","JAKA0ASSARR","ASSAR TEHSIL DODA","DODA","DODA","ASSAR","J&K",null,"JAMMU",182200,182051115,6320518,33.165520000000001,75.344130000000007,null,{"$f":"TEXT(branch332[[#This Row],[Sol Id]],\"0000\")","v":"0606"}]
["A",607,607,"B","JAKYAS","DODA","ZO DODA CLSTR DODA","JAKYAS","DOD","DODDOD","JAKA0JAKYAS","P/O THATHRI TEHSIL GANDOH","DODA","DODA","CHILLI PINGAL","J&K",null,"JAMMU",182203,182051116,6320524,33.032220000000002,75.910030000000006,null,{"$f":"TEXT(branch332[[#This Row],[Sol Id]],\"0000\")","v":"0607"}]
["A",608,608,"B","NAGSENI","DODA","ZO DODA CLSTR KISHTWAR","NAGSEN","DOD","DODKIS","JAKA0NAGSEN","B.U.NAGSENI,P.O. GULHAR THE","KISHTWAR","KISHTWAR","NAGSENI","J&K",null,"JAMMU",182204,182051405,6320550,33.348619999999997,75.884029999999996,null,{"$f":"TEXT(branch332[[#This Row],[Sol Id]],\"0000\")","v":"0608"}]
["A",609,609,"B","KAHARA","DODA","ZO DODA CLSTR DODA","KAHARA","DOD","DODDOD","JAKA0KAHARA","KAHARA THATRI DODA","DODA","DODA","KAHARA","J&K",null,"JAMMU",182203,182051117,6320537,33.053690000000003,75.515789999999996,null,{"$f":"TEXT(branch332[[#This Row],[Sol Id]],\"0000\")","v":"0609"}]
["A",610,610,"B","BEHROTE","RAJOURI","ZO RAJOURI CLSTR RAJOURI","BAHROT","RAJ","RAJRAJ","JAKA0BAHROT","TEHSIL THANAMANDI","RAJOURI","RAJOURI","THANAMANDI","J&K",null,"JAMMU",185213,185051015,6320526,33.49333,74.350110000000001,null,{"$f":"TEXT(branch332[[#This Row],[Sol Id]],\"0000\")","v":"0610"}]
["A",611,611,"B","CHASANA","UDHAMPUR","ZO UDHAMPUR CLSTR REASI","CHASAN","UDM","UDMREA","JAKA0CHASAN","P/O GOTA TEHSIL MAHORE","REASI","REASI","CHASANA","J&K",null,"JAMMU",185133,182051020,6320513,33.357939999999999,74.743859999999998,null,{"$f":"TEXT(branch332[[#This Row],[Sol Id]],\"0000\")","v":"0611"}]
["A",612,612,"B","BHAGGA","UDHAMPUR","ZO UDHAMPUR CLSTR REASI","BAGGAA","UDM","UDMREA","JAKA0BAGGAA","TEHSIL MOHRE","REASI","REASI","REASI","J&K",null,"JAMMU",182315,182051257,6320547,33.348439999999997,74.843720000000005,null,{"$f":"TEXT(branch332[[#This Row],[Sol Id]],\"0000\")","v":"0612"}]
["A",613,613,"B","MANJAKOTE","RAJOURI","ZO RAJOURI CLSTR RAJOURI","MANAJA","RAJ","RAJRAJ","JAKA0MANAJA","MANJAKOTE MAIN MARKET","RAJOURI","RAJOURI","MANJAKOTE","J&K",null,"JAMMU",185131,185051018,6320573,33.473230000000001,74.254940000000005,null,{"$f":"TEXT(branch332[[#This Row],[Sol Id]],\"0000\")","v":"0613"}]
["A",614,614,"B","GOWHARPORA","BUDGAM","ZO BUDGAM CLSTR -2 BUDGAM","GOWHAR","BUD","BUDCL2","JAKA0GOWHAR","GOWHARPORA CHADOORA","BUDGAM","BUDGAM","CHADURA","J&K",null,"KASHMIR",191113,190051088,6320531,33.959809999999997,74.850750000000005,null,{"$f":"TEXT(branch332[[#This Row],[Sol Id]],\"0000\")","v":"0614"}]
["A",615,615,"B","KAPRIN","PULWAMA","ZO PULWAMA CLSTR SHOPIAN","KAPRIN","PUL","PULSHO","JAKA0KAPRIN","POST OFFICE KAPRIN TEHSIL SHOPIAN","SHOPIAN","SHOPIAN","KAPRIN","J&K",null,"KASHMIR",192231,192051051,6320539,33.663580000000003,74.896780000000007,null,{"$f":"TEXT(branch332[[#This Row],[Sol Id]],\"0000\")","v":"0615"}]
["A",616,616,"B","ARIHAL","PULWAMA","ZO PULWAMA CLSTR SHOPIAN","ARIHAL","PUL","PULSHO","JAKA0ARIHAL","PULWAMA","PULWAMA","PULWAMA","PULWAMA","J&K",null,"KASHMIR",192302,192051052,6320528,33.811920000000001,74.891440000000003,null,{"$f":"TEXT(branch332[[#This Row],[Sol Id]],\"0000\")","v":"0616"}]
["A",617,617,"B","TRESPONE","LADAKH","ZO LADAKH CLSTR KARGIL","TRSPON","LAD","LADKAR","JAKA0TRSPON","TRESPONE KARGIL","KARGIL","KARGIL","SANKOO","LADAKH",null,"LADAKH",194103,194051020,6320527,34.416710000000002,76.024780000000007,null,{"$f":"TEXT(branch332[[#This Row],[Sol Id]],\"0000\")","v":"0617"}]
["A",618,618,"B","COURT ROAD MAGAM","BUDGAM","ZO BUDGAM CLSTR -1 BUDGAM","CRMAGM","BUD","BUDCL1","JAKA0CRMAGM","COURT ROAD MAGAM","BUDGAM","BUDGAM","MAGAM","J&K",null,"KASHMIR",194301,191051018,6320532,34.089820000000003,74.590729999999994,null,{"$f":"TEXT(branch332[[#This Row],[Sol Id]],\"0000\")","v":"0618"}]
["A",619,619,"B","MISHRIWALA","JAMMU","ZO JAMMU CLSTR -3 JAMMU","MISHRI","JAM","JAMCL3","JAKA0MISHRI","AKHNOOR ROAD MISHRIWALA","JAMMU","JAMMU","JAMMU (NORTH)","J&K",null,"JAMMU",181206,180051069,6320533,32.744050000000001,74.804649999999995,null,{"$f":"TEXT(branch332[[#This Row],[Sol Id]],\"0000\")","v":"0619"}]
["A","0619E","0619E","EC","EC - GCET, CHAK BHALWAL, JAMMU",null,null,"MISHRI","JAM","JAMCL1","JAKA0MISHRI",null,"JAMMU","JAMMU","JAMMU (NORTH)","J&K",null,"JAMMU",181206,180051069,6320533,32.744050000000001,74.804649999999995,null,{"$f":"TEXT(branch332[[#This Row],[Sol Id]],\"0000\")","v":"0619E"}]
["A",620,620,"B","PALHALAN","BARAMULLA","ZO BARAMULLA CLSTR SOPORE","PALHAL","BAR","BARSOP","JAKA0PALHAL","PLHALAN MAIN","BARAMULLA","BARAMULLA","PATTAN","J&K",null,"KASHMIR",193121,193051031,6320596,34.180039999999998,74.542379999999994,null,{"$f":"TEXT(branch332[[#This Row],[Sol Id]],\"0000\")","v":"0620"}]
["A",621,621,"B","NEHALPORA","BARAMULLA","ZO BARAMULLA CLSTR BARAMULLA","NEHAAL","BAR","BARBAR","JAKA0NEHAAL","PATTAN","BARAMULLA","BARAMULLA","PATTAN","J&K",null,"KASHMIR",193121,193051040,6320691,34.160469999999997,74.555120000000002,null,{"$f":"TEXT(branch332[[#This Row],[Sol Id]],\"0000\")","v":"0621"}]
["A",622,622,"B","KRALGUND","BARAMULLA","ZO BARAMULLA CLSTR KUPWARA","KLGUND","BAR","BARKUP","JAKA0KLGUND","LANGATE, HANDWARA","KUPWARA","KUPWARA","KRALGUND","J&K",null,"KASHMIR",193302,193051217,6320601,34.412669999999999,74.328659999999999,null,{"$f":"TEXT(branch332[[#This Row],[Sol Id]],\"0000\")","v":"0622"}]
["A",623,623,"B","KULANGAM","BARAMULLA","ZO BARAMULLA CLSTR KUPWARA","KULLAN","BAR","BARKUP","JAKA0KULLAN","KULANGAM MAIN","KUPWARA","KUPWARA","HANDWARA","J&K",null,"KASHMIR",193221,193051218,6320580,34.409170000000003,74.289199999999994,null,{"$f":"TEXT(branch332[[#This Row],[Sol Id]],\"0000\")","v":"0623"}]
["A",624,624,"B","YOUNUS WAHIPORA","BARAMULLA","ZO BARAMULLA CLSTR KUPWARA","YOUNUS","BAR","BARKUP","JAKA0YOUNUS","YOUNUS WAHIPORA, TEHSIL-HANDWARA","KUPWARA","KUPWARA","LANGATE","J&K",null,"KASHMIR",193302,193051225,6320682,34.382820000000002,74.374300000000005,null,{"$f":"TEXT(branch332[[#This Row],[Sol Id]],\"0000\")","v":"0624"}]
["A",625,625,"B","ASHMUJI","ANANTNAG","ZO ANANTNAG CLSTR KULGAM","ASHMUJ","ANT","ANTKUL","JAKA0ASHMUJ","ASHMUJI KULGAM","KULGAM","KULGAM","KULGAM","J&K",null,"KASHMIR",192231,192051303,6320540,33.673810000000003,75.071340000000006,null,{"$f":"TEXT(branch332[[#This Row],[Sol Id]],\"0000\")","v":"0625"}]
["A",626,626,"B","CHOWKIBAL","BARAMULLA","ZO BARAMULLA CLSTR KUPWARA","CHOKBL","BAR","BARKUP","JAKA0CHOKBL","CHOWKIBAL","KUPWARA","KUPWARA","KRALPORA","J&K",null,"KASHMIR",193224,193051221,6320597,34.411140000000003,74.958029999999994,null,{"$f":"TEXT(branch332[[#This Row],[Sol Id]],\"0000\")","v":"0626"}]
["A",627,627,"B","KHAITANGAN","BARAMULLA","ZO BARAMULLA CLSTR BARAMULLA","TANGAN","BAR","BARBAR","JAKA0TANGAN","KHAITANGAN","BARAMULLA","BARAMULLA","BARAMULLA","J&K",null,"KASHMIR",193101,193051033,6320594,34.184280000000001,74.407060000000001,null,{"$f":"TEXT(branch332[[#This Row],[Sol Id]],\"0000\")","v":"0627"}]
["A",628,628,"B","MIRGUND","BARAMULLA","ZO BARAMULLA CLSTR SOPORE","MIRGUD","BAR","BARSOP","JAKA0MIRGUD","MIRGUND, TEHSIL-PATTAN","BARAMULLA","BARAMULLA","PATTAN","J&K",null,"KASHMIR",193121,193051038,6320680,34.135280000000002,74.662850000000006,null,{"$f":"TEXT(branch332[[#This Row],[Sol Id]],\"0000\")","v":"0628"}]
["A",629,629,"B","HARAI","BARAMULLA","ZO BARAMULLA CLSTR KUPWARA","HARRAI","BAR","BARKUP","JAKA0HARRAI","HARRAI","KUPWARA","KUPWARA","KRALPORA","J&K",null,"KASHMIR",193224,193051220,6320583,34.526179999999997,74.25461,null,{"$f":"TEXT(branch332[[#This Row],[Sol Id]],\"0000\")","v":"0629"}]
["A",630,630,"B","CHOORA","BARAMULLA","ZO BARAMULLA CLSTR SOPORE","CHOORA","BAR","BARSOP","JAKA0CHOORA","PATTAN","BARAMULLA","BARAMULLA","KREERI","J&K",null,"KASHMIR",193108,193051034,6320703,34.134399999999999,74.281350000000003,null,{"$f":"TEXT(branch332[[#This Row],[Sol Id]],\"0000\")","v":"0630"}]
["A",631,631,"B","SOIBUGH","BUDGAM","ZO BUDGAM CLSTR -1 BUDGAM","SOIBUG","BUD","BUDCL1","JAKA0SOIBUG","SOIBUGH, BUDGAM","BUDGAM","BUDGAM","BUDGAM","J&K",null,"KASHMIR",191111,191051019,6320541,34.073860000000003,74.706890000000001,null,{"$f":"TEXT(branch332[[#This Row],[Sol Id]],\"0000\")","v":"0631"}]
["A",632,632,"B","MANIGAM","BUDGAM","ZO BUDGAM CLSTR GANDERBAL","MANGAM","BUD","BUDGAN","JAKA0MANGAM","MANIGAM , GANDERBAL","GANDERBAL","GANDERBAL","LAAR","J&K",null,"KASHMIR",191201,191051112,6320542,34.283589999999997,74.807159999999996,null,{"$f":"TEXT(branch332[[#This Row],[Sol Id]],\"0000\")","v":"0632"}]
["A",633,633,"B","PEERPUR CHOWK","BUDGAM","ZO BUDGAM CLSTR GANDERBAL","PIRPUR","BUD","BUDGAN","JAKA0PIRPUR","PEERPUR CHOWK","GANDERBAL","GANDERBAL","GANDERBAL","J&K",null,"KASHMIR",191131,191051113,6320598,34.216500000000003,74.771940000000001,null,{"$f":"TEXT(branch332[[#This Row],[Sol Id]],\"0000\")","v":"0633"}]
["A",634,634,"B","MEHJOOR NAGAR","SRINAGAR","ZO SRINAGAR CLSTR -1 SRINAGAR","MEHJUR","SGR","SGRCL1","JAKA0MEHJUR","MEHJOOR NAGAR MAIN MARKET","SRINAGAR","SRINAGAR","SRINAGAR","J&K",null,"KASHMIR",190015,190051089,6320571,34.054020000000001,74.817760000000007,null,{"$f":"TEXT(branch332[[#This Row],[Sol Id]],\"0000\")","v":"0634"}]
["A",636,636,"B","SOPORE TOWN","BARAMULLA","ZO BARAMULLA CLSTR SOPORE","SOPORE","BAR","BARSOP","JAKA0SOPORE","SOPORE MAIN TOWN","BARAMULLA","BARAMULLA","SOPORE","J&K",null,"KASHMIR",193201,193051111,6320604,34.298679999999997,74.470150000000004,null,{"$f":"TEXT(branch332[[#This Row],[Sol Id]],\"0000\")","v":"0636"}]
["A",637,637,"B","JADEED ROAD","BARAMULLA","ZO BARAMULLA CLSTR BARAMULLA","JADEED","BAR","BARBAR","JAKA0JADEED","JADEED ROAD","BARAMULLA","BARAMULLA","BARAMULLA","J&K",null,"KASHMIR",193101,193051030,6320605,34.208629999999999,74.339230000000001,null,{"$f":"TEXT(branch332[[#This Row],[Sol Id]],\"0000\")","v":"0637"}]
["A",638,638,"B","USHKARA","BARAMULLA","ZO BARAMULLA CLSTR BARAMULLA","USHKAR","BAR","BARBAR","JAKA0USHKAR","USHKURA MAIN","BARAMULLA","BARAMULLA","BARAMULLA","J&K",null,"KASHMIR",193103,193051039,6320686,34.207360000000001,74.379300000000001,null,{"$f":"TEXT(branch332[[#This Row],[Sol Id]],\"0000\")","v":"0638"}]
["A",639,639,"B","ARAMPORA","BARAMULLA","ZO BARAMULLA CLSTR KUPWARA","ARMPOR","BAR","BARKUP","JAKA0ARMPOR","ARMPORA","KUPWARA","KUPWARA","DRUGMULLA","J&K",null,"KASHMIR",193221,193051219,6320577,34.457659999999997,74.293490000000006,null,{"$f":"TEXT(branch332[[#This Row],[Sol Id]],\"0000\")","v":"0639"}]
["A",640,640,"B","NANDANI HILLS SAMBA","KATHUA","ZO KATHUA CLSTR SAMBA","NANDAN","KAT","KATSAM","JAKA0NANDAN","NANDANI HILLS , SAMBA","SAMBA","SAMBA","SAMBA","J&K",null,"JAMMU",184121,180051070,6320543,32.55301,75.110749999999996,null,{"$f":"TEXT(branch332[[#This Row],[Sol Id]],\"0000\")","v":"0640"}]
["A",641,641,"B","NIHARIKA","UDHAMPUR","ZO UDHAMPUR CLSTR REASI","PKATRA","UDM","UDMREA","JAKA0PKATRA","TEHSIL REASI","REASI","REASI","KATRA","J&K",null,"JAMMU",182301,182051261,6320731,32.99324,74.929540000000003,null,{"$f":"TEXT(branch332[[#This Row],[Sol Id]],\"0000\")","v":"0641"}]
["A",642,642,"B","NOWGAM SHANGUS","ANANTNAG","ZO ANANTNAG CLSTR -1 ANANTNAG","NGSHAN","ANT","ANTCL1","JAKA0NGSHAN","NOWGAM SHANGUS","ANANTNAG","ANANTNAG","SHANGUS","J&K",null,"KASHMIR",192201,192051056,6320578,33.697090000000003,75.284360000000007,null,{"$f":"TEXT(branch332[[#This Row],[Sol Id]],\"0000\")","v":"0642"}]
["A",643,643,"B","MEHIND","ANANTNAG","ZO ANANTNAG CLSTR -2 ANANTNAG","MEHIND","ANT","ANTCL2","JAKA0MEHIND","NEAR MASJID SHARIEF","ANANTNAG","ANANTNAG","SRIGUPHWARA","J&K",null,"KASHMIR",192401,192051053,6320581,33.736840000000001,75.140649999999994,null,{"$f":"TEXT(branch332[[#This Row],[Sol Id]],\"0000\")","v":"0643"}]
["A",644,644,"B","PINGLIN","PULWAMA","ZO PULWAMA CLSTR PULWAMA","PINGLE","PUL","PULPUL","JAKA0PINGLE","NEAR PLYWOOD FACTORY","PULWAMA","PULWAMA","PULWAMA","J&K",null,"KASHMIR",192307,192051124,6320589,33.903210000000001,74.92165,null,{"$f":"TEXT(branch332[[#This Row],[Sol Id]],\"0000\")","v":"0644"}]
["A",645,645,"B","TAHAB","PULWAMA","ZO PULWAMA CLSTR PULWAMA","TAHAAB","PUL","PULPUL","JAKA0TAHAAB","TAHAB MAIN MARKET","PULWAMA","PULWAMA","PULWAMA","J&K",null,"KASHMIR",192301,192051125,6320592,33.83623,74.927409999999995,null,{"$f":"TEXT(branch332[[#This Row],[Sol Id]],\"0000\")","v":"0645"}]
["A",646,646,"B","SANGAM","ANANTNAG","ZO ANANTNAG CLSTR -2 ANANTNAG","SANGAM","ANT","ANTCL2","JAKA0SANGAM","MAIN CHOWK NATIONAL HIGHWAY","ANANTNAG","ANANTNAG","BIJBEHARA","J&K",null,"KASHMIR",192124,192051055,6320702,33.827170000000002,75.070840000000004,null,{"$f":"TEXT(branch332[[#This Row],[Sol Id]],\"0000\")","v":"0646"}]
["A",647,647,"B","VESSU","ANANTNAG","ZO ANANTNAG CLSTR -1 ANANTNAG","VESSOO","ANT","ANTCL1","JAKA0VESSOO","VESSUE NEAR HR. SECONDARY SCHOOL, JAMMU-SRINAGAR HIGHWAY","ANANTNAG","ANANTNAG","DOORU","J&K",null,"KASHMIR",192102,192051060,6320574,33.670499999999997,75.127430000000004,null,{"$f":"TEXT(branch332[[#This Row],[Sol Id]],\"0000\")","v":"0647"}]
["A",648,648,"B","TUJJAR SHARIEF","BARAMULLA","ZO BARAMULLA CLSTR SOPORE","TUJJAR","BAR","BARSOP","JAKA0TUJJAR","TUJJAR SHARIEF MAIN VILLAGE MARKET","BARAMULLA","BARAMULLA","BOMAI(ZAINGEER)","J&K",null,"KASHMIR",193201,193051032,6320602,34.726599999999998,74.857029999999995,null,{"$f":"TEXT(branch332[[#This Row],[Sol Id]],\"0000\")","v":"0648"}]
["A",649,649,"B","KULLIAN","JAMMU","ZO JAMMU CLSTR -2 JAMMU","KULIAN","JAM","JAMCL2","JAKA0KULIAN","KULLIAN MAIN MARKET, MIRAN SAHIB MAIN","JAMMU","JAMMU","RS PURA","J&K",null,"JAMMU",181102,180051071,6320606,32.626730000000002,74.765609999999995,null,{"$f":"TEXT(branch332[[#This Row],[Sol Id]],\"0000\")","v":"0649"}]
["A",650,650,"B","JAKH","KATHUA","ZO KATHUA CLSTR SAMBA","JAAKHH","KAT","KATSAM","JAKA0JAAKHH","NATIONAL HIGHWAY","SAMBA","SAMBA","VIJAYPUR","J&K",null,"JAMMU",184120,180051073,6320584,32.592120000000001,74.966179999999994,null,{"$f":"TEXT(branch332[[#This Row],[Sol Id]],\"0000\")","v":"0650"}]
["A",651,651,"B","GHAT","DODA","ZO DODA CLSTR DODA","GHAATH","DOD","DODDOD","JAKA0GHAATH","NEAR BUS STAND","DODA","DODA","DODA","J&K",null,"JAMMU",182210,182051119,6320591,33.240400000000001,75.509200000000007,null,{"$f":"TEXT(branch332[[#This Row],[Sol Id]],\"0000\")","v":"0651"}]
["A",652,652,"B","KULEED","DODA","ZO DODA CLSTR KISHTWAR","KULEED","DOD","DODKIS","JAKA0KULEED","NEAR DC OFFICE","KISHTWAR","KISHTWAR","KISHTWAR","J&K",null,"JAMMU",182204,182051409,6320590,33.323700000000002,75.761970000000005,null,{"$f":"TEXT(branch332[[#This Row],[Sol Id]],\"0000\")","v":"0652"}]
["A",653,653,"B","HIDYAL","DODA","ZO DODA CLSTR KISHTWAR","HIDYAL","DOD","DODKIS","JAKA0HIDYAL","NEAR HIDYAL CHOWK","KISHTWAR","KISHTWAR","KISHTWAR","J&K",null,"JAMMU",182204,182051411,6320588,33.313110000000002,75.763180000000006,null,{"$f":"TEXT(branch332[[#This Row],[Sol Id]],\"0000\")","v":"0653"}]
["A",654,654,"B","MUGHAL MAIDAN","DODA","ZO DODA CLSTR KISHTWAR","MMYDAN","DOD","DODKIS","JAKA0MMYDAN","MUGHAL MAIDAN","KISHTWAR","KISHTWAR","MUGHAL MAIDAN","J&K",null,"JAMMU",182205,182051410,6320582,33.402949999999997,75.680670000000006,null,{"$f":"TEXT(branch332[[#This Row],[Sol Id]],\"0000\")","v":"0654"}]
["A",655,655,"B","GOHA MARMAT","DODA","ZO DODA CLSTR DODA","MARMAT","DOD","DODDOD","JAKA0MARMAT","GOHA MARMAT","DODA","DODA","MARMAT","J&K",null,"JAMMU",182201,182051120,6320593,33.119370000000004,75.406790000000001,null,{"$f":"TEXT(branch332[[#This Row],[Sol Id]],\"0000\")","v":"0655"}]
["A",656,656,"B","TETHAR","DODA","ZO DODA CLSTR RAMBAN","TETHAR","DOD","DODRAM","JAKA0TETHAR","NATIONAL HIGHWAY","RAMBAN","RAMBAN","BANIHAL","J&K",null,"JAMMU",182146,182051307,6320587,33.487990000000003,75.186679999999996,null,{"$f":"TEXT(branch332[[#This Row],[Sol Id]],\"0000\")","v":"0656"}]
["A",657,657,"B","BHAMBLA","UDHAMPUR","ZO UDHAMPUR CLSTR REASI","BAMBLA","UDM","UDMREA","JAKA0BAMBLA","BHAMBLA","REASI","REASI","POUNIE","J&K",null,"JAMMU",185154,182051258,6320600,33.050989999999999,74.574179999999998,null,{"$f":"TEXT(branch332[[#This Row],[Sol Id]],\"0000\")","v":"0657"}]
["A",658,658,"B","RANSOO","UDHAMPUR","ZO UDHAMPUR CLSTR REASI","RANRSI","UDM","UDMREA","JAKA0RANRSI","RANSOO","REASI","REASI","POUNIE","J&K",null,"JAMMU",185203,182051259,6320599,33.146450000000002,74.607830000000007,null,{"$f":"TEXT(branch332[[#This Row],[Sol Id]],\"0000\")","v":"0658"}]
["A",659,659,"B","BUDHAL","RAJOURI","ZO RAJOURI CLSTR RAJOURI","BUDRAJ","RAJ","RAJRAJ","JAKA0BUDRAJ","THE. KOTRANKA","RAJOURI","RAJOURI","KOTERANKA","J&K",null,"JAMMU",185233,185051016,6320564,33.382730000000002,74.634190000000004,null,{"$f":"TEXT(branch332[[#This Row],[Sol Id]],\"0000\")","v":"0659"}]
["A",660,660,"B","KHAWAS","RAJOURI","ZO RAJOURI CLSTR RAJOURI","KHAWAS","RAJ","RAJRAJ","JAKA0KHAWAS","KOTRANKA, BUDHAL","RAJOURI","RAJOURI","KHAWAS","J&K",null,"JAMMU",185201,185051017,6320667,33.287799999999997,74.58708,null,{"$f":"TEXT(branch332[[#This Row],[Sol Id]],\"0000\")","v":"0660"}]
["A",661,661,"B","AJOTE","RAJOURI","ZO RAJOURI CLSTR POONCH","AJJOTE","RAJ","RAJPOO","JAKA0AJJOTE","AJOTE","POONCH","POONCH","HAVELI","J&K",null,"JAMMU",185101,185051110,6320576,32.726599999999998,74.857029999999995,null,{"$f":"TEXT(branch332[[#This Row],[Sol Id]],\"0000\")","v":"0661"}]
["A",662,662,"B","SHERI-KASHMIR BRIDGE","RAJOURI","ZO RAJOURI CLSTR POONCH","SKBRIG","RAJ","RAJPOO","JAKA0SKBRIG","SHER-I-KASHMIR BRIDGE","POONCH","POONCH","HAVELI","J&K",null,"JAMMU",185101,185051111,6320585,33.761600000000001,74.096069999999997,null,{"$f":"TEXT(branch332[[#This Row],[Sol Id]],\"0000\")","v":"0662"}]
["A",663,663,"B","MUNAND GUFFAN","ANANTNAG","ZO ANANTNAG CLSTR KULGAM","MUNAND","ANT","ANTKUL","JAKA0MUNAND","MUNAND GUFFAN MAIN VILLAGE","KULGAM","KULGAM","YARIPORA","J&K",null,"KASHMIR",192232,192051301,6320586,33.738779999999998,74.963139999999996,null,{"$f":"TEXT(branch332[[#This Row],[Sol Id]],\"0000\")","v":"0663"}]
["A",664,664,"B","SALIA","ANANTNAG","ZO ANANTNAG CLSTR -2 ANANTNAG","SAALIA","ANT","ANTCL2","JAKA0SAALIA","SAALIA VILLAGE","ANANTNAG","ANANTNAG","ANANTNAG","J&K",null,"KASHMIR",192129,192051054,6320595,33.824559999999998,75.26361,null,{"$f":"TEXT(branch332[[#This Row],[Sol Id]],\"0000\")","v":"0664"}]
["A",665,665,"B","PAZALPORA","BARAMULLA","ZO BARAMULLA CLSTR BANDIPORA","PAZAAL","BAR","BARBAN","JAKA0PAZAAL","PAZALPORA MAIN","BANDIPORA","BANDIPORA","BANDIPORA","J&K",null,"KASHMIR",193502,193051405,6320579,34.363019999999999,74.462450000000004,null,{"$f":"TEXT(branch332[[#This Row],[Sol Id]],\"0000\")","v":"0665"}]
["A",666,666,"B","KHUMRIYAL","BARAMULLA","ZO BARAMULLA CLSTR KUPWARA","KHUMRI","BAR","BARKUP","JAKA0KHUMRI","KHUMRIYAL MAIN","KUPWARA","KUPWARA","KUPWARA","J&K",null,"KASHMIR",193222,193051226,6320694,34.472189999999998,74.265590000000003,null,{"$f":"TEXT(branch332[[#This Row],[Sol Id]],\"0000\")","v":"0666"}]
["A",667,667,"B","ZACHALDARA","BARAMULLA","ZO BARAMULLA CLSTR KUPWARA","ZACHAL","BAR","BARKUP","JAKA0ZACHAL","ZACHALDARA , HANDWARA","KUPWARA","KUPWARA","ZACHALDARA","J&K",null,"KASHMIR",193221,193051222,6320620,34.402239999999999,74.195920000000001,null,{"$f":"TEXT(branch332[[#This Row],[Sol Id]],\"0000\")","v":"0667"}]
["A",668,668,"B","CHITRAKOTE","BARAMULLA","ZO BARAMULLA CLSTR KUPWARA","CHITER","BAR","BARKUP","JAKA0CHITER","TANGDAR","KUPWARA","KUPWARA","TANGDAR","J&K",null,"KASHMIR",193225,193051223,6320654,34.372129999999999,73.801199999999994,null,{"$f":"TEXT(branch332[[#This Row],[Sol Id]],\"0000\")","v":"0668"}]
["A",669,669,"B","JAGTI TOWNSHIP","JAMMU","ZO JAMMU CLSTR -2 JAMMU","JAGTEE","JAM","JAMCL2","JAKA0JAGTEE","JAKH TOWNSHIP, NAGROTA","JAMMU","JAMMU","NAGROTA","J&K",null,"JAMMU",181221,180051072,6320701,32.79833,74.91516,null,{"$f":"TEXT(branch332[[#This Row],[Sol Id]],\"0000\")","v":"0669"}]
["A",670,670,"B","MARH","JAMMU","ZO JAMMU CLSTR -3 JAMMU","MARHJM","JAM","JAMCL3","JAKA0MARHJM","MARH MAIN MARKET","JAMMU","JAMMU","MARH","J&K",null,"JAMMU",180002,180051077,6320568,32.75244,74.700050000000005,null,{"$f":"TEXT(branch332[[#This Row],[Sol Id]],\"0000\")","v":"0670"}]
["A",671,671,"B","JOURIAN","JAMMU","ZO JAMMU CLSTR -3 JAMMU","JORIAN","JAM","JAMCL3","JAKA0JORIAN","INDRI-PATTAN ROAD","JAMMU","JAMMU","JOURIAN","J&K",null,"JAMMU",181202,180051080,6320603,32.899520000000003,74.742490000000004,null,{"$f":"TEXT(branch332[[#This Row],[Sol Id]],\"0000\")","v":"0671"}]
["A",672,672,"B","AMB GROTA","JAMMU","ZO JAMMU CLSTR -3 JAMMU","AMGROT","JAM","JAMCL3","JAKA0AMGROT","AMBGROTA","JAMMU","JAMMU","BHALWAL","J&K",null,"JAMMU",181122,180051076,6320575,32.79833,74.91516,null,{"$f":"TEXT(branch332[[#This Row],[Sol Id]],\"0000\")","v":"0672"}]
["A",673,673,"B","NOWABAD(SUNJAWAN)","JAMMU","ZO JAMMU CLSTR -1 JAMMU","NOWBAD","JAM","JAMCL1","JAKA0NOWBAD","NOWABAD SUNJAWAN","JAMMU","JAMMU","BAHU","J&K",null,"JAMMU",180011,180051075,6320867,32.724409999999999,74.852180000000004,null,{"$f":"TEXT(branch332[[#This Row],[Sol Id]],\"0000\")","v":"0673"}]
["A",674,674,"B","SURARA","KATHUA","ZO KATHUA CLSTR SAMBA","SURARA","KAT","KATSAM","JAKA0SURARA","SURARA MAIN","SAMBA","SAMBA","GHAGWAL","J&K",null,"JAMMU",184141,180051079,6320569,32.556530000000002,75.225750000000005,null,{"$f":"TEXT(branch332[[#This Row],[Sol Id]],\"0000\")","v":"0674"}]
["A",675,675,"B","RAJBAGH","KATHUA","ZO KATHUA CLSTR KATHUA","RAJBAG","KAT","KATKAT","JAKA0RAJBAG","RAJBAGH , VPO RAJBAGH","KATHUA","KATHUA","KATHUA","J&K",null,"JAMMU",184143,184051026,6320710,null,null,null,{"$f":"TEXT(branch332[[#This Row],[Sol Id]],\"0000\")","v":"0675"}]
["A",676,676,"B","DAYALACHAK","KATHUA","ZO KATHUA CLSTR KATHUA","DAYAAL","KAT","KATKAT","JAKA0DAYAAL","DAYALACHAK","KATHUA","KATHUA","HIRANAGAR","J&K",null,"JAMMU",184144,184051025,6320700,null,null,null,{"$f":"TEXT(branch332[[#This Row],[Sol Id]],\"0000\")","v":"0676"}]
["A",677,677,"EC","EC - COMMERCIAL TAXES DEPARTMENT",null,null,"COMTAX","SGR","SGRCL2","JAKA0COMTAX",null,null,null,null,null,null,null,null,null,null,null,null,null,{"$f":"TEXT(branch332[[#This Row],[Sol Id]],\"0000\")","v":"0677"}]
["A",678,678,"B","MANSAR","KATHUA","ZO KATHUA CLSTR SAMBA","MANSAR","KAT","KATSAM","JAKA0MANSAR","MANSAR MAIN MARKET","SAMBA","SAMBA","SAMBA","J&K",null,"JAMMU",184121,180051090,6320699,32.953659999999999,75.093239999999994,null,{"$f":"TEXT(branch332[[#This Row],[Sol Id]],\"0000\")","v":"0678"}]
["A",679,679,"B","CAMP GOLE GUJRAL","JAMMU","ZO JAMMU CLSTR -3 JAMMU","GUJRAL","JAM","JAMCL3","JAKA0GUJRAL","GOLE GUJRAL","JAMMU","JAMMU","MARH","J&K",null,"JAMMU",180002,180051078,6320829,32.726599999999998,74.857029999999995,null,{"$f":"TEXT(branch332[[#This Row],[Sol Id]],\"0000\")","v":"0679"}]
["A",680,680,"B","DABLEHAR","JAMMU","ZO JAMMU CLSTR -2 JAMMU","DABHAR","JAM","JAMCL2","JAKA0DABHAR","VPO DABLEHAR TEHSIL R. S. PURA","JAMMU","JAMMU","SUCHETGARH","J&K",null,"JAMMU",181111,180051082,6320572,32.726599999999998,74.857029999999995,null,{"$f":"TEXT(branch332[[#This Row],[Sol Id]],\"0000\")","v":"0680"}]
["A",682,682,"B","CHATTABAL","SRINAGAR","ZO SRINAGAR CLSTR -3 SRINAGAR","CHTBAL","SGR","SGRCL3","JAKA0CHTBAL","CHATTABAL","SRINAGAR","SRINAGAR","SHALTENG","J&K",null,"KASHMIR",190010,190051090,6320570,34.087339999999998,74.790090000000006,null,{"$f":"TEXT(branch332[[#This Row],[Sol Id]],\"0000\")","v":"0682"}]
["A",683,683,"B","LAL CHOWK KARGIL","LADAKH","ZO LADAKH CLSTR KARGIL","KARLAL","LAD","LADKAR","JAKA0KARLAL","LAL CHOWK KARGIL","KARGIL","KARGIL","KARGIL","LADAKH",null,"LADAKH",194103,194051021,6320617,34.559950000000001,76.126099999999994,null,{"$f":"TEXT(branch332[[#This Row],[Sol Id]],\"0000\")","v":"0683"}]
["A",684,684,"B","KALIBARI","KATHUA","ZO KATHUA CLSTR KATHUA","KALBAR","KAT","KATKAT","JAKA0KALBAR","KALIBARI","KATHUA","KATHUA","KATHUA","J&K",null,"JAMMU",184101,184051027,6320717,null,null,null,{"$f":"TEXT(branch332[[#This Row],[Sol Id]],\"0000\")","v":"0684"}]
["A",685,685,"B","UDHEYWALA","JAMMU","ZO JAMMU CLSTR -3 JAMMU","UDHWAL","JAM","JAMCL3","JAKA0UDHWAL","UDHEYWALA MAIN","JAMMU","JAMMU","JAMMU (NORTH)","J&K",null,"JAMMU",180002,180051081,6320810,32.74539,74.811390000000003,null,{"$f":"TEXT(branch332[[#This Row],[Sol Id]],\"0000\")","v":"0685"}]
["A",686,686,"B","MULBEK","LADAKH","ZO LADAKH CLSTR KARGIL","MULBIK","LAD","LADKAR","JAKA0MULBIK","MULBEK MAIN MARKET","KARGIL","KARGIL","SHERGOLE","LADAKH",null,"LADAKH",194109,194051023,6320704,34.37791,76.368070000000003,null,{"$f":"TEXT(branch332[[#This Row],[Sol Id]],\"0000\")","v":"0686"}]
["A",767,767,"B","MOUNGRI","UDHAMPUR","ZO UDHAMPUR CLSTR UDHAMPUR","MONGER","UDM","UDMUDM","JAKA0MONGER","TEHSIL UDHAMPUR","UDHAMPUR","UDHAMPUR","MOUNGRI","J&K",null,"JAMMU",182125,182051025,6320736,33.089089999999999,75.075699999999998,null,{"$f":"TEXT(branch332[[#This Row],[Sol Id]],\"0000\")","v":"0767"}]
["A",768,768,"B","GHORDI","UDHAMPUR","ZO UDHAMPUR CLSTR UDHAMPUR","GHORDI","UDM","UDMUDM","JAKA0GHORDI","TEHSIL RAMNAGAR","UDHAMPUR","UDHAMPUR","RAMNAGAR","J&K",null,"JAMMU",182124,182051023,6320823,32.875549999999997,75.304990000000004,null,{"$f":"TEXT(branch332[[#This Row],[Sol Id]],\"0000\")","v":"0768"}]
["A",769,769,"B","PEERI","RAJOURI","ZO RAJOURI CLSTR RAJOURI","PEERII","RAJ","RAJRAJ","JAKA0PEERII","TEHSIL-KOTRANKA","RAJOURI","RAJOURI","KOTERANKA","J&K",null,"JAMMU",185132,185051019,6320719,33.133130000000001,74.373410000000007,null,{"$f":"TEXT(branch332[[#This Row],[Sol Id]],\"0000\")","v":"0769"}]
["A",770,770,"B","FASLABAD","RAJOURI","ZO RAJOURI CLSTR POONCH","FASBAD","RAJ","RAJPOO","JAKA0FASBAD","TEHSIL-SURANKOTE","POONCH","POONCH","SURANKOTE","J&K",null,"JAMMU",185121,185051114,6320822,33.617089999999997,74.310860000000005,null,{"$f":"TEXT(branch332[[#This Row],[Sol Id]],\"0000\")","v":"0770"}]
["A",771,771,"B","FRISAL","ANANTNAG","ZO ANANTNAG CLSTR KULGAM","FRISAL","ANT","ANTKUL","JAKA0FRISAL","FRISAL","KULGAM","KULGAM","FRISAL","J&K",null,"KASHMIR",192232,192051308,6320726,33.700159999999997,74.993499999999997,null,{"$f":"TEXT(branch332[[#This Row],[Sol Id]],\"0000\")","v":"0771"}]
["A",772,772,"B","HAKURA BADASGAM","ANANTNAG","ZO ANANTNAG CLSTR -1 ANANTNAG","HAKURA","ANT","ANTCL1","JAKA0HAKURA","HAKURA BADASGAM, NEAR JAMIA MASJID","ANANTNAG","ANANTNAG","DOORU","J&K",null,"KASHMIR",192211,192051065,6320733,33.650210000000001,75.236000000000004,null,{"$f":"TEXT(branch332[[#This Row],[Sol Id]],\"0000\")","v":"0772"}]
["A",773,773,"B","SNM HOSPITAL LEH","LADAKH","ZO LADAKH CLSTR LEH","SNMLEH","LAD","LADLEH","JAKA0SNMLEH","NEAR SNM HOSPITAL LEH","LEH","LEH","LEH","LADAKH",null,"LADAKH",194101,194051026,6320724,34.152760000000001,77.580619999999996,null,{"$f":"TEXT(branch332[[#This Row],[Sol Id]],\"0000\")","v":"0773"}]
["A",774,774,"B","KANIDAJAN","BUDGAM","ZO BUDGAM CLSTR -2 BUDGAM","KANIDA","BUD","BUDCL2","JAKA0KANIDA","KANIDAJAN","BUDGAM","BUDGAM","CHRAR I SHARIEF","J&K",null,"KASHMIR",191112,191051036,6320735,34.020000000000003,74.72,null,{"$f":"TEXT(branch332[[#This Row],[Sol Id]],\"0000\")","v":"0774"}]
["A",775,775,"B","HOSPITAL ROAD CHADOORA","BUDGAM","ZO BUDGAM CLSTR -2 BUDGAM","CHADOO","BUD","BUDCL2","JAKA0CHADOO","TEHSIL CHADOORA BUDGAM","BUDGAM","BUDGAM","CHADURA","J&K",null,"KASHMIR",191113,191051035,6320746,33.943069999999999,74.799340000000001,null,{"$f":"TEXT(branch332[[#This Row],[Sol Id]],\"0000\")","v":"0775"}]
["A",776,776,"B","RATSUN","BUDGAM","ZO BUDGAM CLSTR -1 BUDGAM","RATSUN","BUD","BUDCL1","JAKA0RATSUN","RATSUN MAIN VILLAGE","BUDGAM","BUDGAM","BEERWA","J&K",null,"KASHMIR",193401,191051040,6320750,34.006070000000001,74.585139999999996,null,{"$f":"TEXT(branch332[[#This Row],[Sol Id]],\"0000\")","v":"0776"}]
["A",777,777,"B","SSI LAL CHOWK SRINAGR","SRINAGAR","ZO SRINAGAR CLSTR -1 SRINAGAR","SSISGR","SGR","SGRCL1","JAKA0SSISGR","NEAR GANTA GHAR","SRINAGAR","SRINAGAR","SRINAGAR KHAS","J&K",null,"KASHMIR",190001,190051059,6320388,34.071809999999999,74.810519999999997,null,{"$f":"TEXT(branch332[[#This Row],[Sol Id]],\"0000\")","v":"0777"}]
["A",778,778,"B","KANIHAMA NARBAL","BUDGAM","ZO BUDGAM CLSTR -1 BUDGAM","KANIHA","BUD","BUDCL1","JAKA0KANIHA","NARBAL","BUDGAM","BUDGAM","NARBAL","J&K",null,"KASHMIR",193401,191051041,6320756,34.060299999999998,74.370810000000006,null,{"$f":"TEXT(branch332[[#This Row],[Sol Id]],\"0000\")","v":"0778"}]
["A",779,779,"B","MALROO","SRINAGAR","ZO SRINAGAR CLSTR -3 SRINAGAR","MALROO","SGR","SGRCL3","JAKA0MALROO","MALROO MAIN","SRINAGAR","SRINAGAR","SRINAGAR","J&K",null,"KASHMIR",190017,191051097,6320747,34.109220000000001,74.74539,null,{"$f":"TEXT(branch332[[#This Row],[Sol Id]],\"0000\")","v":"0779"}]
["A",781,781,"B","ARAKHOSHIPORA","ANANTNAG","ZO ANANTNAG CLSTR -1 ANANTNAG","ARAKHO","ANT","ANTCL1","JAKA0ARAKHO","MAIN MARKET ARAKHOSHIPORA","ANANTNAG","ANANTNAG","DOORU","J&K",null,"KASHMIR",192211,192051067,6320739,33.73113,75.148700000000005,null,{"$f":"TEXT(branch332[[#This Row],[Sol Id]],\"0000\")","v":"0781"}]
["A",782,782,"B","TEELWANI","ANANTNAG","ZO ANANTNAG CLSTR -2 ANANTNAG","TEELWA","ANT","ANTCL2","JAKA0TEELWA","NEAR JAMIA MASJID","ANANTNAG","ANANTNAG","SHANGUS","J&K",null,"KASHMIR",192201,192051066,6320738,33.710290000000001,75.238839999999996,null,{"$f":"TEXT(branch332[[#This Row],[Sol Id]],\"0000\")","v":"0782"}]
["A",783,783,"B","WACHI","PULWAMA","ZO PULWAMA CLSTR SHOPIAN","WACHII","PUL","PULSHO","JAKA0WACHII","NEAR ZIYARAT SHAREEF SHAHI- HAMDAN WACHI","SHOPIAN","SHOPIAN","ZAINPORA","J&K",null,"KASHMIR",192305,192051212,6320760,33.799230000000001,74.034480000000002,null,{"$f":"TEXT(branch332[[#This Row],[Sol Id]],\"0000\")","v":"0783"}]
["A",784,784,"B","TEMISGAM","LADAKH","ZO LADAKH CLSTR LEH","TEMGAM","LAD","LADLEH","JAKA0TEMGAM","TEMISGAM MAIN , BLOCK KHALTSI","LEH","LEH","KHALTSI","LADAKH",null,"LADAKH",194101,194051028,6320749,34.323970000000003,76.988519999999994,null,{"$f":"TEXT(branch332[[#This Row],[Sol Id]],\"0000\")","v":"0784"}]
["A",785,785,"B","TURTUK","LADAKH","ZO LADAKH CLSTR LEH","TURTUK","LAD","LADLEH","JAKA0TURTUK","TURTUK, TEHSIL UDHAMPUR","LEH","LEH","DISKIT","LADAKH",null,"LADAKH",182126,194051027,6320743,34.848460000000003,76.830500000000001,null,{"$f":"TEXT(branch332[[#This Row],[Sol Id]],\"0000\")","v":"0785"}]
["A",786,786,"B","BALETAR(SUMB)","KATHUA","ZO KATHUA CLSTR SAMBA","BALETA","KAT","KATSAM","JAKA0BALETA","TEHSIL RAMNAGAR","SAMBA","SAMBA","SAMBA","J&K",null,"JAMMU",184121,180051093,6320728,32.552160000000001,75.218739999999997,null,{"$f":"TEXT(branch332[[#This Row],[Sol Id]],\"0000\")","v":"0786"}]
["A",787,787,"B","MUTHI GOAN","JAMMU","ZO JAMMU CLSTR -3 JAMMU","MUTHII","JAM","JAMCL3","JAKA0MUTHII","NEAT POST OFFICE MUTHI","JAMMU","JAMMU","JAMMU (NORTH)","J&K",null,"JAMMU",181205,180051100,6320763,32.758319999999998,74.814160000000001,null,{"$f":"TEXT(branch332[[#This Row],[Sol Id]],\"0000\")","v":"0787"}]
["A",788,788,"B","GURHA SALATHIA","KATHUA","ZO KATHUA CLSTR SAMBA","GURSLA","KAT","KATSAM","JAKA0GURSLA","GURHA SALATHIA","SAMBA","SAMBA","VIJAYPUR","J&K",null,"JAMMU",181143,180051092,6320766,32.605359999999997,75.042500000000004,null,{"$f":"TEXT(branch332[[#This Row],[Sol Id]],\"0000\")","v":"0788"}]
["A",789,789,"B","GURHA KALYAL","KATHUA","ZO KATHUA CLSTR KATHUA","GURKAL","KAT","KATKAT","JAKA0GURKAL","TEHSIL BILLAWAR","KATHUA","KATHUA","RAMKOTE","J&K",null,"JAMMU",184203,184051030,6320748,32.642020000000002,75.49127,null,{"$f":"TEXT(branch332[[#This Row],[Sol Id]],\"0000\")","v":"0789"}]
["A",790,790,"B","MAKHANPUR","JAMMU","ZO JAMMU CLSTR -2 JAMMU","MAKHAN","JAM","JAMCL2","JAKA0MAKHAN","MAKHANPUR , TEHSIL BISHNAH","JAMMU","JAMMU","BISHNAH","J&K",null,"JAMMU",181132,180051096,6320718,32.640389999999996,74.791899999999998,null,{"$f":"TEXT(branch332[[#This Row],[Sol Id]],\"0000\")","v":"0790"}]
["A",791,791,"B","SAJWAL","JAMMU","ZO JAMMU CLSTR -3 JAMMU","SAJWAL","JAM","JAMCL3","JAKA0SAJWAL","P. O. PARGWAL TEHSIL AKHNOOR","JAMMU","JAMMU","PARGWAL","J&K",null,"JAMMU",181207,180051098,6320752,32.75826,74.537540000000007,null,{"$f":"TEXT(branch332[[#This Row],[Sol Id]],\"0000\")","v":"0791"}]
["A",792,792,"B","GURHA SINGHU","JAMMU","ZO JAMMU CLSTR -3 JAMMU","GURAHH","JAM","JAMCL3","JAKA0GURAHH","VPO SHAMA CHAK, TEHSIL JAMMU","JAMMU","JAMMU","MARH","J&K",null,"JAMMU",181206,180051095,6320744,32.829790000000003,74.750540000000001,null,{"$f":"TEXT(branch332[[#This Row],[Sol Id]],\"0000\")","v":"0792"}]
["A",793,793,"B","PARLADHPUR","JAMMU","ZO JAMMU CLSTR -3 JAMMU","PARLDP","JAM","JAMCL3","JAKA0PARLDP","P. O. MANDAL","JAMMU","JAMMU","MANDAL","J&K",null,"JAMMU",180003,180051097,6320734,32.69455,74.771150000000006,null,{"$f":"TEXT(branch332[[#This Row],[Sol Id]],\"0000\")","v":"0793"}]
["A",794,794,"B","VIJAYPUR KOTHEY","KATHUA","ZO KATHUA CLSTR SAMBA","VIJAYP","KAT","KATSAM","JAKA0VIJAYP","RAMGARH ROAD, P. O VIJAYPUR","SAMBA","SAMBA","VIJAYPUR","J&K",null,"JAMMU",184120,180051099,6320815,34.149090000000001,76.825969999999998,null,{"$f":"TEXT(branch332[[#This Row],[Sol Id]],\"0000\")","v":"0794"}]
["A",795,795,"B","KHOUR SALARIAN","KATHUA","ZO KATHUA CLSTR SAMBA","KHOURR","KAT","KATSAM","JAKA0KHOURR","P. O. NANADPUR, TEHSIL SAMBA","SAMBA","SAMBA","RAMGARH","J&K",null,"JAMMU",181141,180051094,6320729,null,null,null,{"$f":"TEXT(branch332[[#This Row],[Sol Id]],\"0000\")","v":"0795"}]
["A",796,796,"B","JANU","KATHUA","ZO KATHUA CLSTR KATHUA","JANKAT","KAT","KATKAT","JAKA0JANKAT","TEHSIL BASHOLI","KATHUA","KATHUA","BASHOLI","J&K",null,"JAMMU",184201,184051032,6320762,32.626690000000004,75.815770000000001,null,{"$f":"TEXT(branch332[[#This Row],[Sol Id]],\"0000\")","v":"0796"}]
["A",797,797,"B","PATHWAL","KATHUA","ZO KATHUA CLSTR KATHUA","PATHWA","KAT","KATKAT","JAKA0PATHWA","P. O. DAYALACHAK, TEHSIL HIRANAGAR","KATHUA","KATHUA","HIRANAGAR","J&K",null,"JAMMU",184144,184051029,6320745,null,null,null,{"$f":"TEXT(branch332[[#This Row],[Sol Id]],\"0000\")","v":"0797"}]
["A",798,798,"B","KEERIAN","KATHUA","ZO KATHUA CLSTR KATHUA","KEERAN","KAT","KATKAT","JAKA0KEERAN","KEERIAN MAIN MARKET , TEHSIL KATHUA","KATHUA","KATHUA","KATHUA","J&K",null,"JAMMU",184152,184051031,6320742,null,null,null,{"$f":"TEXT(branch332[[#This Row],[Sol Id]],\"0000\")","v":"0798"}]
["A",799,799,"B","SMM RAMNAGAR","UDHAMPUR","ZO UDHAMPUR CLSTR UDHAMPUR","RAMNAM","UDM","UDMUDM","JAKA0RAMNAM","TEHSIL RAMNAGAR","UDHAMPUR","UDHAMPUR","RAMNAGAR","J&K",null,"JAMMU",182122,182051026,6320741,null,null,null,{"$f":"TEXT(branch332[[#This Row],[Sol Id]],\"0000\")","v":"0799"}]
["A",800,800,"B","JAGANOO MORE","UDHAMPUR","ZO UDHAMPUR CLSTR UDHAMPUR","JAGMOR","UDM","UDMUDM","JAKA0JAGMOR","BLOCK DISKIT","UDHAMPUR","UDHAMPUR","UDHAMPUR","J&K",null,"JAMMU",194401,182051027,6320791,32.51464,75.090369999999993,null,{"$f":"TEXT(branch332[[#This Row],[Sol Id]],\"0000\")","v":"0800"}]
["A",801,801,"B","SAJ RAJOURI","RAJOURI","ZO RAJOURI CLSTR RAJOURI","SAJRAJ","RAJ","RAJRAJ","JAKA0SAJRAJ","TEHSIL RAJOURI","RAJOURI","RAJOURI","THANAMANDI","J&K",null,"JAMMU",185212,185051022,6320737,33.466900000000003,74.335539999999995,null,{"$f":"TEXT(branch332[[#This Row],[Sol Id]],\"0000\")","v":"0801"}]
["A",802,802,"B","BUS STAND RAJOURI","RAJOURI","ZO RAJOURI CLSTR RAJOURI","BUSRAJ","RAJ","RAJRAJ","JAKA0BUSRAJ","TEHSIL RAJOURI","RAJOURI","RAJOURI","RAJOURI","J&K",null,"JAMMU",185132,185051020,6320813,33.366160000000001,74.312740000000005,null,{"$f":"TEXT(branch332[[#This Row],[Sol Id]],\"0000\")","v":"0802"}]
["A",803,803,"B","MARHOTE","RAJOURI","ZO RAJOURI CLSTR POONCH","MARHOT","RAJ","RAJPOO","JAKA0MARHOT","MARHOTE , TEHSIL SURANKOTE","POONCH","POONCH","SURANKOTE","J&K",null,"JAMMU",185121,185051116,6320773,33.64817,74.299980000000005,null,{"$f":"TEXT(branch332[[#This Row],[Sol Id]],\"0000\")","v":"0803"}]
["A",804,804,"B","KHEORA","RAJOURI","ZO RAJOURI CLSTR RAJOURI","KHEORA","RAJ","RAJRAJ","JAKA0KHEORA","TEHSIL RAJOURI","RAJOURI","RAJOURI","RAJOURI","J&K",null,"JAMMU",185131,185051021,6320732,33.389049999999997,74.314019999999999,null,{"$f":"TEXT(branch332[[#This Row],[Sol Id]],\"0000\")","v":"0804"}]
["A",805,805,"B","MALPORA","BUDGAM","ZO BUDGAM CLSTR -2 BUDGAM","MALPOR","BUD","BUDCL2","JAKA0MALPOR","MALPORA MAIN , NAGGAM","BUDGAM","BUDGAM","CHRAR I SHARIEF","J&K",null,"KASHMIR",191113,191051038,6320751,33.886659999999999,74.813429999999997,null,{"$f":"TEXT(branch332[[#This Row],[Sol Id]],\"0000\")","v":"0805"}]
["A",806,806,"B","KENIHAMA","BUDGAM","ZO BUDGAM CLSTR -2 BUDGAM","KENHAM","BUD","BUDCL2","JAKA0KENHAM","KENIHAMA VILLAGE , NOWGAM","BUDGAM","BUDGAM","BAGATI KANIPORA","J&K",null,"KASHMIR",190015,191051037,6320792,34.016719999999999,74.846329999999995,null,{"$f":"TEXT(branch332[[#This Row],[Sol Id]],\"0000\")","v":"0806"}]
["A",807,807,"B","SILIGAM","ANANTNAG","ZO ANANTNAG CLSTR -2 ANANTNAG","SILIGM","ANT","ANTCL2","JAKA0SILIGM","SILIGAM, PAHALGAM ROAD","ANANTNAG","ANANTNAG","PAHALGAM","J&K",null,"KASHMIR",192129,192051068,6320754,33.827039999999997,75.258480000000006,null,{"$f":"TEXT(branch332[[#This Row],[Sol Id]],\"0000\")","v":"0807"}]
["A",808,808,"B","CHOWGAM","ANANTNAG","ZO ANANTNAG CLSTR KULGAM","CHAGAM","ANT","ANTKUL","JAKA0CHAGAM","CHOWGAM","KULGAM","KULGAM","DEVSAR","J&K",null,"KASHMIR",1922231,192051309,6320765,33.617919999999998,75.117419999999996,null,{"$f":"TEXT(branch332[[#This Row],[Sol Id]],\"0000\")","v":"0808"}]
["A",810,810,"B","HYGAM SOPORE","BARAMULLA","ZO BARAMULLA CLSTR SOPORE","HYGAAM","BAR","BARSOP","JAKA0HYGAAM","HYGAM SOPORE","BARAMULLA","BARAMULLA","KHOIE PANZIPORA","J&K",null,"KASHMIR",193201,193051114,6320755,34.246209999999998,74.502650000000003,null,{"$f":"TEXT(branch332[[#This Row],[Sol Id]],\"0000\")","v":"0810"}]
["M",811,811,"B","SECUNDERABAD (MERGED WITH 0317)",null,null,"SEABAD","MUM","NA","JAKA0SEABAD",null,null,null,null,null,null,null,null,null,null,null,null,null,{"$f":"TEXT(branch332[[#This Row],[Sol Id]],\"0000\")","v":"0811"}]
["A",812,812,"B","LADOORA RAFIABAD","BARAMULLA","ZO BARAMULLA CLSTR SOPORE","LADORA","BAR","BARSOP","JAKA0LADORA","LADOORA RAFIABAD, BLOCK SOPORE","BARAMULLA","BARAMULLA","WATERGAM","J&K",null,"KASHMIR",193201,193051042,6320783,34.273699999999998,74.392470000000003,null,{"$f":"TEXT(branch332[[#This Row],[Sol Id]],\"0000\")","v":"0812"}]
["A",813,813,"EC","EC - MILITARY CANTONMENT BARAMULLA",null,null,"ARMYCO","BAR","BARBAR","JAKA0ARMYCO",null,null,null,null,null,null,null,null,null,null,null,null,null,{"$f":"TEXT(branch332[[#This Row],[Sol Id]],\"0000\")","v":"0813"}]
["A",814,814,"B","JANGLAT MANDI ANANTNAG","ANANTNAG","ZO ANANTNAG CLSTR -1 ANANTNAG","JANGLA","ANT","ANTCL1","JAKA0JANGLA","BLOCK ACHABAL","ANANTNAG","ANANTNAG","ANANTNAG","J&K",null,"KASHMIR",192101,192051069,6320821,33.726660000000003,75.150949999999995,null,{"$f":"TEXT(branch332[[#This Row],[Sol Id]],\"0000\")","v":"0814"}]
["A",815,815,"B","NILLOW","ANANTNAG","ZO ANANTNAG CLSTR KULGAM","NILLOW","ANT","ANTKUL","JAKA0NILLOW","NILLOW","KULGAM","KULGAM","KULGAM","J&K",null,"KASHMIR",192231,192051310,6320784,33.664479999999998,74.951570000000004,null,{"$f":"TEXT(branch332[[#This Row],[Sol Id]],\"0000\")","v":"0815"}]
["A",816,816,"B","CHITRAGAM","PULWAMA","ZO PULWAMA CLSTR SHOPIAN","CHITRA","PUL","PULSHO","JAKA0CHITRA","TEHSIL SHOPIAN","SHOPIAN","SHOPIAN","CHITRAGAM","J&K",null,"KASHMIR",191201,192051131,6320796,33.769120000000001,74.976050000000001,null,{"$f":"TEXT(branch332[[#This Row],[Sol Id]],\"0000\")","v":"0816"}]
["A",817,817,"B","KUMDALAN SHOPIAN","PULWAMA","ZO PULWAMA CLSTR SHOPIAN","KUMDAL","PUL","PULSHO","JAKA0KUMDAL","KUMDALAN SHOPIAN","SHOPIAN","SHOPIAN","SHOPIAN","J&K",null,"KASHMIR",192303,192051213,6320785,33.709229999999998,74.885339999999999,null,{"$f":"TEXT(branch332[[#This Row],[Sol Id]],\"0000\")","v":"0817"}]
["A",818,818,"B","CHERSOO","PULWAMA","ZO PULWAMA CLSTR PULWAMA","CHERSO","PUL","PULPUL","JAKA0CHERSO","CHERSOO PULWAMA","PULWAMA","PULWAMA","AWANTIPORA","J&K",null,"KASHMIR",192122,192051136,6320863,null,null,null,{"$f":"TEXT(branch332[[#This Row],[Sol Id]],\"0000\")","v":"0818"}]
["A",819,819,"B","TARATHPORA","BARAMULLA","ZO BARAMULLA CLSTR KUPWARA","TARATH","BAR","BARKUP","JAKA0TARATH","TARATHPORA , BLOCK RAMHAL","KUPWARA","KUPWARA","TARATHPORA (RAMHALL)","J&K",null,"KASHMIR",193224,193051228,6320780,34.465760000000003,74.115459999999999,null,{"$f":"TEXT(branch332[[#This Row],[Sol Id]],\"0000\")","v":"0819"}]
["A",820,820,"B","KALANTRA PAYEEN","BARAMULLA","ZO BARAMULLA CLSTR BARAMULLA","KALANT","BAR","BARBAR","JAKA0KALANT","BLOCK WAGOORA","BARAMULLA","BARAMULLA","KREERI","J&K",null,"KASHMIR",193101,193051044,6320777,34.140259999999998,74.412279999999996,null,{"$f":"TEXT(branch332[[#This Row],[Sol Id]],\"0000\")","v":"0820"}]
["A",821,821,"B","DEVAR","BARAMULLA","ZO BARAMULLA CLSTR KUPWARA","DEVAAR","BAR","BARKUP","JAKA0DEVAAR","BLOCK SOGAM","KUPWARA","KUPWARA","SOGAM (LOLAB)","J&K",null,"KASHMIR",193223,193051229,6320820,34.526179999999997,74.25461,null,{"$f":"TEXT(branch332[[#This Row],[Sol Id]],\"0000\")","v":"0821"}]
["A",822,822,"B","HALMATPORA","BARAMULLA","ZO BARAMULLA CLSTR KUPWARA","HALMAT","BAR","BARKUP","JAKA0HALMAT","HALMATPORA","KUPWARA","KUPWARA","KUPWARA","J&K",null,"KASHMIR",193222,193051230,6320786,34.571040000000004,74.242519999999999,null,{"$f":"TEXT(branch332[[#This Row],[Sol Id]],\"0000\")","v":"0822"}]
["A",823,823,"B","SONIUM","BARAMULLA","ZO BARAMULLA CLSTR BARAMULLA","SONIUM","BAR","BARBAR","JAKA0SONIUM","SONIUM, BLOCK KUNZER","BARAMULLA","BARAMULLA","KUNZER","J&K",null,"KASHMIR",193404,193051043,6320787,34.15645,74.540310000000005,null,{"$f":"TEXT(branch332[[#This Row],[Sol Id]],\"0000\")","v":"0823"}]
["A",824,824,"B","AHAMSHARIEF","BARAMULLA","ZO BARAMULLA CLSTR BANDIPORA","AHMSHA","BAR","BARBAN","JAKA0AHMSHA","AHAMSHARIEF","BANDIPORA","BANDIPORA","BANDIPORA","J&K",null,"KASHMIR",193502,193051410,6320788,34.448700000000002,74.662729999999996,null,{"$f":"TEXT(branch332[[#This Row],[Sol Id]],\"0000\")","v":"0824"}]
["A",825,825,"B","BEBROTA","DODA","ZO DODA CLSTR RAMBAN","BEBROT","DOD","DODRAM","JAKA0BEBROT","TEHSIL DODA","DODA","DODA","RAJGARH","J&K",null,"JAMMU",182148,182051127,6320801,33.45852,75.642880000000005,null,{"$f":"TEXT(branch332[[#This Row],[Sol Id]],\"0000\")","v":"0825"}]
["A",826,826,"B","DUDWAR","DODA","ZO DODA CLSTR DODA","DUDWAR","DOD","DODDOD","JAKA0DUDWAR","GANDOH BHALESA, TEHSIL GANDOH","DODA","DODA","BHALESSA-GANDOH","J&K",null,"JAMMU",182203,182051126,6320809,32.987229999999997,75.971059999999994,null,{"$f":"TEXT(branch332[[#This Row],[Sol Id]],\"0000\")","v":"0826"}]
["A",827,827,"B","KUD","UDHAMPUR","ZO UDHAMPUR CLSTR UDHAMPUR","KUDJAM","UDM","UDMUDM","JAKA0KUDJAM","KUD MAIN MARKET, TEHSIL CHENANI","UDHAMPUR","UDHAMPUR","CHENANI","J&K",null,"JAMMU",182142,182051028,6320804,33.044499999999999,75.173580000000001,null,{"$f":"TEXT(branch332[[#This Row],[Sol Id]],\"0000\")","v":"0827"}]
["A",828,828,"B","CHINGAM","DODA","ZO DODA CLSTR KISHTWAR","CHIGAM","DOD","DODKIS","JAKA0CHIGAM","TEHSIL CHATRO","KISHTWAR","KISHTWAR","CHATROO","J&K",null,"JAMMU",182205,182051128,6320800,33.578560000000003,75.562600000000003,null,{"$f":"TEXT(branch332[[#This Row],[Sol Id]],\"0000\")","v":"0828"}]
["A",829,829,"B","KHARI","DODA","ZO DODA CLSTR RAMBAN","KHAARI","DOD","DODRAM","JAKA0KHAARI","VPO KHARI, TEHSIL BANIHAL","RAMBAN","RAMBAN","KHARI","J&K",null,"JAMMU",182145,182051310,6320825,33.225230000000003,75.091949999999997,null,{"$f":"TEXT(branch332[[#This Row],[Sol Id]],\"0000\")","v":"0829"}]
["A",830,830,"B","MAND(W)","UDHAMPUR","ZO UDHAMPUR CLSTR UDHAMPUR","MANDJA","UDM","UDMUDM","JAKA0MANDJA","MAND , TEHSIL UDHAMPUR","UDHAMPUR","UDHAMPUR","UDHAMPUR","J&K",null,"JAMMU",182121,182051029,6320803,32.888170000000002,74.985169999999997,null,{"$f":"TEXT(branch332[[#This Row],[Sol Id]],\"0000\")","v":"0830"}]
["A",831,831,"B","DALSAR","UDHAMPUR","ZO UDHAMPUR CLSTR UDHAMPUR","DALSAR","UDM","UDMUDM","JAKA0DALSAR","VPO DALSAR TEHSIL RAMNAGAR","UDHAMPUR","UDHAMPUR","RAMNAGAR","J&K",null,"JAMMU",182122,182051030,6320802,null,null,null,{"$f":"TEXT(branch332[[#This Row],[Sol Id]],\"0000\")","v":"0831"}]
["A",832,832,"B","DORSUMA MANIGAM","BUDGAM","ZO BUDGAM CLSTR GANDERBAL","DORSUM","BUD","BUDGAN","JAKA0DORSUM","TEHSIL LAR","GANDERBAL","GANDERBAL","LAAR","J&K",null,"KASHMIR",191201,191051117,6320817,34.281599999999997,74.813109999999995,null,{"$f":"TEXT(branch332[[#This Row],[Sol Id]],\"0000\")","v":"0832"}]
["A",833,833,"B","GAJANSOO","JAMMU","ZO JAMMU CLSTR -3 JAMMU","GAJANI","JAM","JAMCL3","JAKA0GAJANI","MAIN BUS STAND , VPO GAJANSOO","JAMMU","JAMMU","MARH","J&K",null,"JAMMU",181206,180051101,6320782,32.760800000000003,74.710599999999999,null,{"$f":"TEXT(branch332[[#This Row],[Sol Id]],\"0000\")","v":"0833"}]
["A",834,834,"B","BATWINA GANDERBAL","BUDGAM","ZO BUDGAM CLSTR GANDERBAL","BATWIN","BUD","BUDGAN","JAKA0BATWIN","TEHSIL LAR","GANDERBAL","GANDERBAL","LAAR","J&K",null,"KASHMIR",193501,191051118,6320781,34.215110000000003,74.671949999999995,null,{"$f":"TEXT(branch332[[#This Row],[Sol Id]],\"0000\")","v":"0834"}]
["A",835,835,"B","SUMERBUGH","BUDGAM","ZO BUDGAM CLSTR -2 BUDGAM","SUMERB","BUD","BUDCL2","JAKA0SUMERB","SUMERBUGH LASJAN, DISTRICT BUDGAM","BUDGAM","BUDGAM","BAGATI KANIPORA","J&K",null,"KASHMIR",191101,191051043,6320806,34.028889999999997,74.879869999999997,null,{"$f":"TEXT(branch332[[#This Row],[Sol Id]],\"0000\")","v":"0835"}]
["A",836,836,"B","RAWALPORA KHANSAHIB","BUDGAM","ZO BUDGAM CLSTR -1 BUDGAM","RAWKHA","BUD","BUDCL1","JAKA0RAWKHA","BLOCK & TEHSIL KHANSAHIB","BUDGAM","BUDGAM","KHAN SAHIB","J&K",null,"KASHMIR",193411,191051042,6320818,33.93486,74.640039999999999,null,{"$f":"TEXT(branch332[[#This Row],[Sol Id]],\"0000\")","v":"0836"}]
["A",837,837,"B","SHANKERPORA","ANANTNAG","ZO ANANTNAG CLSTR -1 ANANTNAG","SHANKE","ANT","ANTCL1","JAKA0SHANKE","SHANKERPORA POST OFFICE DIALGAM","ANANTNAG","ANANTNAG","DOORU","J&K",null,"KASHMIR",192213,192051072,6320852,null,null,null,{"$f":"TEXT(branch332[[#This Row],[Sol Id]],\"0000\")","v":"0837"}]
["A",838,838,"B","IMOH","ANANTNAG","ZO ANANTNAG CLSTR -1 ANANTNAG","IMMOHH","ANT","ANTCL1","JAKA0IMMOHH","TEHSIL ANANTNAG","ANANTNAG","ANANTNAG","ACHABAL","J&K",null,"KASHMIR",192201,192051070,6320799,33.710749999999997,75.181730000000002,null,{"$f":"TEXT(branch332[[#This Row],[Sol Id]],\"0000\")","v":"0838"}]
["A",839,839,"B","RANI TALAB","JAMMU","ZO JAMMU CLSTR -2 JAMMU","RANITA","JAM","JAMCL2","JAKA0RANITA","RANI TALAB, DIGIANA","JAMMU","JAMMU","JAMMU (SOUTH)","J&K",null,"JAMMU",180010,180051102,6320819,32.683729999999997,74.860519999999994,null,{"$f":"TEXT(branch332[[#This Row],[Sol Id]],\"0000\")","v":"0839"}]
["A",840,840,"B","KHOUR","JAMMU","ZO JAMMU CLSTR -3 JAMMU","KHOOUR","JAM","JAMCL3","JAKA0KHOOUR","POST OFFICE CHAKMALAL","JAMMU","JAMMU","KHOUR","J&K",null,"JAMMU",181202,180051103,6320794,null,null,null,{"$f":"TEXT(branch332[[#This Row],[Sol Id]],\"0000\")","v":"0840"}]
["A",841,841,"B","BALAKOTE","RAJOURI","ZO RAJOURI CLSTR POONCH","BALAKO","RAJ","RAJPOO","JAKA0BALAKO","POST OFFICE DHARGLOON, TEHSIL MENDHAR","POONCH","POONCH","BALAKOTE","J&K",null,"JAMMU",185211,185051117,6320807,33.537419999999997,74.208849999999998,null,{"$f":"TEXT(branch332[[#This Row],[Sol Id]],\"0000\")","v":"0841"}]
["A",842,842,"B","SAKHIMAIDAN","RAJOURI","ZO RAJOURI CLSTR POONCH","SAKHII","RAJ","RAJPOO","JAKA0SAKHII","TEHSIL MENDHAR","POONCH","POONCH","MENDHAR","J&K",null,"JAMMU",185211,185051118,6320828,33.61553,74.132999999999996,null,{"$f":"TEXT(branch332[[#This Row],[Sol Id]],\"0000\")","v":"0842"}]
["A",843,843,"B","PHALIANA","RAJOURI","ZO RAJOURI CLSTR RAJOURI","PHALIA","RAJ","RAJRAJ","JAKA0PHALIA","TEHSIL RAJOURI","RAJOURI","RAJOURI","RAJOURI","J&K",null,"JAMMU",185131,185051023,6320793,33.318629999999999,74.328289999999996,null,{"$f":"TEXT(branch332[[#This Row],[Sol Id]],\"0000\")","v":"0843"}]
["A",844,844,"B","AGHARJITTO","UDHAMPUR","ZO UDHAMPUR CLSTR REASI","AGHARJ","UDM","UDMREA","JAKA0AGHARJ","AGHARJITTO, REASI","REASI","REASI","KATRA","J&K",null,"JAMMU",182301,182051263,6320778,33.008499999999998,74.899140000000003,null,{"$f":"TEXT(branch332[[#This Row],[Sol Id]],\"0000\")","v":"0844"}]
["A",845,845,"B","DC OFFICE REASI","UDHAMPUR","ZO UDHAMPUR CLSTR REASI","DCREAS","UDM","UDMREA","JAKA0DCREAS","TEHSIL REASI","REASI","REASI","REASI","J&K",null,"JAMMU",182311,182051264,6320779,33.079859999999996,74.840879999999999,null,{"$f":"TEXT(branch332[[#This Row],[Sol Id]],\"0000\")","v":"0845"}]
["A",846,846,"B","DEHWATHU","ANANTNAG","ZO ANANTNAG CLSTR -2 ANANTNAG","DEHWAT","ANT","ANTCL2","JAKA0DEHWAT","TEHSIL PAHALGAM","ANANTNAG","ANANTNAG","PAHALGAM","J&K",null,"KASHMIR",192401,192051071,6320824,33.926839999999999,75.274140000000003,null,{"$f":"TEXT(branch332[[#This Row],[Sol Id]],\"0000\")","v":"0846"}]
["A",847,847,"B","ACHEN","PULWAMA","ZO PULWAMA CLSTR SHOPIAN","ACHENN","PUL","PULSHO","JAKA0ACHENN","BLOCK PULWAMA","PULWAMA","PULWAMA","LITTER","J&K",null,"KASHMIR",192305,192051132,6320798,33.817019999999999,74.962530000000001,null,{"$f":"TEXT(branch332[[#This Row],[Sol Id]],\"0000\")","v":"0847"}]
["A",848,848,"B","CHECKI-CHOLAN","PULWAMA","ZO PULWAMA CLSTR SHOPIAN","CHECKI","PUL","PULSHO","JAKA0CHECKI","CHECKI-CHOLAN , BLOCK & TEHSIL HERMAN","SHOPIAN","SHOPIAN","HERMAN","J&K",null,"KASHMIR",192303,192051138,6320871,null,null,null,{"$f":"TEXT(branch332[[#This Row],[Sol Id]],\"0000\")","v":"0848"}]
["A",849,849,"B","KERI TERYATH","RAJOURI","ZO RAJOURI CLSTR RAJOURI","KEERII","RAJ","RAJRAJ","JAKA0KEERII","KALAKOTE , TEHSIL KALAKOTE","RAJOURI","RAJOURI","TERYATH","J&K",null,"JAMMU",185203,185051025,6320805,33.152250000000002,74.558700000000002,null,{"$f":"TEXT(branch332[[#This Row],[Sol Id]],\"0000\")","v":"0849"}]
["A",850,850,"B","LAMBERI","RAJOURI","ZO RAJOURI CLSTR RAJOURI","LAMBER","RAJ","RAJRAJ","JAKA0LAMBER","NEAR POST OFFICE LAMBERI","RAJOURI","RAJOURI","NOWSHERA","J&K",null,"JAMMU",185152,185051024,6320795,33.133330000000001,74.366669999999999,null,{"$f":"TEXT(branch332[[#This Row],[Sol Id]],\"0000\")","v":"0850"}]
["M",851,851,"B","SANTA CRUZ WEST (MERGED WITH 0446)",null,null,"SANTAC","MUM","NA","JAKA0SANTAC",null,null,null,null,null,null,null,null,null,null,null,null,null,{"$f":"TEXT(branch332[[#This Row],[Sol Id]],\"0000\")","v":"0851"}]
["A",852,852,"B","BALSHAMA","RAJOURI","ZO RAJOURI CLSTR RAJOURI","BALSHA","RAJ","RAJRAJ","JAKA0BALSHA","TEHSIL SUNDERBANI","RAJOURI","RAJOURI","SUNDERBANI","J&K",null,"JAMMU",185152,185051026,6320826,33.08135,74.446190000000001,null,{"$f":"TEXT(branch332[[#This Row],[Sol Id]],\"0000\")","v":"0852"}]
["A",853,853,"B","SHEY","LADAKH","ZO LADAKH CLSTR LEH","SHELEH","LAD","LADLEH","JAKA0SHELEH","SHEY MAIN , TEHSIL LEH","LEH","LEH","LEH","LADAKH",null,"LADAKH",194104,194051029,6320830,34.071199999999997,77.633529999999993,null,{"$f":"TEXT(branch332[[#This Row],[Sol Id]],\"0000\")","v":"0853"}]
["A",854,854,"B","SHUHAMA, ALUSTENG","BUDGAM","ZO BUDGAM CLSTR GANDERBAL","SHUHAM","BUD","BUDGAN","JAKA0SHUHAM","SHUHAMA, ALUSTENG","GANDERBAL","GANDERBAL","GANDERBAL","J&K",null,"KASHMIR",190006,190051099,6320831,34.188609999999997,74.828569999999999,null,{"$f":"TEXT(branch332[[#This Row],[Sol Id]],\"0000\")","v":"0854"}]
["A",855,855,"B","PARNEWA","BUDGAM","ZO BUDGAM CLSTR -1 BUDGAM","PARNEW","BUD","BUDCL1","JAKA0PARNEW","PARNEWA MAIN","BUDGAM","BUDGAM","BUDGAM","J&K",null,"KASHMIR",191111,191051044,6320833,33.954599999999999,74.72054,null,{"$f":"TEXT(branch332[[#This Row],[Sol Id]],\"0000\")","v":"0855"}]
["A",856,856,"B","ROOP NAGAR","JAMMU","ZO JAMMU CLSTR -3 JAMMU","ROOPNA","JAM","JAMCL3","JAKA0ROOPNA","P.O ROOP NAGAR","JAMMU","JAMMU","JAMMU (NORTH)","J&K",null,"JAMMU",180013,180051104,6320832,32.768389999999997,74.828779999999995,null,{"$f":"TEXT(branch332[[#This Row],[Sol Id]],\"0000\")","v":"0856"}]
["A",857,857,"B","SAINIK COLONY JAMMU","JAMMU","ZO JAMMU CLSTR -2 JAMMU","SAINIK","JAM","JAMCL2","JAKA0SAINIK","PLOT NO.335, SECTOR- E, P.O. SAINIK COLONY","JAMMU","JAMMU","BAHU","J&K",null,"JAMMU",180011,180051105,6320835,32.670659999999998,74.911969999999997,null,{"$f":"TEXT(branch332[[#This Row],[Sol Id]],\"0000\")","v":"0857"}]
["A",858,858,"B","BALLAHAMA","SRINAGAR","ZO SRINAGAR CLSTR -1 SRINAGAR","BALLAH","SGR","SGRCL1","JAKA0BALLAH","SRINAGAR","SRINAGAR","SRINAGAR","PANTHA CHOWK","J&K",null,"KASHMIR",191201,190051100,6320834,34.03295,74.946479999999994,null,{"$f":"TEXT(branch332[[#This Row],[Sol Id]],\"0000\")","v":"0858"}]
["A",859,859,"B","MARBLE MARKET","JAMMU","ZO JAMMU CLSTR -2 JAMMU","TRINAG","JAM","JAMCL2","JAKA0TRINAG","MARBLE MARKET, TRIKUTA NAGAR","JAMMU","JAMMU","BAHU","J&K",null,"JAMMU",180020,180051106,6320836,32.680680000000002,74.886499999999998,null,{"$f":"TEXT(branch332[[#This Row],[Sol Id]],\"0000\")","v":"0859"}]
["A",860,860,"B","CHOWKI HANDAN","RAJOURI","ZO RAJOURI CLSTR RAJOURI","CHOHAN","RAJ","RAJRAJ","JAKA0CHOHAN","RAJOURI","RAJOURI","RAJOURI","NOWSHERA","J&K",null,"JAMMU",185151,185051027,6320842,33.235230000000001,74.096649999999997,null,{"$f":"TEXT(branch332[[#This Row],[Sol Id]],\"0000\")","v":"0860"}]
["A",861,861,"B","DHANGRI","RAJOURI","ZO RAJOURI CLSTR RAJOURI","DANGRI","RAJ","RAJRAJ","JAKA0DANGRI","RAJOURI","RAJOURI","RAJOURI","RAJOURI","J&K",null,"JAMMU",185132,185051028,6320843,null,null,null,{"$f":"TEXT(branch332[[#This Row],[Sol Id]],\"0000\")","v":"0861"}]
["A",862,862,"B","BHATA DHURIA","RAJOURI","ZO RAJOURI CLSTR POONCH","BHATAA","RAJ","RAJPOO","JAKA0BHATAA","TEHSIL MENDHAR","POONCH","POONCH","MENDHAR","J&K",null,"JAMMU",185121,185051119,6320844,33.604860000000002,74.262129999999999,null,{"$f":"TEXT(branch332[[#This Row],[Sol Id]],\"0000\")","v":"0862"}]
["A",863,863,"B","KALLAR","RAJOURI","ZO RAJOURI CLSTR RAJOURI","KALLAR","RAJ","RAJRAJ","JAKA0KALLAR","TEHSIL RAJOURI","RAJOURI","RAJOURI","RAJOURI","J&K",null,"JAMMU",185134,185051029,6320845,33.28745,74.303730000000002,null,{"$f":"TEXT(branch332[[#This Row],[Sol Id]],\"0000\")","v":"0863"}]
["A",864,864,"B","ABHAMA","PULWAMA","ZO PULWAMA CLSTR SHOPIAN","ABHAMA","PUL","PULSHO","JAKA0ABHAMA","TEHSIL RAJPORA","PULWAMA","PULWAMA","RAJPORA","J&K",null,"KASHMIR",192301,192051133,6320840,33.821890000000003,74.774249999999995,null,{"$f":"TEXT(branch332[[#This Row],[Sol Id]],\"0000\")","v":"0864"}]
["A",865,865,"B","PARIGAM","PULWAMA","ZO PULWAMA CLSTR PULWAMA","PARGAM","PUL","PULPUL","JAKA0PARGAM","PARIGAM, TEHSIL PULWAMA","PULWAMA","PULWAMA","NEWA","J&K",null,"KASHMIR",192301,192051134,6320841,33.946440000000003,74.88288,null,{"$f":"TEXT(branch332[[#This Row],[Sol Id]],\"0000\")","v":"0865"}]
["A",866,866,"B","KAREEMABAD","PULWAMA","ZO PULWAMA CLSTR PULWAMA","KARIMA","PUL","PULPUL","JAKA0KARIMA","TEHSIL PULWAMA","PULWAMA","PULWAMA","PULWAMA","J&K",null,"KASHMIR",192301,192051135,6320846,33.89508,74.879300000000001,null,{"$f":"TEXT(branch332[[#This Row],[Sol Id]],\"0000\")","v":"0866"}]
["A",867,867,"B","BHARGI","DODA","ZO DODA CLSTR DODA","BHARGI","DOD","DODDOD","JAKA0BHARGI","BHARGI, TEHSIL -GANDOH","DODA","DODA","BHALESSA-GANDOH","J&K",null,"JAMMU",182203,182051129,6320838,33.032269999999997,75.910309999999996,null,{"$f":"TEXT(branch332[[#This Row],[Sol Id]],\"0000\")","v":"0867"}]
["A",868,868,"B","SHADIPORA","BARAMULLA","ZO BARAMULLA CLSTR BANDIPORA","SHADPR","BAR","BARBAN","JAKA0SHADPR","SHADIPORA , SUMBAL","BANDIPORA","BANDIPORA","SUMBAL SONAWARI","J&K",null,"KASHMIR",193502,193051411,6320847,34.186149999999998,74.681460000000001,null,{"$f":"TEXT(branch332[[#This Row],[Sol Id]],\"0000\")","v":"0868"}]
["A",869,869,"B","KRALPORA","BUDGAM","ZO BUDGAM CLSTR -2 BUDGAM","KRALPR","BUD","BUDCL2","JAKA0KRALPR","KRALPORA NEAR PETROL PUMP, TEHSIL B K PORA","BUDGAM","BUDGAM","BAGATI KANIPORA","J&K",null,"KASHMIR",190019,191051046,6320855,34.499769999999998,74.117850000000004,null,{"$f":"TEXT(branch332[[#This Row],[Sol Id]],\"0000\")","v":"0869"}]
["A",870,870,"B","PAHROO","BUDGAM","ZO BUDGAM CLSTR -2 BUDGAM","PAHROO","BUD","BUDCL2","JAKA0PAHROO","PAHROO NEAR BOYS MIDDLE SCHOOL, TEHSIL B K PORA","BUDGAM","BUDGAM","BAGATI KANIPORA","J&K",null,"KASHMIR",192121,191051045,6320839,33.997329999999998,74.871459999999999,null,{"$f":"TEXT(branch332[[#This Row],[Sol Id]],\"0000\")","v":"0870"}]
["A",871,871,"B","MANTALAI","UDHAMPUR","ZO UDHAMPUR CLSTR UDHAMPUR","MANTAL","UDM","UDMUDM","JAKA0MANTAL","MANTALAI, SUDHMAHADEV","UDHAMPUR","UDHAMPUR","CHENANI","J&K",null,"JAMMU",182141,182051031,6320848,33.020760000000003,75.360349999999997,null,{"$f":"TEXT(branch332[[#This Row],[Sol Id]],\"0000\")","v":"0871"}]
["A",872,872,"B","GHOU MANHASAN","JAMMU","ZO JAMMU CLSTR -3 JAMMU","GHOUMA","JAM","JAMCL3","JAKA0GHOUMA","NEAR FISHERIES DEPARTMENT, VPO-GHOU MANHASSAN","JAMMU","JAMMU","MARH","J&K",null,"JAMMU",181206,180051107,6320849,32.723370000000003,74.732240000000004,null,{"$f":"TEXT(branch332[[#This Row],[Sol Id]],\"0000\")","v":"0872"}]
["A",873,873,"B","SATHRA","RAJOURI","ZO RAJOURI CLSTR POONCH","SATHRA","RAJ","RAJPOO","JAKA0SATHRA","VILLAGE & P.O. SATHRA , TEHSIL MANDI","POONCH","POONCH","MANDI","J&K",null,"JAMMU",185102,185051120,6320850,32.841119999999997,74.749830000000003,null,{"$f":"TEXT(branch332[[#This Row],[Sol Id]],\"0000\")","v":"0873"}]
["A",875,875,"B","YAMUNA NAGAR","KATHUA","ZO KATHUA CLSTR MOHALI","YAMUNA","KAT","KATMOH","JAKA0YAMUNA","38-39 , SHVAJI PARK, NEHRU PARK ROAD , NEAR MELA SINGH CHOWK, MODEL TOWN","YAMUNA NAGAR","YAMUNA NAGAR",null,"HARYANA",null,"ROI",135001,135051002,6320851,30.149439999999998,77.3065,null,{"$f":"TEXT(branch332[[#This Row],[Sol Id]],\"0000\")","v":"0875"}]
["A",876,876,"B","PALLI MORH","JAMMU","ZO JAMMU CLSTR -2 JAMMU","PALMOR","JAM","JAMCL2","JAKA0PALMOR","PALLI MORTH, POST OFFICE -PALLI , TEHSIL BISHNAH","JAMMU","JAMMU","BISHNAH","J&K",null,"JAMMU",181132,180051108,6320853,null,null,null,{"$f":"TEXT(branch332[[#This Row],[Sol Id]],\"0000\")","v":"0876"}]
["A",877,877,"B","KULIGAM","BARAMULLA","ZO BARAMULLA CLSTR KUPWARA","KULIGA","BAR","BARKUP","JAKA0KULIGA","KULIGAM LOLAB, TEHSIL KUPWARA","KUPWARA","KUPWARA",null,"J&K",null,"KASHMIR",193222,193051231,6320857,null,null,null,{"$f":"TEXT(branch332[[#This Row],[Sol Id]],\"0000\")","v":"0877"}]
["A",878,878,"B","RAIPUR SATWARI","JAMMU","ZO JAMMU CLSTR -2 JAMMU","SATWAR","JAM","JAMCL2","JAKA0SATWAR","NEAR GURDWARA SAHIB POST OFFICE -SATWARI","JAMMU","JAMMU","JAMMU","J&K",null,"JAMMU",180003,180051112,6320868,null,null,null,{"$f":"TEXT(branch332[[#This Row],[Sol Id]],\"0000\")","v":"0878"}]
["A",883,883,"B","REHAL DHAMALIAN","JAMMU","ZO JAMMU CLSTR -2 JAMMU","REHAAL","JAM","JAMCL2","JAKA0REHAAL","REHAL DHAMALIAN , TEHSIL BISHNAH","JAMMU","JAMMU","BISHNAH","J&K",null,"JAMMU",181132,180051109,6320864,null,null,null,{"$f":"TEXT(branch332[[#This Row],[Sol Id]],\"0000\")","v":"0883"}]
["A",884,884,"B","JANDRAH","JAMMU","ZO JAMMU CLSTR -1 JAMMU","JINDHR","JAM","JAMCL1","JAKA0JINDHR","DREAM CHOWK JANDRAH","JAMMU","JAMMU","JAMMU","J&K",null,"JAMMU",181224,180051110,6320866,null,null,null,{"$f":"TEXT(branch332[[#This Row],[Sol Id]],\"0000\")","v":"0884"}]
["A",885,885,"B","KHIRAM","ANANTNAG","ZO ANANTNAG CLSTR -2 ANANTNAG","KHIRAM","ANT","ANTCL2","JAKA0KHIRAM","KHIRAM, NEAR DARGAH SHARIF, BLOCK DACHNIPORA, TEHSIL SIRIGHUPWARA","ANANTNAG","ANANTNAG","SIRIGUPHWARA","J&K",null,"KASHMIR",192401,192051074,6320869,null,null,null,{"$f":"TEXT(branch332[[#This Row],[Sol Id]],\"0000\")","v":"0885"}]
["A",886,886,"B","OTLIGAM","BUDGAM","ZO BUDGAM CLSTR -1 BUDGAM","OTLIGA","BUD","BUDCL1","JAKA0OTLIGA","POST OFFICE: OTLIGAM TEHSIL; BEERWAH","BUDGAM","BUDGAM","BEERWAH","J&K",null,"KASHMIR",193411,191051047,6320870,null,null,null,{"$f":"TEXT(branch332[[#This Row],[Sol Id]],\"0000\")","v":"0886"}]
["A",887,887,"B","ALLAH, BISHNAH","JAMMU","ZO JAMMU CLSTR -2 JAMMU","AALLAH","JAM","JAMCL2","JAKA0AALLAH","ALLAH BISHNAH ; P.O VILLAGE ALLAH, TEHSIL BISHNAH","JAMMU","JAMMU","BISHNAH","J&K",null,"JAMMU",181131,180051111,6320877,null,null,null,{"$f":"TEXT(branch332[[#This Row],[Sol Id]],\"0000\")","v":"0887"}]
["A",888,888,"B","HOSHIARPUR","KATHUA","ZO KATHUA CLSTR MOHALI","HOSPUR","KAT","KATMOH","JAKA0HOSPUR","DHAAMI COMMERCIAL COMPLEX , SUTHERI ROAD , HOSHIARPUR","HOSHIARPUR","HOSHIARPUR",null,"PUNJAB",null,"ROI",146001,146051002,6320872,null,null,null,{"$f":"TEXT(branch332[[#This Row],[Sol Id]],\"0000\")","v":"0888"}]
["A",889,889,"B","AHMAD NAGAR","SRINAGAR","ZO SRINAGAR CLSTR -2 SRINAGAR","AHMADD","SGR","SGRCL2","JAKA0AHMADD","AHMAD NAGAR, MAIN CHOWK( 90 FT. ROAD) , SRINAGAR","SRINAGAR","SRINAGAR","SRINAGAR","J&K",null,"KASHMIR",190020,190051103,6320873,null,null,null,{"$f":"TEXT(branch332[[#This Row],[Sol Id]],\"0000\")","v":"0889"}]
["A",890,890,"B","NARDANI RAIPUR","JAMMU","ZO JAMMU CLSTR -3 JAMMU","NARDAN","JAM","JAMCL3","JAKA0NARDAN","POST OFFICE RAIPUR ; TEHSIL & DISTRICT , JAMMU","JAMMU","JAMMU","JAMMU","J&K",null,"JAMMU",181123,180051113,6320874,null,null,null,{"$f":"TEXT(branch332[[#This Row],[Sol Id]],\"0000\")","v":"0890"}]
["A",891,891,"B","PALMA","RAJOURI","ZO RAJOURI CLSTR RAJOURI","PALMAA","RAJ","RAJRAJ","JAKA0PALMAA","POST OFFICE-PALMA, TEHSIL & DISTRICT-RAJOURI,.","RAJOURI","RAJOURI","RAJOURI","J&K",null,"JAMMU",185131,185051030,6320875,null,null,null,{"$f":"TEXT(branch332[[#This Row],[Sol Id]],\"0000\")","v":"0891"}]
["A",892,892,"B","SANGLA CHOWK","RAJOURI","ZO RAJOURI CLSTR POONCH","SANGLA","RAJ","RAJPOO","JAKA0SANGLA","POST OFFICE-MENDHAR, TEHSIL-MENDHAR, DISTRICT-POONCH","POONCH","POONCH","MENDHAR","J&K",null,"JAMMU",185211,185051121,6320939,null,null,null,{"$f":"TEXT(branch332[[#This Row],[Sol Id]],\"0000\")","v":"0892"}]
["A",893,893,"B","WUYAN","PULWAMA","ZO PULWAMA CLSTR PULWAMA","WUYANN","PUL","PULPUL","JAKA0WUYANN","WUYAN, BLOCK / TEHSIL- PAMPORE, DISTRICT-PULWAMA, KASHMIR, PIN-191102","PULWAMA","PULWAMA","PAMPORE","J&K",null,"KASHMIR",191102,192051140,6320889,null,null,null,{"$f":"TEXT(branch332[[#This Row],[Sol Id]],\"0000\")","v":"0893"}]
["A",894,894,"B","NEHAMA PULWAMA","PULWAMA","ZO PULWAMA CLSTR PULWAMA","NEHOME","PUL","PULPUL","JAKA0NEHOME","NEHAMA, BLOCK & TEHSIL-KAKPORA,DISTRICT-PULWAMA, KASHMIR","PULWAMA","PULWAMA","KAKAPORA","J&K",null,"KASHMIR",192121,192051139,6320885,null,null,null,{"$f":"TEXT(branch332[[#This Row],[Sol Id]],\"0000\")","v":"0894"}]
["A",895,895,"B","POWER HOUSE ROAD, GANDERBAL","BUDGAM","ZO BUDGAM CLSTR GANDERBAL","POWERG","BUD","BUDGAN","JAKA0POWERG","POWER HOUSE ROAD, GANDERBAL TEHSIL & DISTRICT- GANDERBAL, J&K","GANDERBAL","GANDERBAL","GANDERBAL","J&K",null,"KASHMIR",191201,191051119,6320876,null,null,null,{"$f":"TEXT(branch332[[#This Row],[Sol Id]],\"0000\")","v":"0895"}]
["A",896,896,"B","TANDWAL","RAJOURI","ZO RAJOURI CLSTR RAJOURI","TANDWA","RAJ","RAJRAJ","JAKA0TANDWA","POST OFFICE-TANDWAL TEHSIL & DISTRICT-RAJOURI, J&K.","RAJOURI","RAJOURI","RAJOURI","J&K",null,"JAMMU",185131,185051031,6320886,null,null,null,{"$f":"TEXT(branch332[[#This Row],[Sol Id]],\"0000\")","v":"0896"}]
["A",897,897,"B","SAMOTE","RAJOURI","ZO RAJOURI CLSTR POONCH","SAMOTE","RAJ","RAJPOO","JAKA0SAMOTE","POST OFFICE-SURANKOTE, TEHSIL-SURANKOTE, DISTRICT-POONCH, J&K.","POONCH","POONCH","SURANKOTE","J&K",null,"JAMMU",185121,185051122,6320887,null,null,null,{"$f":"TEXT(branch332[[#This Row],[Sol Id]],\"0000\")","v":"0897"}]
["A",898,898,"B","HARNAG","ANANTNAG","ZO ANANTNAG CLSTR -1 ANANTNAG","HARNAG","ANT","ANTCL1","JAKA0HARNAG","HARNAG, BLOCK & TEHSIL-ACHABAL,DISTRICT-ANANTNAG, KASHMIR, PIN-192102","ANANTNAG","ANANTNAG","ACHABAL","J&K",null,"KASHMIR",192102,192051076,6320879,null,null,null,{"$f":"TEXT(branch332[[#This Row],[Sol Id]],\"0000\")","v":"0898"}]
["A",899,899,"B","BONA BAZAR QAZIGUND","ANANTNAG","ZO ANANTNAG CLSTR -1 ANANTNAG","BONABQ","ANT","ANTCL1","JAKA0BONABQ","QAZIGUND, BONA BAZAR, BLOCK / TEHSIL-QAZIGUND, DISTRICT-ANANTNAG, KASHMIR","ANANTNAG","ANANTNAG","QAZIGUND","J&K",null,"KASHMIR",192102,192051075,6320878,null,null,null,{"$f":"TEXT(branch332[[#This Row],[Sol Id]],\"0000\")","v":"0899"}]
["A",900,900,"B","AKCHAMAL","LADAKH","ZO LADAKH CLSTR KARGIL","ACHKAM","LAD","LADKAR","JAKA0ACHKAM","RAKINA, AKCHAMAL, BLOCK / TEHSIL & DISTRICT-KARGIL, J&K PIN-194103","KARGIL","KARGIL","KARGIL","LADAKH",null,"LADAKH",194103,194051030,6320888,null,null,null,{"$f":"TEXT(branch332[[#This Row],[Sol Id]],\"0000\")","v":"0900"}]
["A",901,901,"B","SADERKOTE BALA","BARAMULLA","ZO BARAMULLA CLSTR BANDIPORA","SADERK","BAR","BARBAN","JAKA0SADERK","BLOCK-HAJIN, TEHSIL-SUMBAL, DISTRICT-BANDIPORA, KASHMIR, PIN-193502","BANDIPORA","BANDIPORA","SUMBAL SONAWARI","J&K",null,"KASHMIR",193502,193051413,6320881,null,null,null,{"$f":"TEXT(branch332[[#This Row],[Sol Id]],\"0000\")","v":"0901"}]
["A",902,902,"B","RAHYA","KATHUA","ZO KATHUA CLSTR SAMBA","RAHYAA","KAT","KATSAM","JAKA0RAHYAA","RAHYA, TEHSILâ€“VIJAYPUR, DISTRICT-SAMBA, PIN-181143","SAMBA","SAMBA","VIJAYPUR","J&K",null,"JAMMU",181143,180051114,6320890,null,null,null,{"$f":"TEXT(branch332[[#This Row],[Sol Id]],\"0000\")","v":"0902"}]
["A","0902E","0902E","EC","EC - CENTRAL UNIVERSITY OF JAMMU",null,null,"RAHYAA","KAT","KATSAM","JAKA0RAHYAA",null,"SAMBA","SAMBA","VIJAYPUR","J&K",null,"JAMMU",181143,180051114,6320890,null,null,null,{"$f":"TEXT(branch332[[#This Row],[Sol Id]],\"0000\")","v":"0902E"}]
["A",903,903,"B","ARIPAL","PULWAMA","ZO PULWAMA CLSTR PULWAMA","ARIPAL","PUL","PULPUL","JAKA0ARIPAL","ARIPAL TRAL, BLOCK & TEHSIL-ARIPAL, DISTRICT-PULWAMA, KASHMIR, PIN-192123","PULWAMA","PULWAMA","ARIPAL","J&K",null,"KASHMIR",192123,192051141,6320894,null,null,null,{"$f":"TEXT(branch332[[#This Row],[Sol Id]],\"0000\")","v":"0903"}]
["A",904,904,"B","MINI SECRETARIAT BANDIPORA","BARAMULLA","ZO BARAMULLA CLSTR BANDIPORA","SECBAN","BAR","BARBAN","JAKA0SECBAN","D.C OFFICE COMPLEX, DISTRICT-BANDIPORA, KASHMIR, PIN-193502","BANDIPORA","BANDIPORA","BANDIPORA","J&K",null,"KASHMIR",193502,193051412,6320880,null,null,null,{"$f":"TEXT(branch332[[#This Row],[Sol Id]],\"0000\")","v":"0904"}]
["A",905,905,"B","PC DEPOT SRINAGAR","SRINAGAR","ZO SRINAGAR CLSTR -3 SRINAGAR","PCDEPO","SGR","SGRCL3","JAKA0PCDEPO","P C DEPOT (SHALTENG), TEHSIL & DISTRICT-SRINAGAR, PIN-190010","SRINAGAR","SRINAGAR","SRINAGAR","J&K",null,"KASHMIR",190010,190051105,6320882,null,null,null,{"$f":"TEXT(branch332[[#This Row],[Sol Id]],\"0000\")","v":"0905"}]
["A",906,906,"B","PALPORA","SRINAGAR","ZO SRINAGAR CLSTR -3 SRINAGAR","PALPOR","SGR","SGRCL3","JAKA0PALPOR","PALPORA,( NEAR BSNL TOWER) , TEHSIL & DISTRICT-SRINAGAR, PIN-190017","SRINAGAR","SRINAGAR","SRINAGAR","J&K",null,"KASHMIR",190017,190051104,6320883,null,null,null,{"$f":"TEXT(branch332[[#This Row],[Sol Id]],\"0000\")","v":"0906"}]
["A",907,907,"B","PRANOO","DODA","ZO DODA CLSTR DODA","PRANOO","DOD","DODDOD","JAKA0PRANOO","PRANO, BLOCK-GHAT, TEHSIL & DISTRICT-DODA, PIN-182201","DODA","DODA","DODA","J&K",null,"JAMMU",182201,182051130,6320891,null,null,null,{"$f":"TEXT(branch332[[#This Row],[Sol Id]],\"0000\")","v":"0907"}]
["A",908,908,"B","CHINTA","DODA","ZO DODA CLSTR DODA","CHINTA","DOD","DODDOD","JAKA0CHINTA","CHHANI CHINTA, BLOCK & TEHSIL- BHADERWAH, DISTRICT-DODA, PIN-182222","DODA","DODA","BHADERWAH","J&K",null,"JAMMU",182222,182051131,6320892,null,null,null,{"$f":"TEXT(branch332[[#This Row],[Sol Id]],\"0000\")","v":"0908"}]
["A",909,909,"B","MIRGUND BUDGAM","BUDGAM","ZO BUDGAM CLSTR -1 BUDGAM","MIRGNB","BUD","BUDCL1","JAKA0MIRGNB","MIRGUND, BLOCK/TEHSIL & DISTRICT - BUDGAM, PIN- 191111","BUDGAM","BUDGAM","BUDGAM","J&K",null,"KASHMIR",191111,191051048,6320893,null,null,null,{"$f":"TEXT(branch332[[#This Row],[Sol Id]],\"0000\")","v":"0909"}]
["A",910,910,"B","KANISPORA","BARAMULLA","ZO BARAMULLA CLSTR BARAMULLA","KANISP","BAR","BARBAR","JAKA0KANISP","TEHSIL & DISTRICT BARAMULLA, KASHMIR, PIN- 193101","BARAMULLA","BARAMULLA","BARAMULLA","J&K",null,"KASHMIR",193101,193051045,6320884,null,null,null,{"$f":"TEXT(branch332[[#This Row],[Sol Id]],\"0000\")","v":"0910"}]
["A",911,911,"B","KAMMANHALLI","BENGALURU","ZO BENGALURU CLSTR BENGALURU","KAMMAN","BEN","BENBEN","JAKA0KAMMAN","1ST FLOOR ,NO 606,4TH CROSS ROAD,2ND BLOCK, KALYAN NAGAR ,KAMMANHALLI, HRBR LAYOUT, BENGALURU","BANGALORE","BANGLORE",null,"KARNATAKA",null,"ROI",560043,560051007,6320936,null,null,null,{"$f":"TEXT(branch332[[#This Row],[Sol Id]],\"0000\")","v":"0911"}]
["A",912,912,"B","RT NAGAR","BENGALURU","ZO BENGALURU CLSTR BENGALURU","RTNAGR","BEN","BENBEN","JAKA0RTNAGR","1ST FLOR,NO 2,80 FEET ROAD, GANGA NAGAR, R T NAGAR MAIN ROAD, BENGALURU","BANGALORE","BANGLORE",null,"KARNATAKA",null,"ROI",560032,560051006,6320937,null,null,null,{"$f":"TEXT(branch332[[#This Row],[Sol Id]],\"0000\")","v":"0912"}]
["A",913,913,"B","HARIDWAR","DELHI","ZO DELHI CLSTR LUCKNOW","HARDWR","DEL","DELLUC","JAKA0HARDWR","ACHARAYA CHANDRA CHOWK, RANIPUR MORTH, OPPOSITE CITY HOSPITAL , HARIDWAR , UTTARAKHAND PIN; 249401","HARIDWAR","HARIDWAR",null,"UTTARAKHAND",null,"ROI",249401,249051002,6320898,null,null,null,{"$f":"TEXT(branch332[[#This Row],[Sol Id]],\"0000\")","v":"0913"}]
["A",914,914,"B","DAB","BUDGAM","ZO BUDGAM CLSTR GANDERBAL","DABGNB","BUD","BUDGAN","JAKA0DABGNB","DAB GANDERBAL TEHSIL WAKURA DISTRICT GANDERBAL PIN; 191131","GANDERBAL","GANDERBAL","WAKURA","J&K",null,"KASHMIR",191131,191051120,6320895,null,null,null,{"$f":"TEXT(branch332[[#This Row],[Sol Id]],\"0000\")","v":"0914"}]
["A",915,915,"B","JAMIA HAMDARD UNIVERSITY","DELHI","ZO DELHI CLSTR -1 DELHI","JAMIAH","DEL","DELCL1","JAKA0JAMIAH","JAMIA HAMDARD (HAMDARD UNIVERSITY), HAMDARD NAGAR, NEW DELHI.","DELHI","DELHI",null,"DELHI",null,"ROI",110062,110051038,"632001G",null,null,null,{"$f":"TEXT(branch332[[#This Row],[Sol Id]],\"0000\")","v":"0915"}]
["A",916,916,"B","TARIGAM","ANANTNAG","ZO ANANTNAG CLSTR KULGAM","TARIGA","ANT","ANTKUL","JAKA0TARIGA","BLOCK QAIMOH, DISTRICT KULGAM , KASHMIR","KULGAM","KULGAM","KULGAM","J&K",null,"KASHMIR",192232,192051311,6320896,null,null,null,{"$f":"TEXT(branch332[[#This Row],[Sol Id]],\"0000\")","v":"0916"}]
["A",917,917,"B","VEERI","ANANTNAG","ZO ANANTNAG CLSTR -2 ANANTNAG","VEERII","ANT","ANTCL2","JAKA0VEERII","BLOCK & TEHSIL BIJBEHARA , DISTRICT ANANTNAG 192124","ANANTNAG","ANANTNAG","BIJBEHARA","J&K",null,"KASHMIR",192124,192051077,6320899,null,null,null,{"$f":"TEXT(branch332[[#This Row],[Sol Id]],\"0000\")","v":"0917"}]
["A",918,918,"B","PEER TAKIYA ANANTNAG","ANANTNAG","ZO ANANTNAG CLSTR -1 ANANTNAG","PERTAK","ANT","ANTCL1","JAKA0PERTAK","TAKIA BAHIE, KOKERNAG, ANANTNAG, J&K-192202","ANANTNAG","ANANTNAG","KOKERNAG","J&K",null,"KASHMIR",192202,192051078,6320927,null,null,null,{"$f":"TEXT(branch332[[#This Row],[Sol Id]],\"0000\")","v":"0918"}]
["A",919,919,"B","CHAK KANA","JAMMU","ZO JAMMU CLSTR -3 JAMMU","CHKANA","JAM","JAMCL3","JAKA0CHKANA","CHAK KANA, TEHSIL- MARH, DISTRICT-JAMMU, PIN-181206","JAMMU","JAMMU","MARH","J&K",null,"JAMMU",181206,180051115,6320900,null,null,null,{"$f":"TEXT(branch332[[#This Row],[Sol Id]],\"0000\")","v":"0919"}]
["A",920,920,"B","ROORKEE","DELHI","ZO DELHI CLSTR LUCKNOW","ROORKE","DEL","DELLUC","JAKA0ROORKE","J&K BANK 799/1, WEST AMBER TALAO, NEAR CIVIL HOSPITAL, DEHRADUN ROAD, ROORKEE, UTTARAKHAND","ROORKEE","ROORKE",null,"UTTARAKHAND",null,"ROI",247667,247051102,6320934,null,null,null,{"$f":"TEXT(branch332[[#This Row],[Sol Id]],\"0000\")","v":"0920"}]
["A",921,921,"B","ZIRAKPUR","KATHUA","ZO KATHUA CLSTR MOHALI","ZEERAK","KAT","KATMOH","JAKA0ZEERAK","J&K BANK, SCF 4-5, TULIP PLAZA, GF, ADJOINING SAVITRY TOWERS, VIP ROAD, LOHGARH, ZIRAKPUR, PUNJAB - 140603","MOHALI","ZIRAKPUR","DERA BASSI","PUNJAB",null,"ROI",140603,160051004,6320903,null,null,null,{"$f":"TEXT(branch332[[#This Row],[Sol Id]],\"0000\")","v":"0921"}]
["A",922,922,"B","JATWAL","KATHUA","ZO KATHUA CLSTR SAMBA","JATWAL","KAT","KATSAM","JAKA0JATWAL","JATWAL, TEHSIL- GHAGWAL, DISTRICT- SAMBA, PIN-184141","SAMBA","SAMBA","GHAGWAL","J&K",null,"JAMMU",184141,180051116,6320902,null,null,null,{"$f":"TEXT(branch332[[#This Row],[Sol Id]],\"0000\")","v":"0922"}]
["A",923,923,"B","KILLAM","ANANTNAG","ZO ANANTNAG CLSTR KULGAM","KEELAM","ANT","ANTKUL","JAKA0KEELAM","J&K BANK, KILLAM,NEAR MASJID SHARIEF, DISTRICT KULGAM, PIN -192231, J&K","KULGAM","KULGAM","DEVSAR","J&K",null,"KASHMIR",192231,192051312,6320938,null,null,null,{"$f":"TEXT(branch332[[#This Row],[Sol Id]],\"0000\")","v":"0923"}]
["A",687,687,"B","BHELLA","DODA","ZO DODA CLSTR DODA","BHELLA","DOD","DODDOD","JAKA0BHELLA","TEHSIL THATRI","DODA","DODA","THATRI","J&K",null,"JAMMU",182201,182051121,6320619,33.705199999999998,75.401240000000001,null,{"$f":"TEXT(branch332[[#This Row],[Sol Id]],\"0000\")","v":"0687"}]
["A",688,688,"B","UDRANA","DODA","ZO DODA CLSTR DODA","UDRANA","DOD","DODDOD","JAKA0UDRANA","UDRANA, TEHSIL BADERWAH","DODA","DODA","BHADERWAH","J&K",null,"JAMMU",182222,182051122,6320615,32.994819999999997,75.705510000000004,null,{"$f":"TEXT(branch332[[#This Row],[Sol Id]],\"0000\")","v":"0688"}]
["A",689,689,"B","LANDER","UDHAMPUR","ZO UDHAMPUR CLSTR UDHAMPUR","LANUDH","UDM","UDMUDM","JAKA0LANUDH","LANDER MAIN MARKET","UDHAMPUR","UDHAMPUR","PANCHARI","J&K",null,"JAMMU",182125,182051022,6320609,33.117449999999998,75.189210000000003,null,{"$f":"TEXT(branch332[[#This Row],[Sol Id]],\"0000\")","v":"0689"}]
["A",690,690,"B","BOUNJWAH(BINOON)","DODA","ZO DODA CLSTR KISHTWAR","BONJWA","DOD","DODKIS","JAKA0BONJWA","BOUNJWAH (BINOON)","KISHTWAR","KISHTWAR","BUNJWAH","J&K",null,"JAMMU",182203,182051412,6320652,33.105640000000001,75.918469999999999,null,{"$f":"TEXT(branch332[[#This Row],[Sol Id]],\"0000\")","v":"0690"}]
["A",691,691,"B","SARTHAL(AGRAL)","DODA","ZO DODA CLSTR KISHTWAR","SARTAL","DOD","DODKIS","JAKA0SARTAL","BPO SARTHAL MANDIR","KISHTWAR","KISHTWAR","KISHTWAR","J&K",null,"JAMMU",182204,182051413,6320616,33.235080000000004,75.816220000000001,null,{"$f":"TEXT(branch332[[#This Row],[Sol Id]],\"0000\")","v":"0691"}]
["A",692,692,"B","VAILOO","ANANTNAG","ZO ANANTNAG CLSTR -1 ANANTNAG","VAILOO","ANT","ANTCL1","JAKA0VAILOO","VAILOO MAIN MARKET","ANANTNAG","ANANTNAG","KOOKERNAG","J&K",null,"KASHMIR",192202,192051061,6320764,33.564459999999997,75.359690000000001,null,{"$f":"TEXT(branch332[[#This Row],[Sol Id]],\"0000\")","v":"0692"}]
["A",693,693,"EC","EC - ISLAMIC UNIVERSITY OF SCIENCE & TECHNOLOGY","PULWAMA","ZO PULWAMA CLSTR PULWAMA","ECIUST","PUL","PULPUL","JAKA0ECIUST","ISLAMIC UNIVERSITY OF SCIENCE AND TECHNOLOGY AWANTIPORA",null,null,null,null,null,null,null,null,null,null,null,null,{"$f":"TEXT(branch332[[#This Row],[Sol Id]],\"0000\")","v":"0693"}]
["A",694,694,"B","CHARRIPORA","BUDGAM","ZO BUDGAM CLSTR -2 BUDGAM","CHARPR","BUD","BUDCL2","JAKA0CHARPR","TEHSIL CHARISHARIEF","BUDGAM","BUDGAM","CHRAR I SHARIEF","J&K",null,"KASHMIR",191112,191051020,6320608,33.824100000000001,74.783079999999998,null,{"$f":"TEXT(branch332[[#This Row],[Sol Id]],\"0000\")","v":"0694"}]
["A",695,695,"B","WATERHAL","BUDGAM","ZO BUDGAM CLSTR -1 BUDGAM","WATHAL","BUD","BUDCL1","JAKA0WATHAL","OPP. JAMIA MASJID WATERHAL","BUDGAM","BUDGAM","KHAN SAHIB","J&K",null,"KASHMIR",191111,191051021,6320612,33.93486,74.640039999999999,null,{"$f":"TEXT(branch332[[#This Row],[Sol Id]],\"0000\")","v":"0695"}]
["A",696,696,"B","SHOOLIPORA","BUDGAM","ZO BUDGAM CLSTR -1 BUDGAM","SHOOLI","BUD","BUDCL1","JAKA0SHOOLI","SHOOLIPORA MAIN","BUDGAM","BUDGAM","BUDGAM","J&K",null,"KASHMIR",191111,191051022,6320611,34.00658,74.675399999999996,null,{"$f":"TEXT(branch332[[#This Row],[Sol Id]],\"0000\")","v":"0696"}]
["A",697,697,"B","RANGER","BUDGAM","ZO BUDGAM CLSTR -2 BUDGAM","RANGER","BUD","BUDCL2","JAKA0RANGER","TEHSIL CHADURA","BUDGAM","BUDGAM","CHADURA","J&K",null,"KASHMIR",191113,191051023,6320610,33.937489999999997,74.779060000000001,null,{"$f":"TEXT(branch332[[#This Row],[Sol Id]],\"0000\")","v":"0697"}]
["A",698,698,"B","KANIR","BUDGAM","ZO BUDGAM CLSTR -2 BUDGAM","KANEER","BUD","BUDCL2","JAKA0KANEER","KANIR","BUDGAM","BUDGAM","CHADURA","J&K",null,"KASHMIR",191113,191051024,6320705,33.93486,74.640039999999999,null,{"$f":"TEXT(branch332[[#This Row],[Sol Id]],\"0000\")","v":"0698"}]
["A",699,699,"B","KANELWAN","ANANTNAG","ZO ANANTNAG CLSTR -2 ANANTNAG","KANWAN","ANT","ANTCL2","JAKA0KANWAN","DACHINPORA","ANANTNAG","ANANTNAG","ANANTNAG","J&K",null,"KASHMIR",192404,192051057,6320664,33.79374,75.163359999999997,null,{"$f":"TEXT(branch332[[#This Row],[Sol Id]],\"0000\")","v":"0699"}]
["A",700,700,"B","SIRHAMA","ANANTNAG","ZO ANANTNAG CLSTR -2 ANANTNAG","SIRHAM","ANT","ANTCL2","JAKA0SIRHAM","SIRHAMA MAIN","ANANTNAG","ANANTNAG","ANANTNAG","J&K",null,"KASHMIR",192401,192051058,6320666,33.847059999999999,75.156260000000003,null,{"$f":"TEXT(branch332[[#This Row],[Sol Id]],\"0000\")","v":"0700"}]
["A",701,701,"B","ARWANI ( ANANTNAG)","ANANTNAG","ZO ANANTNAG CLSTR KULGAM","ARWANI","ANT","ANTKUL","JAKA0ARWANI","ARWANI","KULGAM","KULGAM","BIJBEHARA","J&K",null,"KASHMIR",192124,192051302,6320663,33.7819,75.068119999999993,null,{"$f":"TEXT(branch332[[#This Row],[Sol Id]],\"0000\")","v":"0701"}]
["A",702,702,"B","NAGABAL","PULWAMA","ZO PULWAMA CLSTR SHOPIAN","NAGSHO","PUL","PULSHO","JAKA0NAGSHO","NAGBAL NEAR PETROL PUMP","SHOPIAN","SHOPIAN","CHITRAGAM","J&K",null,"KASHMIR",192305,192051208,6320665,33.716880000000003,74.836039999999997,null,{"$f":"TEXT(branch332[[#This Row],[Sol Id]],\"0000\")","v":"0702"}]
["A",703,703,"B","VEHIL","PULWAMA","ZO PULWAMA CLSTR SHOPIAN","VEHEEL","PUL","PULSHO","JAKA0VEHEEL","VEHIL MAIN MARKET","SHOPIAN","SHOPIAN","SHOPIAN","J&K",null,"KASHMIR",192303,192051209,6320613,33.685549999999999,74.865189999999998,null,{"$f":"TEXT(branch332[[#This Row],[Sol Id]],\"0000\")","v":"0703"}]
["A",704,704,"B","BATHINDI","JAMMU","ZO JAMMU CLSTR -1 JAMMU","BTINDI","JAM","JAMCL1","JAKA0BTINDI","BATHINDI","JAMMU","JAMMU","BAHU","J&K",null,"JAMMU",181151,180051085,6320674,32.748139999999999,74.906549999999996,null,{"$f":"TEXT(branch332[[#This Row],[Sol Id]],\"0000\")","v":"0704"}]
["A",705,705,"B","WALIWAR","BUDGAM","ZO BUDGAM CLSTR GANDERBAL","WALWAR","BUD","BUDGAN","JAKA0WALWAR","WALIWAR MAIN MARKET","GANDERBAL","GANDERBAL","LAAR","J&K",null,"KASHMIR",191131,191051114,6320647,34.210619999999999,74.734380000000002,null,{"$f":"TEXT(branch332[[#This Row],[Sol Id]],\"0000\")","v":"0705"}]
["A",706,706,"B","DOMANA","JAMMU","ZO JAMMU CLSTR -3 JAMMU","DOMANA","JAM","JAMCL3","JAKA0DOMANA","POST OFFICE DOMANA","JAMMU","JAMMU","JAMMU (NORTH)","J&K",null,"JAMMU",181206,180051083,6320651,32.770600000000002,74.799580000000006,null,{"$f":"TEXT(branch332[[#This Row],[Sol Id]],\"0000\")","v":"0706"}]
["A",707,707,"B","DERA BABA BANDA BAHADUR","UDHAMPUR","ZO UDHAMPUR CLSTR REASI","DERBAB","UDM","UDMREA","JAKA0DERBAB","DEAR BABA BANDA BAHADUR","REASI","REASI","KATRA","J&K",null,"JAMMU",182301,182051260,6320614,33.001910000000002,74.816500000000005,null,{"$f":"TEXT(branch332[[#This Row],[Sol Id]],\"0000\")","v":"0707"}]
["A",708,708,"B","HARD PANZOO","BUDGAM","ZO BUDGAM CLSTR -1 BUDGAM","PANZOO","BUD","BUDCL1","JAKA0PANZOO","KHANSAHIB","BUDGAM","BUDGAM","KHAN SAHIB","J&K",null,"KASHMIR",193411,191051025,6320653,33.940800000000003,74.592519999999993,null,{"$f":"TEXT(branch332[[#This Row],[Sol Id]],\"0000\")","v":"0708"}]
["A",709,709,"B","RAITHAN","BUDGAM","ZO BUDGAM CLSTR -1 BUDGAM","RAITHN","BUD","BUDCL1","JAKA0RAITHN","RAITHAN KHANSAHIB","BUDGAM","BUDGAM","KHAN SAHIB","J&K",null,"KASHMIR",191111,191051026,6320618,33.915709999999997,74.655410000000003,null,{"$f":"TEXT(branch332[[#This Row],[Sol Id]],\"0000\")","v":"0709"}]
["A",710,710,"B","BOGDANG","LADAKH","ZO LADAKH CLSTR LEH","BGDONG","LAD","LADLEH","JAKA0BGDONG","DISKIT","LEH","LEH","DISKIT","LADAKH",null,"LADAKH",194401,194051022,6320649,34.803060000000002,77.041200000000003,null,{"$f":"TEXT(branch332[[#This Row],[Sol Id]],\"0000\")","v":"0710"}]
["A",711,711,"B","SARWAL","JAMMU","ZO JAMMU CLSTR -1 JAMMU","SARWAL","JAM","JAMCL1","JAKA0SARWAL","SARWAL MAIN MARKET","JAMMU","JAMMU","JAMMU","J&K",null,"JAMMU",180005,180051084,6320650,32.753059999999998,74.860950000000003,null,{"$f":"TEXT(branch332[[#This Row],[Sol Id]],\"0000\")","v":"0711"}]
["A",712,712,"B","B. C. ROAD","JAMMU","ZO JAMMU CLSTR -1 JAMMU","BCROAD","JAM","JAMCL1","JAKA0BCROAD","REHARI CHUNGI","JAMMU","JAMMU","JAMMU","J&K",null,"JAMMU",180001,180051086,6320668,32.74277,74.860320000000002,null,{"$f":"TEXT(branch332[[#This Row],[Sol Id]],\"0000\")","v":"0712"}]
["A",714,714,"B","NOWPORA","BUDGAM","ZO BUDGAM CLSTR -2 BUDGAM","NOWBUD","BUD","BUDCL2","JAKA0NOWBUD","CHADORA","BUDGAM","BUDGAM","CHADURA","J&K",null,"KASHMIR",191113,191051027,6320655,34.095219999999998,74.636750000000006,null,{"$f":"TEXT(branch332[[#This Row],[Sol Id]],\"0000\")","v":"0714"}]
["A",715,715,"B","HAFROO BATPORA","BUDGAM","ZO BUDGAM CLSTR -2 BUDGAM","HAFROO","BUD","BUDCL2","JAKA0HAFROO","CHADORA","BUDGAM","BUDGAM","CHADURA","J&K",null,"KASHMIR",191113,191051028,6320656,33.942010000000003,74.798910000000006,null,{"$f":"TEXT(branch332[[#This Row],[Sol Id]],\"0000\")","v":"0715"}]
["A",716,716,"B","FRIENDS COLONY PALOURA","JAMMU","ZO JAMMU CLSTR -3 JAMMU","FCPALO","JAM","JAMCL3","JAKA0FCPALO","PATTA PALOURA","JAMMU","JAMMU","JAMMU (NORTH)","J&K",null,"JAMMU",180002,180051088,6320669,32.745930000000001,74.823269999999994,null,{"$f":"TEXT(branch332[[#This Row],[Sol Id]],\"0000\")","v":"0716"}]
["A",717,717,"B","PANZATH","ANANTNAG","ZO ANANTNAG CLSTR -1 ANANTNAG","PANZAT","ANT","ANTCL1","JAKA0PANZAT","PANZATH WANPORA","ANANTNAG","ANANTNAG","QAZIGUND","J&K",null,"KASHMIR",192221,192051059,6320676,33.616480000000003,75.158839999999998,null,{"$f":"TEXT(branch332[[#This Row],[Sol Id]],\"0000\")","v":"0717"}]
["A",718,718,"B","KOIL","PULWAMA","ZO PULWAMA CLSTR PULWAMA","KOLPUL","PUL","PULPUL","JAKA0KOLPUL","KOIL VILLAGE","PULWAMA","PULWAMA","PULWAMA","J&K",null,"KASHMIR",192301,192051127,6320683,33.879309999999997,74.950810000000004,null,{"$f":"TEXT(branch332[[#This Row],[Sol Id]],\"0000\")","v":"0718"}]
["A",719,719,"B","KEYGAM","PULWAMA","ZO PULWAMA CLSTR SHOPIAN","KEYGAM","PUL","PULSHO","JAKA0KEYGAM","PULWAMA ROAD","SHOPIAN","SHOPIAN","KEYGAM","J&K",null,"KASHMIR",192302,192051210,6320677,33.78707,74.860889999999998,null,{"$f":"TEXT(branch332[[#This Row],[Sol Id]],\"0000\")","v":"0719"}]
["A",720,720,"B","GURGOAN SECTOR 44","DELHI","ZO DELHI CLSTR -1 DELHI","GURSEC","DEL","DELCL1","JAKA0GURSEC","SECTOR 44","GURGAON","GURGAON",null,"HARYANA",null,"ROI",122002,110051031,6320621,28.450559999999999,77.072620000000001,null,{"$f":"TEXT(branch332[[#This Row],[Sol Id]],\"0000\")","v":"0720"}]
["A",721,721,"B","DADA OMPORA","BUDGAM","ZO BUDGAM CLSTR -2 BUDGAM","DADAOM","BUD","BUDCL2","JAKA0DADAOM","CHADORA","BUDGAM","BUDGAM","CHADURA","J&K",null,"KASHMIR",191113,191051029,6320657,33.921169999999996,74.753330000000005,null,{"$f":"TEXT(branch332[[#This Row],[Sol Id]],\"0000\")","v":"0721"}]
["A",722,722,"B","SURASYAR","BUDGAM","ZO BUDGAM CLSTR -2 BUDGAM","SURAAS","BUD","BUDCL2","JAKA0SURAAS","SURASYAR, CHADORA","BUDGAM","BUDGAM","CHADURA","J&K",null,"KASHMIR",191113,191051030,6320658,33.922809999999998,74.732709999999997,null,{"$f":"TEXT(branch332[[#This Row],[Sol Id]],\"0000\")","v":"0722"}]
["A",723,723,"B","PANZAN","BUDGAM","ZO BUDGAM CLSTR -2 BUDGAM","PANZAN","BUD","BUDCL2","JAKA0PANZAN","PANZAN , CHADORA","BUDGAM","BUDGAM","CHADURA","J&K",null,"KASHMIR",191113,191051031,6320675,33.960850000000001,74.775400000000005,null,{"$f":"TEXT(branch332[[#This Row],[Sol Id]],\"0000\")","v":"0723"}]
["A",724,724,"B","MALLABAGH","SRINAGAR","ZO SRINAGAR CLSTR -2 SRINAGAR","MALBAG","SGR","SGRCL2","JAKA0MALBAG","MALLABAGH MAIN MARKET , HAZRATBAL","SRINAGAR","SRINAGAR","SRINAGAR","J&K",null,"KASHMIR",190006,190051091,6320670,34.148150000000001,74.826589999999996,null,{"$f":"TEXT(branch332[[#This Row],[Sol Id]],\"0000\")","v":"0724"}]
["A",725,725,"B","DANSAL","JAMMU","ZO JAMMU CLSTR -1 JAMMU","DANSAL","JAM","JAMCL1","JAKA0DANSAL","P.O-DANSAL","JAMMU","JAMMU","DANSAL","J&K",null,"JAMMU",181224,180051091,6320678,32.867370000000001,74.994889999999998,null,{"$f":"TEXT(branch332[[#This Row],[Sol Id]],\"0000\")","v":"0725"}]
["A",726,726,"B","SALAMABAD URI","BARAMULLA","ZO BARAMULLA CLSTR BARAMULLA","SALAMA","BAR","BARBAR","JAKA0SALAMA","TEHSIL URI,","BARAMULLA","BARAMULLA","URI","J&K",null,"KASHMIR",193123,193051041,6320740,34.059170000000002,74.007199999999997,null,{"$f":"TEXT(branch332[[#This Row],[Sol Id]],\"0000\")","v":"0726"}]
["A",727,727,"B","NISHAT PARK BANDIPORA","BARAMULLA","ZO BARAMULLA CLSTR BANDIPORA","NIPARK","BAR","BARBAN","JAKA0NIPARK","NISHAT PARK BANDIPORA","BANDIPORA","BANDIPORA","BANDIPORA","J&K",null,"KASHMIR",193502,193051409,6320789,34.414259999999999,74.643519999999995,null,{"$f":"TEXT(branch332[[#This Row],[Sol Id]],\"0000\")","v":"0727"}]
["A",728,728,"B","MAIN MARKET SUMBAL","BARAMULLA","ZO BARAMULLA CLSTR BANDIPORA","MMSUMB","BAR","BARBAN","JAKA0MMSUMB","MAIN MARKET SUMBAL","BANDIPORA","BANDIPORA","SUMBAL SONAWARI","J&K",null,"KASHMIR",193501,193051407,6320814,34.230710000000002,74.647310000000004,null,{"$f":"TEXT(branch332[[#This Row],[Sol Id]],\"0000\")","v":"0728"}]
["A",729,729,"B","GAMUD GADAKHUD","BARAMULLA","ZO BARAMULLA CLSTR BANDIPORA","GAMUDD","BAR","BARBAN","JAKA0GAMUDD","TEHSIL SUMBAL","BANDIPORA","BANDIPORA","SUMBAL SONAWARI","J&K",null,"KASHMIR",193501,193051408,6320761,34.1629,74.637289999999993,null,{"$f":"TEXT(branch332[[#This Row],[Sol Id]],\"0000\")","v":"0729"}]
["A",730,730,"B","NOWPORA KALAN","BARAMULLA","ZO BARAMULLA CLSTR SOPORE","NWKLAN","BAR","BARSOP","JAKA0NWKLAN","TEHSIL SOPORE","BARAMULLA","BARAMULLA","SOPORE","J&K",null,"KASHMIR",193201,193051113,6320827,34.302930000000003,74.435720000000003,null,{"$f":"TEXT(branch332[[#This Row],[Sol Id]],\"0000\")","v":"0730"}]
["A",731,731,"B","LORAN","RAJOURI","ZO RAJOURI CLSTR POONCH","LORAAN","RAJ","RAJPOO","JAKA0LORAAN","LORAN, TEHSIL-MANDI","POONCH","POONCH","MANDI","J&K",null,"JAMMU",185102,185051112,6320679,33.799230000000001,74.347020000000001,null,{"$f":"TEXT(branch332[[#This Row],[Sol Id]],\"0000\")","v":"0731"}]
["A",732,732,"B","CHANDAK","RAJOURI","ZO RAJOURI CLSTR POONCH","CHANDK","RAJ","RAJPOO","JAKA0CHANDK","TEHSIL-HAVELI","POONCH","POONCH","HAVELI","J&K",null,"JAMMU",185101,185051113,6320684,33.748869999999997,74.174639999999997,null,{"$f":"TEXT(branch332[[#This Row],[Sol Id]],\"0000\")","v":"0732"}]
["A",733,733,"B","WALTENGO","ANANTNAG","ZO ANANTNAG CLSTR KULGAM","BAGDAD","ANT","ANTKUL","JAKA0BAGDAD","WALTENGO MAIN MARKET","KULGAM","KULGAM","DEVSAR","J&K",null,"KASHMIR",192221,192051304,6320685,33.637749999999997,75.050280000000001,null,{"$f":"TEXT(branch332[[#This Row],[Sol Id]],\"0000\")","v":"0733"}]
["A",734,734,"B","BATALIK","LADAKH","ZO LADAKH CLSTR KARGIL","BATLIK","LAD","LADKAR","JAKA0BATLIK","BATALIK","KARGIL","KARGIL","KARGIL","LADAKH",null,"LADAKH",194103,194051025,6320681,34.654400000000003,76.343860000000006,null,{"$f":"TEXT(branch332[[#This Row],[Sol Id]],\"0000\")","v":"0734"}]
["A",735,735,"B","LOLIPUR","BUDGAM","ZO BUDGAM CLSTR -2 BUDGAM","LULPUR","BUD","BUDCL2","JAKA0LULPUR","LOLIPUR VILLAGE TEHSIL-CHADURA","BUDGAM","BUDGAM","CHADURA","J&K",null,"KASHMIR",191113,191051032,6320692,33.93486,74.640039999999999,null,{"$f":"TEXT(branch332[[#This Row],[Sol Id]],\"0000\")","v":"0735"}]
["A",736,736,"B","MUJIGUND","SRINAGAR","ZO SRINAGAR CLSTR -3 SRINAGAR","MUJGUN","SGR","SGRCL3","JAKA0MUJGUN","CHECK MUJIGUND","SRINAGAR","SRINAGAR","SHALTENG SRINAGAR","J&K",null,"KASHMIR",190017,190051094,6320689,34.134149999999998,74.705169999999995,null,{"$f":"TEXT(branch332[[#This Row],[Sol Id]],\"0000\")","v":"0736"}]
["A",737,737,"B","GUND HASSI BHAT","SRINAGAR","ZO SRINAGAR CLSTR -3 SRINAGAR","HASBAT","SGR","SGRCL3","JAKA0HASBAT","GUND HASIBHAT","SRINAGAR","SRINAGAR","SHALTENG","J&K",null,"KASHMIR",190017,190051095,6320693,34.112310000000001,74.694149999999993,null,{"$f":"TEXT(branch332[[#This Row],[Sol Id]],\"0000\")","v":"0737"}]
["A",738,738,"B","CHATTERGUL","BUDGAM","ZO BUDGAM CLSTR GANDERBAL","CHATGB","BUD","BUDGAN","JAKA0CHATGB","TEHSIL-KANGAN","GANDERBAL","GANDERBAL","KANGAN","J&K",null,"KASHMIR",191201,191051115,6320687,34.149090000000001,76.825969999999998,null,{"$f":"TEXT(branch332[[#This Row],[Sol Id]],\"0000\")","v":"0738"}]
["A",739,739,"B","WANGAT","BUDGAM","ZO BUDGAM CLSTR GANDERBAL","WANGAT","BUD","BUDGAN","JAKA0WANGAT","WANGAT VILLAGE, TEHSIL-KANGAN","GANDERBAL","GANDERBAL","KANGAN","J&K",null,"KASHMIR",191201,191051116,6320688,34.317,74.943640000000002,null,{"$f":"TEXT(branch332[[#This Row],[Sol Id]],\"0000\")","v":"0739"}]
["A",740,740,"B","RATNIPORA SHOPIAN","PULWAMA","ZO PULWAMA CLSTR SHOPIAN","RATSHP","PUL","PULSHO","JAKA0RATSHP","RATNIPORA SHOPIAN","SHOPIAN","SHOPIAN","KAPRAN","J&K",null,"KASHMIR",192303,192051211,6320695,33.68526,74.898949999999999,null,{"$f":"TEXT(branch332[[#This Row],[Sol Id]],\"0000\")","v":"0740"}]
["A",741,741,"B","FRUIT MANDI KULGAM","ANANTNAG","ZO ANANTNAG CLSTR KULGAM","FMKLGM","ANT","ANTKUL","JAKA0FMKLGM","FRIT MARKET KULGAM","KULGAM","KULGAM","KULGAM","J&K",null,"KASHMIR",192231,192051305,6320690,33.645719999999997,75.024829999999994,null,{"$f":"TEXT(branch332[[#This Row],[Sol Id]],\"0000\")","v":"0741"}]
["A",742,742,"B","JANAK PURI","DELHI","ZO DELHI CLSTR -2 DELHI","JANNAK","DEL","DELCL2","JAKA0JANNAK","B-1/512 JANAKPURI","DELHI","DELHI",null,"DELHI",null,"ROI",110058,110051033,6320698,28.629829999999998,77.083150000000003,null,{"$f":"TEXT(branch332[[#This Row],[Sol Id]],\"0000\")","v":"0742"}]
["A",743,743,"B","ZAKIR NAGAR","DELHI","ZO DELHI CLSTR -2 DELHI","ZAAKIR","DEL","DELCL2","JAKA0ZAAKIR","OPP. MCD SCHOOL, ZAKIR NAGAR","DELHI","DELHI",null,"DELHI",null,"ROI",110025,110051032,6320697,28.569140000000001,77.278630000000007,null,{"$f":"TEXT(branch332[[#This Row],[Sol Id]],\"0000\")","v":"0743"}]
["A",744,744,"B","MALVIYA NAGAR","DELHI","ZO DELHI CLSTR -1 DELHI","MALVIA","DEL","DELCL1","JAKA0MALVIA","MALVIYA NAGAR MAIN MARKET","DELHI","DELHI",null,"DELHI",null,"ROI",110017,110051034,6320812,28.535959999999999,77.217600000000004,null,{"$f":"TEXT(branch332[[#This Row],[Sol Id]],\"0000\")","v":"0744"}]
["A",745,745,"B","POSHKAR","BUDGAM","ZO BUDGAM CLSTR -1 BUDGAM","POSHKR","BUD","BUDCL1","JAKA0POSHKR","TEHSIL-KHAG","BUDGAM","BUDGAM","KHAG","J&K",null,"KASHMIR",193411,191051033,6320706,33.981780000000001,74.491079999999997,null,{"$f":"TEXT(branch332[[#This Row],[Sol Id]],\"0000\")","v":"0745"}]
["A",746,746,"B","FRAZER TOWN","BENGALURU","ZO BENGALURU CLSTR BENGALURU","FRAZER","BEN","BENBEN","JAKA0FRAZER","95 MOSQUE ROAD, FRAZER TOWN","BANGALORE","BANGALURU",null,"KARNATAKA",null,"ROI",560005,560051005,6320696,12.99864,77.615489999999994,null,{"$f":"TEXT(branch332[[#This Row],[Sol Id]],\"0000\")","v":"0746"}]
["A",747,747,"EC","EC - J&K POLICE HEADQUARTERS","SRINAGAR","UNDER ZO SRINAGAR","JKPHQR","SGR","SGRUND","JAKA0JKPHQR","PIR BAGH, SRINAGAR",null,null,null,null,null,null,null,null,null,null,null,null,{"$f":"TEXT(branch332[[#This Row],[Sol Id]],\"0000\")","v":"0747"}]
["A",748,748,"B","REGIPORA","BARAMULLA","ZO BARAMULLA CLSTR KUPWARA","REGPUR","BAR","BARKUP","JAKA0REGPUR","COLLEGE ROAD REGIPORA","KUPWARA","KUPWARA","KUPWARA","J&K",null,"KASHMIR",193222,193051227,6320753,34.545389999999998,74.326220000000006,null,{"$f":"TEXT(branch332[[#This Row],[Sol Id]],\"0000\")","v":"0748"}]
["A",749,749,"B","NAGRI","DODA","ZO DODA CLSTR DODA","NAGREE","DOD","DODDOD","JAKA0NAGREE","NAGRI MAIN MARKET","DODA","DODA","DODA","J&K",null,"JAMMU",182202,182051123,6320711,33.145850000000003,75.548609999999996,null,{"$f":"TEXT(branch332[[#This Row],[Sol Id]],\"0000\")","v":"0749"}]
["A",750,750,"B","KASKOOT","DODA","ZO DODA CLSTR RAMBAN","KASKOT","DOD","DODRAM","JAKA0KASKOT","KASKOOT MAIN , TEHSIL-BANIHAL","RAMBAN","RAMBAN","BANIHAL","J&K",null,"JAMMU",182146,182051309,6320768,33.449910000000003,75.186030000000002,null,{"$f":"TEXT(branch332[[#This Row],[Sol Id]],\"0000\")","v":"0750"}]
["A",751,751,"B","GENERAL BUS STAND BATAMALOO","SRINAGAR","ZO SRINAGAR CLSTR -3 SRINAGAR","GENBUS","SGR","SGRCL3","JAKA0GENBUS","BARN PATHER BATAMALOO","SRINAGAR","SRINAGAR","SRINAGAR","J&K",null,"KASHMIR",190009,190051096,6320757,34.075110000000002,74.793620000000004,null,{"$f":"TEXT(branch332[[#This Row],[Sol Id]],\"0000\")","v":"0751"}]
["A",752,752,"B","SAIDA KADAL","SRINAGAR","ZO SRINAGAR CLSTR -2 SRINAGAR","SKADAL","SGR","SGRCL2","JAKA0SKADAL","SAIDAKADAL , SRINAGAR","SRINAGAR","SRINAGAR","KHANYAR","J&K",null,"KASHMIR",190003,190051098,6320797,34.104340000000001,74.828429999999997,null,{"$f":"TEXT(branch332[[#This Row],[Sol Id]],\"0000\")","v":"0752"}]
["A",753,753,"B","HABBAK CROSSING","SRINAGAR","ZO SRINAGAR CLSTR -2 SRINAGAR","HABBAK","SGR","SGRCL2","JAKA0HABBAK","POST OFFICE KASHMIR UNIVERSITY","SRINAGAR","SRINAGAR","HAZRATBAL","J&K",null,"KASHMIR",190006,190051102,6320862,null,null,null,{"$f":"TEXT(branch332[[#This Row],[Sol Id]],\"0000\")","v":"0753"}]
["A",754,754,"B","WATHOORA","BUDGAM","ZO BUDGAM CLSTR -2 BUDGAM","WATHAR","BUD","BUDCL2","JAKA0WATHAR","MAIN CHOWK WATHOORA","BUDGAM","BUDGAM","CHADURA","J&K",null,"KASHMIR",191113,191051039,6320854,33.985019999999999,74.821470000000005,null,{"$f":"TEXT(branch332[[#This Row],[Sol Id]],\"0000\")","v":"0754"}]
["A",755,755,"B","CHATERGAM","BUDGAM","ZO BUDGAM CLSTR -2 BUDGAM","CHATER","BUD","BUDCL2","JAKA0CHATER","TEHSIL CHADURA","BUDGAM","BUDGAM","BAGATI KANIPORA","J&K",null,"KASHMIR",191113,191051034,6320720,33.986049999999999,74.840479999999999,null,{"$f":"TEXT(branch332[[#This Row],[Sol Id]],\"0000\")","v":"0755"}]
["A",756,756,"B","CHAWALGAM","ANANTNAG","ZO ANANTNAG CLSTR KULGAM","CHAWAL","ANT","ANTKUL","JAKA0CHAWAL","CHAWALGAM","KULGAM","KULGAM","KULGAM","J&K",null,"KASHMIR",192231,192051306,6320774,33.647970000000001,74.993629999999996,null,{"$f":"TEXT(branch332[[#This Row],[Sol Id]],\"0000\")","v":"0756"}]
["A",757,757,"B","KATRASOO","ANANTNAG","ZO ANANTNAG CLSTR KULGAM","KATSOO","ANT","ANTKUL","JAKA0KATSOO","MAIN CHOWK KATRASOO","KULGAM","KULGAM","KULGAM","J&K",null,"KASHMIR",192232,192051307,6320725,33.68647,74.994789999999995,null,{"$f":"TEXT(branch332[[#This Row],[Sol Id]],\"0000\")","v":"0757"}]
["A",758,758,"B","AHLAN GADOLE","ANANTNAG","ZO ANANTNAG CLSTR -1 ANANTNAG","AGADOL","ANT","ANTCL1","JAKA0AGADOL","AHLAN GADOLE","ANANTNAG","ANANTNAG","KOOKERNAG","J&K",null,"KASHMIR",192202,192051064,6320722,33.73113,75.148700000000005,null,{"$f":"TEXT(branch332[[#This Row],[Sol Id]],\"0000\")","v":"0758"}]
["A",759,759,"B","WANDEVELGAM","ANANTNAG","ZO ANANTNAG CLSTR -1 ANANTNAG","WANDAL","ANT","ANTCL1","JAKA0WANDAL","WANDEVALGAM MAIN M ARKET","ANANTNAG","ANANTNAG","KOOKERNAG","J&K",null,"KASHMIR",192202,192051063,6320811,33.571860000000001,75.335080000000005,null,{"$f":"TEXT(branch332[[#This Row],[Sol Id]],\"0000\")","v":"0759"}]
["A",760,760,"B","FRUIT MANDI PRICHOO","PULWAMA","ZO PULWAMA CLSTR PULWAMA","PIRCHO","PUL","PULPUL","JAKA0PIRCHO","FRUIT MANDI PRICHOO","PULWAMA","PULWAMA","PULWAMA","J&K",null,"KASHMIR",192301,192051128,6320721,33.8825,74.906850000000006,null,{"$f":"TEXT(branch332[[#This Row],[Sol Id]],\"0000\")","v":"0760"}]
["A",761,761,"B","SOIMOH TRAL","PULWAMA","ZO PULWAMA CLSTR PULWAMA","SIMTRA","PUL","PULPUL","JAKA0SIMTRA","SOIMOH TRAL","PULWAMA","PULWAMA","TRAL","J&K",null,"KASHMIR",192123,192051130,6320723,33.898499999999999,75.105739999999997,null,{"$f":"TEXT(branch332[[#This Row],[Sol Id]],\"0000\")","v":"0761"}]
["A",762,762,"B","TRENZ","PULWAMA","ZO PULWAMA CLSTR SHOPIAN","TRENZZ","PUL","PULSHO","JAKA0TRENZZ","OPPOSITE JAMIA MASJID, TRENZ","SHOPIAN","SHOPIAN","SHOPIAN","J&K",null,"KASHMIR",192303,192051129,6320775,33.765030000000003,74.887439999999998,null,{"$f":"TEXT(branch332[[#This Row],[Sol Id]],\"0000\")","v":"0762"}]
["A",763,763,"B","BATPORA","PULWAMA","ZO PULWAMA CLSTR SHOPIAN","BATPOR","PUL","PULSHO","JAKA0BATPOR","NEAR BUS STAND; TEHSIL SHOPIAN","SHOPIAN","SHOPIAN","SHOPIAN","J&K",null,"KASHMIR",192303,192051214,6320856,33.721350000000001,74.827799999999996,null,{"$f":"TEXT(branch332[[#This Row],[Sol Id]],\"0000\")","v":"0763"}]
["A",764,764,"B","COURT ROAD SHOPIAN","PULWAMA","ZO PULWAMA CLSTR SHOPIAN","CRSHOP","PUL","PULSHO","JAKA0CRSHOP","COURT RAOD SHOPIAN, TEHSIL SHOPIAN","SHOPIAN","SHOPIAN","SHOPIAN","J&K",null,"KASHMIR",192303,192051137,6320865,null,null,null,{"$f":"TEXT(branch332[[#This Row],[Sol Id]],\"0000\")","v":"0764"}]
["A",765,765,"B","PALMAR","DODA","ZO DODA CLSTR KISHTWAR","PALMAR","DOD","DODKIS","JAKA0PALMAR","PALMAR MAIN","KISHTWAR","KISHTWAR","KISHTWAR","J&K",null,"JAMMU",182205,182051415,6320727,33.455880000000001,75.684809999999999,null,{"$f":"TEXT(branch332[[#This Row],[Sol Id]],\"0000\")","v":"0765"}]
["A",766,766,"B","SERI DODA","DODA","ZO DODA CLSTR DODA","SEDODA","DOD","DODDOD","JAKA0SEDODA","TEHSIL BADERWAH","DODA","DODA","BHALLA","J&K",null,"JAMMU",182221,182051124,6320776,33.047139999999999,75.655079999999998,null,{"$f":"TEXT(branch332[[#This Row],[Sol Id]],\"0000\")","v":"0766"}]
["A",282,282,"B","LANDHER PANCHARI","UDHAMPUR","ZO UDHAMPUR CLSTR UDHAMPUR","LANDER","UDM","UDMUDM","JAKA0LANDER","LANDHER PANCHERI UDHAMPUR","UDHAMPUR","UDHAMPUR","PANCHARI","J&K",null,"JAMMU",182225,182051014,6320282,33.065309999999997,75.156499999999994,null,{"$f":"TEXT(branch332[[#This Row],[Sol Id]],\"0000\")","v":"0282"}]
["A",283,283,"B","BHADOO","KATHUA","ZO KATHUA CLSTR KATHUA","BHADOO","KAT","KATKAT","JAKA0BHADOO","V.P.O BHADOO,BILAWAR","KATHUA","KATHUA","BILLAWAR","J&K",null,"JAMMU",184203,184051006,6320283,32.579749999999997,75.52861,null,{"$f":"TEXT(branch332[[#This Row],[Sol Id]],\"0000\")","v":"0283"}]
["A",284,284,"B","SAMOOR","LADAKH","ZO LADAKH CLSTR LEH","SAMOOR","LAD","LADLEH","JAKA0SAMOOR","SUMOOR NOBRA LEH","LEH","LEH","SAMOOR","LADAKH",null,"LADAKH",194401,194051010,6320284,null,null,null,{"$f":"TEXT(branch332[[#This Row],[Sol Id]],\"0000\")","v":"0284"}]
["A",285,285,"B","ANDHERI MUMBAI","MUMBAI","ZO MUMBAI CLSTR MUMBAI","ANDERI","MUM","MUMMUM","JAKA0ANDERI","SUYOG SADAN BLDG, MAHA KALI CAVES ROAD,ANDHERI EAST","GREATER MUMBAI","GREATER MUMBAI",null,"MAHARASHTRA",null,"ROI",400093,400051004,6320285,19.123799999999999,72.864429999999999,null,{"$f":"TEXT(branch332[[#This Row],[Sol Id]],\"0000\")","v":"0285"}]
["A",286,286,"B","BATALA","KATHUA","ZO KATHUA CLSTR MOHALI","BATALA","KAT","KATMOH","JAKA0BATALA","MAHARAJA JESSA SINGH RAM GARH ROAD","GURDASPUR","BATALA",null,"PUNJAB",null,"ROI",143505,143051102,6320286,31.81654,75.201790000000003,null,{"$f":"TEXT(branch332[[#This Row],[Sol Id]],\"0000\")","v":"0286"}]
["A",287,287,"B","NAVIN SHADRA DELHI","DELHI","ZO DELHI CLSTR -2 DELHI","SHADRA","DEL","DELCL2","JAKA0SHADRA","BABARPUR ROAD, ROHTAS NAGAR","DELHI","DELHI",null,"DELHI",null,"ROI",110032,110051010,6320287,28.681270000000001,77.28613,null,{"$f":"TEXT(branch332[[#This Row],[Sol Id]],\"0000\")","v":"0287"}]
["A",288,288,"B","VAISHNO DEVI","UDHAMPUR","ZO UDHAMPUR CLSTR REASI","VASHNO","UDM","UDMREA","JAKA0VASHNO","KATTRA MAIN","REASI","REASI","KATRA","J&K",null,"JAMMU",182502,182051203,6320288,33.030520000000003,74.948390000000003,null,{"$f":"TEXT(branch332[[#This Row],[Sol Id]],\"0000\")","v":"0288"}]
["A",289,289,"B","CHUNDUNA","BUDGAM","ZO BUDGAM CLSTR GANDERBAL","CHDUNA","BUD","BUDGAN","JAKA0CHDUNA","SHALLABUG","GANDERBAL","GANDERBAL","GANDERBAL","J&K",null,"KASHMIR",191131,191051102,6320289,34.173780000000001,74.723460000000003,null,{"$f":"TEXT(branch332[[#This Row],[Sol Id]],\"0000\")","v":"0289"}]
["A",292,292,"B","AMBALLA CANTT","KATHUA","ZO KATHUA CLSTR MOHALI","AMBALA","KAT","KATMOH","JAKA0AMBALA","5683/1, NICHOLSAN ROAD, AMBALA CANTT. (PUNJAB)","AMBALA","AMBALLA",null,"HARYANA",null,"ROI",133001,133051002,6320292,30.339960000000001,76.841470000000001,null,{"$f":"TEXT(branch332[[#This Row],[Sol Id]],\"0000\")","v":"0292"}]
["A",293,293,"B","PUNE","MUMBAI","ZO MUMBAI CLSTR MUMBAI","POONAH","MUM","MUMMUM","JAKA0POONAH","RADIANT RAHEJA MILLINIUM COMPLEX,IST FLOOR, 284 MG ROAD, PUNE","PUNE","PUNE",null,"MAHARASHTRA",null,"ROI",411001,411051001,6320293,18.50582,73.878469999999993,null,{"$f":"TEXT(branch332[[#This Row],[Sol Id]],\"0000\")","v":"0293"}]
["A",294,294,"B","SURAT","MUMBAI","ZO MUMBAI CLSTR MUMBAI","SOORAT","MUM","MUMMUM","JAKA0SOORAT","SUPETEX TOWER, NEAR KINNERY CINEMA,RING ROAD, SURAT","SURAT","SURAT",null,"GUJARAT",null,"ROI",395002,395051002,6320294,21.17024,72.831059999999994,null,{"$f":"TEXT(branch332[[#This Row],[Sol Id]],\"0000\")","v":"0294"}]
["A",295,295,"B","INDORE","MUMBAI","ZO MUMBAI CLSTR MUMBAI","INDORE","MUM","MUMMUM","JAKA0INDORE","(U.G.)3-4 DIAMOND,TRADE CENTRE INDORE","INDORE","INDORE",null,"MP",null,"ROI",452001,452051002,6320295,22.724350000000001,75.882000000000005,null,{"$f":"TEXT(branch332[[#This Row],[Sol Id]],\"0000\")","v":"0295"}]
["A",296,296,"B","DANEW KANDIMARG","ANANTNAG","ZO ANANTNAG CLSTR KULGAM","DWMARG","ANT","ANTKUL","JAKA0DWMARG","DANEW KANDI MARG TEHSIL DAMHAL HANJIPO","KULGAM","KULGAM","DAMHAL HANJIPORA","J&K",null,"KASHMIR",192233,192051050,6320296,33.567149999999998,74.977829999999997,null,{"$f":"TEXT(branch332[[#This Row],[Sol Id]],\"0000\")","v":"0296"}]
["A",297,297,"B","SOHAL","JAMMU","ZO JAMMU CLSTR -3 JAMMU","SOHAAL","JAM","JAMCL3","JAKA0SOHAAL","SOHAL, AKHNOOR","JAMMU","JAMMU","AKHNOOR","J&K",null,"JAMMU",181201,180051063,6320297,32.893859999999997,74.574309999999997,null,{"$f":"TEXT(branch332[[#This Row],[Sol Id]],\"0000\")","v":"0297"}]
["A",298,298,"B","NAGPUR","MUMBAI","ZO MUMBAI CLSTR MUMBAI","NAGPUR","MUM","MUMMUM","JAKA0NAGPUR","22/30 WARD NO. 38, NEW RESIDENCY ROAD, SADAR, NAGAPUR.","NAGPUR","NAGPUR",null,"MAHARASHTRA",null,"ROI",440001,440051002,6320298,21.160789999999999,79.079549999999998,null,{"$f":"TEXT(branch332[[#This Row],[Sol Id]],\"0000\")","v":"0298"}]
["A",299,299,"B","JAIPUR","DELHI","ZO DELHI CLSTR -1 DELHI","JAIPUR","DEL","DELCL1","JAKA0JAIPUR","M.I.ROAD,PANCH BATI","JAIPUR","JAIPUR",null,"RAJASTHAN",null,"ROI",302001,302051001,6320299,26.912430000000001,75.787270000000007,null,{"$f":"TEXT(branch332[[#This Row],[Sol Id]],\"0000\")","v":"0299"}]
["A",300,300,"B","TOTAN DI KHUI JAMMU","JAMMU","ZO JAMMU CLSTR -2 JAMMU","TOOTAN","JAM","JAMCL2","JAKA0TOOTAN","TOTAN DI KHUI,P.O BAIN BAJALTA","JAMMU","JAMMU","JAMMU","J&K",null,"JAMMU",180017,180051054,6320300,32.762169999999998,74.952070000000006,null,{"$f":"TEXT(branch332[[#This Row],[Sol Id]],\"0000\")","v":"0300"}]
["A",301,301,"B","MEERUT","DELHI","ZO DELHI CLSTR LUCKNOW","MEERUT","DEL","DELLUC","JAKA0MEERUT","43-BEGUM BRIDGE","MEERUT","MEERUT",null,"UP",null,"ROI",250001,250051002,6320301,28.99522,77.705529999999996,null,{"$f":"TEXT(branch332[[#This Row],[Sol Id]],\"0000\")","v":"0301"}]
["A",302,302,"B","HARIA CHAK","KATHUA","ZO KATHUA CLSTR KATHUA","HRCHAK","KAT","KATKAT","JAKA0HRCHAK","TEHSIL HIRANAGAR","KATHUA","KATHUA","MARHEEN","J&K",null,"JAMMU",184148,184051021,6320302,null,null,null,{"$f":"TEXT(branch332[[#This Row],[Sol Id]],\"0000\")","v":"0302"}]
["A",303,303,"B","HIRA NAGAR MORH","KATHUA","ZO KATHUA CLSTR KATHUA","SIMPLE","KAT","KATKAT","JAKA0SIMPLE","HIRANAGAR MORH KATHUA","KATHUA","KATHUA","HIRANAGAR","J&K",null,"JAMMU",184142,184051012,6320303,null,null,null,{"$f":"TEXT(branch332[[#This Row],[Sol Id]],\"0000\")","v":"0303"}]
["A",304,304,"B","DALHORI","RAJOURI","ZO RAJOURI CLSTR RAJOURI","DALORI","RAJ","RAJRAJ","JAKA0DALORI","DALHORI, RAJOURI","RAJOURI","RAJOURI","RAJOURI","J&K",null,"JAMMU",185132,185051011,6320304,33.291710000000002,74.434979999999996,null,{"$f":"TEXT(branch332[[#This Row],[Sol Id]],\"0000\")","v":"0304"}]
["A",306,306,"B","MACHHEDI","KATHUA","ZO KATHUA CLSTR KATHUA","MACHAN","KAT","KATKAT","JAKA0MACHAN","MACHHEDI TEHSIL BILAWAR","KATHUA","KATHUA","LOHAIMALHAR","J&K",null,"JAMMU",184204,184051022,6320306,32.613770000000002,75.604560000000006,null,{"$f":"TEXT(branch332[[#This Row],[Sol Id]],\"0000\")","v":"0306"}]
["A",307,307,"B","WANPORA","PULWAMA","ZO PULWAMA CLSTR PULWAMA","DECENT","PUL","PULPUL","JAKA0DECENT","HUNIPORA WANPORA PAMPORA KASHMIR","PULWAMA","PULWAMA","PULWAMA","J&K",null,"KASHMIR",192121,192051112,6320307,33.962330000000001,74.871359999999996,null,{"$f":"TEXT(branch332[[#This Row],[Sol Id]],\"0000\")","v":"0307"}]
["A",308,308,"B","IMMAM SAHIB","PULWAMA","ZO PULWAMA CLSTR SHOPIAN","IMMAMS","PUL","PULSHO","JAKA0IMMAMS","SHOPAIN","SHOPIAN","SHOPIAN","IMMAM SAHIB","J&K",null,"KASHMIR",192303,192051113,6320308,33.745100000000001,74.908799999999999,null,{"$f":"TEXT(branch332[[#This Row],[Sol Id]],\"0000\")","v":"0308"}]
["A",309,309,"B","AGRO HI TECH SOPORE","BARAMULLA","ZO BARAMULLA CLSTR SOPORE","HITECH","BAR","BARSOP","JAKA0HITECH","AGRO HITECH CHANKHAN","BARAMULLA","BARAMULLA","KHOIE PANZIPORA","J&K",null,"KASHMIR",193201,193051102,6320347,34.287759999999999,74.461399999999998,null,{"$f":"TEXT(branch332[[#This Row],[Sol Id]],\"0000\")","v":"0309"}]
["A",310,310,"B","KASTIGARH","DODA","ZO DODA CLSTR DODA","KASTIG","DOD","DODDOD","JAKA0KASTIG","NEAR BUS STAND DODA","DODA","DODA","KASTIGARH","J&K",null,"JAMMU",182202,182051102,6320310,33.987099999999998,74.774199999999993,null,{"$f":"TEXT(branch332[[#This Row],[Sol Id]],\"0000\")","v":"0310"}]
["A",311,311,"B","SANGALDAN","DODA","ZO DODA CLSTR RAMBAN","SANGAL","DOD","DODRAM","JAKA0SANGAL","SANGALDAN","RAMBAN","RAMBAN","GOOL","J&K",null,"JAMMU",182144,182051019,6320311,33.140949999999997,75.052019999999999,null,{"$f":"TEXT(branch332[[#This Row],[Sol Id]],\"0000\")","v":"0311"}]
["A",312,312,"B","DRABSHALLA","DODA","ZO DODA CLSTR KISHTWAR","DRABLA","DOD","DODKIS","JAKA0DRABLA","DRABSHALLA","KISHTWAR","KISHTWAR","DRABSHALLA","J&K",null,"JAMMU",182203,182051110,6320312,33.179929999999999,75.807230000000004,null,{"$f":"TEXT(branch332[[#This Row],[Sol Id]],\"0000\")","v":"0312"}]
["A",313,313,"B","LASSANA","RAJOURI","ZO RAJOURI CLSTR POONCH","LASANA","RAJ","RAJPOO","JAKA0LASANA","TEH SURANKOTE. DISTT POONCH","POONCH","POONCH","SURANKOTE","J&K",null,"JAMMU",185121,185051108,6320313,33.65475,74.252629999999996,null,{"$f":"TEXT(branch332[[#This Row],[Sol Id]],\"0000\")","v":"0313"}]
["A",314,314,"B","DACHAN","DODA","ZO DODA CLSTR KISHTWAR","DACHAN","DOD","DODKIS","JAKA0DACHAN","DACHAN","KISHTWAR","KISHTWAR","DACHAN","J&K",null,"JAMMU",182204,182051407,6320314,33.936770000000003,74.560580000000002,null,{"$f":"TEXT(branch332[[#This Row],[Sol Id]],\"0000\")","v":"0314"}]
["A",315,315,"B","B B CANTT SRINAGAR","SRINAGAR","ZO SRINAGAR CLSTR -1 SRINAGAR","BADAMI","SGR","SGRCL1","JAKA0BADAMI","BADAMI BAGH","SRINAGAR","SRINAGAR","SRINAGAR","J&K",null,"KASHMIR",190004,190051006,6320315,34.06521,74.846739999999997,null,{"$f":"TEXT(branch332[[#This Row],[Sol Id]],\"0000\")","v":"0315"}]
["A",316,316,"B","BANTALAB JAMMU","JAMMU","ZO JAMMU CLSTR -3 JAMMU","BANTAL","JAM","JAMCL3","JAKA0BANTAL","BARNAI ROAD BANTALAB","JAMMU","JAMMU","JAMMU (NORTH)","J&K",null,"JAMMU",181123,180051037,6320445,32.778550000000003,74.821460000000002,null,{"$f":"TEXT(branch332[[#This Row],[Sol Id]],\"0000\")","v":"0316"}]
["A",317,317,"B","J N ROAD HYDERABAD","BENGALURU","ZO BENGALURU CLSTR BENGALURU","HAIDER","BEN","BENBEN","JAKA0HAIDER","J.N ROAD HYDERABAD","HYDERABAD","HYDERABAD",null,"TELANGANA",null,"ROI",500002,500051002,6320253,null,null,null,{"$f":"TEXT(branch332[[#This Row],[Sol Id]],\"0000\")","v":"0317"}]
["A",318,318,"B","CHAKMALAL","JAMMU","ZO JAMMU CLSTR -3 JAMMU","CHAKMA","JAM","JAMCL3","JAKA0CHAKMA","CHAK MALAL (KHOUR),","JAMMU","JAMMU","KHOUR","J&K",null,"JAMMU",181203,180051067,6320318,32.828719999999997,74.533810000000003,null,{"$f":"TEXT(branch332[[#This Row],[Sol Id]],\"0000\")","v":"0318"}]
["A",319,319,"B","NOIDA","DELHI","ZO DELHI CLSTR -1 DELHI","GHAZIA","DEL","DELCL1","JAKA0GHAZIA","P-2, J.O.P PLAZA,SECTOR 18, NOIDA","GAUTAM BUDDHA NAGAR","NOIDA",null,"UP",null,"ROI",201301,110051011,6320319,28.56972,77.325940000000003,null,{"$f":"TEXT(branch332[[#This Row],[Sol Id]],\"0000\")","v":"0319"}]
["A",320,320,"B","SIDHRA JAMMU","JAMMU","ZO JAMMU CLSTR -2 JAMMU","SIDHRA","JAM","JAMCL2","JAKA0SIDHRA","BYPASS SIDHRA JAMMU","JAMMU","JAMMU","JAMMU","J&K",null,"JAMMU",180017,180051036,6320462,32.764809999999997,74.900419999999997,null,{"$f":"TEXT(branch332[[#This Row],[Sol Id]],\"0000\")","v":"0320"}]
["A",321,321,"B","TALAB TILLO JAMMU","JAMMU","ZO JAMMU CLSTR -3 JAMMU","TTALOO","JAM","JAMCL3","JAKA0TTALOO","TALAB TILLO","JAMMU","JAMMU","JAMMU (WEST)","J&K",null,"JAMMU",180002,180051024,6320321,32.77261,74.837549999999993,null,{"$f":"TEXT(branch332[[#This Row],[Sol Id]],\"0000\")","v":"0321"}]
["A",322,322,"B","JAWAHAR NAGAR SRINAGAR","SRINAGAR","ZO SRINAGAR CLSTR -1 SRINAGAR","JNAGAR","SGR","SGRCL1","JAKA0JNAGAR","NEAR BUS STAND","SRINAGAR","SRINAGAR","SRINAGAR","J&K",null,"KASHMIR",190008,190051031,6320322,34.002980000000001,74.821910000000003,null,{"$f":"TEXT(branch332[[#This Row],[Sol Id]],\"0000\")","v":"0322"}]
["A",323,323,"B","LAJPAT NAGAR DELHI","DELHI","ZO DELHI CLSTR -1 DELHI","LAJPAT","DEL","DELCL1","JAKA0LAJPAT","A-17 SECTOR 4, RING ROAD OPP,HALDIRAM","DELHI","DELHI",null,"DELHI",null,"ROI",110024,110051012,6320323,28.566949999999999,77.225759999999994,null,{"$f":"TEXT(branch332[[#This Row],[Sol Id]],\"0000\")","v":"0323"}]
["A",324,324,"B","PATNA","DELHI","ZO DELHI CLSTR LUCKNOW","SHARIF","DEL","DELLUC","JAKA0SHARIF","HAROON NAGAR PHULWARI SHARIEF","PATNA","PATNA",null,"BIHAR",null,"ROI",801505,800051002,6320324,25.581810000000001,85.079189999999997,null,{"$f":"TEXT(branch332[[#This Row],[Sol Id]],\"0000\")","v":"0324"}]
["A",325,325,"B","MALIK BAZAR KOLKATTA","DELHI","ZO DELHI CLSTR LUCKNOW","BAZZAR","DEL","DELLUC","JAKA0BAZZAR","6 -EKTA ROAD,MALIK BAZAR KOLKATTA","KOLKATA","KOLKATTA",null,"WEST BENGAL",null,"ROI",700017,700051003,6320325,22.52891,88.347359999999995,null,{"$f":"TEXT(branch332[[#This Row],[Sol Id]],\"0000\")","v":"0325"}]
["A",326,326,"B","MYSORE","BENGALURU","ZO BENGALURU CLSTR BENGALURU","MYSORE","BEN","BENBEN","JAKA0MYSORE","DOOR NO.1137,NARAYAN SHASTRI ROAD,DEVRAJ URS MOHALLAH, MYSORE","MYSORE","MYSORE",null,"KARNATAKA",null,"ROI",570001,570051002,6320326,12.295809999999999,76.639380000000003,null,{"$f":"TEXT(branch332[[#This Row],[Sol Id]],\"0000\")","v":"0326"}]
["A",327,327,"B","MANDI GOBINDGARH","KATHUA","ZO KATHUA CLSTR MOHALI","GOBIND","KAT","KATMOH","JAKA0GOBIND","G T ROAD, MANDI GOBIND GARH,DISTRICT FATTEH GARH SAHIB","FATEHGARH SAHIB","MANDI GOBIDGARH",null,"PUNJAB",null,"ROI",147301,147051102,6320327,30.601780000000002,76.287019999999998,null,{"$f":"TEXT(branch332[[#This Row],[Sol Id]],\"0000\")","v":"0327"}]
["A",328,328,"B","LUCKNOW","DELHI","ZO DELHI CLSTR LUCKNOW","LUKNOW","DEL","DELLUC","JAKA0LUKNOW","ABDUL AZIZ ROAD,AKBARI GATE CROSSING ,LUCKNOW","LUCKNOW","LUKNOW",null,"UP",null,"ROI",226003,226051002,6320328,26.846689999999999,80.946169999999995,null,{"$f":"TEXT(branch332[[#This Row],[Sol Id]],\"0000\")","v":"0328"}]
["A",329,329,"B","BARODA","MUMBAI","ZO MUMBAI CLSTR MUMBAI","BARODA","MUM","MUMMUM","JAKA0BARODA","CAPRI HOUSE 2, JETALPUR ROAD,ALKA PURI,","VADODARA","VADODARA",null,"GUJARAT",null,"ROI",390007,390051002,6320329,22.313980000000001,73.174790000000002,null,{"$f":"TEXT(branch332[[#This Row],[Sol Id]],\"0000\")","v":"0329"}]
["A",330,330,"B","BHOPAL","MUMBAI","ZO MUMBAI CLSTR MUMBAI","BHOPAL","MUM","MUMMUM","JAKA0BHOPAL","MIG-I, MLA QUARTERS,TT NAGAR,","BHOPAL","BHOPAL",null,"MP",null,"ROI",462003,462051002,6320330,23.234670000000001,77.397270000000006,null,{"$f":"TEXT(branch332[[#This Row],[Sol Id]],\"0000\")","v":"0330"}]
["A",331,331,"B","SHAKTI NAGAR UDHAMPUR","UDHAMPUR","ZO UDHAMPUR CLSTR UDHAMPUR","SHAKTI","UDM","UDMUDM","JAKA0SHAKTI","SHAKTI NAGAR UDAMPHUR","UDHAMPUR","UDHAMPUR","UDHAMPUR","J&K",null,"JAMMU",182101,182051002,6320331,32.545369999999998,75.073679999999996,null,{"$f":"TEXT(branch332[[#This Row],[Sol Id]],\"0000\")","v":"0331"}]
["A",332,332,"B","ALLAHBAD","DELHI","ZO DELHI CLSTR LUCKNOW","ALABAD","DEL","DELLUC","JAKA0ALABAD","24/36 SHIV CHARAN LAL ROAD","ALLAHABAD","ALLAHABAD",null,"UP",null,"ROI",211003,211051002,6320332,25.437850000000001,81.840639999999993,null,{"$f":"TEXT(branch332[[#This Row],[Sol Id]],\"0000\")","v":"0332"}]
["A",333,333,"B","KHARA MAIDANA","KATHUA","ZO KATHUA CLSTR SAMBA","MAIDAN","KAT","KATSAM","JAKA0MAIDAN","KHARA MAIDANA SAMBA TEHSIL SAMBHA","SAMBA","SAMBA","BARI BRAHAMANA","J&K",null,"JAMMU",181145,180051061,6320333,32.66957,74.942160000000001,null,{"$f":"TEXT(branch332[[#This Row],[Sol Id]],\"0000\")","v":"0333"}]
["A",334,334,"B","AWANTIPORA","PULWAMA","ZO PULWAMA CLSTR PULWAMA","AWANTI","PUL","PULPUL","JAKA0AWANTI","NATIONAL HIGHWAY AWANTIPORA","PULWAMA","PULWAMA","AWANTIPORA","J&K",null,"KASHMIR",192122,192051106,6320334,33.925820000000002,75.018289999999993,null,{"$f":"TEXT(branch332[[#This Row],[Sol Id]],\"0000\")","v":"0334"}]
["A",335,335,"B","KHAG","BUDGAM","ZO BUDGAM CLSTR -1 BUDGAM","KHAAGH","BUD","BUDCL1","JAKA0KHAAGH","KHAGH, BUDGAM","BUDGAM","BUDGAM","KHAG","J&K",null,"KASHMIR",193411,191051010,6320335,33.778179999999999,76.576170000000005,null,{"$f":"TEXT(branch332[[#This Row],[Sol Id]],\"0000\")","v":"0335"}]
["A",336,336,"B","FEROZPUR","KATHUA","ZO KATHUA CLSTR MOHALI","FEROZE","KAT","KATMOH","JAKA0FEROZE","MALWAL ROAD OPP, H.M.SCHOOL","FEROZPUR","FEROZPUR",null,"PUNJAB",null,"ROI",152002,152051002,6320336,30.954550000000001,74.613860000000003,null,{"$f":"TEXT(branch332[[#This Row],[Sol Id]],\"0000\")","v":"0336"}]
["A",337,337,"B","HISSAR","DELHI","ZO DELHI CLSTR -2 DELHI","HISSAR","DEL","DELCL2","JAKA0HISSAR","SCO 73-74, URBAN ESTATE 1,RED SQUARE MARKET, HISSAR","HISAR","HISSAR",null,"HARYANA",null,"ROI",125001,125051102,6320337,29.157170000000001,75.722530000000006,null,{"$f":"TEXT(branch332[[#This Row],[Sol Id]],\"0000\")","v":"0337"}]
["A",338,338,"B","BHATINDA","KATHUA","ZO KATHUA CLSTR MOHALI","BHATIN","KAT","KATMOH","JAKA0BHATIN","SSD SABHA, THE MALL ROAD","BATHINDA","BHATINDDA",null,"PUNJAB",null,"ROI",151001,151051002,6320338,30.21255,74.936120000000003,null,{"$f":"TEXT(branch332[[#This Row],[Sol Id]],\"0000\")","v":"0338"}]
["A",339,339,"B","URI CIVIL","BARAMULLA","ZO BARAMULLA CLSTR BARAMULLA","UCIVIL","BAR","BARBAR","JAKA0UCIVIL","GINGLE POST OFFICE MOHURA","BARAMULLA","BARAMULLA","URI","J&K",null,"KASHMIR",193122,193051018,6320339,34.086860000000001,74.03295,null,{"$f":"TEXT(branch332[[#This Row],[Sol Id]],\"0000\")","v":"0339"}]
["A",340,340,"B","PHAGWARA","KATHUA","ZO KATHUA CLSTR MOHALI","PAGWAR","KAT","KATMOH","JAKA0PAGWAR","OPP. HANUMAN GARHI,","KAPURTHALA","PHAGWARA",null,"PUNJAB",null,"ROI",144001,144051712,6320340,31.224019999999999,75.770799999999994,null,{"$f":"TEXT(branch332[[#This Row],[Sol Id]],\"0000\")","v":"0340"}]
["A",341,341,"B","BHADOHI","DELHI","ZO DELHI CLSTR LUCKNOW","BADOHI","DEL","DELLUC","JAKA0BADOHI","MAIN ROAD, MARYAD PATTI","SANT RAVIDAS NAGAR","BHADOHI",null,"UP",null,"ROI",221401,221051102,6320341,25.387270000000001,82.568029999999993,null,{"$f":"TEXT(branch332[[#This Row],[Sol Id]],\"0000\")","v":"0341"}]
["A",342,342,"B","SKIMSS SRINAGAR","SRINAGAR","ZO SRINAGAR CLSTR -2 SRINAGAR","SKIMSS","SGR","SGRCL2","JAKA0SKIMSS","SKIMS, SOURA","SRINAGAR","SRINAGAR","EIDGAH","J&K",null,"KASHMIR",190011,190051058,6320446,34.131990000000002,74.803179999999998,null,{"$f":"TEXT(branch332[[#This Row],[Sol Id]],\"0000\")","v":"0342"}]
["A",343,343,"B","CHANNI HIMMAT JAMMU","JAMMU","ZO JAMMU CLSTR -1 JAMMU","POLICE","JAM","JAMCL1","JAKA0POLICE","SEC-5, OPP MONICA SUPER MARKET","JAMMU","JAMMU","BAHU","J&K",null,"JAMMU",180015,180051030,6320412,32.685270000000003,74.89716,null,{"$f":"TEXT(branch332[[#This Row],[Sol Id]],\"0000\")","v":"0343"}]
["A",344,344,"B","PANAJI GOA","MUMBAI","ZO MUMBAI CLSTR MUMBAI","PANAJI","MUM","MUMMUM","JAKA0PANAJI","ATMA RAM COMERICAL COMPLEX,DR. A.B. ROAD, OPP HOTEL NAWA GOA","NORTH GOA","NORTH GOA",null,"GOA",null,"ROI",403001,403051002,6320344,15.484400000000001,73.821730000000002,null,{"$f":"TEXT(branch332[[#This Row],[Sol Id]],\"0000\")","v":"0344"}]
["A",345,345,"B","NEW UNIVERSITY CAMPUS JAMMU","JAMMU","ZO JAMMU CLSTR -2 JAMMU","CANAAL","JAM","JAMCL2","JAKA0CANAAL","UNIVERSITY OF JAMMU,RAILWAY ROAD,","JAMMU","JAMMU","BAHU","J&K",null,"JAMMU",180004,180051018,6320345,32.71884,74.864689999999996,null,{"$f":"TEXT(branch332[[#This Row],[Sol Id]],\"0000\")","v":"0345"}]
["A",346,346,"B","BOTSHAH MOHALLA SRINAGAR","SRINAGAR","ZO SRINAGAR CLSTR -2 SRINAGAR","BOTSHA","SGR","SGRCL2","JAKA0BOTSHA","NEAR SALFIA MASJID, BOTSHAH MOHALLA,LAL BAZAR","SRINAGAR","SRINAGAR","SRINAGAR","J&K",null,"KASHMIR",190011,190051061,6320449,34.131970000000003,74.821089999999998,null,{"$f":"TEXT(branch332[[#This Row],[Sol Id]],\"0000\")","v":"0346"}]
["A",347,347,"B","T P SOPORE","BARAMULLA","ZO BARAMULLA CLSTR SOPORE","TRUSTE","BAR","BARSOP","JAKA0TRUSTE","NEAR POLICE STATION","BARAMULLA","BARAMULLA","SOPORE","J&K",null,"KASHMIR",193201,193051106,6320009,34.287179999999999,74.469890000000007,null,{"$f":"TEXT(branch332[[#This Row],[Sol Id]],\"0000\")","v":"0347"}]
["A",348,348,"B","KACHDOORA","PULWAMA","ZO PULWAMA CLSTR SHOPIAN","KACHDR","PUL","PULSHO","JAKA0KACHDR","KACHDOORA, SHOPIAN","SHOPIAN","SHOPIAN","SHOPIAN","J&K",null,"KASHMIR",192303,192051206,6320348,33.680869999999999,74.880080000000007,null,{"$f":"TEXT(branch332[[#This Row],[Sol Id]],\"0000\")","v":"0348"}]
["A",349,349,"B","GOVT MEDICAL COLLEGE SRINAGAR","SRINAGAR","ZO SRINAGAR CLSTR -3 SRINAGAR","DOCTOR","SGR","SGRCL3","JAKA0DOCTOR","GOVERNMENT MEDICAL COLLEGE,KARAN NAGAR","SRINAGAR","SRINAGAR","SRINAGAR","J&K",null,"KASHMIR",190010,190051023,6320349,34.086239999999997,74.801900000000003,null,{"$f":"TEXT(branch332[[#This Row],[Sol Id]],\"0000\")","v":"0349"}]
["A",350,350,"B","LETHPORA","PULWAMA","ZO PULWAMA CLSTR PULWAMA","LETPUR","PUL","PULPUL","JAKA0LETPUR","NEAR RICE MILL, FCI INDIA","PULWAMA","PULWAMA","PAMPORE","J&K",null,"KASHMIR",192122,192051114,6320350,33.967550000000003,74.96472,null,{"$f":"TEXT(branch332[[#This Row],[Sol Id]],\"0000\")","v":"0350"}]
["A",351,351,"B","KAKAPORA","PULWAMA","ZO PULWAMA CLSTR PULWAMA","KAKPUR","PUL","PULPUL","JAKA0KAKPUR","PULWAMA, KASHMIR","PULWAMA","PULWAMA","KAKPORA","J&K",null,"KASHMIR",192304,192051115,6320351,33.945210000000003,74.927509999999998,null,{"$f":"TEXT(branch332[[#This Row],[Sol Id]],\"0000\")","v":"0351"}]
["A",352,352,"B","RAJPORA","PULWAMA","ZO PULWAMA CLSTR SHOPIAN","RAJPUR","PUL","PULSHO","JAKA0RAJPUR","RAJPORA, PULWAMA","PULWAMA","PULWAMA","RAJPORA","J&K",null,"KASHMIR",192302,192051105,6320352,33.824260000000002,74.853139999999996,null,{"$f":"TEXT(branch332[[#This Row],[Sol Id]],\"0000\")","v":"0352"}]
["A",353,353,"B","MANSA","KATHUA","ZO KATHUA CLSTR MOHALI","MANSSA","KAT","KATMOH","JAKA0MANSSA","GOSHALLA ROAD","MANSA","MANSA",null,"PUNJAB",null,"ROI",151505,151051112,6320353,29.98855,75.402190000000004,null,{"$f":"TEXT(branch332[[#This Row],[Sol Id]],\"0000\")","v":"0353"}]
["A",354,354,"B","DHARAMSHALA","KATHUA","ZO KATHUA CLSTR MOHALI","DSHALA","KAT","KATMOH","JAKA0DSHALA","KOTWALI BAZAR,","KANGRA","DHARAMSHALA",null,"HIMACHAL PRADESH",null,"ROI",176215,176051102,6320354,32.21904,76.323400000000007,null,{"$f":"TEXT(branch332[[#This Row],[Sol Id]],\"0000\")","v":"0354"}]
["M",355,355,"B","ANSAL PLAZA DELHI (MERGED WITH 0408)",null,null,"ANSALL","DEL","NA","JAKA0ANSALL",null,null,null,null,null,null,null,null,null,null,null,null,null,{"$f":"TEXT(branch332[[#This Row],[Sol Id]],\"0000\")","v":"0355"}]
["A",356,356,"B","BAGH ALI MARDAN SRINAGAR","SRINAGAR","ZO SRINAGAR CLSTR -2 SRINAGAR","MARDAN","SGR","SGRCL2","JAKA0MARDAN","BAGHI ALI MARDAN KHAN","SRINAGAR","SRINAGAR","EIDGAH","J&K",null,"KASHMIR",190011,190051007,6320356,34.121169999999999,74.806659999999994,null,{"$f":"TEXT(branch332[[#This Row],[Sol Id]],\"0000\")","v":"0356"}]
["A",357,357,"B","SKALZANGLING","LADAKH","ZO LADAKH CLSTR LEH","SKALZA","LAD","LADLEH","JAKA0SKALZA","AIRPORT ROAD SKALZANGING","LEH","LEH","LEH","LADAKH",null,"LADAKH",194101,194051002,6320357,34.146050000000002,77.568299999999994,null,{"$f":"TEXT(branch332[[#This Row],[Sol Id]],\"0000\")","v":"0357"}]
["A",358,358,"B","AURANGABAD","MUMBAI","ZO MUMBAI CLSTR MUMBAI","AURANG","MUM","MUMMUM","JAKA0AURANG","MANAS APARTMENT 5 KUSHAL NAGAR NEAR NATRAJ RESIDENCY JALNA ROAD","AURANGABAD","AURANGABAD",null,"MAHARASHTRA",null,"ROI",431005,431051003,6320358,19.880130000000001,75.328860000000006,null,{"$f":"TEXT(branch332[[#This Row],[Sol Id]],\"0000\")","v":"0358"}]
["A",359,359,"B","PINJOORA","PULWAMA","ZO PULWAMA CLSTR SHOPIAN","PINJOR","PUL","PULSHO","JAKA0PINJOR","PINJORA SHOPIAN","SHOPIAN","SHOPIAN","SHOPIAN","J&K",null,"KASHMIR",192303,192051203,6320359,33.716999999999999,74.836089999999999,null,{"$f":"TEXT(branch332[[#This Row],[Sol Id]],\"0000\")","v":"0359"}]
["A",360,360,"B","NOWGAM","SRINAGAR","ZO SRINAGAR CLSTR -1 SRINAGAR","NOWGAM","SGR","SGRCL1","JAKA0NOWGAM","BYE PASS, NOWGAM","SRINAGAR","SRINAGAR","SRINAGAR","J&K",null,"KASHMIR",190015,190051045,6320360,34.026769999999999,74.820849999999993,null,{"$f":"TEXT(branch332[[#This Row],[Sol Id]],\"0000\")","v":"0360"}]
["A",361,361,"B","RAWALPORA SRINAGAR","SRINAGAR","ZO SRINAGAR CLSTR -1 SRINAGAR","RAWWAL","SGR","SGRCL1","JAKA0RAWWAL","RAWALPORA NEAR MASJID","SRINAGAR","SRINAGAR","CHANAPORA","J&K",null,"KASHMIR",190014,190051053,6320320,34.025939999999999,74.797460000000001,null,{"$f":"TEXT(branch332[[#This Row],[Sol Id]],\"0000\")","v":"0361"}]
["A",362,362,"B","MOGA","KATHUA","ZO KATHUA CLSTR MOHALI","MOGAPB","KAT","KATMOH","JAKA0MOGAPB","COURT ROAD","MOGA","MOGA",null,"PUNJAB",null,"ROI",142001,142051002,6320362,30.816459999999999,75.171710000000004,null,{"$f":"TEXT(branch332[[#This Row],[Sol Id]],\"0000\")","v":"0362"}]
["A",363,363,"B","ISLAMIA COLLEGE SRINAGAR","SRINAGAR","ZO SRINAGAR CLSTR -2 SRINAGAR","COLLEG","SGR","SGRCL2","JAKA0COLLEG","ISLAMIA COLLEGE ROAD","SRINAGAR","SRINAGAR","SRINAGAR","J&K",null,"KASHMIR",190011,190051030,6320363,34.109070000000003,74.807580000000002,null,{"$f":"TEXT(branch332[[#This Row],[Sol Id]],\"0000\")","v":"0363"}]
["A",364,364,"B","MIRA ROAD MUMBAI","MUMBAI","ZO MUMBAI CLSTR MUMBAI","MIRARD","MUM","MUMMUM","JAKA0MIRARD","JEHANGIR COMPLEX, MTNL ROAD,NEAR SILVER PARK, MIRA ROAD, MUMBAI","GREATER MUMBAI","GREATER MUMBAI",null,"MAHARASHTRA",null,"ROI",401107,400051005,6320364,19.280270000000002,72.870840000000001,null,{"$f":"TEXT(branch332[[#This Row],[Sol Id]],\"0000\")","v":"0364"}]
["A",365,365,"B","LAL MANDI SRINAGAR","SRINAGAR","ZO SRINAGAR CLSTR -1 SRINAGAR","SBOARD","SGR","SGRCL1","JAKA0SBOARD","NEAR AGRICULTURAL COMPLEX","SRINAGAR","SRINAGAR","SRINAGAR","J&K",null,"KASHMIR",190008,190051036,6320365,34.559950000000001,76.126099999999994,null,{"$f":"TEXT(branch332[[#This Row],[Sol Id]],\"0000\")","v":"0365"}]
["A",367,367,"B","TANKIPORA SRINAGAR","SRINAGAR","ZO SRINAGAR CLSTR -3 SRINAGAR","TANKEE","SGR","SGRCL3","JAKA0TANKEE","DC OFFICE COMPLEX","SRINAGAR","SRINAGAR","SRINAGAR (SOUTH)","J&K",null,"KASHMIR",190001,190051068,6320367,34.075510000000001,74.80574,null,{"$f":"TEXT(branch332[[#This Row],[Sol Id]],\"0000\")","v":"0367"}]
["A",368,368,"B","MOHD ALI ROAD MUMBAI","MUMBAI","ZO MUMBAI CLSTR MUMBAI","MAROAD","MUM","MUMMUM","JAKA0MAROAD","55-NOOR MAHAL, CO-OPERATIVE SOCIETY","GREATER MUMBAI","GREATER MUMBAI",null,"MAHARASHTRA",null,"ROI",400003,400051006,6320368,19.075980000000001,72.877660000000006,null,{"$f":"TEXT(branch332[[#This Row],[Sol Id]],\"0000\")","v":"0368"}]
["A",369,369,"B","VASANT VIHAR DELHI","DELHI","ZO DELHI CLSTR -1 DELHI","VASANT","DEL","DELCL1","JAKA0VASANT","63-D,BASANT LOK","DELHI","DELHI",null,"DELHI",null,"ROI",110057,110051015,6320369,28.560320000000001,77.161730000000006,null,{"$f":"TEXT(branch332[[#This Row],[Sol Id]],\"0000\")","v":"0369"}]
["A",370,370,"B","MOHALI","KATHUA","ZO KATHUA CLSTR MOHALI","MOHALI","KAT","KATMOH","JAKA0MOHALI","OPPOSITE BASSI THEATHER, SEC-54,PHASE-II PIN 160055","RUPNAGAR","MOHALI",null,"PUNJAB",null,"ROI",160054,160051002,6320370,30.723109999999998,76.72842,null,{"$f":"TEXT(branch332[[#This Row],[Sol Id]],\"0000\")","v":"0370"}]
["A",371,371,"B","BUS ADDA ANANTNAG","ANANTNAG","ZO ANANTNAG CLSTR -2 ANANTNAG","BUSANG","ANT","ANTCL2","JAKA0BUSANG","GENERAL BUS ADDA ANANTNAG","ANANTNAG","ANANTNAG","ANANTNAG","J&K",null,"KASHMIR",192101,192051002,6320371,33.736080000000001,75.149929999999998,null,{"$f":"TEXT(branch332[[#This Row],[Sol Id]],\"0000\")","v":"0371"}]
["A",372,372,"B","BEMINA SRINAGAR","SRINAGAR","ZO SRINAGAR CLSTR -3 SRINAGAR","BEMINA","SGR","SGRCL3","JAKA0BEMINA","NEAR GRID STATION,MAIN MARKET, BEMINA","SRINAGAR","SRINAGAR","SRINAGAR","J&K",null,"KASHMIR",190018,190051011,6320372,34.081069999999997,74.782830000000004,null,{"$f":"TEXT(branch332[[#This Row],[Sol Id]],\"0000\")","v":"0372"}]
["A",373,373,"B","GOVERNMENT MEDICAL COLLEGE JAMMU","JAMMU","ZO JAMMU CLSTR -1 JAMMU","MEDJAM","JAM","JAMCL1","JAKA0MEDJAM","MEDICAL COLLEGE JAMMU,MAHESHPURA CHOWK, JAMMU","JAMMU","JAMMU","JAMMU","J&K",null,"JAMMU",180001,180051014,6320373,32.726599999999998,74.857029999999995,null,{"$f":"TEXT(branch332[[#This Row],[Sol Id]],\"0000\")","v":"0373"}]
["A",374,374,"B","PANTHAL","UDHAMPUR","ZO UDHAMPUR CLSTR REASI","PNTHAL","UDM","UDMREA","JAKA0PNTHAL","PANTHAL UDHAMPUR","REASI","REASI","KATRA","J&K",null,"JAMMU",182301,182051008,6320374,32.791699999999999,74.7667,null,{"$f":"TEXT(branch332[[#This Row],[Sol Id]],\"0000\")","v":"0374"}]
["A",375,375,"B","TRIKUTA NAGAR JAMMU","JAMMU","ZO JAMMU CLSTR -2 JAMMU","TRIKOT","JAM","JAMCL2","JAKA0TRIKOT","KRISHNA COMPLEX,SECTOR 3-EXT.","JAMMU","JAMMU","BAHU","J&K",null,"JAMMU",180012,180051026,6320375,32.693620000000003,74.874690000000001,null,{"$f":"TEXT(branch332[[#This Row],[Sol Id]],\"0000\")","v":"0375"}]
["A",376,376,"B","KHANNA","KATHUA","ZO KATHUA CLSTR MOHALI","KHANNA","KAT","KATMOH","JAKA0KHANNA","OLD SABZI MANDI, G.T.ROAD","LUDHIANA","KHANNA",null,"PUNJAB",null,"ROI",144001,141051102,6320376,30.704139999999999,76.223910000000004,null,{"$f":"TEXT(branch332[[#This Row],[Sol Id]],\"0000\")","v":"0376"}]
["A",377,377,"B","VASHI MUMBAI","MUMBAI","ZO MUMBAI CLSTR MUMBAI","VASHEE","MUM","MUMMUM","JAKA0VASHEE","A1/1 GROMA BUILDING, PLOT NO 140,SECTOR 19, VASHI, NAI MUMBAI THANA","GREATER MUMBAI","GREATER MUMBAI",null,"MAHARASHTRA",null,"ROI",400705,400051007,6320377,19.078690000000002,73.008799999999994,null,{"$f":"TEXT(branch332[[#This Row],[Sol Id]],\"0000\")","v":"0377"}]
["A",378,378,"B","ZAKURA","SRINAGAR","ZO SRINAGAR CLSTR -2 SRINAGAR","ZAKURA","SGR","SGRCL2","JAKA0ZAKURA","ZAKURA NEAR INDUSTRIAL ESTATE.","SRINAGAR","SRINAGAR","HAZRATBAL","J&K",null,"KASHMIR",190006,190051072,6320378,34.161700000000003,74.831710000000001,null,{"$f":"TEXT(branch332[[#This Row],[Sol Id]],\"0000\")","v":"0378"}]
["A",379,379,"B","BUL BUL NOWGAM","ANANTNAG","ZO ANANTNAG CLSTR -1 ANANTNAG","BBNGAM","ANT","ANTCL1","JAKA0BBNGAM","BULBUL NOWGAM","ANANTNAG","ANANTNAG","ANANTNAG","J&K",null,"KASHMIR",192201,192051009,6320053,33.695480000000003,75.192300000000003,null,{"$f":"TEXT(branch332[[#This Row],[Sol Id]],\"0000\")","v":"0379"}]
["A",380,380,"B","GREATER NOIDA","DELHI","ZO DELHI CLSTR -1 DELHI","GNOIDA","DEL","DELCL1","JAKA0GNOIDA","DADRI ROAD, SURAJPUR, OPP PETROL PUMP","GAUTAM BUDDHA NAGAR","GREATER NOIDA",null,"UP",null,"ROI",201306,110051022,6320380,28.514030000000002,77.48921,null,{"$f":"TEXT(branch332[[#This Row],[Sol Id]],\"0000\")","v":"0380"}]
["A",381,381,"B","MURADABAD","DELHI","ZO DELHI CLSTR LUCKNOW","MURABD","DEL","DELLUC","JAKA0MURABD","4F, IST FLOOR, CHADDA COMPLEX,GMD ROAD","MORADABAD","MURADABA",null,"UP",null,"ROI",244001,244051002,6320381,28.836569999999998,78.770790000000005,null,{"$f":"TEXT(branch332[[#This Row],[Sol Id]],\"0000\")","v":"0381"}]
["A",382,382,"B","PATEL NAGAR KATHUA","KATHUA","ZO KATHUA CLSTR KATHUA","REVENU","KAT","KATKAT","JAKA0REVENU","PATEL NAGAR, KALI BARI","KATHUA","KATHUA","KATHUA","J&K",null,"JAMMU",184101,184051003,6320382,null,null,null,{"$f":"TEXT(branch332[[#This Row],[Sol Id]],\"0000\")","v":"0382"}]
["A",383,383,"B","AKINGAM","ANANTNAG","ZO ANANTNAG CLSTR -1 ANANTNAG","AKNGAM","ANT","ANTCL1","JAKA0AKNGAM","BLOCK ACHABAL","ANANTNAG","ANANTNAG","KOOKERNAG","J&K",null,"KASHMIR",192201,192051029,6320161,33.642209999999999,75.237700000000004,null,{"$f":"TEXT(branch332[[#This Row],[Sol Id]],\"0000\")","v":"0383"}]
["A",384,384,"B","OTC BANGALORE","BENGALURU","ZO BENGALURU CLSTR BENGALURU","OTCBNG","BEN","BENBEN","JAKA0OTCBNG","OTC ROAD","BANGALORE URBAN","BANGALURU",null,"KARNATAKA",null,"ROI",560002,560051003,6320384,12.86251,77.66131,null,{"$f":"TEXT(branch332[[#This Row],[Sol Id]],\"0000\")","v":"0384"}]
["A",385,385,"B","HYDERPORA SRINAGAR","SRINAGAR","ZO SRINAGAR CLSTR -1 SRINAGAR","HUDPUR","SGR","SGRCL1","JAKA0HUDPUR","AIRPORT ROAD","SRINAGAR","SRINAGAR","SRINAGAR","J&K",null,"KASHMIR",190014,190051028,6320385,34.03293,74.782560000000004,null,{"$f":"TEXT(branch332[[#This Row],[Sol Id]],\"0000\")","v":"0385"}]
["A",386,386,"B","HUMHAMA","BUDGAM","ZO BUDGAM CLSTR -1 BUDGAM","HUMHAM","BUD","BUDCL1","JAKA0HUMHAM","AIRPORT ROAD","BUDGAM","BUDGAM","BUDGAM","J&K",null,"KASHMIR",190014,190051027,6320361,34.016710000000003,74.766159999999999,null,{"$f":"TEXT(branch332[[#This Row],[Sol Id]],\"0000\")","v":"0386"}]
["A",387,387,"B","OKHLA DELHI","DELHI","ZO DELHI CLSTR -1 DELHI","OKHLAA","DEL","DELCL1","JAKA0OKHLAA","1-LOCAL SHOPPING COMPLEX, INDUSTRIAL AREA,PHASE II, OKHLA","DELHI","DELHI",null,"DELHI",null,"ROI",110020,110051017,6320387,28.53576,77.276430000000005,null,{"$f":"TEXT(branch332[[#This Row],[Sol Id]],\"0000\")","v":"0387"}]
["A",388,388,"B","DULHASTI","DODA","ZO DODA CLSTR KISHTWAR","DHASTI","DOD","DODKIS","JAKA0DHASTI","DULHASTI KISHTWAR","KISHTWAR","KISHTWAR","KISHTWAR","J&K",null,"JAMMU",182204,182051404,6320252,34.149090000000001,76.825969999999998,null,{"$f":"TEXT(branch332[[#This Row],[Sol Id]],\"0000\")","v":"0388"}]
["A",389,389,"B","MACHIL","BARAMULLA","ZO BARAMULLA CLSTR KUPWARA","MACHIL","BAR","BARKUP","JAKA0MACHIL","MACHIL MAIN MARKET","KUPWARA","KUPWARA","MACHIL","J&K",null,"KASHMIR",193222,193051213,6320237,34.526179999999997,74.25461,null,{"$f":"TEXT(branch332[[#This Row],[Sol Id]],\"0000\")","v":"0389"}]
["M",390,390,"B","BKC BRANCH (MERGED WITH 0446)",null,null,"BOMBAY","MUM","NA","JAKA0BOMBAY",null,null,null,null,null,null,null,null,null,null,null,null,null,{"$f":"TEXT(branch332[[#This Row],[Sol Id]],\"0000\")","v":"0390"}]
["A",391,391,"B","REC SRINAGAR","SRINAGAR","ZO SRINAGAR CLSTR -2 SRINAGAR","RECSGR","SGR","SGRCL2","JAKA0RECSGR","NIT PREMISES","SRINAGAR","SRINAGAR","SRINAGAR NORTH","J&K",null,"KASHMIR",190006,190051054,6320391,34.126860000000001,74.838930000000005,null,{"$f":"TEXT(branch332[[#This Row],[Sol Id]],\"0000\")","v":"0391"}]
["A",392,392,"B","SOLINA","SRINAGAR","ZO SRINAGAR CLSTR -1 SRINAGAR","SOLINA","SGR","SGRCL1","JAKA0SOLINA","SILK FACTORY ROAD","SRINAGAR","SRINAGAR","SRINAGAR CENTRAL","J&K",null,"KASHMIR",190009,190051065,6320346,34.057720000000003,74.802859999999995,null,{"$f":"TEXT(branch332[[#This Row],[Sol Id]],\"0000\")","v":"0392"}]
["A",393,393,"B","ROHINI DELHI","DELHI","ZO DELHI CLSTR -2 DELHI","ROHINI","DEL","DELCL2","JAKA0ROHINI","BN PLAZA, A-2, SECTOR 3","DELHI","DELHI",null,"DELHI",null,"ROI",110085,110051019,6320393,28.697890000000001,77.106059999999999,null,{"$f":"TEXT(branch332[[#This Row],[Sol Id]],\"0000\")","v":"0393"}]
["A",394,394,"B","GUND","BUDGAM","ZO BUDGAM CLSTR GANDERBAL","GOUNDH","BUD","BUDGAN","JAKA0GOUNDH","GUND, KANGAN","GANDERBAL","GANDERBAL","GUND","J&K",null,"KASHMIR",191202,191051103,6320394,34.258980000000001,75.09008,null,{"$f":"TEXT(branch332[[#This Row],[Sol Id]],\"0000\")","v":"0394"}]
["A",395,395,"B","GUJJAR NAGAR JAMMU","JAMMU","ZO JAMMU CLSTR -1 JAMMU","GNGJAM","JAM","JAMCL1","JAKA0GNGJAM","NEAR SHERI KASHMIR BRIDGE","JAMMU","JAMMU","JAMMU","J&K",null,"JAMMU",180001,180051031,6320395,32.72927,74.874840000000006,null,{"$f":"TEXT(branch332[[#This Row],[Sol Id]],\"0000\")","v":"0395"}]
["A",396,396,"B","BONE & JOINT HOSPITAL SRINAGAR","SRINAGAR","ZO SRINAGAR CLSTR -1 SRINAGAR","BJHOSP","SGR","SGRCL1","JAKA0BJHOSP","NEAR BONE & JOINT HOSPITAL","SRINAGAR","SRINAGAR","SRINAGAR","J&K",null,"KASHMIR",190005,190051005,6320398,34.048099999999998,74.805220000000006,null,{"$f":"TEXT(branch332[[#This Row],[Sol Id]],\"0000\")","v":"0396"}]
["A",397,397,"B","AZADGUNJ BARAMULLA","BARAMULLA","ZO BARAMULLA CLSTR BARAMULLA","AZGUNJ","BAR","BARBAR","JAKA0AZGUNJ","AZAD GUNJ BARAMULLA","BARAMULLA","BARAMULLA","BARAMULLA","J&K",null,"KASHMIR",193101,193051002,6320413,34.21087,74.344449999999995,null,{"$f":"TEXT(branch332[[#This Row],[Sol Id]],\"0000\")","v":"0397"}]
["A",399,399,"B","ZAINPURA","PULWAMA","ZO PULWAMA CLSTR SHOPIAN","ZANPUR","PUL","PULSHO","JAKA0ZANPUR","ZAINAPORA SHOPIAN","SHOPIAN","SHOPIAN","ZAINPORA","J&K",null,"KASHMIR",192124,192051116,6320399,33.776299999999999,75.007480000000001,null,{"$f":"TEXT(branch332[[#This Row],[Sol Id]],\"0000\")","v":"0399"}]
["A",400,400,"B","MARHEEN","KATHUA","ZO KATHUA CLSTR KATHUA","MARHEN","KAT","KATKAT","JAKA0MARHEN","MARHEEN KATHUA,","KATHUA","KATHUA","MRHEEN","J&K",null,"JAMMU",184148,184051011,6320063,null,null,null,{"$f":"TEXT(branch332[[#This Row],[Sol Id]],\"0000\")","v":"0400"}]
["A",402,402,"B","KACHI CHAWNI JAMMU","JAMMU","ZO JAMMU CLSTR -1 JAMMU","KCHJAM","JAM","JAMCL1","JAKA0KCHJAM","KACHI CHAWNI","JAMMU","JAMMU","JAMMU","J&K",null,"JAMMU",180001,180051034,6320402,32.738759999999999,74.867909999999995,null,{"$f":"TEXT(branch332[[#This Row],[Sol Id]],\"0000\")","v":"0402"}]
["A",403,403,"B","ASHMUQAM","ANANTNAG","ZO ANANTNAG CLSTR -2 ANANTNAG","SAKHIE","ANT","ANTCL2","JAKA0SAKHIE","J & K BANK, AUQAF BUILDING AISHMUQAM","ANANTNAG","ANANTNAG","PAHALGAM","J&K",null,"KASHMIR",192129,192051011,6320420,33.863370000000003,75.281450000000007,null,{"$f":"TEXT(branch332[[#This Row],[Sol Id]],\"0000\")","v":"0403"}]
["A",404,404,"B","OLD SECRETARIAT SRINAGAR","SRINAGAR","ZO SRINAGAR CLSTR -3 SRINAGAR","RTOSGR","SGR","SGRCL3","JAKA0RTOSGR","OLD SECRETRAIT R.T.O","SRINAGAR","SRINAGAR","SRINAGAR","J&K",null,"KASHMIR",190009,190051057,6320404,34.072670000000002,74.805930000000004,null,{"$f":"TEXT(branch332[[#This Row],[Sol Id]],\"0000\")","v":"0404"}]
["A",406,406,"B","HIGH COURT COMPLEX JAMMU","JAMMU","ZO JAMMU CLSTR -1 JAMMU","HCCJAM","JAM","JAMCL1","JAKA0HCCJAM","HIGH COUT COMPLEX","JAMMU","JAMMU","JAMMU (NORTH)","J&K",null,"JAMMU",180007,180051032,6320408,32.759270000000001,74.855930000000001,null,{"$f":"TEXT(branch332[[#This Row],[Sol Id]],\"0000\")","v":"0406"}]
["A",408,408,"B","ANSAL PLAZA DELHI","DELHI","ZO DELHI CLSTR -1 DELHI","ANSALL","DEL","DELCL1","JAKA0ANSALL","B-207, 2ND FLOOR,ANSAL PLAZA, KHEL GOAN MARG","DELHI","DELHI",null,"DELHI",null,"ROI",110049,110051016,6320386,28.565339999999999,77.224469999999997,null,{"$f":"TEXT(branch332[[#This Row],[Sol Id]],\"0000\")","v":"0408"}]
["A",409,409,"B","BHOGAL DELHI","DELHI","ZO DELHI CLSTR -1 DELHI","BHOGAL","DEL","DELCL1","JAKA0BHOGAL","BHOGAL JANGPURA","DELHI","DELHI",null,"DELHI",null,"ROI",110014,110051030,6320493,28.584019999999999,77.248419999999996,null,{"$f":"TEXT(branch332[[#This Row],[Sol Id]],\"0000\")","v":"0409"}]
["A",422,422,"B","KHANDA","BUDGAM","ZO BUDGAM CLSTR -2 BUDGAM","KHANDA","BUD","BUDCL2","JAKA0KHANDA","KHANDA MAIN MARKET","BUDGAM","BUDGAM","BAGATI KANIPORA","J&K",null,"KASHMIR",192121,191051013,6320422,33.973019999999998,74.867130000000003,null,{"$f":"TEXT(branch332[[#This Row],[Sol Id]],\"0000\")","v":"0422"}]
["A",426,426,"B","SARITA VIHAR DELHI","DELHI","ZO DELHI CLSTR -1 DELHI","SARITA","DEL","DELCL1","JAKA0SARITA","8-LSC, H-BLOCK MARKET","DELHI","DELHI",null,"DELHI",null,"ROI",110076,110051018,6320392,28.52796,77.289789999999996,null,{"$f":"TEXT(branch332[[#This Row],[Sol Id]],\"0000\")","v":"0426"}]
["A",433,433,"B","OLD JANIPUR TALIMOR JAMMU","JAMMU","ZO JAMMU CLSTR -1 JAMMU","TOLMAR","JAM","JAMCL1","JAKA0TOLMAR","OLD JANIPUR,TALIMOR","JAMMU","JAMMU","JAMMU (NORTH)","J&K",null,"JAMMU",180007,180051033,6320419,32.757260000000002,74.84742,null,{"$f":"TEXT(branch332[[#This Row],[Sol Id]],\"0000\")","v":"0433"}]
["A",434,434,"B","NEHRU MARKET JAMMU","JAMMU","ZO JAMMU CLSTR -1 JAMMU","NEHROO","JAM","JAMCL1","JAKA0NEHROO","NEHRU MARKET","JAMMU","JAMMU","JAMMU (SOUTH)","J&K",null,"JAMMU",180001,180051015,6320022,32.726599999999998,74.857029999999995,null,{"$f":"TEXT(branch332[[#This Row],[Sol Id]],\"0000\")","v":"0434"}]
["A",435,435,"B","KREMSHORE","BUDGAM","ZO BUDGAM CLSTR -2 BUDGAM","KSHORE","BUD","BUDCL2","JAKA0KSHORE","KRIMSHORE BUDGAM","BUDGAM","BUDGAM","KHAN SAHIB","J&K",null,"KASHMIR",191111,191051005,6320434,33.951500000000003,74.717609999999993,null,{"$f":"TEXT(branch332[[#This Row],[Sol Id]],\"0000\")","v":"0435"}]
["A",436,436,"B","SEER HAMDAN","ANANTNAG","ZO ANANTNAG CLSTR -2 ANANTNAG","SKANIL","ANT","ANTCL2","JAKA0SKANIL","SEER HAMDAN MAIN MARKET","ANANTNAG","ANANTNAG","MATTAN","J&K",null,"KASHMIR",192129,192051030,6320176,33.788739999999997,75.243020000000001,null,{"$f":"TEXT(branch332[[#This Row],[Sol Id]],\"0000\")","v":"0436"}]
["A",437,437,"B","YARIPORA","ANANTNAG","ZO ANANTNAG CLSTR KULGAM","YARPUR","ANT","ANTKUL","JAKA0YARPUR","YARIPORA MAIN MARKET","KULGAM","KULGAM","YARIPORA","J&K",null,"KASHMIR",192232,192051031,6320410,33.72175,75.015879999999996,null,{"$f":"TEXT(branch332[[#This Row],[Sol Id]],\"0000\")","v":"0437"}]
["A",439,439,"B","THIKSEY","LADAKH","ZO LADAKH CLSTR LEH","HEMMIS","LAD","LADLEH","JAKA0HEMMIS","THIKSAY LEH-LADAKH","LEH","LEH","LEH","LADAKH",null,"LADAKH",194101,194051003,6320242,34.052639999999997,77.66619,null,{"$f":"TEXT(branch332[[#This Row],[Sol Id]],\"0000\")","v":"0439"}]
["A",440,440,"B","INTERNATIONAL BANKING DIV SRINAGAR","SRINAGAR","ZO SRINAGAR CLSTR -1 SRINAGAR","INTDIV","SGR","SGRCL1","JAKA0INTDIV","TOURIST RECEPTION CENTRE, M.A ROAD SRINAGAR, JAMMU & KASHMIR (UT)","SRINAGAR","SRINAGAR","SRINAGAR","J&K",null,"KASHMIR",190001,190051029,6320435,34.081020000000002,74.831010000000006,null,{"$f":"TEXT(branch332[[#This Row],[Sol Id]],\"0000\")","v":"0440"}]
["A",442,442,"B","DEVSAR","ANANTNAG","ZO ANANTNAG CLSTR KULGAM","DEVSAR","ANT","ANTKUL","JAKA0DEVSAR","KULGAM","KULGAM","KULGAM","DEVSAR","J&K",null,"KASHMIR",192231,192051032,6320444,33.633450000000003,75.079459999999997,null,{"$f":"TEXT(branch332[[#This Row],[Sol Id]],\"0000\")","v":"0442"}]
["A",443,443,"B","DPL KHANABAL","ANANTNAG","ZO ANANTNAG CLSTR -1 ANANTNAG","ECDPAN","ANT","ANTCL1","JAKA0ECDPAN","DISTRICT POLICE LINES KHANABAL ANANTNAG 192101","ANANTNAG","ANANTNAG",null,"J&K",null,"KASHMIR",192101,192051082,6320954,null,null,null,{"$f":"TEXT(branch332[[#This Row],[Sol Id]],\"0000\")","v":"0443"}]
["M",444,444,"B","DLF GURGAON (MERGED WITH 0720)",null,null,null,"DEL","NA",null,null,null,null,null,null,null,null,null,null,null,null,null,null,{"$f":"TEXT(branch332[[#This Row],[Sol Id]],\"0000\")","v":"0444"}]
["A",445,445,"B","VERSOVA MUMBAI","MUMBAI","ZO MUMBAI CLSTR MUMBAI","VARSUA","MUM","MUMMUM","JAKA0VARSUA","15/24, SAMARTH VAIBHAV, NEW LINK ROAD,ANDHERI WEST","MUMBAI","MUMBAI",null,"MAHARASHTRA",null,"ROI",400053,400051009,6320406,19.075980000000001,72.877660000000006,null,{"$f":"TEXT(branch332[[#This Row],[Sol Id]],\"0000\")","v":"0445"}]
["A",446,446,"B","BANDRA MUMBAI","MUMBAI","ZO MUMBAI CLSTR MUMBAI","BANDRA","MUM","MUMMUM","JAKA0BANDRA","184 ASHRA, WATER FIELD ROAD,BANDRA WEST","MUMBAI","MUMBAI",null,"MAHARASHTRA",null,"ROI",400050,400051010,6320409,19.060690000000001,72.836250000000007,null,{"$f":"TEXT(branch332[[#This Row],[Sol Id]],\"0000\")","v":"0446"}]
["A",447,447,"B","SATELLITE AHMEDABAD","MUMBAI","ZO MUMBAI CLSTR MUMBAI","SATLIT","MUM","MUMMUM","JAKA0SATLIT","SHOP NO.8-10, SAMAAN COMPLEX,OPP.NALANDA, PREM CHAND NAGAR ROAD","AHMADABAD","AHMADABAD",null,"GUJARAT",null,"ROI",380015,380051003,6320441,23.084890000000001,72.571299999999994,null,{"$f":"TEXT(branch332[[#This Row],[Sol Id]],\"0000\")","v":"0447"}]
["A",448,448,"B","FRUIT MANDI SOPORE","BARAMULLA","ZO BARAMULLA CLSTR SOPORE","APPLET","BAR","BARSOP","JAKA0APPLET","FRUIT MANDI SOPORE","BARAMULLA","BARAMULLA","SOPORE","J&K",null,"KASHMIR",193201,193051108,6320551,34.282089999999997,74.433400000000006,null,{"$f":"TEXT(branch332[[#This Row],[Sol Id]],\"0000\")","v":"0448"}]
["A",449,449,"B","TP DODA","DODA","ZO DODA CLSTR DODA","EXDODA","DOD","DODDOD","JAKA0EXDODA","TREASURY PREMISES DODA","DODA","DODA","DODA","J&K",null,"JAMMU",182202,182051125,6320772,33.14575,75.548050000000003,null,{"$f":"TEXT(branch332[[#This Row],[Sol Id]],\"0000\")","v":"0449"}]
["A",450,450,"B","FARIDABAD","DELHI","ZO DELHI CLSTR -1 DELHI","FRABAD","DEL","DELCL1","JAKA0FRABAD","SHOPPING COMPLEX, 107, SECTOR - 16,BEHIND SAGAR CINEMA","FARIDABAD","FARIDABAD",null,"HARYANA",null,"ROI",121002,110051021,6320411,28.40925,77.319959999999995,null,{"$f":"TEXT(branch332[[#This Row],[Sol Id]],\"0000\")","v":"0450"}]
["A",452,452,"B","MANWAL","UDHAMPUR","ZO UDHAMPUR CLSTR UDHAMPUR","EDREAM","UDM","UDMUDM","JAKA0EDREAM","MANWAL, UDHAMPUR,","UDHAMPUR","UDHAMPUR","MAJALTA","J&K",null,"JAMMU",182127,182051015,6320562,32.769779999999997,75.13082,null,{"$f":"TEXT(branch332[[#This Row],[Sol Id]],\"0000\")","v":"0452"}]
["A",453,453,"EC","EC - KC PUBLIC SCHOOL JAMMU",null,null,"EKCJAM","JAM","JAMCL2","JAKA0EKCJAM",null,null,null,null,null,null,null,null,null,null,null,null,null,{"$f":"TEXT(branch332[[#This Row],[Sol Id]],\"0000\")","v":"0453"}]
["A",454,454,"B","KAROO","LADAKH","ZO LADAKH CLSTR LEH","EKARUL","LAD","LADLEH","JAKA0EKARUL","KAROO","LEH","LEH","KHARU","LADAKH",null,"LADAKH",194101,194051005,6320556,33.92483,77.734880000000004,null,{"$f":"TEXT(branch332[[#This Row],[Sol Id]],\"0000\")","v":"0454"}]
["A",455,455,"B","LOWER MUNDA","ANANTNAG","ZO ANANTNAG CLSTR -1 ANANTNAG","EMUNDA","ANT","ANTCL1","JAKA0EMUNDA","TOLL POST LOWER MUNDA","ANANTNAG","ANANTNAG","DOORU","J&K",null,"KASHMIR",192211,192051062,6320644,33.541310000000003,75.214320000000001,null,{"$f":"TEXT(branch332[[#This Row],[Sol Id]],\"0000\")","v":"0455"}]
["A",457,457,"B","SSM ENGG. COLLEGE PATTAN","BARAMULLA","ZO BARAMULLA CLSTR SOPORE","ESINGH","BAR","BARSOP","JAKA0ESINGH","SSM ENGG. COLLEGE,DEVER, PARIHASPORA, PATTAN","BARAMULLA","BARAMULLA","PATTAN","J&K",null,"KASHMIR",193121,193051036,6320628,34.157310000000003,74.652749999999997,null,{"$f":"TEXT(branch332[[#This Row],[Sol Id]],\"0000\")","v":"0457"}]
["A",458,458,"B","WAKURA","BUDGAM","ZO BUDGAM CLSTR GANDERBAL","EWAKUR","BUD","BUDGAN","JAKA0EWAKUR","WAKURA MAIN , GANDERBAL","GANDERBAL","GANDERBAL","WAKURA","J&K",null,"KASHMIR",191131,191051111,6320659,34.174010000000003,74.723320000000001,null,{"$f":"TEXT(branch332[[#This Row],[Sol Id]],\"0000\")","v":"0458"}]
["A",459,459,"B","GREATER KAILASH DELHI","DELHI","ZO DELHI CLSTR -1 DELHI","GKLASH","DEL","DELCL1","JAKA0GKLASH","C-10, PART-I","DELHI","DELHI",null,"DELHI",null,"ROI",110048,110051023,6320421,28.567530000000001,77.157799999999995,null,{"$f":"TEXT(branch332[[#This Row],[Sol Id]],\"0000\")","v":"0459"}]
["A",460,460,"B","T NAGAR CHENNAI","BENGALURU","ZO BENGALURU CLSTR BENGALURU","TCHNAI","BEN","BENBEN","JAKA0TCHNAI","60-RAINBOW ARCHAD,FIRTHEAGARAYA ROAD,PONDY BAZAR","CHENNAI","CHENNAI",null,"TAMIL NADU",null,"ROI",180017,600051004,6320423,13.03993,80.240939999999995,null,{"$f":"TEXT(branch332[[#This Row],[Sol Id]],\"0000\")","v":"0460"}]
["A",461,461,"B","ARRAH","ANANTNAG","ZO ANANTNAG CLSTR KULGAM","ARAHAN","ANT","ANTKUL","JAKA0ARAHAN","ARRAH, KULGAM","KULGAM","KULGAM","KULGAM","J&K",null,"KASHMIR",192231,192051033,6320453,33.676499999999997,74.960329999999999,null,{"$f":"TEXT(branch332[[#This Row],[Sol Id]],\"0000\")","v":"0461"}]
["A",462,462,"B","CHATTERGUL","ANANTNAG","ZO ANANTNAG CLSTR -2 ANANTNAG","DESERT","ANT","ANTCL2","JAKA0DESERT","CHATURGUL ANANTNAG","ANANTNAG","ANANTNAG","SHANGUS","J&K",null,"KASHMIR",192201,192051034,6320159,33.749119999999998,75.333640000000003,null,{"$f":"TEXT(branch332[[#This Row],[Sol Id]],\"0000\")","v":"0462"}]
["A",463,463,"B","MAYUR VIHAR DELHI","DELHI","ZO DELHI CLSTR -1 DELHI","MVIHAR","DEL","DELCL1","JAKA0MVIHAR","A-6, AACHARYA NIKETAN","DELHI","DELHI",null,"DELHI",null,"ROI",110091,110051024,6320425,28.608139999999999,77.294749999999993,null,{"$f":"TEXT(branch332[[#This Row],[Sol Id]],\"0000\")","v":"0463"}]
["A",464,464,"B","VIKAS MARG DELHI","DELHI","ZO DELHI CLSTR -1 DELHI","VIKAAS","DEL","DELCL1","JAKA0VIKAAS","36-DEFENCE ENCLAVE","DELHI","DELHI",null,"DELHI",null,"ROI",110092,110051025,6320424,28.638819999999999,77.290940000000006,null,{"$f":"TEXT(branch332[[#This Row],[Sol Id]],\"0000\")","v":"0464"}]
["A",465,465,"B","RAIPUR","MUMBAI","ZO MUMBAI CLSTR MUMBAI","RAIPUR","MUM","MUMMUM","JAKA0RAIPUR","LAL GANGA SHOPPING MALL,G.E ROAD","RAIPUR","RAIPUR",null,"CHHATTISGARH",null,"ROI",492001,492051002,6320427,21.242470000000001,81.616200000000006,null,{"$f":"TEXT(branch332[[#This Row],[Sol Id]],\"0000\")","v":"0465"}]
["A",466,466,"B","DEHRADUN","DELHI","ZO DELHI CLSTR LUCKNOW","DEDOON","DEL","DELLUC","JAKA0DEDOON","56-RAJPUR ROAD,","DEHRA DUN","DEHRADUN",null,"UTTARAKHAND",null,"ROI",248001,248051002,6320429,30.321020000000001,78.040379999999999,null,{"$f":"TEXT(branch332[[#This Row],[Sol Id]],\"0000\")","v":"0466"}]
["A",467,467,"B","PITAMPURA DELHI","DELHI","ZO DELHI CLSTR -1 DELHI","PRITAM","DEL","DELCL1","JAKA0PRITAM","B-161, LOK VIHAR, ROAD NO 44","DELHI","DELHI",null,"DELHI",null,"ROI",110034,110051026,6320436,28.690300000000001,77.135400000000004,null,{"$f":"TEXT(branch332[[#This Row],[Sol Id]],\"0000\")","v":"0467"}]
["A",468,468,"B","MANGALORE","BENGALURU","ZO BENGALURU CLSTR BENGALURU","MANGAL","BEN","BENBEN","JAKA0MANGAL","HOTEL PUNJA INTERNATIONAL K.S RAO ROAD","DAKSHIN KANNAD","DAKSHIN KANNAD",null,"KARNATAKA",null,"ROI",575001,575051001,6320431,12.91414,74.855959999999996,null,{"$f":"TEXT(branch332[[#This Row],[Sol Id]],\"0000\")","v":"0468"}]
["A",469,469,"B","COIMBATORE","BENGALURU","ZO BENGALURU CLSTR BENGALURU","COMTOR","BEN","BENBEN","JAKA0COMTOR","COIMBATORE","COIMBATORE","COIMBATORE",null,"TAMIL NADU",null,"ROI",641002,641051002,6320428,11.010770000000001,76.952680000000001,null,{"$f":"TEXT(branch332[[#This Row],[Sol Id]],\"0000\")","v":"0469"}]
["A",470,470,"B","LAL CHOWK ANANTNAG","ANANTNAG","ZO ANANTNAG CLSTR -1 ANANTNAG","LALANG","ANT","ANTCL1","JAKA0LALANG","LAL CHOWK MAIN ANANTNAG","ANANTNAG","ANANTNAG","ANANTNAG","J&K",null,"KASHMIR",192101,192051048,6320417,33.730969999999999,75.149640000000005,null,{"$f":"TEXT(branch332[[#This Row],[Sol Id]],\"0000\")","v":"0470"}]
["A",471,471,"B","GURGAON MAIN","DELHI","ZO DELHI CLSTR -1 DELHI","GURGON","DEL","DELCL1","JAKA0GURGON","OLD JUDICAL COMPLEX, TOWER 47,CIVIL LINES","GURGAON","GURGAON",null,"HARYANA",null,"ROI",122001,110051013,6320343,28.413810000000002,77.322389999999999,null,{"$f":"TEXT(branch332[[#This Row],[Sol Id]],\"0000\")","v":"0471"}]
["A",472,472,"B","SADIQABAD","ANANTNAG","ZO ANANTNAG CLSTR -2 ANANTNAG","SAADIQ","ANT","ANTCL2","JAKA0SAADIQ","NEAR G.P.O SAADIQABAD,K.P.ROAD","ANANTNAG","ANANTNAG","ANANTNAG","J&K",null,"KASHMIR",192101,192051005,6320414,33.736980000000003,75.154560000000004,null,{"$f":"TEXT(branch332[[#This Row],[Sol Id]],\"0000\")","v":"0472"}]
["A",473,473,"B","SADAR COURT SRINAGAR","SRINAGAR","ZO SRINAGAR CLSTR -3 SRINAGAR","ESADER","SGR","SGRCL3","JAKA0ESADER","SADDER COURT PERMISES,COURT ROAD","SRINAGAR","SRINAGAR","SRINAGAR CENTRAL","J&K",null,"KASHMIR",190001,190051017,6320558,34.068980000000003,74.810130000000001,null,{"$f":"TEXT(branch332[[#This Row],[Sol Id]],\"0000\")","v":"0473"}]
["A",474,474,"EC","EC - T P PULWAMA",null,null,"ETPPUL","PUL","NA","JAKA0ETPPUL",null,null,null,null,null,null,null,null,null,null,null,null,null,{"$f":"TEXT(branch332[[#This Row],[Sol Id]],\"0000\")","v":"0474"}]
["A",475,475,"B","NAMBLABAL PAMPORE","PULWAMA","ZO PULWAMA CLSTR PULWAMA","ENAMBL","PUL","PULPUL","JAKA0ENAMBL","NAMLABAL PAMPORE","PULWAMA","PULWAMA","PAMPORE","J&K",null,"KASHMIR",192121,190051075,6320552,34.011670000000002,74.909570000000002,null,{"$f":"TEXT(branch332[[#This Row],[Sol Id]],\"0000\")","v":"0475"}]
["A",476,476,"B","MURRAN ADDA","PULWAMA","ZO PULWAMA CLSTR PULWAMA","MURRAN","PUL","PULPUL","JAKA0MURRAN","NEAR DISTRICT HOSPITAL,NEWA ROAD MURRAN ADDA","PULWAMA","PULWAMA","PULWAMA","J&K",null,"KASHMIR",190013,192051102,6320432,33.876579999999997,74.900319999999994,null,{"$f":"TEXT(branch332[[#This Row],[Sol Id]],\"0000\")","v":"0476"}]
["A",477,477,"B","MATA VAISHNO DEVI UNIVERSITY KAKRIYAL","UDHAMPUR","ZO UDHAMPUR CLSTR REASI","SMVDUN","UDM","UDMREA","JAKA0SMVDUN","KAKARYAL PANTHAL ROAD","REASI","REASI","KATRA","J&K",null,"JAMMU",182320,182051202,6320631,33.760420000000003,75.210009999999997,null,{"$f":"TEXT(branch332[[#This Row],[Sol Id]],\"0000\")","v":"0477"}]
["A",478,478,"B","JEHANGIR CHOWK (NABERA COMPLEX)","SRINAGAR","ZO SRINAGAR CLSTR -3 SRINAGAR","NABERA","SGR","SGRCL3","JAKA0NABERA","JEHANGIR CHOWK ,H.S.H.STREET","SRINAGAR","SRINAGAR","SRINAGAR","J&K",null,"KASHMIR",190001,190051039,6320461,34.071950000000001,74.805189999999996,null,{"$f":"TEXT(branch332[[#This Row],[Sol Id]],\"0000\")","v":"0478"}]
["A",479,479,"B","AMINABAD LUCKNOW","DELHI","ZO DELHI CLSTR LUCKNOW","AMINLK","DEL","DELLUC","JAKA0AMINLK","NEAR GONGEE PARK AMINABAD","LUCKNOW","LUCKNOW",null,"UP",null,"ROI",226018,226051003,6320430,26.844899999999999,80.92492,null,{"$f":"TEXT(branch332[[#This Row],[Sol Id]],\"0000\")","v":"0479"}]
["A",480,480,"B","HIGH COURT COMPLEX SRINAGAR","SRINAGAR","ZO SRINAGAR CLSTR -3 SRINAGAR","HCCSGR","SGR","SGRCL3","JAKA0HCCSGR","J&K HIGH COURT","SRINAGAR","SRINAGAR","SRINAGAR SOUTH","J&K",null,"KASHMIR",190001,190051026,6320415,34.072969999999998,74.802989999999994,null,{"$f":"TEXT(branch332[[#This Row],[Sol Id]],\"0000\")","v":"0480"}]
["A",481,481,"B","DRABGAM","PULWAMA","ZO PULWAMA CLSTR SHOPIAN","DUBGAM","PUL","PULSHO","JAKA0DUBGAM","TEHSIL PULWAMA","PULWAMA","PULWAMA","RAJPORA","J&K",null,"KASHMIR",192306,192051117,6320433,33.820270000000001,74.815619999999996,null,{"$f":"TEXT(branch332[[#This Row],[Sol Id]],\"0000\")","v":"0481"}]
["A",482,482,"B","LD HOSPITAL SRINAGAR","SRINAGAR","ZO SRINAGAR CLSTR -1 SRINAGAR","LALDED","SGR","SGRCL1","JAKA0LALDED","LEL DED HOSPITAL, HAZURI BAGH","SRINAGAR","SRINAGAR","SRINAGAR SOUTH","J&K",null,"KASHMIR",190008,190051035,6320426,34.067619999999998,74.807749999999999,null,{"$f":"TEXT(branch332[[#This Row],[Sol Id]],\"0000\")","v":"0482"}]
["A",483,483,"B","OMPORA","BUDGAM","ZO BUDGAM CLSTR -1 BUDGAM","OMPORA","BUD","BUDCL1","JAKA0OMPORA","OMPORA BUDGAM","BUDGAM","BUDGAM","BUDGAM","J&K",null,"KASHMIR",191111,191051002,6320418,34.022120000000001,74.738100000000003,null,{"$f":"TEXT(branch332[[#This Row],[Sol Id]],\"0000\")","v":"0483"}]
["A",484,484,"B","LAAR","BUDGAM","ZO BUDGAM CLSTR GANDERBAL","WATLAR","BUD","BUDGAN","JAKA0WATLAR","MAIN MARKET","GANDERBAL","GANDERBAL","LAAR","J&K",null,"KASHMIR",191131,191051108,6320442,34.25723,74.756100000000004,null,{"$f":"TEXT(branch332[[#This Row],[Sol Id]],\"0000\")","v":"0484"}]
["A",485,485,"B","LAJORA","PULWAMA","ZO PULWAMA CLSTR PULWAMA","LAJORA","PUL","PULPUL","JAKA0LAJORA","LAJORA, PULWAMA","PULWAMA","PULWAMA","PULWAMA","J&K",null,"KASHMIR",192301,192051118,6320448,33.899729999999998,74.955979999999997,null,{"$f":"TEXT(branch332[[#This Row],[Sol Id]],\"0000\")","v":"0485"}]
["A",486,486,"B","WAGOORA","BARAMULLA","ZO BARAMULLA CLSTR BARAMULLA","WAGORA","BAR","BARBAR","JAKA0WAGORA","NEAR MAIN MARKET","BARAMULLA","BARAMULLA","WAGOORA","J&K",null,"KASHMIR",193103,193051019,6320447,34.173749999999998,74.43253,null,{"$f":"TEXT(branch332[[#This Row],[Sol Id]],\"0000\")","v":"0486"}]
["A",487,487,"B","MARHAMA","ANANTNAG","ZO ANANTNAG CLSTR -2 ANANTNAG","MARHMA","ANT","ANTCL2","JAKA0MARHMA","MARHAMA BIJBEHARA ANAN","ANANTNAG","ANANTNAG","BIJBEHARA","J&K",null,"KASHMIR",192124,192051035,6320450,33.834580000000003,75.085210000000004,null,{"$f":"TEXT(branch332[[#This Row],[Sol Id]],\"0000\")","v":"0487"}]
["A",488,488,"B","TREHGAM","BARAMULLA","ZO BARAMULLA CLSTR KUPWARA","TRHGAM","BAR","BARKUP","JAKA0TRHGAM","TREHGAM, KUPWARA","KUPWARA","KUPWARA","TREHGAM","J&K",null,"KASHMIR",193224,193051210,6320456,34.512590000000003,74.170990000000003,null,{"$f":"TEXT(branch332[[#This Row],[Sol Id]],\"0000\")","v":"0488"}]
["A",489,489,"B","NIHAMA","ANANTNAG","ZO ANANTNAG CLSTR KULGAM","NIHAMA","ANT","ANTKUL","JAKA0NIHAMA","NIHAMA, KULGAM TEHSIL: D.H. PORA","KULGAM","KULGAM","DAMHAL HANJIPORA","J&K",null,"KASHMIR",192231,192051036,6320458,33.642330000000001,75.013379999999998,null,{"$f":"TEXT(branch332[[#This Row],[Sol Id]],\"0000\")","v":"0489"}]
["A",491,491,"B","MAITRA","DODA","ZO DODA CLSTR RAMBAN","ERAMBN","DOD","DODRAM","JAKA0ERAMBN","MAITRA RAMBAN","RAMBAN","RAMBAN","RAMBAN","J&K",null,"JAMMU",182144,182051308,6320662,33.231900000000003,75.245159999999998,null,{"$f":"TEXT(branch332[[#This Row],[Sol Id]],\"0000\")","v":"0491"}]
["A",492,492,"B","HERMAN","PULWAMA","ZO PULWAMA CLSTR SHOPIAN","HERMAN","PUL","PULSHO","JAKA0HERMAN","HERMAN SHOPIAN","SHOPIAN","SHOPIAN","HERMAN","J&K",null,"KASHMIR",192303,192051204,6320457,33.708100000000002,74.937299999999993,null,{"$f":"TEXT(branch332[[#This Row],[Sol Id]],\"0000\")","v":"0492"}]
["A",493,493,"B","AMPHALLA JAMMU","JAMMU","ZO JAMMU CLSTR -1 JAMMU","AMPHLA","JAM","JAMCL1","JAKA0AMPHLA","49 MAIN CHOWK NEAR CENTRAL JAIL","JAMMU","JAMMU","JAMMU","J&K",null,"JAMMU",180005,180051040,6320455,32.744990000000001,74.866290000000006,null,{"$f":"TEXT(branch332[[#This Row],[Sol Id]],\"0000\")","v":"0493"}]
["A",494,494,"B","KELLER","PULWAMA","ZO PULWAMA CLSTR SHOPIAN","KELLER","PUL","PULSHO","JAKA0KELLER","KELLER, SHOPIAN","SHOPIAN","SHOPIAN","KELLER","J&K",null,"KASHMIR",192301,192051205,6320454,33.781219999999998,74.757829999999998,null,{"$f":"TEXT(branch332[[#This Row],[Sol Id]],\"0000\")","v":"0494"}]
["A",497,497,"B","SAHARANPUR","DELHI","ZO DELHI CLSTR LUCKNOW","SHARAN","DEL","DELLUC","JAKA0SHARAN","UNIT 1 PARNEVOT PLAZA COURT ROAD","SAHARANPUR","SAHARANPUR",null,"UP",null,"ROI",247001,247051002,6320440,26.166149999999998,79.357119999999995,null,{"$f":"TEXT(branch332[[#This Row],[Sol Id]],\"0000\")","v":"0497"}]
["A",518,518,"B","NASIK","MUMBAI","ZO MUMBAI CLSTR MUMBAI","NAASIK","MUM","MUMMUM","JAKA0NAASIK","SHOP NO.G-3, PLOT NO.249, GROUND FLOOR, SUYOJIT SANKUL, BANK STREET, SHARANPUR ROAD, NASHIK-422002","NASIK","NASIK",null,"MAHARASHTRA",null,"ROI",422002,422051002,6320460,20.00272,73.77037,null,{"$f":"TEXT(branch332[[#This Row],[Sol Id]],\"0000\")","v":"0518"}]
["A",519,519,"B","GHAZIABAD","DELHI","ZO DELHI CLSTR -2 DELHI","GZABAD","DEL","DELCL2","JAKA0GZABAD","204, 1ST FLOOR AMBEDKAR ROAD,OPP NEHRU YUVA KENDRA GHAZIABAD","GHAZIABAD","GHAZIABAD",null,"UP",null,"ROI",201001,110051029,6320477,28.66441,77.434349999999995,null,{"$f":"TEXT(branch332[[#This Row],[Sol Id]],\"0000\")","v":"0519"}]
["A",520,520,"B","RANCHI","DELHI","ZO DELHI CLSTR LUCKNOW","RANCHI","DEL","DELLUC","JAKA0RANCHI","DR. FETEH-ULLAH ROAD,LOWER BAZAR","RANCHI","RANCHI",null,"JHARKHAND",null,"ROI",834001,834051002,6320464,23.364180000000001,85.327190000000002,null,{"$f":"TEXT(branch332[[#This Row],[Sol Id]],\"0000\")","v":"0520"}]
["A",521,521,"B","DWARKA DELHI","DELHI","ZO DELHI CLSTR -2 DELHI","DWARKA","DEL","DELCL2","JAKA0DWARKA","ASHISH PLAZA, PLOT NO. 2, POCKET 7,SECTOR 12, DWARKA","DELHI","DELHI",null,"DELHI",null,"ROI",110078,110051028,6320476,28.58849,77.071489999999997,null,{"$f":"TEXT(branch332[[#This Row],[Sol Id]],\"0000\")","v":"0521"}]
["A",522,522,"B","SHALIMAR BAGH DELHI","DELHI","ZO DELHI CLSTR -2 DELHI","SMBAGH","DEL","DELCL2","JAKA0SMBAGH","U&V, DDA MARKET, IST FLOOR, BLOCK-B,OPP.RBI STAFF COLONY, SHALIMAR BAGH","DELHI","DELHI",null,"DELHI",null,"ROI",110088,110051027,6320473,28.67652,77.115399999999994,null,{"$f":"TEXT(branch332[[#This Row],[Sol Id]],\"0000\")","v":"0522"}]
["A",523,523,"B","BAZAR BATMALOO","SRINAGAR","ZO SRINAGAR CLSTR -3 SRINAGAR","BATMOL","SGR","SGRCL3","JAKA0BATMOL","NEAR AASTAN SHARIEF, BAZAAR BATMALOO","SRINAGAR","SRINAGAR","SRINGAR","J&K",null,"KASHMIR",190010,190051087,6320468,34.07114,74.794780000000003,null,{"$f":"TEXT(branch332[[#This Row],[Sol Id]],\"0000\")","v":"0523"}]
["A",524,524,"B","NATIPORA SRINAGAR","SRINAGAR","ZO SRINAGAR CLSTR -1 SRINAGAR","NATIPR","SGR","SGRCL1","JAKA0NATIPR","NEAR OLD R.T.O OFFICE,BUDSHAH NAGAR, NATIPORA","SRINAGAR","SRINAGAR","CHANAPORA/NATIPORA","J&K",null,"KASHMIR",190015,190051080,6320467,34.03687,74.814520000000002,null,{"$f":"TEXT(branch332[[#This Row],[Sol Id]],\"0000\")","v":"0524"}]
["A",525,525,"B","NOORBAGH SRINAGAR","SRINAGAR","ZO SRINAGAR CLSTR -3 SRINAGAR","NOORBG","SGR","SGRCL3","JAKA0NOORBG","NOORBAGH MAIN CHOWK","SRINAGAR","SRINAGAR","SRINAGAR KHAS","J&K",null,"KASHMIR",190002,190051081,6320478,34.13035,74.72269,null,{"$f":"TEXT(branch332[[#This Row],[Sol Id]],\"0000\")","v":"0525"}]
["A",526,526,"B","SONWAR SRINAGAR","SRINAGAR","ZO SRINAGAR CLSTR -1 SRINAGAR","SONWAR","SGR","SGRCL1","JAKA0SONWAR","OPP. AMAR SINGH CLUB","SRINAGAR","SRINAGAR","SRINGAR","J&K",null,"KASHMIR",190001,190051082,6320486,34.070459999999997,74.840209999999999,null,{"$f":"TEXT(branch332[[#This Row],[Sol Id]],\"0000\")","v":"0526"}]
["A",527,527,"B","HAIDER BEIGH","BARAMULLA","ZO BARAMULLA CLSTR SOPORE","HBEIGH","BAR","BARSOP","JAKA0HBEIGH","HYDER BEIGH, BARAMULLA","BARAMULLA","BARAMULLA","PATTAN","J&K",null,"KASHMIR",193121,193051020,6320472,34.206060000000001,74.508260000000007,null,{"$f":"TEXT(branch332[[#This Row],[Sol Id]],\"0000\")","v":"0527"}]
["A",528,528,"B","KHOJ BAGH","BARAMULLA","ZO BARAMULLA CLSTR BARAMULLA","KHOJBG","BAR","BARBAR","JAKA0KHOJBG","MAIN KHAWAJA BAGH","BARAMULLA","BARAMULLA","BARAMULLA","J&K",null,"KASHMIR",193101,193051003,6320466,34.21313,74.374440000000007,null,{"$f":"TEXT(branch332[[#This Row],[Sol Id]],\"0000\")","v":"0528"}]
["A",529,529,"B","OLD CHOWK KUPWARA","BARAMULLA","ZO BARAMULLA CLSTR KUPWARA","OLDCHK","BAR","BARKUP","JAKA0OLDCHK","OLD CHOWK KUPWARA","KUPWARA","KUPWARA","KUPWARA","J&K",null,"KASHMIR",193222,193051202,6320474,34.526179999999997,74.25461,null,{"$f":"TEXT(branch332[[#This Row],[Sol Id]],\"0000\")","v":"0529"}]
["A",530,530,"B","MAHIM MUMBAI","MUMBAI","ZO MUMBAI CLSTR MUMBAI","MAHIMM","MUM","MUMMUM","JAKA0MAHIMM","124 A/B SYED HOUSE S.V.SAVARKAR MARG","MUMBAI","MUMBAI",null,"MAHARASHTRA",null,"ROI",400016,400051011,6320487,19.038260000000001,72.83896,null,{"$f":"TEXT(branch332[[#This Row],[Sol Id]],\"0000\")","v":"0530"}]
["A",531,531,"B","PANCHKULA","KATHUA","ZO KATHUA CLSTR MOHALI","PANCHK","KAT","KATMOH","JAKA0PANCHK","SCO 240, SECTOR 20","PANCHKULA","PANCHKULA",null,"HARYANA",null,"ROI",134112,160051003,6320469,30.720099999999999,76.774349999999998,null,{"$f":"TEXT(branch332[[#This Row],[Sol Id]],\"0000\")","v":"0531"}]
["A",532,532,"B","MANALI","KATHUA","ZO KATHUA CLSTR MOHALI","MANALI","KAT","KATMOH","JAKA0MANALI","NEAR MAYUR RESTURANT,GOVIND COMPLEX, MANALI","KULU","MANALI",null,"HIMACHAL PRADESH",null,"ROI",175131,175051102,6320465,30.704650000000001,76.717870000000005,null,{"$f":"TEXT(branch332[[#This Row],[Sol Id]],\"0000\")","v":"0532"}]
["A",533,533,"B","INDUSTRIAL AREA LUDHIANA","KATHUA","ZO KATHUA CLSTR MOHALI","IALUDH","KAT","KATMOH","JAKA0IALUDH","PLOTNO330 INDUSTRIAL AREA","LUDHIANA","LUDHIANA",null,"PUNJAB",null,"ROI",141003,141051003,6320475,30.896609999999999,75.872789999999995,null,{"$f":"TEXT(branch332[[#This Row],[Sol Id]],\"0000\")","v":"0533"}]
["A",534,534,"B","BAGH E MEHTAB SRINAGAR","SRINAGAR","ZO SRINAGAR CLSTR -1 SRINAGAR","MEHTAB","SGR","SGRCL1","JAKA0MEHTAB","BAGH-E-MEHTAB","SRINAGAR","SRINAGAR","CHANAPORA/NATIPORA","J&K",null,"KASHMIR",190015,190051083,6320500,34.016550000000002,74.809619999999995,null,{"$f":"TEXT(branch332[[#This Row],[Sol Id]],\"0000\")","v":"0534"}]
["A",535,535,"B","KHAYAM CHOWK SRINAGAR","SRINAGAR","ZO SRINAGAR CLSTR -2 SRINAGAR","KHAYAM","SGR","SGRCL2","JAKA0KHAYAM","OPP. HOTEL BAHAR","SRINAGAR","SRINAGAR","KHANYAR","J&K",null,"KASHMIR",190001,190051084,6320470,34.083100000000002,74.819890000000001,null,{"$f":"TEXT(branch332[[#This Row],[Sol Id]],\"0000\")","v":"0535"}]
["A",536,536,"B","NAGBAL","BUDGAM","ZO BUDGAM CLSTR GANDERBAL","ECNBAL","BUD","BUDGAN","JAKA0ECNBAL","NEAR PETROL PUMP NAGBAL","GANDERBAL","GANDERBAL","GANDERBAL","J&K",null,"KASHMIR",190016,191051104,6320660,34.191929999999999,74.806449999999998,null,{"$f":"TEXT(branch332[[#This Row],[Sol Id]],\"0000\")","v":"0536"}]
["A",537,537,"B","NEW PLOT JAMMU","JAMMU","ZO JAMMU CLSTR -1 JAMMU","NEWPLT","JAM","JAMCL1","JAKA0NEWPLT","DREAM LAND PUBLIC SCHOOL","JAMMU","JAMMU","JAMMU","J&K",null,"JAMMU",180005,180051049,6320490,32.748339999999999,74.858559999999997,null,{"$f":"TEXT(branch332[[#This Row],[Sol Id]],\"0000\")","v":"0537"}]
["A",538,538,"B","PALOURA JAMMU","JAMMU","ZO JAMMU CLSTR -3 JAMMU","PLOURA","JAM","JAMCL3","JAKA0PLOURA","NEAR B.S.F CAMP PLOURA TOP","JAMMU","JAMMU","JAMMU (NORTH)","J&K",null,"JAMMU",181121,180051048,6320492,32.736730000000001,74.803870000000003,null,{"$f":"TEXT(branch332[[#This Row],[Sol Id]],\"0000\")","v":"0538"}]
["A",539,539,"B","GREATER KAILASH JAMMU","JAMMU","ZO JAMMU CLSTR -1 JAMMU","GKJAMU","JAM","JAMCL1","JAKA0GKJAMU","FOUNTAIN CHOWK","JAMMU","JAMMU","BAHU","J&K",null,"JAMMU",180011,180051047,6320491,32.6648,74.894570000000002,null,{"$f":"TEXT(branch332[[#This Row],[Sol Id]],\"0000\")","v":"0539"}]
["A",540,540,"B","INDRA NAGAR BANGALORE","BENGALURU","ZO BENGALURU CLSTR BENGALURU","INBANG","BEN","BENBEN","JAKA0INBANG","8TH EDIFICE,CMH ROAD,","BANGALORE","BANGALURU",null,"KARNATAKA",null,"ROI",560034,560051004,6320488,12.978429999999999,77.642830000000004,null,{"$f":"TEXT(branch332[[#This Row],[Sol Id]],\"0000\")","v":"0540"}]
["A",541,541,"B","GUJROO","KATHUA","ZO KATHUA CLSTR KATHUA","EGROTA","KAT","KATKAT","JAKA0EGROTA","TEHSIL BILAWAR","KATHUA","KATHUA","RAMKOTE","J&K",null,"JAMMU",184205,184051013,6320632,32.793819999999997,74.912090000000006,null,{"$f":"TEXT(branch332[[#This Row],[Sol Id]],\"0000\")","v":"0541"}]
["A",542,542,"B","PHINTER","KATHUA","ZO KATHUA CLSTR KATHUA","PHNTER","KAT","KATKAT","JAKA0PHNTER","PHINTER KATHUA","KATHUA","KATHUA","BILLAWAR","J&K",null,"JAMMU",184203,184051015,6320633,32.582920000000001,75.542959999999994,null,{"$f":"TEXT(branch332[[#This Row],[Sol Id]],\"0000\")","v":"0542"}]
["A",543,543,"B","BONIYAR","BARAMULLA","ZO BARAMULLA CLSTR BARAMULLA","BONYAR","BAR","BARBAR","JAKA0BONYAR","BONIYAR, URI BARAMULLA","BARAMULLA","BARAMULLA","BONIYAR","J&K",null,"KASHMIR",193124,193051021,6320502,34.140099999999997,74.118740000000003,null,{"$f":"TEXT(branch332[[#This Row],[Sol Id]],\"0000\")","v":"0543"}]
["A",544,544,"B","POUNIE","UDHAMPUR","ZO UDHAMPUR CLSTR REASI","POUNIE","UDM","UDMREA","JAKA0POUNIE","POUNIE,DISTIRCT REASI","REASI","REASI","POUNIE","J&K",null,"JAMMU",185203,182051252,6320438,33.0916,74.695660000000004,null,{"$f":"TEXT(branch332[[#This Row],[Sol Id]],\"0000\")","v":"0544"}]
["A",545,545,"B","LITTER","PULWAMA","ZO PULWAMA CLSTR SHOPIAN","LITTER","PUL","PULSHO","JAKA0LITTER","LITTER VILLAGE MAIN","PULWAMA","PULWAMA","LITTER","J&K",null,"KASHMIR",192305,192051119,6320482,33.814109999999999,75.000649999999993,null,{"$f":"TEXT(branch332[[#This Row],[Sol Id]],\"0000\")","v":"0545"}]
["A",546,546,"B","KUNZER","BARAMULLA","ZO BARAMULLA CLSTR BARAMULLA","KUNZER","BAR","BARBAR","JAKA0KUNZER","GULMARG ROAD,","BARAMULLA","BARAMULLA","KUNZER","J&K",null,"KASHMIR",193404,193051022,6320504,34.087649999999996,74.502030000000005,null,{"$f":"TEXT(branch332[[#This Row],[Sol Id]],\"0000\")","v":"0546"}]
["A",547,547,"B","BOARD OF SCHOOL EDUCATION SRINAGAR","SRINAGAR","ZO SRINAGAR CLSTR -3 SRINAGAR","EXAMBR","SGR","SGRCL3","JAKA0EXAMBR","BEMINA","SRINAGAR","SRINAGAR","SRINAGAR","J&K",null,"KASHMIR",190017,190051085,6320498,34.078659999999999,74.765889999999999,null,{"$f":"TEXT(branch332[[#This Row],[Sol Id]],\"0000\")","v":"0547"}]
["A",548,548,"B","NASRULLAHPORA","BUDGAM","ZO BUDGAM CLSTR -1 BUDGAM","NASRUL","BUD","BUDCL1","JAKA0NASRUL","NASRULLAH PORA BUDGAM,","BUDGAM","BUDGAM","BUDGAM","J&K",null,"KASHMIR",191111,191051003,6320484,33.93486,74.640039999999999,null,{"$f":"TEXT(branch332[[#This Row],[Sol Id]],\"0000\")","v":"0548"}]
["A",549,549,"B","LASSIPORA","PULWAMA","ZO PULWAMA CLSTR PULWAMA","LASIPR","PUL","PULPUL","JAKA0LASIPR","NEAR INDUSTRIAL CENTRE","PULWAMA","PULWAMA","LITTER","J&K",null,"KASHMIR",192305,192051120,6320549,33.871609999999997,74.894570000000002,null,{"$f":"TEXT(branch332[[#This Row],[Sol Id]],\"0000\")","v":"0549"}]
["A",550,550,"B","HANDWARA (SOUTH)","BARAMULLA","ZO BARAMULLA CLSTR KUPWARA","HRHAND","BAR","BARKUP","JAKA0HRHAND","HOSPITAL ROAD","KUPWARA","KUPWARA","HANDWARA","J&K",null,"KASHMIR",193221,193051304,6320505,34.401380000000003,74.280609999999996,null,{"$f":"TEXT(branch332[[#This Row],[Sol Id]],\"0000\")","v":"0550"}]
["A",551,551,"B","MIR BAZAR ANANTNAG","ANANTNAG","ZO ANANTNAG CLSTR -1 ANANTNAG","MIRBZR","ANT","ANTCL1","JAKA0MIRBZR","MIR BAZAR MAIN ,QAZIGUND","ANANTNAG","ANANTNAG","ANANTNAG","J&K",null,"KASHMIR",192102,192051037,6320496,33.691899999999997,75.112939999999995,null,{"$f":"TEXT(branch332[[#This Row],[Sol Id]],\"0000\")","v":"0551"}]
["A",552,552,"B","MAHANPUR","KATHUA","ZO KATHUA CLSTR KATHUA","MAHANP","KAT","KATKAT","JAKA0MAHANP","MAHANPUR TEHSIL BASOLI","KATHUA","KATHUA","MAHANPUR","J&K",null,"JAMMU",184202,184051024,6320634,32.536369999999998,75.648679999999999,null,{"$f":"TEXT(branch332[[#This Row],[Sol Id]],\"0000\")","v":"0552"}]
["A",553,553,"B","RAMKOT","KATHUA","ZO KATHUA CLSTR KATHUA","RAMKOT","KAT","KATKAT","JAKA0RAMKOT","POSTOFFICE RAMKOT TEHSIL BILAWAR","KATHUA","KATHUA","RAMKOTE","J&K",null,"JAMMU",184205,184051023,6320463,32.642539999999997,75.333569999999995,null,{"$f":"TEXT(branch332[[#This Row],[Sol Id]],\"0000\")","v":"0553"}]
["A",555,555,"B","KATHUA CITY","KATHUA","ZO KATHUA CLSTR KATHUA","PCKATU","KAT","KATKAT","JAKA0PCKATU","KATHUA MAIN MARKET , TEHSIL KATHUA","KATHUA","KATHUA","KATHUA","J&K",null,"JAMMU",184801,184051028,6320770,null,null,null,{"$f":"TEXT(branch332[[#This Row],[Sol Id]],\"0000\")","v":"0555"}]
["A",556,556,"B","DARHAL","RAJOURI","ZO RAJOURI CLSTR RAJOURI","DARHAL","RAJ","RAJRAJ","JAKA0DARHAL","NEAR BUS STAND DARHAL","RAJOURI","RAJOURI","DARHAL","J&K",null,"JAMMU",185135,185051004,6320452,33.484029999999997,74.410430000000005,null,{"$f":"TEXT(branch332[[#This Row],[Sol Id]],\"0000\")","v":"0556"}]
["A",557,557,"B","RAKIBAN","RAJOURI","ZO RAJOURI CLSTR RAJOURI","RAIKAB","RAJ","RAJRAJ","JAKA0RAIKAB","RAKIBAN RAJOURI","RAJOURI","RAJOURI","DARHAL","J&K",null,"JAMMU",185135,185051012,6320305,33.436210000000003,74.384889999999999,null,{"$f":"TEXT(branch332[[#This Row],[Sol Id]],\"0000\")","v":"0557"}]
["A",558,558,"B","RAJPURA","KATHUA","ZO KATHUA CLSTR SAMBA","RAJPJM","KAT","KATSAM","JAKA0RAJPJM","VILLAGE & P.O.RAJPORA TEHSIL SAMBHA","SAMBA","SAMBA","RAJPURA","J&K",null,"JAMMU",184145,180051065,6320635,null,null,null,{"$f":"TEXT(branch332[[#This Row],[Sol Id]],\"0000\")","v":"0558"}]
["A",559,559,"B","KARAN BAGH JAMMU","JAMMU","ZO JAMMU CLSTR -2 JAMMU","KARNBG","JAM","JAMCL2","JAKA0KARNBG","R.S.PORA ROAD","JAMMU","JAMMU","JAMMU (SOUTH)","J&K",null,"JAMMU",180010,180051059,6320512,32.669249999999998,74.839089999999999,null,{"$f":"TEXT(branch332[[#This Row],[Sol Id]],\"0000\")","v":"0559"}]
["A","0559E","0559E","EC","EC - CIVIL AIRPORT JAMMU",null,null,"KARNBG","JAM","JAMCL1","JAKA0KARNBG",null,"JAMMU","JAMMU","JAMMU (SOUTH)","J&K",null,"JAMMU",180010,180051059,6320512,32.669249999999998,74.839089999999999,null,{"$f":"TEXT(branch332[[#This Row],[Sol Id]],\"0000\")","v":"0559E"}]
["A",560,560,"B","DUDERHAMA","BUDGAM","ZO BUDGAM CLSTR GANDERBAL","DUDRHM","BUD","BUDGAN","JAKA0DUDRHM","TAWHEED MARKET NEAR QAMRIA PARK","GANDERBAL","GANDERBAL","TULMULLAH","J&K",null,"KASHMIR",191201,191051109,6320509,34.212490000000003,74.767229999999998,null,{"$f":"TEXT(branch332[[#This Row],[Sol Id]],\"0000\")","v":"0560"}]
["A",561,561,"B","KHUMANI CHOWK","BUDGAM","ZO BUDGAM CLSTR -1 BUDGAM","KHMENI","BUD","BUDCL1","JAKA0KHMENI","KHOMENI CHOWK MAIN MARKET GAS","BUDGAM","BUDGAM","BUDGAM","J&K",null,"KASHMIR",190018,190051078,6320511,34.078159999999997,74.766490000000005,null,{"$f":"TEXT(branch332[[#This Row],[Sol Id]],\"0000\")","v":"0561"}]
["A",562,562,"B","GOLE MARKET UDHAMPUR","UDHAMPUR","ZO UDHAMPUR CLSTR UDHAMPUR","MGRANT","UDM","UDMUDM","JAKA0MGRANT","GOLE MARKET","UDHAMPUR","UDHAMPUR","UDHAMPUR","J&K",null,"JAMMU",182101,182051024,6320771,32.551630000000003,75.074700000000007,null,{"$f":"TEXT(branch332[[#This Row],[Sol Id]],\"0000\")","v":"0562"}]
["A",563,563,"B","SHIV NAGAR UDHAMPUR","UDHAMPUR","ZO UDHAMPUR CLSTR UDHAMPUR","SHIVJI","UDM","UDMUDM","JAKA0SHIVJI","SHIVNAGAR,NATIONAL HIGHWAY 1A,","UDHAMPUR","UDHAMPUR","UDHAMPUR","J&K",null,"JAMMU",182121,182051016,6320708,32.55368,75.075530000000001,null,{"$f":"TEXT(branch332[[#This Row],[Sol Id]],\"0000\")","v":"0563"}]
["A",564,564,"B","BHALRA","DODA","ZO DODA CLSTR DODA","BHALRA","DOD","DODDOD","JAKA0BHALRA","NAGNI TEHSIL BADERWAH","DODA","DODA","BHADERWAH","J&K",null,"JAMMU",182221,182051111,6320709,33.026589999999999,75.690029999999993,null,{"$f":"TEXT(branch332[[#This Row],[Sol Id]],\"0000\")","v":"0564"}]
["A",565,565,"B","ROHMOO","PULWAMA","ZO PULWAMA CLSTR PULWAMA","ROHMOO","PUL","PULPUL","JAKA0ROHMOO","MAIN CHOWK PULWAMA","PULWAMA","PULWAMA","RAJPORA","J&K",null,"KASHMIR",192301,192051121,6320471,33.853839999999998,74.828940000000003,null,{"$f":"TEXT(branch332[[#This Row],[Sol Id]],\"0000\")","v":"0565"}]
["A",566,566,"B","CHINKIPORA SOPORE","BARAMULLA","ZO BARAMULLA CLSTR SOPORE","ECSOPR","BAR","BARSOP","JAKA0ECSOPR","CHINKIPORA , SOPORE","BARAMULLA","BARAMULLA","SOPORE","J&K",null,"KASHMIR",193201,193051112,6320627,34.305860000000003,74.457830000000001,null,{"$f":"TEXT(branch332[[#This Row],[Sol Id]],\"0000\")","v":"0566"}]
["A",567,567,"B","ROHAMA","BARAMULLA","ZO BARAMULLA CLSTR SOPORE","ROHAMA","BAR","BARSOP","JAKA0ROHAMA","ROHAMA RAFIABD","BARAMULLA","BARAMULLA","ROHAMA","J&K",null,"KASHMIR",193301,193051023,6320508,34.27393,74.356539999999995,null,{"$f":"TEXT(branch332[[#This Row],[Sol Id]],\"0000\")","v":"0567"}]
["A",568,568,"B","VILGAM","BARAMULLA","ZO BARAMULLA CLSTR KUPWARA","VILGAM","BAR","BARKUP","JAKA0VILGAM","VILGAM, TEHSIL HANDWAR","KUPWARA","KUPWARA","TARATHPORA (RAMHALL)","J&K",null,"KASHMIR",193224,193051211,6320507,34.477490000000003,74.152659999999997,null,{"$f":"TEXT(branch332[[#This Row],[Sol Id]],\"0000\")","v":"0568"}]
["A",569,569,"B","TOP SHERKHANIAN JAMMU","JAMMU","ZO JAMMU CLSTR -3 JAMMU","TOPSHR","JAM","JAMCL3","JAKA0TOPSHR","TOPH SHERKHANIA,SUBHASH NAGAR","JAMMU","JAMMU","JAMMU","J&K",null,"JAMMU",181121,180051058,6320671,32.726599999999998,74.857029999999995,null,{"$f":"TEXT(branch332[[#This Row],[Sol Id]],\"0000\")","v":"0569"}]
["A",570,570,"B","TP KISHTWAR","DODA","ZO DODA CLSTR KISHTWAR","PCKSTW","DOD","DODKIS","JAKA0PCKSTW","OPPOSITE, SBI, OLD D. C. OFFICE COMPLEX","KISHTWAR","KISHTWAR","KISHTWAR","J&K",null,"JAMMU",182204,182051416,6320730,33.31532,75.76679,null,{"$f":"TEXT(branch332[[#This Row],[Sol Id]],\"0000\")","v":"0570"}]
["A",572,572,"B","ZAMPA","LADAKH","ZO LADAKH CLSTR LEH","ZAMPAA","LAD","LADLEH","JAKA0ZAMPAA","ZAMPAA LEH","LEH","LEH","LEH","LADAKH",null,"LADAKH",194104,194051004,6320672,34.099550000000001,77.596649999999997,null,{"$f":"TEXT(branch332[[#This Row],[Sol Id]],\"0000\")","v":"0572"}]
["A",573,573,"B","CHANGA","DODA","ZO DODA CLSTR DODA","CHANGA","DOD","DODDOD","JAKA0CHANGA","CHANGA BHALESSA - DODA","DODA","DODA","BHALESSA-GANDOH","J&K",null,"JAMMU",182203,182051118,6320501,33.009529999999998,75.844679999999997,null,{"$f":"TEXT(branch332[[#This Row],[Sol Id]],\"0000\")","v":"0573"}]
["A",574,574,"B","KHEERIBAL","ANANTNAG","ZO ANANTNAG CLSTR -2 ANANTNAG","KHERBL","ANT","ANTCL2","JAKA0KHERBL","KHEERIBAL, ANANTNAG","ANANTNAG","ANANTNAG","SHANGUS","J&K",null,"KASHMIR",192125,192051038,6320499,33.73001,75.265559999999994,null,{"$f":"TEXT(branch332[[#This Row],[Sol Id]],\"0000\")","v":"0574"}]
["A",575,575,"B","KADDER","ANANTNAG","ZO ANANTNAG CLSTR KULGAM","KADDAR","ANT","ANTKUL","JAKA0KADDAR","KADDAR KULGAM,P/O YARIPORA","KULGAM","KULGAM","KULGAM","J&K",null,"KASHMIR",192232,192051045,6320485,33.700159999999997,74.993499999999997,null,{"$f":"TEXT(branch332[[#This Row],[Sol Id]],\"0000\")","v":"0575"}]
["A",576,576,"B","RANIPORA","ANANTNAG","ZO ANANTNAG CLSTR -2 ANANTNAG","RANIPR","ANT","ANTCL2","JAKA0RANIPR","P.O BRAH RANIPORA TEHSIL SHANGUS","ANANTNAG","ANANTNAG","SHANGUS","J&K",null,"KASHMIR",192201,192051039,6320495,33.729289999999999,75.264790000000005,null,{"$f":"TEXT(branch332[[#This Row],[Sol Id]],\"0000\")","v":"0576"}]
["A",577,577,"B","BUGAM","ANANTNAG","ZO ANANTNAG CLSTR KULGAM","BOOGAM","ANT","ANTKUL","JAKA0BOOGAM","BUGAM,POST OFFICE BUGAM TEHSIL","KULGAM","KULGAM","KULGAM","J&K",null,"KASHMIR",192232,192051046,6320506,34.011780000000002,74.77467,null,{"$f":"TEXT(branch332[[#This Row],[Sol Id]],\"0000\")","v":"0577"}]
["A",578,578,"B","MANZGAM","ANANTNAG","ZO ANANTNAG CLSTR KULGAM","MNZGAM","ANT","ANTKUL","JAKA0MNZGAM","OPP JAMIA MASJID MANZGAM,TESHIL DAMHAL HANJI PORA","KULGAM","KULGAM","DAMHAL HANJIPORA","J&K",null,"KASHMIR",192233,192051044,6320503,33.594230000000003,74.874340000000004,null,{"$f":"TEXT(branch332[[#This Row],[Sol Id]],\"0000\")","v":"0578"}]
["A",579,579,"B","MOHAMMAD PORA","ANANTNAG","ZO ANANTNAG CLSTR KULGAM","MHMDPR","ANT","ANTKUL","JAKA0MHMDPR","MOHAMMAD PORA KULGAM","KULGAM","KULGAM","KULGAM","J&K",null,"KASHMIR",192231,192051040,6320489,33.678310000000003,74.974940000000004,null,{"$f":"TEXT(branch332[[#This Row],[Sol Id]],\"0000\")","v":"0579"}]
["A",580,580,"B","KHUDWANI","ANANTNAG","ZO ANANTNAG CLSTR KULGAM","KHUDWN","ANT","ANTKUL","JAKA0KHUDWN","KHUDWANI MAIN MARKET","KULGAM","KULGAM","QAIMOH","J&K",null,"KASHMIR",192102,192051041,6320483,33.723489999999998,75.087509999999995,null,{"$f":"TEXT(branch332[[#This Row],[Sol Id]],\"0000\")","v":"0580"}]
["A",583,583,"EC","EC - BHAGWATI NAGAR JAMMU","JAMMU","ZO JAMMU CLSTR -2 JAMMU","BAGWAT","JAM","JAMCL2","JAKA0BAGWAT","YATRI NIWAS BAGWATI NAGAR JAMMU",null,null,null,null,null,null,null,null,null,null,null,null,{"$f":"TEXT(branch332[[#This Row],[Sol Id]],\"0000\")","v":"0583"}]
["A",584,584,"B","CHIKTAN","LADAKH","ZO LADAKH CLSTR KARGIL","CHKTAN","LAD","LADKAR","JAKA0CHKTAN","THE JAMMU AND KASHMIR BANK LTD,BLOCK SHAKAR CHIKTAN","KARGIL","KARGIL","SHAKAR CHIKTAN","LADAKH",null,"LADAKH",194109,194051011,6320510,34.467120000000001,76.514200000000002,null,{"$f":"TEXT(branch332[[#This Row],[Sol Id]],\"0000\")","v":"0584"}]
["A",585,585,"B","POONCH CITY","RAJOURI","ZO RAJOURI CLSTR POONCH","EPONCH","RAJ","RAJPOO","JAKA0EPONCH","TEHSIL POONCH","POONCH","POONCH","HAVELI","J&K",null,"JAMMU",185101,185051115,6320769,33.76867,74.092269999999999,null,{"$f":"TEXT(branch332[[#This Row],[Sol Id]],\"0000\")","v":"0585"}]
["A",586,586,"B","BABA GHULAM SHAH UNIVERSITY RAJOURI","RAJOURI","ZO RAJOURI CLSTR RAJOURI","GSBUNI","RAJ","RAJRAJ","JAKA0GSBUNI","RAJOURI","RAJOURI","RAJOURI","RAJOURI","J&K",null,"JAMMU",185131,185051013,6320494,33.392249999999997,74.344080000000005,null,{"$f":"TEXT(branch332[[#This Row],[Sol Id]],\"0000\")","v":"0586"}]
["A",587,587,"B","INDUSTRIAL FINANCE BRANCH SAMBA","KATHUA","ZO KATHUA CLSTR SAMBA","IFSMBA","KAT","KATSAM","JAKA0IFSMBA","INDUSTRIAL FINANCE SID","SAMBA","SAMBA","SAMBA","J&K",null,"JAMMU",184121,180051060,6320538,null,null,null,{"$f":"TEXT(branch332[[#This Row],[Sol Id]],\"0000\")","v":"0587"}]
["A",589,589,"B","WADWAN(INSHAN)","DODA","ZO DODA CLSTR KISHTWAR","WADWAN","DOD","DODKIS","JAKA0WADWAN","WADWAN MAIN","KISHTWAR","KISHTWAR","WADWAN","J&K",null,"JAMMU",182204,182051408,6320673,33.664749999999998,75.171769999999995,null,{"$f":"TEXT(branch332[[#This Row],[Sol Id]],\"0000\")","v":"0589"}]
["A",590,590,"B","HARDU ABOORA","BARAMULLA","ZO BARAMULLA CLSTR BARAMULLA","HRDABR","BAR","BARBAR","JAKA0HRDABR","BLOCK KUNZER TEHSIL TANGMARG","BARAMULLA","BARAMULLA","KAWARHAMA","J&K",null,"KASHMIR",193401,193051027,6320523,34.086060000000003,74.499549999999999,null,{"$f":"TEXT(branch332[[#This Row],[Sol Id]],\"0000\")","v":"0590"}]
["A",591,591,"B","SHEERI","BARAMULLA","ZO BARAMULLA CLSTR BARAMULLA","SHEERI","BAR","BARBAR","JAKA0SHEERI","MAIN BAZAAR SHEERI SHEERINABAD","BARAMULLA","BARAMULLA","BARAMULLA","J&K",null,"KASHMIR",193101,193051028,6320536,34.184780000000003,74.313289999999995,null,{"$f":"TEXT(branch332[[#This Row],[Sol Id]],\"0000\")","v":"0591"}]
["A",592,592,"B","WATERGAM","BARAMULLA","ZO BARAMULLA CLSTR SOPORE","WTRGAM","BAR","BARSOP","JAKA0WTRGAM","WATERGAM , ROHAMA","BARAMULLA","BARAMULLA","WATERGAM","J&K",null,"KASHMIR",193303,193051029,6320534,32.726599999999998,74.857029999999995,null,{"$f":"TEXT(branch332[[#This Row],[Sol Id]],\"0000\")","v":"0592"}]
["A",593,593,"B","BADUGAM TULAIL","BARAMULLA","ZO BARAMULLA CLSTR BANDIPORA","TULAIL","BAR","BARBAN","JAKA0TULAIL","TEHSIL GUREZ","BANDIPORA","BANDIPORA","TULAIL","J&K",null,"KASHMIR",193503,193051406,6320648,34.642679999999999,74.791300000000007,null,{"$f":"TEXT(branch332[[#This Row],[Sol Id]],\"0000\")","v":"0593"}]
["A",594,594,"B","QALAM CHAKLA","BARAMULLA","ZO BARAMULLA CLSTR KUPWARA","QLMCHK","BAR","BARKUP","JAKA0QLMCHK","TEHSIL, HANDWARA","KUPWARA","KUPWARA","LANGATE","J&K",null,"KASHMIR",193302,193051305,6320530,34.509819999999998,74.171260000000004,null,{"$f":"TEXT(branch332[[#This Row],[Sol Id]],\"0000\")","v":"0594"}]
["A",595,595,"B","LALPORA","BARAMULLA","ZO BARAMULLA CLSTR KUPWARA","LALPOR","BAR","BARKUP","JAKA0LALPOR","LALPORA MAIN","KUPWARA","KUPWARA","LALPORA","J&K",null,"KASHMIR",193223,193051214,6320522,34.524999999999999,74.391670000000005,null,{"$f":"TEXT(branch332[[#This Row],[Sol Id]],\"0000\")","v":"0595"}]
["A",596,596,"B","WAVOORA","BARAMULLA","ZO BARAMULLA CLSTR KUPWARA","WAWOOR","BAR","BARKUP","JAKA0WAWOOR","BLOCK WAWOORA TEHSIL KUPWARA","KUPWARA","KUPWARA","SOGAM (LOLAB)","J&K",null,"KASHMIR",193223,193051216,6320529,34.536580000000001,74.371579999999994,null,{"$f":"TEXT(branch332[[#This Row],[Sol Id]],\"0000\")","v":"0596"}]
["A",597,597,"B","DRAGMULLAH","BARAMULLA","ZO BARAMULLA CLSTR KUPWARA","DRGMUL","BAR","BARKUP","JAKA0DRGMUL","NEAR R.T.O OFFICE","KUPWARA","KUPWARA","DRUGMULLA","J&K",null,"KASHMIR",193222,193051215,6320520,34.487110000000001,74.286839999999998,null,{"$f":"TEXT(branch332[[#This Row],[Sol Id]],\"0000\")","v":"0597"}]
["A",598,598,"EC","EC - SHASTRI NAGAR JAMMU","JAMMU","ZO JAMMU CLSTR -2 JAMMU","SHSTRI","JAM","JAMCL2","JAKA0SHSTRI","371-372 TREASURY PREMISES, OPP DURGA MANDIR SHASTRI NAGAR, JAMMU",null,null,null,null,null,null,null,null,null,null,null,null,{"$f":"TEXT(branch332[[#This Row],[Sol Id]],\"0000\")","v":"0598"}]
["A",599,599,"B","NIMMOO","LADAKH","ZO LADAKH CLSTR LEH","NIMMOO","LAD","LADLEH","JAKA0NIMMOO","NIMMOO LEH LADAKH","LEH","LEH","LEH","LADAKH",null,"LADAKH",194402,194051019,6320519,34.195180000000001,77.335310000000007,null,{"$f":"TEXT(branch332[[#This Row],[Sol Id]],\"0000\")","v":"0599"}]
["A",600,600,"B","TURKWANGAN","PULWAMA","ZO PULWAMA CLSTR SHOPIAN","TURKWN","PUL","PULSHO","JAKA0TURKWN","NEAR NEW SUMO STAND","SHOPIAN","SHOPIAN","CHITRAGAM","J&K",null,"KASHMIR",192305,192051207,6320514,33.78266,74.932699999999997,null,{"$f":"TEXT(branch332[[#This Row],[Sol Id]],\"0000\")","v":"0600"}]
["A",601,601,"B","NAGAM","BUDGAM","ZO BUDGAM CLSTR -2 BUDGAM","NAGGAM","BUD","BUDCL2","JAKA0NAGGAM","MAGAM MAIN MARKET , TEHSIL CHADURA","BUDGAM","BUDGAM","CHADURA","J&K",null,"KASHMIR",191113,191051016,6320525,34.094589999999997,74.596540000000005,null,{"$f":"TEXT(branch332[[#This Row],[Sol Id]],\"0000\")","v":"0601"}]
["A",602,602,"B","PEHLOO","ANANTNAG","ZO ANANTNAG CLSTR KULGAM","PEHLOO","ANT","ANTKUL","JAKA0PEHLOO","PEHLOO KULGAM","KULGAM","KULGAM","PEHLOO","J&K",null,"KASHMIR",192212,192051042,6320521,33.636180000000003,75.048699999999997,null,{"$f":"TEXT(branch332[[#This Row],[Sol Id]],\"0000\")","v":"0602"}]
["A",603,603,"B","BAGATI KANIPORA","BUDGAM","ZO BUDGAM CLSTR -2 BUDGAM","BKPORA","BUD","BUDCL2","JAKA0BKPORA","BAGATI KANI PORA P/O NATIPORA","BUDGAM","BUDGAM","BAGATI KANIPORA","J&K",null,"KASHMIR",190015,191051017,6320517,34.011629999999997,74.831450000000004,null,{"$f":"TEXT(branch332[[#This Row],[Sol Id]],\"0000\")","v":"0603"}]
["A",604,604,"B","ARLI KATRA","UDHAMPUR","ZO UDHAMPUR CLSTR REASI","CKATRA","UDM","UDMREA","JAKA0CKATRA","TEHSIL RAESI","REASI","REASI","KATRA","J&K",null,"JAMMU",182301,182051204,6320767,32.986960000000003,74.934139999999999,null,{"$f":"TEXT(branch332[[#This Row],[Sol Id]],\"0000\")","v":"0604"}]
["A",605,605,"B","PREM NAGAR","DODA","ZO DODA CLSTR DODA","PRMNGR","DOD","DODDOD","JAKA0PRMNGR","MAIN ROAD PREM NAGAR THATRI DODA","DODA","DODA","THATRI","J&K",null,"JAMMU",182201,182051114,6320535,33.160620000000002,75.769130000000004,null,{"$f":"TEXT(branch332[[#This Row],[Sol Id]],\"0000\")","v":"0605"}]
["A","0078E","0078E","EC","EC - TREASURY PREMISES BUDGAM",null,null,"MAJLIS","BUD","BUDBUD","JAKA0MAJLIS",null,"BUDGAM","BUDGAM","BUDGAM","J&K",null,"KASHMIR",191111,191051001,6320078,34.015639999999998,74.721100000000007,null,{"$f":"TEXT(branch332[[#This Row],[Sol Id]],\"0000\")","v":"0078E"}]
["A",79,79,"B","BATOTE","DODA","ZO DODA CLSTR RAMBAN","BATOTE","DOD","DODRAM","JAKA0BATOTE","BATOTE","RAMBAN","RAMBAN","BATOTE","J&K",null,"JAMMU",182143,182051302,6320079,33.12189,75.323049999999995,null,{"$f":"TEXT(branch332[[#This Row],[Sol Id]],\"0000\")","v":"0079"}]
["A",80,80,"B","BANIHAL","DODA","ZO DODA CLSTR RAMBAN","TUNNEL","DOD","DODRAM","JAKA0TUNNEL","DIST, RAMBAN","RAMBAN","RAMBAN","BANIHAL","J&K",null,"JAMMU",182146,182051304,6320080,33.26108,75.114490000000004,null,{"$f":"TEXT(branch332[[#This Row],[Sol Id]],\"0000\")","v":"0080"}]
["A",81,81,"B","GANDERBAL","BUDGAM","ZO BUDGAM CLSTR GANDERBAL","GANDER","BUD","BUDGAN","JAKA0GANDER","BEEHAMA GANDERBAL","GANDERBAL","GANDERBAL","GANDERBAL","J&K",null,"KASHMIR",191201,191051101,6320081,34.08567,74.797349999999994,null,{"$f":"TEXT(branch332[[#This Row],[Sol Id]],\"0000\")","v":"0081"}]
["A","0081E","0081E","EC","EC - MINI SECRETARIAT GANDERBAL",null,null,"GANDER","BUD","BUDUND","JAKA0GANDER",null,"GANDERBAL","GANDERBAL","GANDERBAL","J&K",null,"KASHMIR",191201,191051101,6320081,34.08567,74.797349999999994,null,{"$f":"TEXT(branch332[[#This Row],[Sol Id]],\"0000\")","v":"0081E"}]
["A",82,82,"B","LANGATE","BARAMULLA","ZO BARAMULLA CLSTR KUPWARA","LANGAT","BAR","BARKUP","JAKA0LANGAT","LANGATE,KUPWARA","KUPWARA","KUPWARA","LANGATE","J&K",null,"KASHMIR",193201,193051302,6320082,34.375590000000003,74.298720000000003,null,{"$f":"TEXT(branch332[[#This Row],[Sol Id]],\"0000\")","v":"0082"}]
["A",83,83,"B","PANIPAT","DELHI","ZO DELHI CLSTR -2 DELHI","PANPAT","DEL","DELCL2","JAKA0PANPAT","G.T.ROAD PANIPAT","PANIPAT","PANIPAT",null,"HARYANA",null,"ROI",132103,132051002,6320268,29.451160000000002,76.97672,null,{"$f":"TEXT(branch332[[#This Row],[Sol Id]],\"0000\")","v":"0083"}]
["A",84,84,"B","NEW SECTT ROAD SRINAGAR","SRINAGAR","ZO SRINAGAR CLSTR -3 SRINAGAR","PROMPT","SGR","SGRCL3","JAKA0PROMPT","NEAR NEELAM CINEMA, NEW SECTT. ROAD","SRINAGAR","SRINAGAR","SRINAGAR KHAS","J&K",null,"KASHMIR",190010,190051044,6320084,34.083660000000002,74.797370000000001,null,{"$f":"TEXT(branch332[[#This Row],[Sol Id]],\"0000\")","v":"0084"}]
["A",85,85,"B","NOWSHERA","RAJOURI","ZO RAJOURI CLSTR RAJOURI","NOSHER","RAJ","RAJRAJ","JAKA0NOSHER","NOWSHERA, RAJOURI","RAJOURI","RAJOURI","NOWSHERA","J&K",null,"JAMMU",185151,185051009,6320085,33.16039,74.244339999999994,null,{"$f":"TEXT(branch332[[#This Row],[Sol Id]],\"0000\")","v":"0085"}]
["A",86,86,"B","RAJOURI KADAL SRINAGAR","SRINAGAR","ZO SRINAGAR CLSTR -2 SRINAGAR","BULBUL","SGR","SGRCL2","JAKA0BULBUL","RAJOURI KADAL","SRINAGAR","SRINAGAR","KHANYAR","J&K",null,"KASHMIR",190002,190051052,6320086,34.099400000000003,74.805019999999999,null,{"$f":"TEXT(branch332[[#This Row],[Sol Id]],\"0000\")","v":"0086"}]
["A",87,87,"B","RAMBAN","DODA","ZO DODA CLSTR RAMBAN","RAMBAN","DOD","DODRAM","JAKA0RAMBAN","RAMBAN MAIN BRANCH","RAMBAN","RAMBAN","RAMBAN","J&K",null,"JAMMU",182144,182051301,6320087,33.239989999999999,75.238820000000004,null,{"$f":"TEXT(branch332[[#This Row],[Sol Id]],\"0000\")","v":"0087"}]
["A","0087E","0087E","EC","EC - RAMBAN",null,null,"RAMBAN","DOD","DODRAM","JAKA0RAMBAN",null,"RAMBAN","RAMBAN","RAMBAN","J&K",null,"JAMMU",182144,182051301,6320087,33.239989999999999,75.238820000000004,null,{"$f":"TEXT(branch332[[#This Row],[Sol Id]],\"0000\")","v":"0087E"}]
["A",88,88,"B","URI (MAIN)","BARAMULLA","ZO BARAMULLA CLSTR BARAMULLA","JEHLUM","BAR","BARBAR","JAKA0JEHLUM","URI MAIN BARAMULLA","BARAMULLA","BARAMULLA","URI","J&K",null,"KASHMIR",193123,193051006,6320088,34.088979999999999,74.033270000000002,null,{"$f":"TEXT(branch332[[#This Row],[Sol Id]],\"0000\")","v":"0088"}]
["A",89,89,"B","SUMBAL","BARAMULLA","ZO BARAMULLA CLSTR BANDIPORA","SUMBAL","BAR","BARBAN","JAKA0SUMBAL","SUMBAL, TEHSIL SUMBAL SONAWARI","BANDIPORA","BANDIPORA","SUMBAL SONAWARI","J&K",null,"KASHMIR",193501,193051008,6320089,34.224499999999999,74.6327,null,{"$f":"TEXT(branch332[[#This Row],[Sol Id]],\"0000\")","v":"0089"}]
["A",90,90,"B","MAGAM BUDGAM","BUDGAM","ZO BUDGAM CLSTR -1 BUDGAM","MAGGAM","BUD","BUDCL1","JAKA0MAGGAM","MAGAM BUDGAM","BUDGAM","BUDGAM","MAGAM","J&K",null,"KASHMIR",193401,191051014,6320090,34.094589999999997,74.596540000000005,null,{"$f":"TEXT(branch332[[#This Row],[Sol Id]],\"0000\")","v":"0090"}]
["A",91,91,"B","BIJBEHARA","ANANTNAG","ZO ANANTNAG CLSTR -2 ANANTNAG","BBHARA","ANT","ANTCL2","JAKA0BBHARA","NATIONAL HIGHWAY BIJBEHARA","ANANTNAG","ANANTNAG","BIJBEHARA","J&K",null,"KASHMIR",192124,192051013,6320091,33.792920000000002,75.103750000000005,null,{"$f":"TEXT(branch332[[#This Row],[Sol Id]],\"0000\")","v":"0091"}]
["A",92,92,"B","DAWER GUREZ","BARAMULLA","ZO BARAMULLA CLSTR BANDIPORA","DHAVER","BAR","BARBAN","JAKA0DHAVER","DAWER GUREZ","BANDIPORA","BANDIPORA","GUREZ","J&K",null,"KASHMIR",193503,193051403,6320092,34.636150000000001,74.832549999999998,null,{"$f":"TEXT(branch332[[#This Row],[Sol Id]],\"0000\")","v":"0092"}]
["A",93,93,"B","SUNDER BANI","RAJOURI","ZO RAJOURI CLSTR RAJOURI","SUNDER","RAJ","RAJRAJ","JAKA0SUNDER","MAIN MARKET ,SUNDERBANI","RAJOURI","RAJOURI","SUNDERBANI","J&K",null,"JAMMU",185153,185051007,6320093,33.047899999999998,74.488720000000001,null,{"$f":"TEXT(branch332[[#This Row],[Sol Id]],\"0000\")","v":"0093"}]
["A",94,94,"B","MENDHER","RAJOURI","ZO RAJOURI CLSTR POONCH","MENDER","RAJ","RAJPOO","JAKA0MENDER","TEH. MENDHAR POONCH,","POONCH","POONCH","MENDHAR","J&K",null,"JAMMU",185211,185051103,6320094,33.605080000000001,74.143079999999998,null,{"$f":"TEXT(branch332[[#This Row],[Sol Id]],\"0000\")","v":"0094"}]
["A",95,95,"B","KOTRANKA BUDHAL","RAJOURI","ZO RAJOURI CLSTR RAJOURI","BUDHAL","RAJ","RAJRAJ","JAKA0BUDHAL","KOTRANKA,RAJOURI","RAJOURI","RAJOURI","KOTERANKA","J&K",null,"JAMMU",185136,185051010,6320095,33.360819999999997,74.534829999999999,null,{"$f":"TEXT(branch332[[#This Row],[Sol Id]],\"0000\")","v":"0095"}]
["A",96,96,"B","KARGIL (MAIN)","LADAKH","ZO LADAKH CLSTR KARGIL","KARGIL","LAD","LADKAR","JAKA0KARGIL","KARGIL MAIN MARKET","KARGIL","KARGIL","KARGIL","LADAKH",null,"LADAKH",194102,194051008,6320096,34.557090000000002,76.126499999999993,null,{"$f":"TEXT(branch332[[#This Row],[Sol Id]],\"0000\")","v":"0096"}]
["A",97,97,"B","TOWN HALL JAMMU","JAMMU","ZO JAMMU CLSTR -1 JAMMU","TNHALL","JAM","JAMCL1","JAKA0TNHALL","NEAR TOWN HALL","JAMMU","JAMMU","JAMMU","J&K",null,"JAMMU",180001,180051025,6320097,32.726930000000003,74.860230000000001,null,{"$f":"TEXT(branch332[[#This Row],[Sol Id]],\"0000\")","v":"0097"}]
["A",98,98,"B","MAJITH MANDI AMRITSAR","KATHUA","ZO KATHUA CLSTR MOHALI","TEMPLE","KAT","KATMOH","JAKA0TEMPLE","NEAR TUNDA TALAB","AMRITSAR","AMRITSAR",null,"PUNJAB",null,"ROI",143001,143051003,6320098,31.618230000000001,74.87079,null,{"$f":"TEXT(branch332[[#This Row],[Sol Id]],\"0000\")","v":"0098"}]
["A",99,99,"B","GANDOH(BALESA)","DODA","ZO DODA CLSTR DODA","BALESA","DOD","DODDOD","JAKA0BALESA","BHALESSA, POST OFFICE GANDOH","DODA","DODA","GANDOH","J&K",null,"JAMMU",182203,182051112,6320099,33.032620000000001,75.914169999999999,null,{"$f":"TEXT(branch332[[#This Row],[Sol Id]],\"0000\")","v":"0099"}]
["A",100,100,"B","ALAMGIRI BAZAR SRINAGAR","SRINAGAR","ZO SRINAGAR CLSTR -2 SRINAGAR","ALMGRI","SGR","SGRCL2","JAKA0ALMGRI","ALAMGIRI BAZAR CHOWK","SRINAGAR","SRINAGAR","NOORBAGH","J&K",null,"KASHMIR",190011,190051002,6320100,34.115119999999997,74.801730000000006,null,{"$f":"TEXT(branch332[[#This Row],[Sol Id]],\"0000\")","v":"0100"}]
["A",101,101,"B","KHANYAR SRINAGAR","SRINAGAR","ZO SRINAGAR CLSTR -2 SRINAGAR","SHIRAZ","SGR","SGRCL2","JAKA0SHIRAZ","NEAR SHIRAZ CINEMA","SRINAGAR","SRINAGAR","KHANYAR","J&K",null,"KASHMIR",190003,190051033,6320101,34.09151,74.819280000000006,null,{"$f":"TEXT(branch332[[#This Row],[Sol Id]],\"0000\")","v":"0101"}]
["A",102,102,"B","LAKHDATTA BAZAR JAMMU","JAMMU","ZO JAMMU CLSTR -1 JAMMU","LBAZAR","JAM","JAMCL1","JAKA0LBAZAR","LAKHDATA BAZAR MAIN MARKET","JAMMU","JAMMU","JAMMU","J&K",null,"JAMMU",180001,180051011,6320102,32.732089999999999,74.868049999999997,null,{"$f":"TEXT(branch332[[#This Row],[Sol Id]],\"0000\")","v":"0102"}]
["A",103,103,"B","SADDAR BAZAR DELHI","DELHI","ZO DELHI CLSTR -2 DELHI","SADDAR","DEL","DELCL2","JAKA0SADDAR","2121/2122 BHADURGARH ROAD","DELHI","DELHI",null,"DELHI",null,"ROI",110006,110051005,6320103,28.661159999999999,77.21172,null,{"$f":"TEXT(branch332[[#This Row],[Sol Id]],\"0000\")","v":"0103"}]
["A",104,104,"B","NAI BASTI JAMMU","JAMMU","ZO JAMMU CLSTR -2 JAMMU","BASTEE","JAM","JAMCL2","JAKA0BASTEE","SATWARI CHOWK","JAMMU","JAMMU","JAMMU (SOUTH)","J&K",null,"JAMMU",180003,180051017,6320104,32.695070000000001,74.85181,null,{"$f":"TEXT(branch332[[#This Row],[Sol Id]],\"0000\")","v":"0104"}]
["A",105,105,"B","MAHORE","UDHAMPUR","ZO UDHAMPUR CLSTR REASI","MAHORE","UDM","UDMREA","JAKA0MAHORE","MAHORE MAIN","REASI","REASI","MAHORE","J&K",null,"JAMMU",182315,182051255,6320105,33.309579999999997,74.859489999999994,null,{"$f":"TEXT(branch332[[#This Row],[Sol Id]],\"0000\")","v":"0105"}]
["A",106,106,"B","CHAURA BAZAR LUDHIANA","KATHUA","ZO KATHUA CLSTR MOHALI","LUDHIA","KAT","KATMOH","JAKA0LUDHIA","LUDHIANA","LUDHIANA","LUDHIANA",null,"PUNJAB",null,"ROI",141001,141051002,6320106,30.915929999999999,75.856890000000007,null,{"$f":"TEXT(branch332[[#This Row],[Sol Id]],\"0000\")","v":"0106"}]
["A",107,107,"B","BILLAWAR","KATHUA","ZO KATHUA CLSTR KATHUA","BILWAR","KAT","KATKAT","JAKA0BILWAR","MAIN BAZAR, BILAWAR","KATHUA","KATHUA","BILLAWAR","J&K",null,"JAMMU",180542,184051007,6320107,32.612450000000003,75.602689999999996,null,{"$f":"TEXT(branch332[[#This Row],[Sol Id]],\"0000\")","v":"0107"}]
["A",108,108,"B","HIRA NAGAR","KATHUA","ZO KATHUA CLSTR KATHUA","HNAGAR","KAT","KATKAT","JAKA0HNAGAR","MAIN BAZAAR HIRANAGAR,","KATHUA","KATHUA","HIRANAGAR","J&K",null,"JAMMU",184142,184051009,6320108,null,null,null,{"$f":"TEXT(branch332[[#This Row],[Sol Id]],\"0000\")","v":"0108"}]
["A",109,109,"B","JALLANDAR","KATHUA","ZO KATHUA CLSTR MOHALI","JULUND","KAT","KATMOH","JAKA0JULUND","G.T ROAD, ADDA BASTI","JALLANDAR","JALLANDHAR",null,"PUNJAB",null,"ROI",144001,144051001,6320109,31.329689999999999,75.571240000000003,null,{"$f":"TEXT(branch332[[#This Row],[Sol Id]],\"0000\")","v":"0109"}]
["A",110,110,"B","MOVING SECRETARIAT","SRINAGAR","ZO SRINAGAR CLSTR -1 SRINAGAR","MOVING","SGR","SGRCL1","JAKA0MOVING","CIVIL SECRETRAIT","SRINAGAR","SRINAGAR","SRINAGAR","J&K",null,"KASHMIR",190001,190051062,6320110,34.074109999999997,74.800110000000004,null,{"$f":"TEXT(branch332[[#This Row],[Sol Id]],\"0000\")","v":"0110"}]
["A",111,111,"B","KOKERNAG","ANANTNAG","ZO ANANTNAG CLSTR -1 ANANTNAG","KOOKER","ANT","ANTCL1","JAKA0KOOKER","KOKERNAG BAGH, ANANTNAG","ANANTNAG","ANANTNAG","KOKERNAG","J&K",null,"KASHMIR",192202,192051017,6320111,33.590809999999998,75.294150000000002,null,{"$f":"TEXT(branch332[[#This Row],[Sol Id]],\"0000\")","v":"0111"}]
["A",112,112,"B","DANGIWACHA","BARAMULLA","ZO BARAMULLA CLSTR SOPORE","DHANGI","BAR","BARSOP","JAKA0DHANGI","DANGIWACHA BARAMULLA","BARAMULLA","BARAMULLA","DANGIWACHA","J&K",null,"KASHMIR",193303,193051009,6320112,34.314999999999998,74.34554,null,{"$f":"TEXT(branch332[[#This Row],[Sol Id]],\"0000\")","v":"0112"}]
["A",113,113,"B","ASHAJIPORA ANANTNAG","ANANTNAG","ZO ANANTNAG CLSTR -1 ANANTNAG","ASHAJI","ANT","ANTCL1","JAKA0ASHAJI","ASHAJIPORA ANANTNAG","ANANTNAG","ANANTNAG","ANANTNAG","J&K",null,"KASHMIR",192101,192051006,6320113,33.713549999999998,75.15016,null,{"$f":"TEXT(branch332[[#This Row],[Sol Id]],\"0000\")","v":"0113"}]
["A",114,114,"B","TANGDAR","BARAMULLA","ZO BARAMULLA CLSTR KUPWARA","TNGDAR","BAR","BARKUP","JAKA0TNGDAR","TANGDAR MAIN MARKET","KUPWARA","KUPWARA","TANGDAR","J&K",null,"KASHMIR",193225,193051207,6320114,34.397790000000001,73.860960000000006,null,{"$f":"TEXT(branch332[[#This Row],[Sol Id]],\"0000\")","v":"0114"}]
["A",115,115,"B","SHALIMAR","SRINAGAR","ZO SRINAGAR CLSTR -2 SRINAGAR","SALMAR","SGR","SGRCL2","JAKA0SALMAR","NEAR SAKOON RESTURANT,MERAK ABAD","SRINAGAR","SRINAGAR","KHANYAR","J&K",null,"KASHMIR",191121,190051063,6320115,34.146859999999997,74.871470000000002,null,{"$f":"TEXT(branch332[[#This Row],[Sol Id]],\"0000\")","v":"0115"}]
["A",116,116,"B","GANGYAL","JAMMU","ZO JAMMU CLSTR -2 JAMMU","GNGYAL","JAM","JAMCL2","JAKA0GNGYAL","OPP. IFCA BOTTELING COMPANY","JAMMU","JAMMU","JAMMU (SOUTH)","J&K",null,"JAMMU",180010,180051009,6320116,32.67024,74.87088,null,{"$f":"TEXT(branch332[[#This Row],[Sol Id]],\"0000\")","v":"0116"}]
["A",117,117,"B","KRALAPORA","BARAMULLA","ZO BARAMULLA CLSTR KUPWARA","MARBLE","BAR","BARKUP","JAKA0MARBLE","KRALPORA MAIN MARKET","KUPWARA","KUPWARA","KRALPORA","J&K",null,"KASHMIR",193224,193051208,6320117,34.498840000000001,74.119889999999998,null,{"$f":"TEXT(branch332[[#This Row],[Sol Id]],\"0000\")","v":"0117"}]
["A",118,118,"B","NEW COLONY SOPORE","BARAMULLA","ZO BARAMULLA CLSTR SOPORE","COLONY","BAR","BARSOP","JAKA0COLONY","NEW COLONY","BARAMULLA","BARAMULLA","SOPORE","J&K",null,"KASHMIR",193201,193051104,6320118,34.289610000000003,74.457689999999999,null,{"$f":"TEXT(branch332[[#This Row],[Sol Id]],\"0000\")","v":"0118"}]
["A",119,119,"B","DODA PULL","DODA","ZO DODA CLSTR DODA","BRIDGE","DOD","DODDOD","JAKA0BRIDGE","KHELLANI(PULL DODA)","DODA","DODA","DODA","J&K",null,"JAMMU",182201,182051105,6320119,33.137070000000001,75.515299999999996,null,{"$f":"TEXT(branch332[[#This Row],[Sol Id]],\"0000\")","v":"0119"}]
["A",120,120,"B","SHIMLA","KATHUA","ZO KATHUA CLSTR MOHALI","SHIMLA","KAT","KATMOH","JAKA0SHIMLA","SHIMLA , 15 THE MALL","SHIMLA","SHIMLA",null,"HIMACHAL PRADESH",null,"ROI",171001,171051002,6320120,31.10482,77.173400000000001,null,{"$f":"TEXT(branch332[[#This Row],[Sol Id]],\"0000\")","v":"0120"}]
["A",121,121,"B","ROHTAK","DELHI","ZO DELHI CLSTR -2 DELHI","ROHTAK","DEL","DELCL2","JAKA0ROHTAK","BHIWANI STAND","ROHTAK","ROHTAK",null,"HARYANA",null,"ROI",124001,124051002,6320182,28.890899999999998,76.579599999999999,null,{"$f":"TEXT(branch332[[#This Row],[Sol Id]],\"0000\")","v":"0121"}]
["A",122,122,"B","PAHALGAM","ANANTNAG","ZO ANANTNAG CLSTR -2 ANANTNAG","PHLGAM","ANT","ANTCL2","JAKA0PHLGAM","MAIN MARKET, PAHALGAM","ANANTNAG","ANANTNAG","PAHALGAM","J&K",null,"KASHMIR",192126,192051010,6320122,34.016080000000002,75.314980000000006,null,{"$f":"TEXT(branch332[[#This Row],[Sol Id]],\"0000\")","v":"0122"}]
["A",123,123,"B","KAROL BAGH DELHI","DELHI","ZO DELHI CLSTR -2 DELHI","KAROLE","DEL","DELCL2","JAKA0KAROLE","GURDUWARA ROAD, 6/32-33,NEAR JESSA RAM HOSPITAL, KAROL BAGH","DELHI","DELHI",null,"DELHI",null,"ROI",110005,110051006,6320123,28.647069999999999,77.186340000000001,null,{"$f":"TEXT(branch332[[#This Row],[Sol Id]],\"0000\")","v":"0123"}]
["A",124,124,"B","BANI","KATHUA","ZO KATHUA CLSTR KATHUA","BANNIE","KAT","KATKAT","JAKA0BANNIE","BANNI KATHUA","KATHUA","KATHUA","BANI","J&K",null,"JAMMU",184206,184051019,6320124,32.708880000000001,75.816919999999996,null,{"$f":"TEXT(branch332[[#This Row],[Sol Id]],\"0000\")","v":"0124"}]
["A",125,125,"B","TULMULLAH","BUDGAM","ZO BUDGAM CLSTR GANDERBAL","SHRINE","BUD","BUDGAN","JAKA0SHRINE","TULMULLA MAIN GANDERBAL","GANDERBAL","GANDERBAL","TULMULLAH","J&K",null,"KASHMIR",191131,191051107,6320125,34.225439999999999,74.73948,null,{"$f":"TEXT(branch332[[#This Row],[Sol Id]],\"0000\")","v":"0125"}]
["A",126,126,"B","KOLKATA MAIN","DELHI","ZO DELHI CLSTR LUCKNOW","CALCAT","DEL","DELLUC","JAKA0CALCAT","6 D - R.N.MUKHERJI ROAD,STEPHEN HOUSE, DALHOUSIE SQUARE","KOLKATA","KOLKATTA",null,"WEST BENGAL",null,"ROI",700001,700051002,6320126,22.572099999999999,88.350930000000005,null,{"$f":"TEXT(branch332[[#This Row],[Sol Id]],\"0000\")","v":"0126"}]
["A",127,127,"B","ALOOSA","BARAMULLA","ZO BARAMULLA CLSTR BANDIPORA","ALOOSA","BAR","BARBAN","JAKA0ALOOSA","ALOOSA","BANDIPORA","BANDIPORA","ALOOSA","J&K",null,"KASHMIR",193502,193051010,6320127,34.423409999999997,74.54486,null,{"$f":"TEXT(branch332[[#This Row],[Sol Id]],\"0000\")","v":"0127"}]
["A",128,128,"B","DAMHAL HANJIPORA","ANANTNAG","ZO ANANTNAG CLSTR KULGAM","DAMHAL","ANT","ANTKUL","JAKA0DAMHAL","TEHSIL, DAMHAL HANJIPORA","KULGAM","KULGAM","DAMHAL HANJIPORA","J&K",null,"KASHMIR",192233,192051018,6320128,33.612389999999998,74.928179999999998,null,{"$f":"TEXT(branch332[[#This Row],[Sol Id]],\"0000\")","v":"0128"}]
["A",129,129,"B","HAJIN","BARAMULLA","ZO BARAMULLA CLSTR BANDIPORA","HAJJIN","BAR","BARBAN","JAKA0HAJJIN","HAJIN","BANDIPORA","BANDIPORA","HAJIN","J&K",null,"KASHMIR",193501,193051011,6320129,34.292839999999998,74.620230000000006,null,{"$f":"TEXT(branch332[[#This Row],[Sol Id]],\"0000\")","v":"0129"}]
["A",130,130,"B","ICHGAM","BUDGAM","ZO BUDGAM CLSTR -2 BUDGAM","ICHGAM","BUD","BUDCL2","JAKA0ICHGAM","ICHGAM, BUDGAM","BUDGAM","BUDGAM","BUDGAM","J&K",null,"KASHMIR",191111,191051004,6320130,33.98583,74.752430000000004,null,{"$f":"TEXT(branch332[[#This Row],[Sol Id]],\"0000\")","v":"0130"}]
["A",131,131,"B","HANDWARA","BARAMULLA","ZO BARAMULLA CLSTR KUPWARA","HNDWAR","BAR","BARKUP","JAKA0HNDWAR","NEAR TEHSIL OFFICE","KUPWARA","KUPWARA","HANDWARA","J&K",null,"KASHMIR",193221,193051301,6320011,34.403149999999997,74.28152,null,{"$f":"TEXT(branch332[[#This Row],[Sol Id]],\"0000\")","v":"0131"}]
["A",132,132,"B","KREERI","BARAMULLA","ZO BARAMULLA CLSTR BARAMULLA","KREERI","BAR","BARBAR","JAKA0KREERI","MORADABAD KREERI BARAMULLA","BARAMULLA","BARAMULLA","KREERI","J&K",null,"KASHMIR",193108,193051012,6320132,34.171619999999997,74.473070000000007,null,{"$f":"TEXT(branch332[[#This Row],[Sol Id]],\"0000\")","v":"0132"}]
["A",133,133,"B","LADHOO","PULWAMA","ZO PULWAMA CLSTR PULWAMA","LADHOO","PUL","PULPUL","JAKA0LADHOO","LADHOO PAMPORE","PULWAMA","PULWAMA","PAMPORE","J&K",null,"KASHMIR",191103,192051108,6320133,33.998869999999997,74.996690000000001,null,{"$f":"TEXT(branch332[[#This Row],[Sol Id]],\"0000\")","v":"0133"}]
["A",134,134,"B","PANTHA CHOWK SRINAGAR","SRINAGAR","ZO SRINAGAR CLSTR -1 SRINAGAR","PANTHA","SGR","SGRCL1","JAKA0PANTHA","BEHIND PETROL PUMP","SRINAGAR","SRINAGAR","PANTHA CHOWK","J&K",null,"KASHMIR",190004,190051048,6320134,34.039720000000003,74.880200000000002,null,{"$f":"TEXT(branch332[[#This Row],[Sol Id]],\"0000\")","v":"0134"}]
["A",135,135,"B","QASBA HYHAMA","BARAMULLA","ZO BARAMULLA CLSTR KUPWARA","HYHAMA","BAR","BARKUP","JAKA0HYHAMA","NEAR GIRLS HIGHER SECONDARY SCHOOL,SALKOTE ROAD HYHAMA KUPWARA","KUPWARA","KUPWARA","KUPWARA","J&K",null,"KASHMIR",193222,193051205,6320135,34.528269999999999,74.260999999999996,null,{"$f":"TEXT(branch332[[#This Row],[Sol Id]],\"0000\")","v":"0135"}]
["A",136,136,"B","SALLAR","ANANTNAG","ZO ANANTNAG CLSTR -2 ANANTNAG","BLOOMY","ANT","ANTCL2","JAKA0BLOOMY","SALLAR ANANTNAG","ANANTNAG","ANANTNAG","SALLAR","J&K",null,"KASHMIR",192402,192051047,6320136,33.884509999999999,75.242069999999998,null,{"$f":"TEXT(branch332[[#This Row],[Sol Id]],\"0000\")","v":"0136"}]
["A",137,137,"B","SHANGUS","ANANTNAG","ZO ANANTNAG CLSTR -2 ANANTNAG","SANGUS","ANT","ANTCL2","JAKA0SANGUS","SHANGUS, NOWGAM","ANANTNAG","ANANTNAG","SHANGUS","J&K",null,"KASHMIR",192201,192051019,6320137,33.700710000000001,75.282570000000007,null,{"$f":"TEXT(branch332[[#This Row],[Sol Id]],\"0000\")","v":"0137"}]
["A",138,138,"B","SOGAM","BARAMULLA","ZO BARAMULLA CLSTR KUPWARA","SOGAAM","BAR","BARKUP","JAKA0SOGAAM","SOGAAM LOLAB KUPWARA","KUPWARA","KUPWARA","SOGAM (LOLAB)","J&K",null,"KASHMIR",193223,193051209,6320138,34.502960000000002,74.376339999999999,null,{"$f":"TEXT(branch332[[#This Row],[Sol Id]],\"0000\")","v":"0138"}]
["A",139,139,"B","TANGMARG","BARAMULLA","ZO BARAMULLA CLSTR BARAMULLA","SPRING","BAR","BARBAR","JAKA0SPRING","NEAR JAMIA MASJID TANGMARG","BARAMULLA","BARAMULLA","TANGMARG","J&K",null,"KASHMIR",193402,193051004,6320074,34.058540000000001,74.422470000000004,null,{"$f":"TEXT(branch332[[#This Row],[Sol Id]],\"0000\")","v":"0139"}]
["A",140,140,"B","DELINA","BARAMULLA","ZO BARAMULLA CLSTR BARAMULLA","DALINA","BAR","BARBAR","JAKA0DALINA","DALINA BARAMULLA","BARAMULLA","BARAMULLA","BARAMULLA","J&K",null,"KASHMIR",193101,193051007,6320140,34.238050000000001,74.42371,null,{"$f":"TEXT(branch332[[#This Row],[Sol Id]],\"0000\")","v":"0140"}]
["A",141,141,"B","BARNOTI","KATHUA","ZO KATHUA CLSTR KATHUA","BRNOTI","KAT","KATKAT","JAKA0BRNOTI","NATIONAL HIGHWAY","KATHUA","KATHUA","BARNOTI","J&K",null,"JAMMU",184101,184051016,6320141,null,null,null,{"$f":"TEXT(branch332[[#This Row],[Sol Id]],\"0000\")","v":"0141"}]
["A",142,142,"B","GOOL","DODA","ZO DODA CLSTR RAMBAN","GOOLAB","DOD","DODRAM","JAKA0GOOLAB","GOOL ,RAMBAN","RAMBAN","RAMBAN","GOOL","J&K",null,"JAMMU",182144,182051018,6320142,33.160919999999997,75.00394,null,{"$f":"TEXT(branch332[[#This Row],[Sol Id]],\"0000\")","v":"0142"}]
["A",143,143,"B","PANCHAL UKHRAL","DODA","ZO DODA CLSTR RAMBAN","UKHRAL","DOD","DODRAM","JAKA0UKHRAL","BLOCK RAMSOO TEHSIL BANIHAL","RAMBAN","RAMBAN","POGAL PARISTAN","J&K",null,"JAMMU",182145,182051305,6320143,34.099110000000003,76.524879999999996,null,{"$f":"TEXT(branch332[[#This Row],[Sol Id]],\"0000\")","v":"0143"}]
["A",144,144,"B","GOVINDSAR","KATHUA","ZO KATHUA CLSTR KATHUA","GOVIND","KAT","KATKAT","JAKA0GOVIND","OPP. INDUSTRIAL ESTATES PIN 184102","KATHUA","KATHUA","KATHUA","J&K",null,"JAMMU",184102,184051004,6320144,null,null,null,{"$f":"TEXT(branch332[[#This Row],[Sol Id]],\"0000\")","v":"0144"}]
["A",145,145,"B","CHIDWAL","KATHUA","ZO KATHUA CLSTR KATHUA","CIDWAL","KAT","KATKAT","JAKA0CIDWAL","VILLALGE CHIDWAL TEHSIL HIRA NAGAR","KATHUA","KATHUA","HIRANAGAR","J&K",null,"JAMMU",184144,184051008,6320145,null,null,null,{"$f":"TEXT(branch332[[#This Row],[Sol Id]],\"0000\")","v":"0145"}]
["A",146,146,"B","FORT MUMBAI","MUMBAI","ZO MUMBAI CLSTR MUMBAI","BOMBAY","MUM","MUMMUM","JAKA0BOMBAY","79A, MEHTA HOUSE,BOMBAY SAMACHAR MARG, GREATER MUMBAI PIN 400032","GREATER MUMBAI","GREATER MUMBAI",null,"MAHARASHTRA",null,"ROI",400023,400051002,6320146,18.933440000000001,72.836209999999994,null,{"$f":"TEXT(branch332[[#This Row],[Sol Id]],\"0000\")","v":"0146"}]
["A",147,147,"B","C G ROAD AHMADABAD","MUMBAI","ZO MUMBAI CLSTR MUMBAI","AHAMAD","MUM","MUMMUM","JAKA0AHAMAD","PARISEEMA COMPLEX, G.G. ROAD","AHMADABAD","AHMADABAD",null,"GUJARAT",null,"ROI",380006,380051002,6320147,23.028569999999998,72.558440000000004,null,{"$f":"TEXT(branch332[[#This Row],[Sol Id]],\"0000\")","v":"0147"}]
["A",148,148,"B","KARAN NAGAR SRINAGAR","SRINAGAR","ZO SRINAGAR CLSTR -3 SRINAGAR","KARRAN","SGR","SGRCL3","JAKA0KARRAN","GOLE MARKET","SRINAGAR","SRINAGAR","SRINAGAR","J&K",null,"KASHMIR",190010,190051032,6320148,34.079270000000001,74.795119999999997,null,{"$f":"TEXT(branch332[[#This Row],[Sol Id]],\"0000\")","v":"0148"}]
["A",149,149,"B","BAKSHI NAGAR JAMMU","JAMMU","ZO JAMMU CLSTR -1 JAMMU","BAKSHI","JAM","JAMCL1","JAKA0BAKSHI","BAKSHI NAGAR","JAMMU","JAMMU","JAMMU","J&K",null,"JAMMU",180001,180051004,6320149,32.735190000000003,74.850189999999998,null,{"$f":"TEXT(branch332[[#This Row],[Sol Id]],\"0000\")","v":"0149"}]
["A",150,150,"B","NYOMA","LADAKH","ZO LADAKH CLSTR LEH","NYOOMA","LAD","LADLEH","JAKA0NYOOMA","NYOMA CHANGTHANG","LEH","LEH","NYOMA","LADAKH",null,"LADAKH",194101,194051012,6320150,33.205919999999999,78.648380000000003,null,{"$f":"TEXT(branch332[[#This Row],[Sol Id]],\"0000\")","v":"0150"}]
["A",151,151,"B","PADAM ZANASKAR","LADAKH","ZO LADAKH CLSTR KARGIL","PADDAM","LAD","LADKAR","JAKA0PADDAM","PADUM, ZANGSKAR, KARGIL","KARGIL","KARGIL","ZANSKAR","LADAKH",null,"LADAKH",194302,194051018,6320151,33.462800000000001,76.878579999999999,null,{"$f":"TEXT(branch332[[#This Row],[Sol Id]],\"0000\")","v":"0151"}]
["A",183,183,"B","INFANTRY ROAD BANGALORE","BENGALURU","ZO BENGALURU CLSTR BENGALURU","BNGLOR","BEN","BENBEN","JAKA0BNGLOR","F 6-7, INFANTRY ROAD,GEM PLAZA, BANGLORE PIN:560001","BANGALORE","BENGALURU",null,"KARNATAKA",null,"ROI",570001,560051002,6320183,12.98035,77.604569999999995,null,{"$f":"TEXT(branch332[[#This Row],[Sol Id]],\"0000\")","v":"0183"}]
["A",184,184,"B","CHANDIGARH","KATHUA","ZO KATHUA CLSTR MOHALI","SECTOR","KAT","KATMOH","JAKA0SECTOR","SECTOR 17C,SCO NO 129 & 130, CHANDIGARH","CHANDIGARH","CHANDIGARG",null,"CHANDIGARH",null,"ROI",160017,160051001,6320121,30.739830000000001,76.782700000000006,null,{"$f":"TEXT(branch332[[#This Row],[Sol Id]],\"0000\")","v":"0184"}]
["A",185,185,"B","UPPER SATHOO SRINAGAR","SRINAGAR","ZO SRINAGAR CLSTR -2 SRINAGAR","SATHOO","SGR","SGRCL2","JAKA0SATHOO","UPPER SATHU, BARBARSHAH","SRINAGAR","SRINAGAR","SRINAGAR CENTRAL","J&K",null,"KASHMIR",190001,190051069,6320185,34.083759999999998,74.819270000000003,null,{"$f":"TEXT(branch332[[#This Row],[Sol Id]],\"0000\")","v":"0185"}]
["A",186,186,"ZO","ZONAL OFFICE DELHI",null,null,"FAVOUR","DEL","NA","JAKA0FAVOUR",null,null,null,null,null,null,null,null,null,null,null,null,null,{"$f":"TEXT(branch332[[#This Row],[Sol Id]],\"0000\")","v":"0186"}]
["A",191,191,"B","DADSAR","PULWAMA","ZO PULWAMA CLSTR PULWAMA","DADSAR","PUL","PULPUL","JAKA0DADSAR","DADSAR TRAL PULWAMA","PULWAMA","PULWAMA","TRAL","J&K",null,"KASHMIR",192123,192051122,6320516,33.904049999999998,75.085430000000002,null,{"$f":"TEXT(branch332[[#This Row],[Sol Id]],\"0000\")","v":"0191"}]
["A",193,193,"B","ARIZAL","BUDGAM","ZO BUDGAM CLSTR -1 BUDGAM","ARIZAL","BUD","BUDCL1","JAKA0ARIZAL","ARIZAL KHAN SAHIB","BUDGAM","BUDGAM","KHAN SAHIB","J&K",null,"KASHMIR",193411,191051015,6320515,33.922269999999997,74.594660000000005,null,{"$f":"TEXT(branch332[[#This Row],[Sol Id]],\"0000\")","v":"0193"}]
["A",198,198,"B","CHANDANWARI","BARAMULLA","ZO BARAMULLA CLSTR BARAMULLA","CANADA","BAR","BARBAR","JAKA0CANADA","TEHSIL BONIYAR","BARAMULLA","BARAMULLA","BONIYAR","J&K",null,"KASHMIR",193122,193051015,6320213,34.140099999999997,74.118740000000003,null,{"$f":"TEXT(branch332[[#This Row],[Sol Id]],\"0000\")","v":"0198"}]
["A",200,200,"B","CHANNAPORA SRINAGAR","SRINAGAR","ZO SRINAGAR CLSTR -1 SRINAGAR","CHANPO","SGR","SGRCL1","JAKA0CHANPO","CHANAPORA","SRINAGAR","SRINAGAR","CHANPORA","J&K",null,"KASHMIR",190015,190051013,6320200,34.040109999999999,74.809370000000001,null,{"$f":"TEXT(branch332[[#This Row],[Sol Id]],\"0000\")","v":"0200"}]
["A",152,152,"B","DISKIT NOBRA","LADAKH","ZO LADAKH CLSTR LEH","DISKIT","LAD","LADLEH","JAKA0DISKIT","DISKIT NOBRA LEH","LEH","LEH","DISKIT","LADAKH",null,"LADAKH",194101,194051006,6320152,34.547600000000003,77.556780000000003,null,{"$f":"TEXT(branch332[[#This Row],[Sol Id]],\"0000\")","v":"0152"}]
["A",153,153,"B","MARWAH","DODA","ZO DODA CLSTR KISHTWAR","MARWAH","DOD","DODKIS","JAKA0MARWAH","MARWAH MAIN","KISHTWAR","KISHTWAR","MARWAH","J&K",null,"JAMMU",182204,182051406,6320153,33.664749999999998,75.717680000000001,null,{"$f":"TEXT(branch332[[#This Row],[Sol Id]],\"0000\")","v":"0153"}]
["A",154,154,"B","PADDAR","DODA","ZO DODA CLSTR KISHTWAR","PADDAR","DOD","DODKIS","JAKA0PADDAR","GHULAB GARH, PAADAR","KISHTWAR","KISHTWAR","PADDER","J&K",null,"JAMMU",182204,182051402,6320154,33.266829999999999,76.172389999999993,null,{"$f":"TEXT(branch332[[#This Row],[Sol Id]],\"0000\")","v":"0154"}]
["A",155,155,"B","GALHUTA","RAJOURI","ZO RAJOURI CLSTR POONCH","GALUTA","RAJ","RAJPOO","JAKA0GALUTA","GALHUTA, POONCH","POONCH","POONCH","MENDHAR","J&K",null,"JAMMU",185214,185051104,6320155,33.61618,74.218980000000002,null,{"$f":"TEXT(branch332[[#This Row],[Sol Id]],\"0000\")","v":"0155"}]
["A",156,156,"B","GURSAHI","RAJOURI","ZO RAJOURI CLSTR POONCH","GURSHA","RAJ","RAJPOO","JAKA0GURSHA","GURSAHI","POONCH","POONCH","MENDHAR","J&K",null,"JAMMU",185214,185051105,6320156,33.616700000000002,74.133300000000006,null,{"$f":"TEXT(branch332[[#This Row],[Sol Id]],\"0000\")","v":"0156"}]
["A",157,157,"B","NANIL","ANANTNAG","ZO ANANTNAG CLSTR -2 ANANTNAG","NALANG","ANT","ANTCL2","JAKA0NALANG","NANIL","ANANTNAG","ANANTNAG","MATTAN","J&K",null,"KASHMIR",192125,192051020,6320157,33.771990000000002,75.175700000000006,null,{"$f":"TEXT(branch332[[#This Row],[Sol Id]],\"0000\")","v":"0157"}]
["A",158,158,"B","SAGAM","ANANTNAG","ZO ANANTNAG CLSTR -1 ANANTNAG","DESIRE","ANT","ANTCL1","JAKA0DESIRE","MAIN ROAD, SAGAM TEHSIL KOKERNAG","ANANTNAG","ANANTNAG","KOOKERNAG","J&K",null,"KASHMIR",192201,192051021,6320158,33.611060000000002,75.262550000000005,null,{"$f":"TEXT(branch332[[#This Row],[Sol Id]],\"0000\")","v":"0158"}]
["A",159,159,"B","CHEENI CHOWK ANANTNAG","ANANTNAG","ZO ANANTNAG CLSTR -1 ANANTNAG","CHEENI","ANT","ANTCL1","JAKA0CHEENI","CHEENI CHOWK ANANTNAG","ANANTNAG","ANANTNAG","ANANTNAG","J&K",null,"KASHMIR",192101,192051004,6320204,33.729309999999998,75.153329999999997,null,{"$f":"TEXT(branch332[[#This Row],[Sol Id]],\"0000\")","v":"0159"}]
["A",160,160,"B","LARNOO","ANANTNAG","ZO ANANTNAG CLSTR -1 ANANTNAG","LARNOO","ANT","ANTCL1","JAKA0LARNOO","LARNOO CAMP VAILOO,","ANANTNAG","ANANTNAG","LARNOO","J&K",null,"KASHMIR",192202,192051022,6320160,33.563960000000002,75.360169999999997,null,{"$f":"TEXT(branch332[[#This Row],[Sol Id]],\"0000\")","v":"0160"}]
["A",161,161,"B","NEW MARKET ANANTNAG","ANANTNAG","ZO ANANTNAG CLSTR -1 ANANTNAG","BUBBLE","ANT","ANTCL1","JAKA0BUBBLE","NEW MARKET ,ANANTNAG","ANANTNAG","ANANTNAG","ANANTNAG","J&K",null,"KASHMIR",192101,192051003,6320075,33.73113,75.148700000000005,null,{"$f":"TEXT(branch332[[#This Row],[Sol Id]],\"0000\")","v":"0161"}]
["A",162,162,"B","RATNIPORA","PULWAMA","ZO PULWAMA CLSTR PULWAMA","RATNIE","PUL","PULPUL","JAKA0RATNIE","RATNIPORA","PULWAMA","PULWAMA","KAKPORA","J&K",null,"KASHMIR",192121,192051109,6320162,33.921199999999999,74.942250000000001,null,{"$f":"TEXT(branch332[[#This Row],[Sol Id]],\"0000\")","v":"0162"}]
["A",163,163,"B","DRABA GUNDHI","RAJOURI","ZO RAJOURI CLSTR POONCH","GUNDHI","RAJ","RAJPOO","JAKA0GUNDHI","DRABA GUNDHI,","POONCH","POONCH","SURANKOTE","J&K",null,"JAMMU",185122,185051106,6320163,33.610849999999999,74.305520000000001,null,{"$f":"TEXT(branch332[[#This Row],[Sol Id]],\"0000\")","v":"0163"}]
["A",164,164,"B","KULLU","KATHUA","ZO KATHUA CLSTR MOHALI","KULLOO","KAT","KATMOH","JAKA0KULLOO","IST FLOOR, HARISON BUILDING","KULU","KULLU",null,"HIMACHAL PRADESH",null,"ROI",175101,175051002,6320164,31.957850000000001,77.109459999999999,null,{"$f":"TEXT(branch332[[#This Row],[Sol Id]],\"0000\")","v":"0164"}]
["A",165,165,"B","MANDI","RAJOURI","ZO RAJOURI CLSTR POONCH","MANDIE","RAJ","RAJPOO","JAKA0MANDIE","MAIN BAZAR MANDI POONCH,","POONCH","POONCH","MANDI","J&K",null,"JAMMU",185102,185051107,6320165,33.79598,74.253879999999995,null,{"$f":"TEXT(branch332[[#This Row],[Sol Id]],\"0000\")","v":"0165"}]
["A",166,166,"B","KOOTAH","KATHUA","ZO KATHUA CLSTR KATHUA","KOOTTA","KAT","KATKAT","JAKA0KOOTTA","TEHSIL HIRANAGAR KOOTAH","KATHUA","KATHUA","HIRANAGAR","J&K",null,"JAMMU",184141,184051010,6320166,32.513869999999997,75.247569999999996,null,{"$f":"TEXT(branch332[[#This Row],[Sol Id]],\"0000\")","v":"0166"}]
["A",167,167,"B","ARNAS","UDHAMPUR","ZO UDHAMPUR CLSTR REASI","ARNASS","UDM","UDMREA","JAKA0ARNASS","ARNASS","REASI","REASI","ARNAS","J&K",null,"JAMMU",182313,182051253,6320167,33.184519999999999,74.824389999999994,null,{"$f":"TEXT(branch332[[#This Row],[Sol Id]],\"0000\")","v":"0167"}]
["A",168,168,"B","SHADIMARG","PULWAMA","ZO PULWAMA CLSTR SHOPIAN","SHADIM","PUL","PULSHO","JAKA0SHADIM","SHADIMARG , PULWAMA","PULWAMA","PULWAMA","RAJPORA","J&K",null,"KASHMIR",192302,192051110,6320168,33.804729999999999,74.825419999999994,null,{"$f":"TEXT(branch332[[#This Row],[Sol Id]],\"0000\")","v":"0168"}]
["A",169,169,"B","SAFAPORA","BUDGAM","ZO BUDGAM CLSTR GANDERBAL","SAFAPO","BUD","BUDGAN","JAKA0SAFAPO","MAIN MARKET SAFAPORA","GANDERBAL","GANDERBAL","LAAR","J&K",null,"KASHMIR",193504,191051106,6320169,34.259680000000003,74.666269999999997,null,{"$f":"TEXT(branch332[[#This Row],[Sol Id]],\"0000\")","v":"0169"}]
["A",170,170,"B","TIKRI","UDHAMPUR","ZO UDHAMPUR CLSTR UDHAMPUR","TIKRIE","UDM","UDMUDM","JAKA0TIKRIE","TIKRI MAIN","UDHAMPUR","UDHAMPUR","UDHAMPUR","J&K",null,"JAMMU",182121,182051011,6320170,32.932839999999999,74.961070000000007,null,{"$f":"TEXT(branch332[[#This Row],[Sol Id]],\"0000\")","v":"0170"}]
["A",171,171,"B","LARKIPORA","ANANTNAG","ZO ANANTNAG CLSTR -1 ANANTNAG","LARKIP","ANT","ANTCL1","JAKA0LARKIP","LARKIPORA, ANANTNAG","ANANTNAG","ANANTNAG","DOORU","J&K",null,"KASHMIR",192214,192051023,6320171,33.645330000000001,75.173509999999993,null,{"$f":"TEXT(branch332[[#This Row],[Sol Id]],\"0000\")","v":"0171"}]
["A",172,172,"B","SRIGUPHWARA","ANANTNAG","ZO ANANTNAG CLSTR -2 ANANTNAG","SRIGUP","ANT","ANTCL2","JAKA0SRIGUP","TEHSIL BIJBEHARA SRIGUPWARA","ANANTNAG","ANANTNAG","SRIGUPHWARA","J&K",null,"KASHMIR",192401,192051024,6320172,33.815939999999998,75.213840000000005,null,{"$f":"TEXT(branch332[[#This Row],[Sol Id]],\"0000\")","v":"0172"}]
["A",173,173,"B","ANCHAR","SRINAGAR","ZO SRINAGAR CLSTR -2 SRINAGAR","ANCHAR","SGR","SGRCL2","JAKA0ANCHAR","BUCHPORA","SRINAGAR","SRINAGAR","HAZRATBAL","J&K",null,"KASHMIR",190011,190051004,6320173,34.096330000000002,74.879220000000004,null,{"$f":"TEXT(branch332[[#This Row],[Sol Id]],\"0000\")","v":"0173"}]
["A",174,174,"B","NUNNER","BUDGAM","ZO BUDGAM CLSTR GANDERBAL","NUNNAR","BUD","BUDGAN","JAKA0NUNNAR","NUNNER GANDERBAL","GANDERBAL","GANDERBAL","GANDERBAL","J&K",null,"KASHMIR",191201,191051105,6320174,34.149230000000003,74.803489999999996,null,{"$f":"TEXT(branch332[[#This Row],[Sol Id]],\"0000\")","v":"0174"}]
["A",175,175,"B","AWOORA","BARAMULLA","ZO BARAMULLA CLSTR KUPWARA","AWOORA","BAR","BARKUP","JAKA0AWOORA","DISTRICT KUPWARA","KUPWARA","KUPWARA","KUPWARA","J&K",null,"KASHMIR",193224,193051203,6320175,34.553510000000003,74.176789999999997,null,{"$f":"TEXT(branch332[[#This Row],[Sol Id]],\"0000\")","v":"0175"}]
["A",176,176,"B","DIALGAM","ANANTNAG","ZO ANANTNAG CLSTR -1 ANANTNAG","DIALGM","ANT","ANTCL1","JAKA0DIALGM","NEAR HR. SEC.SCHOOL DIALGAM","ANANTNAG","ANANTNAG","ANANTNAG","J&K",null,"KASHMIR",192210,192051025,6320497,33.684649999999998,75.167619999999999,null,{"$f":"TEXT(branch332[[#This Row],[Sol Id]],\"0000\")","v":"0176"}]
["A",177,177,"B","NAID KHAI","BARAMULLA","ZO BARAMULLA CLSTR BANDIPORA","NDKHAI","BAR","BARBAN","JAKA0NDKHAI","NAIDKHAI, SONAWARI","BANDIPORA","BANDIPORA","HAJIN","J&K",null,"KASHMIR",193501,193051013,6320177,34.246009999999998,74.566940000000002,null,{"$f":"TEXT(branch332[[#This Row],[Sol Id]],\"0000\")","v":"0177"}]
["A",178,178,"B","DESA","DODA","ZO DODA CLSTR DODA","DEESSA","DOD","DODDOD","JAKA0DEESSA","NEAR CEO OFFICE","DODA","DODA","BHAGWA","J&K",null,"JAMMU",182202,182051104,6320178,33.142530000000001,75.544290000000004,null,{"$f":"TEXT(branch332[[#This Row],[Sol Id]],\"0000\")","v":"0178"}]
["A",179,179,"B","AJAS","BARAMULLA","ZO BARAMULLA CLSTR BANDIPORA","AJJASS","BAR","BARBAN","JAKA0AJJASS","AJAS, BANDIPORA","BANDIPORA","BANDIPORA","AJAS","J&K",null,"KASHMIR",193505,193051014,6320179,34.33352,74.678100000000001,null,{"$f":"TEXT(branch332[[#This Row],[Sol Id]],\"0000\")","v":"0179"}]
["A",180,180,"B","JAWAHAR NAGAR RAJOURI","RAJOURI","ZO RAJOURI CLSTR RAJOURI","JAWHAR","RAJ","RAJRAJ","JAKA0JAWHAR","JAWHAR NAGAR, RAJOURI","RAJOURI","RAJOURI","RAJOURI","J&K",null,"JAMMU",185132,185051002,6320180,33.36806,74.318989999999999,null,{"$f":"TEXT(branch332[[#This Row],[Sol Id]],\"0000\")","v":"0180"}]
["A",181,181,"B","FRUIT COMPLEX SRINAGAR","SRINAGAR","ZO SRINAGAR CLSTR -3 SRINAGAR","FRUITS","SGR","SGRCL3","JAKA0FRUITS","FRUIT COMPLEX,","SRINAGAR","SRINAGAR","SRINAGAR","J&K",null,"KASHMIR",190016,190051021,6320256,34.099890000000002,74.761039999999994,null,{"$f":"TEXT(branch332[[#This Row],[Sol Id]],\"0000\")","v":"0181"}]
["A",182,182,"B","MOUNT ROAD CHENNAI","BENGALURU","ZO BENGALURU CLSTR BENGALURU","MADRAS","BEN","BENBEN","JAKA0MADRAS","787 ANNA SALAI, NEAR ELECTRICITY BOARD","CHENNAI","CHENNAI",null,"TAMIL NADU",null,"ROI",600002,600051002,6320184,13.064,80.264939999999996,null,{"$f":"TEXT(branch332[[#This Row],[Sol Id]],\"0000\")","v":"0182"}]
["A",201,201,"B","PAKHERPORA","BUDGAM","ZO BUDGAM CLSTR -2 BUDGAM","PAKHER","BUD","BUDCL2","JAKA0PAKHER","PAKHERPORA MAIN , BUDGAM","BUDGAM","BUDGAM","CHRAR I SHARIEF","J&K",null,"KASHMIR",191112,191051012,6320201,33.814779999999999,74.763810000000007,null,{"$f":"TEXT(branch332[[#This Row],[Sol Id]],\"0000\")","v":"0201"}]
["A",202,202,"B","GANPATYAR SRINAGAR","SRINAGAR","ZO SRINAGAR CLSTR -2 SRINAGAR","GANPAT","SGR","SGRCL2","JAKA0GANPAT","GANPATYAR","SRINAGAR","SRINAGAR","SRINAGAR","J&K",null,"KASHMIR",190001,190051022,6320202,34.078240000000001,74.808250000000001,null,{"$f":"TEXT(branch332[[#This Row],[Sol Id]],\"0000\")","v":"0202"}]
["A",203,203,"B","SANKOO","LADAKH","ZO LADAKH CLSTR KARGIL","SANKOO","LAD","LADKAR","JAKA0SANKOO","MAIN BAZAAR SANKOO","KARGIL","KARGIL","SANKOO","LADAKH",null,"LADAKH",194301,194051009,6320203,34.288989999999998,75.96208,null,{"$f":"TEXT(branch332[[#This Row],[Sol Id]],\"0000\")","v":"0203"}]
["A",204,204,"B","SOURA SRINAGAR","SRINAGAR","ZO SRINAGAR CLSTR -2 SRINAGAR","SOOURA","SGR","SGRCL2","JAKA0SOOURA","OPP BUS STOP, SOURA","SRINAGAR","SRINAGAR","EIDGAH","J&K",null,"KASHMIR",190011,190051066,6320342,34.138629999999999,74.799530000000004,null,{"$f":"TEXT(branch332[[#This Row],[Sol Id]],\"0000\")","v":"0204"}]
["A",205,205,"B","SEELO","BARAMULLA","ZO BARAMULLA CLSTR SOPORE","SEELOO","BAR","BARSOP","JAKA0SEELOO","SELOO VILLAGE MAIN","BARAMULLA","BARAMULLA","BOMAI(ZAINGEER)","J&K",null,"KASHMIR",193201,193051110,6320205,34.095120000000001,74.791150000000002,null,{"$f":"TEXT(branch332[[#This Row],[Sol Id]],\"0000\")","v":"0205"}]
["A",206,206,"B","RAJINDRA PLACE DELHI","DELHI","ZO DELHI CLSTR -2 DELHI","PALACE","DEL","DELCL2","JAKA0PALACE","26/34, PAL MOHAN MANSION,EAST PATEL NAGAR, RAJINDERA PLACE PIN 110008","DELHI","DELHI",null,"DELHI",null,"ROI",110008,110051008,6320206,28.64331,77.171430000000001,null,{"$f":"TEXT(branch332[[#This Row],[Sol Id]],\"0000\")","v":"0206"}]
["A",207,207,"B","SUDH MAHADEV","UDHAMPUR","ZO UDHAMPUR CLSTR UDHAMPUR","MAHDEV","UDM","UDMUDM","JAKA0MAHDEV","SUDH MAHADEV, CHENANI","UDHAMPUR","UDHAMPUR","CHENANI","J&K",null,"JAMMU",182141,182051012,6320207,33.020969999999998,75.360209999999995,null,{"$f":"TEXT(branch332[[#This Row],[Sol Id]],\"0000\")","v":"0207"}]
["A",208,208,"B","SERI","RAJOURI","ZO RAJOURI CLSTR RAJOURI","SEERIE","RAJ","RAJRAJ","JAKA0SEERIE","SERI MAIN , NOWSHERA","RAJOURI","RAJOURI","NOWSHERA","J&K",null,"JAMMU",185159,185051006,6320208,33.042119999999997,74.315929999999994,null,{"$f":"TEXT(branch332[[#This Row],[Sol Id]],\"0000\")","v":"0208"}]
["A",209,209,"B","MAGAM HANDWARA","BARAMULLA","ZO BARAMULLA CLSTR KUPWARA","SMOOTH","BAR","BARKUP","JAKA0SMOOTH","MAIN CHOWK MAGAM","KUPWARA","KUPWARA","HANDWARA","J&K",null,"KASHMIR",193221,193051303,6320209,34.390259999999998,74.176839999999999,null,{"$f":"TEXT(branch332[[#This Row],[Sol Id]],\"0000\")","v":"0209"}]
["A",210,210,"B","KISHENPUR","KATHUA","ZO KATHUA CLSTR KATHUA","KISHEN","KAT","KATKAT","JAKA0KISHEN","VILLAGE -KISHANPUR, TEH-BILLAWER","KATHUA","KATHUA","BILLAWAR","J&K",null,"JAMMU",183904,184051020,6320210,32.609499999999997,75.622900000000001,null,{"$f":"TEXT(branch332[[#This Row],[Sol Id]],\"0000\")","v":"0210"}]
["A",211,211,"B","CHOWK CHABUTRA JAMMU","JAMMU","ZO JAMMU CLSTR -1 JAMMU","CHBTRA","JAM","JAMCL1","JAKA0CHBTRA","CHOWK CHABUTRA","JAMMU","JAMMU","JAMMU","J&K",null,"JAMMU",180001,180051006,6320211,32.737679999999997,74.872190000000003,null,{"$f":"TEXT(branch332[[#This Row],[Sol Id]],\"0000\")","v":"0211"}]
["A",212,212,"B","NANAK NAGAR JAMMU","JAMMU","ZO JAMMU CLSTR -2 JAMMU","NANNAK","JAM","JAMCL2","JAKA0NANNAK","NANAK NAGAR","JAMMU","JAMMU","BAHU","J&K",null,"JAMMU",180004,180051016,6320212,32.694450000000003,74.865499999999997,null,{"$f":"TEXT(branch332[[#This Row],[Sol Id]],\"0000\")","v":"0212"}]
["A",213,213,"B","T P BARAMULLA","BARAMULLA","ZO BARAMULLA CLSTR BARAMULLA","TEHSIL","BAR","BARBAR","JAKA0TEHSIL","TASHKANT CHOWK, BARAMULLA","BARAMULLA","BARAMULLA","BARAMULLA","J&K",null,"KASHMIR",193101,193051001,6320010,34.205849999999998,74.342699999999994,null,{"$f":"TEXT(branch332[[#This Row],[Sol Id]],\"0000\")","v":"0213"}]
["A",214,214,"B","MOGHLA (JENGRAL)","RAJOURI","ZO RAJOURI CLSTR RAJOURI","JNGRAL","RAJ","RAJRAJ","JAKA0JNGRAL","TEHSIL KALAKOTE","RAJOURI","RAJOURI","TERYATH","J&K",null,"JAMMU",185201,185051014,6320214,33.210209999999996,74.487189999999998,null,{"$f":"TEXT(branch332[[#This Row],[Sol Id]],\"0000\")","v":"0214"}]
["A",215,215,"B","BISHNA","JAMMU","ZO JAMMU CLSTR -2 JAMMU","BISHNA","JAM","JAMCL2","JAKA0BISHNA","MAIN BAZAR, BISHNAW","JAMMU","JAMMU","BISHNAH","J&K",null,"JAMMU",181132,180051029,6320215,32.630670000000002,74.880470000000003,null,{"$f":"TEXT(branch332[[#This Row],[Sol Id]],\"0000\")","v":"0215"}]
["A",216,216,"B","BALGARDEN SRINAGAR","SRINAGAR","ZO SRINAGAR CLSTR -3 SRINAGAR","GARDEN","SGR","SGRCL3","JAKA0GARDEN","SMC COMPLEX, BALGARDEN","SRINAGAR","SRINAGAR","SRINAGAR SOUTH","J&K",null,"KASHMIR",190010,190051008,6320216,34.078029999999998,74.799350000000004,null,{"$f":"TEXT(branch332[[#This Row],[Sol Id]],\"0000\")","v":"0216"}]
["A",217,217,"B","NALLAMAR ROAD SRINAGAR","SRINAGAR","ZO SRINAGAR CLSTR -2 SRINAGAR","NAALLA","SGR","SGRCL2","JAKA0NAALLA","NALLAMAR ROAD, BOHRI KADAL","SRINAGAR","SRINAGAR","SRINAGAR KHAS","J&K",null,"KASHMIR",190002,190051041,6320217,34.09281,74.810280000000006,null,{"$f":"TEXT(branch332[[#This Row],[Sol Id]],\"0000\")","v":"0217"}]
["A",218,218,"B","LAKHANPUR","KATHUA","ZO KATHUA CLSTR KATHUA","OCTROI","KAT","KATKAT","JAKA0OCTROI","LAKHANPUR, KATHUA","KATHUA","KATHUA","KATHUA","J&K",null,"JAMMU",184152,184051005,6320218,null,null,null,{"$f":"TEXT(branch332[[#This Row],[Sol Id]],\"0000\")","v":"0218"}]
["A",219,219,"B","WANPOH","ANANTNAG","ZO ANANTNAG CLSTR -1 ANANTNAG","WANPOH","ANT","ANTCL1","JAKA0WANPOH","WANPOH, NEAR HR SEC SCHOOL, ANANTNAG","ANANTNAG","ANANTNAG","ANANTNAG","J&K",null,"KASHMIR",192102,192051026,6320219,33.729149999999997,75.107140000000001,null,{"$f":"TEXT(branch332[[#This Row],[Sol Id]],\"0000\")","v":"0219"}]
["A",220,220,"B","LATTI","UDHAMPUR","ZO UDHAMPUR CLSTR UDHAMPUR","LATTEE","UDM","UDMUDM","JAKA0LATTEE","LATTI MAIN MARKET UDHAMPUR","UDHAMPUR","UDHAMPUR","LATTI","J&K",null,"JAMMU",182122,182051013,6320220,32.92953,75.443209999999993,null,{"$f":"TEXT(branch332[[#This Row],[Sol Id]],\"0000\")","v":"0220"}]
["A",221,221,"B","ACHABAL SOPORE","BARAMULLA","ZO BARAMULLA CLSTR SOPORE","ACHBAL","BAR","BARSOP","JAKA0ACHBAL","MAIN MARKET ACHBAL,DOABGH SOPORE","BARAMULLA","BARAMULLA","WATERGAM","J&K",null,"KASHMIR",192301,193051107,6320221,34.271430000000002,74.415490000000005,null,{"$f":"TEXT(branch332[[#This Row],[Sol Id]],\"0000\")","v":"0221"}]
["A",222,222,"B","JAMIA QADEEM SOPORE","BARAMULLA","ZO BARAMULLA CLSTR SOPORE","QADEEM","BAR","BARSOP","JAKA0QADEEM","NEAR KHAN KHAHI MOHALLA,JAMIA QADEEM SOPORE","BARAMULLA","BARAMULLA","SOPORE","J&K",null,"KASHMIR",193201,193051103,6320222,34.278289999999998,74.471720000000005,null,{"$f":"TEXT(branch332[[#This Row],[Sol Id]],\"0000\")","v":"0222"}]
["A",223,223,"B","CHATROO","DODA","ZO DODA CLSTR KISHTWAR","CHATRO","DOD","DODKIS","JAKA0CHATRO","CHATROO, KISTHWAR","KISHTWAR","KISHTWAR","CHATROO","J&K",null,"JAMMU",182205,182051403,6320223,33.337600000000002,75.718249999999998,null,{"$f":"TEXT(branch332[[#This Row],[Sol Id]],\"0000\")","v":"0223"}]
["A",224,224,"B","BHALLA","DODA","ZO DODA CLSTR DODA","BHALLA","DOD","DODDOD","JAKA0BHALLA","BHALLA, DODA, JAMMU","DODA","DODA","BHALLA","J&K",null,"JAMMU",182221,182051107,6320224,33.128309999999999,75.563820000000007,null,{"$f":"TEXT(branch332[[#This Row],[Sol Id]],\"0000\")","v":"0224"}]
["A",225,225,"B","SARTINGAL","DODA","ZO DODA CLSTR DODA","TENGAL","DOD","DODDOD","JAKA0TENGAL","VIILAGE SARTINGAL,TEHSIL BADERWAH","DODA","DODA","BHADERWAH","J&K",null,"JAMMU",182222,182051113,6320225,32.957050000000002,75.727180000000004,null,{"$f":"TEXT(branch332[[#This Row],[Sol Id]],\"0000\")","v":"0225"}]
["A",226,226,"B","NEWA","PULWAMA","ZO PULWAMA CLSTR PULWAMA","NEEWAH","PUL","PULPUL","JAKA0NEEWAH","MAIN CHOWK NEWA","PULWAMA","PULWAMA","NEWA","J&K",null,"KASHMIR",192301,192051111,6320226,33.91592,74.881810000000002,null,{"$f":"TEXT(branch332[[#This Row],[Sol Id]],\"0000\")","v":"0226"}]
["A",227,227,"B","SINGHPORA PATTAN","BARAMULLA","ZO BARAMULLA CLSTR SOPORE","SINGPO","BAR","BARSOP","JAKA0SINGPO","SINGHPORA PATTAN BARAM","BARAMULLA","BARAMULLA","PATTAN","J&K",null,"KASHMIR",192131,193051016,6320227,34.292839999999998,74.620230000000006,null,{"$f":"TEXT(branch332[[#This Row],[Sol Id]],\"0000\")","v":"0227"}]
["A",228,228,"B","REHAMBAL","UDHAMPUR","ZO UDHAMPUR CLSTR UDHAMPUR","RHMBAL","UDM","UDMUDM","JAKA0RHMBAL","NEAR FILLING STATION CHOPRA SHOP","UDHAMPUR","UDHAMPUR","UDHAMPUR","J&K",null,"JAMMU",182121,182051005,6320228,32.899340000000002,75.06908,null,{"$f":"TEXT(branch332[[#This Row],[Sol Id]],\"0000\")","v":"0228"}]
["A",229,229,"B","BREIN NISHAT","SRINAGAR","ZO SRINAGAR CLSTR -2 SRINAGAR","NISHAT","SGR","SGRCL2","JAKA0NISHAT","BREIN, NISHAT","SRINAGAR","SRINAGAR","KHANYAR","J&K",null,"KASHMIR",191121,190051012,6320229,34.10689,74.878929999999997,null,{"$f":"TEXT(branch332[[#This Row],[Sol Id]],\"0000\")","v":"0229"}]
["A",230,230,"B","IC BARI BRAHAMNA","KATHUA","ZO KATHUA CLSTR SAMBA","ESTATE","KAT","KATSAM","JAKA0ESTATE","BARI BRAHMNA (I.C) PIN 181133","SAMBA","SAMBA","BARI BRAHAMANA","J&K",null,"JAMMU",181133,180051038,6320230,32.640729999999998,74.927629999999994,null,{"$f":"TEXT(branch332[[#This Row],[Sol Id]],\"0000\")","v":"0230"}]
["A",231,231,"B","ZALDAGAR SRINAGAR","SRINAGAR","ZO SRINAGAR CLSTR -2 SRINAGAR","ZALDAG","SGR","SGRCL2","JAKA0ZALDAG","ZALDAGAR MAIN MARKET","SRINAGAR","SRINAGAR","KHAS","J&K",null,"KASHMIR",190002,190051073,6320231,34.087859999999999,74.801119999999997,null,{"$f":"TEXT(branch332[[#This Row],[Sol Id]],\"0000\")","v":"0231"}]
["A",232,232,"B","VERINAG","ANANTNAG","ZO ANANTNAG CLSTR -1 ANANTNAG","VERNAG","ANT","ANTCL1","JAKA0VERNAG","VERINAG MAIN MARKET , ANANTNAG","ANANTNAG","ANANTNAG","SHAHBAD BALA","J&K",null,"KASHMIR",192212,192051027,6320439,33.539430000000003,75.247820000000004,null,{"$f":"TEXT(branch332[[#This Row],[Sol Id]],\"0000\")","v":"0232"}]
["A",233,233,"B","HIMYA","LADAKH","ZO LADAKH CLSTR LEH","HESPER","LAD","LADLEH","JAKA0HESPER","HIMYA (KAIRY),LEH","LEH","LEH","NYOMA","LADAKH",null,"LADAKH",194404,194051015,6320271,33.654049999999998,78.012720000000002,null,{"$f":"TEXT(branch332[[#This Row],[Sol Id]],\"0000\")","v":"0233"}]
["A",235,235,"B","KATRA","UDHAMPUR","ZO UDHAMPUR CLSTR REASI","KATTRA","UDM","UDMREA","JAKA0KATTRA","NEAR GAGAN SWEETS,MAIN BAZAR, KATRA PIN 182301","REASI","REASI","KATRA","J&K",null,"JAMMU",182301,182051201,6320235,32.992280000000001,74.934610000000006,null,{"$f":"TEXT(branch332[[#This Row],[Sol Id]],\"0000\")","v":"0235"}]
["A",237,237,"B","VARANASI","DELHI","ZO DELHI CLSTR LUCKNOW","VARNAS","DEL","DELLUC","JAKA0VARNAS","D 427-49, NEAR MEHMOOD MARKET","VARANASI","VARANASI",null,"UP",null,"ROI",221001,221051002,6320383,25.304079999999999,83.004620000000003,null,{"$f":"TEXT(branch332[[#This Row],[Sol Id]],\"0000\")","v":"0237"}]
["A",238,238,"B","KERAN","BARAMULLA","ZO BARAMULLA CLSTR KUPWARA","KAYRAN","BAR","BARKUP","JAKA0KAYRAN","KERAN MIAN","KUPWARA","KUPWARA","KERAN","J&K",null,"KASHMIR",193224,193051212,6320238,34.612050000000004,74.003699999999995,null,{"$f":"TEXT(branch332[[#This Row],[Sol Id]],\"0000\")","v":"0238"}]
["A",239,239,"B","RANGRETH SRINAGAR","SRINAGAR","ZO SRINAGAR CLSTR -1 SRINAGAR","RANGRE","SGR","SGRCL1","JAKA0RANGRE","RANGRETH BUDGAM","SRINAGAR","SRINAGAR","SRINAGAR","J&K",null,"KASHMIR",190007,190051055,6320239,34.007379999999998,74.793679999999995,null,{"$f":"TEXT(branch332[[#This Row],[Sol Id]],\"0000\")","v":"0239"}]
["A",240,240,"B","CHANDERKOT","DODA","ZO DODA CLSTR RAMBAN","CHNDAR","DOD","DODRAM","JAKA0CHNDAR","CHANDERKOTE RAMBAN","RAMBAN","RAMBAN","RAMBAN","J&K",null,"JAMMU",182148,182051303,6320240,33.18656,75.302170000000004,null,{"$f":"TEXT(branch332[[#This Row],[Sol Id]],\"0000\")","v":"0240"}]
["A",241,241,"B","DURBUK","LADAKH","ZO LADAKH CLSTR LEH","DURBUK","LAD","LADLEH","JAKA0DURBUK","DURBUK LEH","LEH","LEH","DURBUK","LADAKH",null,"LADAKH",194101,194051013,6320241,34.032679999999999,78.168369999999996,null,{"$f":"TEXT(branch332[[#This Row],[Sol Id]],\"0000\")","v":"0241"}]
["A",242,242,"B","SKUAST SRINAGAR","SRINAGAR","ZO SRINAGAR CLSTR -2 SRINAGAR","SKUAST","SGR","SGRCL2","JAKA0SKUAST","SKUAST SHALIMAR","SRINAGAR","SRINAGAR","HAZRATBAL","J&K",null,"KASHMIR",191121,190051064,6320397,34.146590000000003,74.876180000000005,null,{"$f":"TEXT(branch332[[#This Row],[Sol Id]],\"0000\")","v":"0242"}]
["A",243,243,"B","ZABLIPORA","ANANTNAG","ZO ANANTNAG CLSTR -2 ANANTNAG","ZABLIP","ANT","ANTCL2","JAKA0ZABLIP","ZABIPORA , BIJBEHARA","ANANTNAG","ANANTNAG","BIJBEHARA","J&K",null,"KASHMIR",192124,192051028,6320243,33.789639999999999,75.103840000000005,null,{"$f":"TEXT(branch332[[#This Row],[Sol Id]],\"0000\")","v":"0243"}]
["A",244,244,"B","KHONMOH","SRINAGAR","ZO SRINAGAR CLSTR -1 SRINAGAR","KONMOH","SGR","SGRCL1","JAKA0KONMOH","NEAR JAMIA MASJID","SRINAGAR","SRINAGAR","PANTHACHOWK","J&K",null,"KASHMIR",191104,190051079,6320244,34.058399999999999,74.948490000000007,null,{"$f":"TEXT(branch332[[#This Row],[Sol Id]],\"0000\")","v":"0244"}]
["A",245,245,"B","DUDU BASANTGARH","UDHAMPUR","ZO UDHAMPUR CLSTR UDHAMPUR","BASANT","UDM","UDMUDM","JAKA0BASANT","TEHSIL RAMNAGAR","UDHAMPUR","UDHAMPUR","BASANTGARH","J&K",null,"JAMMU",182128,182051021,6320245,null,null,null,{"$f":"TEXT(branch332[[#This Row],[Sol Id]],\"0000\")","v":"0245"}]
["A",246,246,"B","PATEL NAGAR JAMMU","JAMMU","ZO JAMMU CLSTR -1 JAMMU","PATTEL","JAM","JAMCL1","JAKA0PATTEL","AKHNOOR ROAD, NEAR PETROL PUMP","JAMMU","JAMMU","JAMMU","J&K",null,"JAMMU",180002,180051019,6320246,32.745959999999997,74.825460000000007,null,{"$f":"TEXT(branch332[[#This Row],[Sol Id]],\"0000\")","v":"0246"}]
["A",247,247,"B","FRUIT COMPLEX JAMMU","JAMMU","ZO JAMMU CLSTR -2 JAMMU","CHERRY","JAM","JAMCL2","JAKA0CHERRY","FRUIT COMPLEX","JAMMU","JAMMU","BAHU","J&K",null,"JAMMU",180006,180051007,6320247,32.715850000000003,74.884510000000006,null,{"$f":"TEXT(branch332[[#This Row],[Sol Id]],\"0000\")","v":"0247"}]
["A",248,248,"B","BP BATMALOO","SRINAGAR","ZO SRINAGAR CLSTR -3 SRINAGAR","PATHER","SGR","SGRCL3","JAKA0PATHER","BATMALOO","SRINAGAR","SRINAGAR","SHALATENG","J&K",null,"KASHMIR",190009,190051010,6320248,34.077399999999997,74.795230000000004,null,{"$f":"TEXT(branch332[[#This Row],[Sol Id]],\"0000\")","v":"0248"}]
["A",249,249,"B","NAWA KADAL SRINAGAR","SRINAGAR","ZO SRINAGAR CLSTR -2 SRINAGAR","CANDLE","SGR","SGRCL2","JAKA0CANDLE","NAWAKADAL","SRINAGAR","SRINAGAR","EIDGAH","J&K",null,"KASHMIR",190002,190051043,6320249,34.096899999999998,74.797340000000005,null,{"$f":"TEXT(branch332[[#This Row],[Sol Id]],\"0000\")","v":"0249"}]
["A",250,250,"B","KHERRI (RAMSOO)","DODA","ZO DODA CLSTR RAMBAN","KHERRI","DOD","DODRAM","JAKA0KHERRI","KHERRI RAMSOO","RAMBAN","RAMBAN","POGAL PARISTAN","J&K",null,"JAMMU",182145,182051108,6320250,34.149090000000001,76.825969999999998,null,{"$f":"TEXT(branch332[[#This Row],[Sol Id]],\"0000\")","v":"0250"}]
["A",251,251,"B","POGAL PARISTAN(NEEL)","DODA","ZO DODA CLSTR RAMBAN","PONGAL","DOD","DODRAM","JAKA0PONGAL","POGAL PARISTAN TEHSIL BANIHAL,","RAMBAN","RAMBAN","BANIHAL","J&K",null,"JAMMU",182146,182051306,6320251,33.2224,75.142700000000005,null,{"$f":"TEXT(branch332[[#This Row],[Sol Id]],\"0000\")","v":"0251"}]
["A",252,252,"B","AIR CARGO SRINAGAR","SRINAGAR","ZO SRINAGAR CLSTR -1 SRINAGAR","AIRCAR","SGR","SGRCL1","JAKA0AIRCAR","OPP MINTO CIRCLE SCHOOL,RAJBAGH","SRINAGAR","SRINAGAR","SRINAGAR SOUTH","J&K",null,"KASHMIR",190001,190051051,6320232,34.066200000000002,74.828779999999995,null,{"$f":"TEXT(branch332[[#This Row],[Sol Id]],\"0000\")","v":"0252"}]
["A",253,253,"B","PATHANKOTE","KATHUA","ZO KATHUA CLSTR MOHALI","PATHAN","KAT","KATMOH","JAKA0PATHAN","GURDASPUR ROAD","GURDASPUR","PATHANKOTE",null,"PUNJAB",null,"ROI",145001,145051002,6320035,32.273339999999997,75.639430000000004,null,{"$f":"TEXT(branch332[[#This Row],[Sol Id]],\"0000\")","v":"0253"}]
["A",254,254,"B","JYOTIPURAM","UDHAMPUR","ZO UDHAMPUR CLSTR REASI","JYOTIE","UDM","UDMREA","JAKA0JYOTIE","MAIN BAZAAR JYOTIPURAM","REASI","REASI","REASI","J&K",null,"JAMMU",182312,182051256,6320254,33.109819999999999,74.841939999999994,null,{"$f":"TEXT(branch332[[#This Row],[Sol Id]],\"0000\")","v":"0254"}]
["A",255,255,"B","NARAINA DELHI","DELHI","ZO DELHI CLSTR -2 DELHI","NARAIN","DEL","DELCL2","JAKA0NARAIN","C-42 COMMUNITY CENTER","DELHI","DELHI",null,"DELHI",null,"ROI",110028,110051009,6320255,28.522469999999998,77.218850000000003,null,{"$f":"TEXT(branch332[[#This Row],[Sol Id]],\"0000\")","v":"0255"}]
["A",256,256,"B","PARIMPORA SRINAGAR","SRINAGAR","ZO SRINAGAR CLSTR -3 SRINAGAR","QAMMAR","SGR","SGRCL3","JAKA0QAMMAR","QAMMAWARI CHOWK,","SRINAGAR","SRINAGAR","SRINAGAR","J&K",null,"KASHMIR",190002,190051049,6320181,34.091239999999999,74.777529999999999,null,{"$f":"TEXT(branch332[[#This Row],[Sol Id]],\"0000\")","v":"0256"}]
["A",257,257,"B","LASJAN SRINAGAR","SRINAGAR","ZO SRINAGAR CLSTR -1 SRINAGAR","LASJAN","SGR","SGRCL1","JAKA0LASJAN","LASJAN MAIN MARKET SRINAGAR,","SRINAGAR","SRINAGAR","SRINAGAR","J&K",null,"KASHMIR",191101,190051037,6320257,34.083660000000002,74.797370000000001,null,{"$f":"TEXT(branch332[[#This Row],[Sol Id]],\"0000\")","v":"0257"}]
["A",258,258,"B","ZAINAKOTE SRINAGAR","SRINAGAR","ZO SRINAGAR CLSTR -3 SRINAGAR","ZANKOT","SGR","SGRCL3","JAKA0ZANKOT","NEAR HMT WATCH FACTORY","SRINAGAR","SRINAGAR","SHALTENG SRINAGAR","J&K",null,"KASHMIR",190012,190051071,6320258,34.083660000000002,74.797370000000001,null,{"$f":"TEXT(branch332[[#This Row],[Sol Id]],\"0000\")","v":"0258"}]
["A",259,259,"B","GUJJAR MARKET RAJOURI","RAJOURI","ZO RAJOURI CLSTR RAJOURI","GUJJAR","RAJ","RAJRAJ","JAKA0GUJJAR","NEAR L.I.C OF INDIA,GUJJAR MARKET RAJOURI","RAJOURI","RAJOURI","RAJOURI","J&K",null,"JAMMU",185131,185051003,6320259,33.380290000000002,74.316490000000002,null,{"$f":"TEXT(branch332[[#This Row],[Sol Id]],\"0000\")","v":"0259"}]
["A",260,260,"B","SHERABAD","BARAMULLA","ZO BARAMULLA CLSTR BARAMULLA","SHERRA","BAR","BARBAR","JAKA0SHERRA","SHERABAD PATTAN","BARAMULLA","BARAMULLA","PATTAN","J&K",null,"KASHMIR",193121,193051017,6320260,34.160469999999997,74.555120000000002,null,{"$f":"TEXT(branch332[[#This Row],[Sol Id]],\"0000\")","v":"0260"}]
["A",261,261,"B","KHOON","UDHAMPUR","ZO UDHAMPUR CLSTR UDHAMPUR","KHOONI","UDM","UDMUDM","JAKA0KHOONI","P.O KHOON TEHSIL MAJALTA","UDHAMPUR","UDHAMPUR","MAJALTA","J&K",null,"JAMMU",182127,182051004,6320261,null,null,null,{"$f":"TEXT(branch332[[#This Row],[Sol Id]],\"0000\")","v":"0261"}]
["A",262,262,"B","KANPUR","DELHI","ZO DELHI CLSTR LUCKNOW","KANPUR","DEL","DELLUC","JAKA0KANPUR","40/116, HOSPITAL ROAD, PARADE","KANPUR CITY","KANPUR",null,"UP",null,"ROI",208001,208051002,6320262,27.366309999999999,79.628730000000004,null,{"$f":"TEXT(branch332[[#This Row],[Sol Id]],\"0000\")","v":"0262"}]
["A",263,263,"B","JAGANOO","UDHAMPUR","ZO UDHAMPUR CLSTR UDHAMPUR","JAGANO","UDM","UDMUDM","JAKA0JAGANO","JAGANU,UDHAMPUR","UDHAMPUR","UDHAMPUR","UDHAMPUR","J&K",null,"JAMMU",182124,182051006,6320263,32.533430000000003,75.102310000000003,null,{"$f":"TEXT(branch332[[#This Row],[Sol Id]],\"0000\")","v":"0263"}]
["A",264,264,"B","BHAGWA","DODA","ZO DODA CLSTR DODA","BHAGWA","DOD","DODDOD","JAKA0BHAGWA","BHAGWA DODA","DODA","DODA","BHAGWA","J&K",null,"JAMMU",182202,182051103,6320264,33.211669999999998,75.408249999999995,null,{"$f":"TEXT(branch332[[#This Row],[Sol Id]],\"0000\")","v":"0264"}]
["A",265,265,"B","SKURBACHAN","LADAKH","ZO LADAKH CLSTR LEH","BACHAN","LAD","LADLEH","JAKA0BACHAN","SKURBACHAN","LEH","LEH","KHALTSI","LADAKH",null,"LADAKH",194106,194051016,6320265,34.41348,76.709670000000003,null,{"$f":"TEXT(branch332[[#This Row],[Sol Id]],\"0000\")","v":"0265"}]
["M",266,266,"B","KALBADEVI MUMBAI (MERGED WITH 0368)",null,null,"KALBAA","MUM","NA","JAKA0KALBAA",null,null,null,null,null,null,null,null,null,null,null,null,null,{"$f":"TEXT(branch332[[#This Row],[Sol Id]],\"0000\")","v":"0266"}]
["A",267,267,"B","ZOONIMAR SRINAGAR","SRINAGAR","ZO SRINAGAR CLSTR -2 SRINAGAR","ZOONIE","SGR","SGRCL2","JAKA0ZOONIE","SAIDAPORA ZOONIMAR","SRINAGAR","SRINAGAR","SRINAGAR","J&K",null,"KASHMIR",null,190051074,6320267,34.083660000000002,74.797370000000001,null,{"$f":"TEXT(branch332[[#This Row],[Sol Id]],\"0000\")","v":"0267"}]
["A",268,268,"B","ALIGARH","DELHI","ZO DELHI CLSTR LUCKNOW","ALIGAR","DEL","DELLUC","JAKA0ALIGAR","ROOP NARANIAN MARKET,G.T ROAD","ALIGARH","ALIGARH",null,"UP",null,"ROI",202001,202051002,6320379,27.874639999999999,78.100949999999997,null,{"$f":"TEXT(branch332[[#This Row],[Sol Id]],\"0000\")","v":"0268"}]
["A",269,269,"B","DRASS","LADAKH","ZO LADAKH CLSTR KARGIL","DARASS","LAD","LADKAR","JAKA0DARASS","QATELGAH, MAIN BAZAR DRASS","KARGIL","KARGIL","DRASS","LADAKH",null,"LADAKH",194102,194051017,6320269,34.430759999999999,75.751779999999997,null,{"$f":"TEXT(branch332[[#This Row],[Sol Id]],\"0000\")","v":"0269"}]
["A",270,270,"B","TAI-SURU","LADAKH","ZO LADAKH CLSTR KARGIL","TSUROO","LAD","LADKAR","JAKA0TSUROO","TAI SURU","KARGIL","KARGIL","TAISURU","LADAKH",null,"LADAKH",194301,194051014,6320270,34.121499999999997,75.954130000000006,null,{"$f":"TEXT(branch332[[#This Row],[Sol Id]],\"0000\")","v":"0270"}]
["A",272,272,"B","KARNAL","DELHI","ZO DELHI CLSTR -2 DELHI","KARNAL","DEL","DELCL2","JAKA0KARNAL","OPP BUS STAND, OLD GT ROAD","KARNAL","KARNAL",null,"HARYANA",null,"ROI",132001,132051102,6320272,29.691369999999999,76.988010000000003,null,{"$f":"TEXT(branch332[[#This Row],[Sol Id]],\"0000\")","v":"0272"}]
["A",273,273,"B","AGRA","DELHI","ZO DELHI CLSTR LUCKNOW","MOGHUL","DEL","DELLUC","JAKA0MOGHUL","8/213, HING KI MANDI","AGRA","AGRA",null,"UP",null,"ROI",282003,282051002,6320273,27.183350000000001,78.013120000000001,null,{"$f":"TEXT(branch332[[#This Row],[Sol Id]],\"0000\")","v":"0273"}]
["A",274,274,"B","CHAWRI BAZAR DELHI","DELHI","ZO DELHI CLSTR -2 DELHI","CHAWRI","DEL","DELCL2","JAKA0CHAWRI","3462-GALI BAJRANG BALI","DELHI","DELHI",null,"DELHI",null,"ROI",110006,110051004,6320274,28.64866,77.228729999999999,null,{"$f":"TEXT(branch332[[#This Row],[Sol Id]],\"0000\")","v":"0274"}]
["A",275,275,"B","KHAN SAHIB","BUDGAM","ZO BUDGAM CLSTR -1 BUDGAM","KSAHIB","BUD","BUDCL1","JAKA0KSAHIB","KHANSAHIB BUDGAM","BUDGAM","BUDGAM","KHAN SAHIB","J&K",null,"KASHMIR",191111,191051009,6320275,33.932540000000003,74.658100000000005,null,{"$f":"TEXT(branch332[[#This Row],[Sol Id]],\"0000\")","v":"0275"}]
["A",276,276,"B","KHALTSI","LADAKH","ZO LADAKH CLSTR LEH","KHALSI","LAD","LADLEH","JAKA0KHALSI","KHALSI LEH LADAKH","LEH","LEH","KHALTSI","LADAKH",null,"LADAKH",194101,194051007,6320276,34.321170000000002,76.880560000000003,null,{"$f":"TEXT(branch332[[#This Row],[Sol Id]],\"0000\")","v":"0276"}]
["A",277,277,"B","NARBAL","BUDGAM","ZO BUDGAM CLSTR -1 BUDGAM","NARBAL","BUD","BUDCL1","JAKA0NARBAL","NARBAL","BUDGAM","BUDGAM","NARBAL","J&K",null,"KASHMIR",193405,191051011,6320277,34.110289999999999,74.668499999999995,null,{"$f":"TEXT(branch332[[#This Row],[Sol Id]],\"0000\")","v":"0277"}]
["A",278,278,"B","BARZULLA SRINAGAR","SRINAGAR","ZO SRINAGAR CLSTR -1 SRINAGAR","BAGAAT","SGR","SGRCL1","JAKA0BAGAAT","BAAGAT, BARZULLA","SRINAGAR","SRINAGAR","SRINAGAR KHAS","J&K",null,"KASHMIR",190005,190051009,6320278,34.052039999999998,74.797340000000005,null,{"$f":"TEXT(branch332[[#This Row],[Sol Id]],\"0000\")","v":"0278"}]
["A",279,279,"B","REHARI JAMMU","JAMMU","ZO JAMMU CLSTR -1 JAMMU","REHARI","JAM","JAMCL1","JAKA0REHARI","REHARI MAIN","JAMMU","JAMMU","JAMMU","J&K",null,"JAMMU",180005,180051021,6320279,32.74689,74.849980000000002,null,{"$f":"TEXT(branch332[[#This Row],[Sol Id]],\"0000\")","v":"0279"}]
["A",280,280,"B","THATRI","DODA","ZO DODA CLSTR DODA","THATRI","DOD","DODDOD","JAKA0THATRI","THATRI, DODA, JAMMU","DODA","DODA","THATRI","J&K",null,"JAMMU",182203,182051109,6320280,33.160620000000002,75.769130000000004,null,{"$f":"TEXT(branch332[[#This Row],[Sol Id]],\"0000\")","v":"0280"}]
["A",281,281,"B","DHARMARI","UDHAMPUR","ZO UDHAMPUR CLSTR REASI","DHARMA","UDM","UDMREA","JAKA0DHARMA","P.O DHARMARI TAHSIL MAHORE","REASI","REASI","THUROO","J&K",null,"JAMMU",182313,182051254,6320281,33.259,74.833410000000001,null,{"$f":"TEXT(branch332[[#This Row],[Sol Id]],\"0000\")","v":"0281"}]
["A",1,1,"B","AZADPUR DELHI","DELHI","ZO DELHI CLSTR -2 DELHI","AZDPUR","DEL","DELCL2","JAKA0AZDPUR","NEW SABZI MANDI","DELHI","DELHI",null,"DELHI",null,"ROI",110033,110051002,6320001,28.703140000000001,77.177229999999994,null,{"$f":"TEXT(branch332[[#This Row],[Sol Id]],\"0000\")","v":"0001"}]
["A",2,2,"B","AMIRA KADAL SRINAGAR","SRINAGAR","ZO SRINAGAR CLSTR -1 SRINAGAR","SQUARE","SGR","SGRCL1","JAKA0SQUARE","NEAR KMD BUS STAND, AMIRA KADAL","SRINAGAR","SRINAGAR","SRINAGAR","J&K",null,"KASHMIR",190001,190051003,6320002,34.071460000000002,74.807270000000003,null,{"$f":"TEXT(branch332[[#This Row],[Sol Id]],\"0000\")","v":"0002"}]
["A",3,3,"B","HABBA KADAL SRINAGAR","SRINAGAR","ZO SRINAGAR CLSTR -2 SRINAGAR","HKADAL","SGR","SGRCL2","JAKA0HKADAL","HABBA KADAL","SRINAGAR","SRINAGAR","SRINAGAR SOUTH","J&K",null,"KASHMIR",190001,190051025,6320003,null,null,null,{"$f":"TEXT(branch332[[#This Row],[Sol Id]],\"0000\")","v":"0003"}]
["A",4,4,"B","MAHARAJ GUNJ SRINAGAR","SRINAGAR","ZO SRINAGAR CLSTR -2 SRINAGAR","MAHRAJ","SGR","SGRCL2","JAKA0MAHRAJ","NEAR NALLAMAR ROAD","SRINAGAR","SRINAGAR","KHANYAR","J&K",null,"KASHMIR",190002,190051038,6320004,34.095869999999998,74.804959999999994,null,{"$f":"TEXT(branch332[[#This Row],[Sol Id]],\"0000\")","v":"0004"}]
["A",5,5,"B","RESIDENCY ROAD SRINAGAR","SRINAGAR","ZO SRINAGAR CLSTR -1 SRINAGAR","CHINAR","SGR","SGRCL1","JAKA0CHINAR","LAL CHOWK, SRINAGAR 190001","SRINAGAR","SRINAGAR","SRINAGAR CENTRAL","J&K",null,"KASHMIR",190001,190051056,6320005,34.072369999999999,74.822220000000002,null,{"$f":"TEXT(branch332[[#This Row],[Sol Id]],\"0000\")","v":"0005"}]
["A",6,6,"B","SAFA KADAL SRINAGAR","SRINAGAR","ZO SRINAGAR CLSTR -2 SRINAGAR","HONOUR","SGR","SGRCL2","JAKA0HONOUR","SAFAKADAL MAIN","SRINAGAR","SRINAGAR","EIDGAH","J&K",null,"KASHMIR",190002,190051060,6320006,34.090789999999998,74.793819999999997,null,{"$f":"TEXT(branch332[[#This Row],[Sol Id]],\"0000\")","v":"0006"}]
["A",7,7,"B","UNIVERSITY CAMPUS HAZRATBAL(NANDPORA)","SRINAGAR","ZO SRINAGAR CLSTR -2 SRINAGAR","NASEEM","SGR","SGRCL2","JAKA0NASEEM","OPP. UNIVERSITY OF KASHMIR","SRINAGAR","SRINAGAR","HAZRATBAL","J&K",null,"KASHMIR",190006,190051042,6320007,34.127859999999998,74.830839999999995,null,{"$f":"TEXT(branch332[[#This Row],[Sol Id]],\"0000\")","v":"0007"}]
["A",8,8,"B","CHADURA","BUDGAM","ZO BUDGAM CLSTR -2 BUDGAM","CHADUR","BUD","BUDCL2","JAKA0CHADUR","TEHSIL CHADOORA BUDGAM","BUDGAM","BUDGAM","CHADURA","J&K",null,"KASHMIR",191113,191051007,6320008,33.946330000000003,74.800870000000003,null,{"$f":"TEXT(branch332[[#This Row],[Sol Id]],\"0000\")","v":"0008"}]
["A",10,10,"B","KULGAM (MAIN)","ANANTNAG","ZO ANANTNAG CLSTR KULGAM","KULGAM","ANT","ANTKUL","JAKA0KULGAM","KULGAM MAIN MARKET","KULGAM","KULGAM","KULGAM","J&K",null,"KASHMIR",192231,192051008,6320015,33.645879999999998,75.012180000000001,null,{"$f":"TEXT(branch332[[#This Row],[Sol Id]],\"0000\")","v":"0010"}]
["A",11,11,"B","KALAROOS","BARAMULLA","ZO BARAMULLA CLSTR KUPWARA","KLAROS","BAR","BARKUP","JAKA0KLAROS","QASBA KALAROOCH,","KUPWARA","KUPWARA","KUPWARA","J&K",null,"KASHMIR",193222,193051204,6320131,34.561399999999999,74.31823,null,{"$f":"TEXT(branch332[[#This Row],[Sol Id]],\"0000\")","v":"0011"}]
["A",12,12,"B","KUPWARA (MAIN)","BARAMULLA","ZO BARAMULLA CLSTR KUPWARA","FOREST","BAR","BARKUP","JAKA0FOREST","BY PASS ROAD KUPWARA","KUPWARA","KUPWARA","KUPWARA","J&K",null,"KASHMIR",193222,193051206,6320012,34.525889999999997,74.254499999999993,null,{"$f":"TEXT(branch332[[#This Row],[Sol Id]],\"0000\")","v":"0012"}]
["A",13,13,"B","PATTAN","BARAMULLA","ZO BARAMULLA CLSTR SOPORE","PATTAN","BAR","BARSOP","JAKA0PATTAN","MAIN BAZAR PATTAN","BARAMULLA","BARAMULLA","PATTAN","J&K",null,"KASHMIR",193121,193051005,6320013,34.160469999999997,74.555120000000002,null,{"$f":"TEXT(branch332[[#This Row],[Sol Id]],\"0000\")","v":"0013"}]
["A",14,14,"B","T P ANANTNAG","ANANTNAG","ZO ANANTNAG CLSTR -1 ANANTNAG","EMPIRE","ANT","ANTCL1","JAKA0EMPIRE","OPPOSITE DC OFFICE ANANTNAG","ANANTNAG","ANANTNAG","ANANTNAG","J&K",null,"KASHMIR",192101,192051007,6320014,33.732439999999997,75.147530000000003,null,{"$f":"TEXT(branch332[[#This Row],[Sol Id]],\"0000\")","v":"0014"}]
["A",15,15,"B","T P KULGAM","ANANTNAG","ZO ANANTNAG CLSTR KULGAM","TPKGAM","ANT","ANTKUL","JAKA0TPKGAM","CENTRAL MARKET KULGAM","KULGAM","KULGAM","KULGAM","J&K",null,"KASHMIR",192231,192051049,6320405,33.645829999999997,75.019940000000005,null,{"$f":"TEXT(branch332[[#This Row],[Sol Id]],\"0000\")","v":"0015"}]
["A",16,16,"B","PAMPORE","PULWAMA","ZO PULWAMA CLSTR PULWAMA","SAFRON","PUL","PULPUL","JAKA0SAFRON","DRANGBAL, PAMPORE","PULWAMA","PULWAMA","PAMPORE","J&K",null,"KASHMIR",192121,190051047,6320016,34.016860000000001,74.914990000000003,null,{"$f":"TEXT(branch332[[#This Row],[Sol Id]],\"0000\")","v":"0016"}]
["A",17,17,"B","QAZIGUND","ANANTNAG","ZO ANANTNAG CLSTR -1 ANANTNAG","QAZIGD","ANT","ANTCL1","JAKA0QAZIGD","QAZIGUND, ANANTNAG","ANANTNAG","ANANTNAG","QAZIGUND","J&K",null,"KASHMIR",192221,192051015,6320017,33.591839999999998,75.167839999999998,null,{"$f":"TEXT(branch332[[#This Row],[Sol Id]],\"0000\")","v":"0017"}]
["A",18,18,"B","SHOPIAN (MAIN)","PULWAMA","ZO PULWAMA CLSTR SHOPIAN","SHOPAN","PUL","PULSHO","JAKA0SHOPAN","NEAR TAK MASJID","SHOPIAN","SHOPIAN","SHOPIAN","J&K",null,"KASHMIR",192303,192051201,6320018,33.716500000000003,74.83278,null,{"$f":"TEXT(branch332[[#This Row],[Sol Id]],\"0000\")","v":"0018"}]
["A",19,19,"B","POONCH","RAJOURI","ZO RAJOURI CLSTR POONCH","BORDER","RAJ","RAJPOO","JAKA0BORDER","NEAR GURDUWARA SINGH SABHA,","POONCH","POONCH","HAVELI","J&K",null,"JAMMU",185101,185051101,6320019,33.771709999999999,74.094629999999995,null,{"$f":"TEXT(branch332[[#This Row],[Sol Id]],\"0000\")","v":"0019"}]
["A",20,20,"B","RAJOURI (MAIN)","RAJOURI","ZO RAJOURI CLSTR RAJOURI","RADISH","RAJ","RAJRAJ","JAKA0RADISH","MAIN BAZAR RAJOURI","RAJOURI","RAJOURI","RAJOURI","J&K",null,"JAMMU",185131,185051001,6320020,33.373260000000002,74.308840000000004,null,{"$f":"TEXT(branch332[[#This Row],[Sol Id]],\"0000\")","v":"0020"}]
["A",21,21,"B","SHALAMAR ROAD JAMMU","JAMMU","ZO JAMMU CLSTR -1 JAMMU","LUXURY","JAM","JAMCL1","JAKA0LUXURY","GHULAB BHAWAN, FIRST FLOOR","JAMMU","JAMMU","JAMMU","J&K",null,"JAMMU",180001,180051023,6320021,32.733899999999998,74.863650000000007,null,{"$f":"TEXT(branch332[[#This Row],[Sol Id]],\"0000\")","v":"0021"}]
["A",22,22,"B","RAIL HEAD COMPLEX JAMMU","JAMMU","ZO JAMMU CLSTR -2 JAMMU","ERAILH","JAM","JAMCL2","JAKA0ERAILH","NEAR PANAMA CHOWK","JAMMU","JAMMU","BAHU","J&K",null,"JAMMU",180012,180051051,6320607,32.715269999999997,74.868449999999996,null,{"$f":"TEXT(branch332[[#This Row],[Sol Id]],\"0000\")","v":"0022"}]
["A",23,23,"B","CANAL ROAD JAMMU","JAMMU","ZO JAMMU CLSTR -3 JAMMU","CAMPUS","JAM","JAMCL3","JAKA0CAMPUS","CANNAL ROAD","JAMMU","JAMMU","JAMMU","J&K",null,"JAMMU",180001,180051027,6320023,32.728610000000003,74.847059999999999,null,{"$f":"TEXT(branch332[[#This Row],[Sol Id]],\"0000\")","v":"0023"}]
["A",24,24,"B","AKHNOOR","JAMMU","ZO JAMMU CLSTR -3 JAMMU","AKHNOR","JAM","JAMCL3","JAKA0AKHNOR","MAIN BAZAR AKHNOOR","JAMMU","JAMMU","AKHNOOR","J&K",null,"JAMMU",181201,180051064,6320024,32.745959999999997,74.825460000000007,null,{"$f":"TEXT(branch332[[#This Row],[Sol Id]],\"0000\")","v":"0024"}]
["A",25,25,"B","R S PURA","JAMMU","ZO JAMMU CLSTR -2 JAMMU","RSPORA","JAM","JAMCL2","JAKA0RSPORA","NEAR MAIN GATE, SKUAST","JAMMU","JAMMU","RS PURA","J&K",null,"JAMMU",181102,180051022,6320025,32.605699999999999,74.734930000000006,null,{"$f":"TEXT(branch332[[#This Row],[Sol Id]],\"0000\")","v":"0025"}]
["A",26,26,"B","KATHUA (MAIN)","KATHUA","ZO KATHUA CLSTR KATHUA","KATHUA","KAT","KATKAT","JAKA0KATHUA","MUKERJEE CHOWK MAIN BAZAR","KATHUA","KATHUA","KATHUA","J&K",null,"JAMMU",184101,184051001,6320026,32.501759999999997,75.814120000000003,null,{"$f":"TEXT(branch332[[#This Row],[Sol Id]],\"0000\")","v":"0026"}]
["A",27,27,"B","SAMBA (MAIN)","KATHUA","ZO KATHUA CLSTR SAMBA","SAMBHA","KAT","KATSAM","JAKA0SAMBHA","NEAR BUS STAND","SAMBA","SAMBA","SAMBA","J&K",null,"JAMMU",184121,180051039,6320027,32.562480000000001,75.116190000000003,null,{"$f":"TEXT(branch332[[#This Row],[Sol Id]],\"0000\")","v":"0027"}]
["A",28,28,"B","UDHAMPUR (MAIN)","UDHAMPUR","ZO UDHAMPUR CLSTR UDHAMPUR","UDMPUR","UDM","UDMUDM","JAKA0UDMPUR","MAIN BRANCH, COURT PREMISES","UDHAMPUR","UDHAMPUR","UDHAMPUR","J&K",null,"JAMMU",182101,182051001,6320028,32.56,75.8,null,{"$f":"TEXT(branch332[[#This Row],[Sol Id]],\"0000\")","v":"0028"}]
["A","0028E","0028E","EC","EC - SHERI-KASHMIR POLICE ACADEMY UDHAMPUR",null,null,"UDMPUR","UDM","UDMUND","JAKA0UDMPUR",null,"UDHAMPUR","UDHAMPUR","UDHAMPUR","J&K",null,"JAMMU",182101,182051001,6320028,32.56,75.8,null,{"$f":"TEXT(branch332[[#This Row],[Sol Id]],\"0000\")","v":"0028E"}]
["A",29,29,"B","REASI","UDHAMPUR","ZO UDHAMPUR CLSTR REASI","REASSI","UDM","UDMREA","JAKA0REASSI","BUS STAND, REASI","REASI","REASI","REASI","J&K",null,"JAMMU",182311,182051251,6320029,33.080260000000003,74.83663,null,{"$f":"TEXT(branch332[[#This Row],[Sol Id]],\"0000\")","v":"0029"}]
["A",30,30,"B","BHADERWAH","DODA","ZO DODA CLSTR DODA","BHADAR","DOD","DODDOD","JAKA0BHADAR","MAIN MARKET, BHADERWAH","DODA","DODA","BHADERWAH","J&K",null,"JAMMU",182222,182051106,6320030,32.979930000000003,75.717240000000004,null,{"$f":"TEXT(branch332[[#This Row],[Sol Id]],\"0000\")","v":"0030"}]
["A",31,31,"B","KISHTWAR","DODA","ZO DODA CLSTR KISHTWAR","KSTWAR","DOD","DODKIS","JAKA0KSTWAR","SHAHAN COMPLEX NEAR BUS STAND KISTWAR","KISHTWAR","KISHTWAR","KISHTWAR","J&K",null,"JAMMU",182204,182051401,6320031,33.313029999999998,75.768119999999996,null,{"$f":"TEXT(branch332[[#This Row],[Sol Id]],\"0000\")","v":"0031"}]
["A",32,32,"B","VIJAYPUR","KATHUA","ZO KATHUA CLSTR SAMBA","VIJJAY","KAT","KATSAM","JAKA0VIJJAY","RAILWAY ROAD VIJAYPUR","SAMBA","SAMBA","VIJAYPUR","J&K",null,"JAMMU",184120,180051035,6320032,32.567160000000001,75.018960000000007,null,{"$f":"TEXT(branch332[[#This Row],[Sol Id]],\"0000\")","v":"0032"}]
["A",33,33,"B","GAGWAL","KATHUA","ZO KATHUA CLSTR SAMBA","GAGWAL","KAT","KATSAM","JAKA0GAGWAL","NATIONAL HIGHWAY","SAMBA","SAMBA","GHAGWAL","J&K",null,"JAMMU",184141,180051089,6320033,32.512619999999998,75.213009999999997,null,{"$f":"TEXT(branch332[[#This Row],[Sol Id]],\"0000\")","v":"0033"}]
["A",34,34,"B","KALAKOTE","RAJOURI","ZO RAJOURI CLSTR RAJOURI","KALKAT","RAJ","RAJRAJ","JAKA0KALKAT","KALAKOTE, RAJORI","RAJOURI","RAJOURI","KALAKOTE","J&K",null,"JAMMU",185202,185051008,6320034,33.213720000000002,74.423829999999995,null,{"$f":"TEXT(branch332[[#This Row],[Sol Id]],\"0000\")","v":"0034"}]
["A",35,35,"B","PATHERGHATI HYDERABAD","BENGALURU","ZO BENGALURU CLSTR BENGALURU","BHAWNI","BEN","BENBEN","JAKA0BHAWNI","22-7-110 SYJ SHOPPING MALL","HYDERABAD","HYDERABAD",null,"TELANGANA",null,"ROI",500002,500051003,6320317,null,null,null,{"$f":"TEXT(branch332[[#This Row],[Sol Id]],\"0000\")","v":"0035"}]
["A",36,36,"B","BEERWAH","BUDGAM","ZO BUDGAM CLSTR -1 BUDGAM","BEERWA","BUD","BUDCL1","JAKA0BEERWA","MAIN BAZAR,BEERWAH","BUDGAM","BUDGAM","BEERWA","J&K",null,"KASHMIR",193411,191051006,6320036,34.012560000000001,74.595330000000004,null,{"$f":"TEXT(branch332[[#This Row],[Sol Id]],\"0000\")","v":"0036"}]
["A",37,37,"B","KHREW","PULWAMA","ZO PULWAMA CLSTR PULWAMA","CEMENT","PUL","PULPUL","JAKA0CEMENT","KHREW PAMPORE","PULWAMA","PULWAMA","PAMPORE","J&K",null,"KASHMIR",191103,192051107,6320037,34.019579999999998,74.997699999999995,null,{"$f":"TEXT(branch332[[#This Row],[Sol Id]],\"0000\")","v":"0037"}]
["A",38,38,"B","NOWHATTA SRINAGAR","SRINAGAR","ZO SRINAGAR CLSTR -2 SRINAGAR","NOHATA","SGR","SGRCL2","JAKA0NOHATA","NOWHATTA","SRINAGAR","SRINAGAR","KHANYAR","J&K",null,"KASHMIR",190002,190051046,6320038,34.100439999999999,74.820009999999996,null,{"$f":"TEXT(branch332[[#This Row],[Sol Id]],\"0000\")","v":"0038"}]
["A",39,39,"B","MATTAN","ANANTNAG","ZO ANANTNAG CLSTR -2 ANANTNAG","CAREER","ANT","ANTCL2","JAKA0CAREER","MATTAN NEAR HR SECONDARY SCHOOL","ANANTNAG","ANANTNAG","MATTAN","J&K",null,"KASHMIR",192125,192051014,6320039,33.759689999999999,75.210070000000002,null,{"$f":"TEXT(branch332[[#This Row],[Sol Id]],\"0000\")","v":"0039"}]
["A",40,40,"B","CHENANI","UDHAMPUR","ZO UDHAMPUR CLSTR UDHAMPUR","CHNANI","UDM","UDMUDM","JAKA0CHNANI","UDHAMPUR","UDHAMPUR","UDHAMPUR","CHENANI","J&K",null,"JAMMU",182141,182051007,6320040,33.036969999999997,75.283749999999998,null,{"$f":"TEXT(branch332[[#This Row],[Sol Id]],\"0000\")","v":"0040"}]
["A",41,41,"B","PAROLE","KATHUA","ZO KATHUA CLSTR KATHUA","PAROLE","KAT","KATKAT","JAKA0PAROLE","PAROLE KATHUA","KATHUA","KATHUA","NAGRI PAROLE","J&K",null,"JAMMU",184151,184051014,6320041,null,null,null,{"$f":"TEXT(branch332[[#This Row],[Sol Id]],\"0000\")","v":"0041"}]
["A",42,42,"B","SURANKOTE","RAJOURI","ZO RAJOURI CLSTR POONCH","SURRAN","RAJ","RAJPOO","JAKA0SURRAN","SURANKOTE MAIN MARKET","POONCH","POONCH","SURANKOTE","J&K",null,"JAMMU",185121,185051102,6320042,33.610810000000001,74.305769999999995,null,{"$f":"TEXT(branch332[[#This Row],[Sol Id]],\"0000\")","v":"0042"}]
["A",43,43,"B","THANA MANDI","RAJOURI","ZO RAJOURI CLSTR RAJOURI","THANAM","RAJ","RAJRAJ","JAKA0THANAM","MAIN BAZAR THANA MANDI","RAJOURI","RAJOURI","THANAMANDI","J&K",null,"JAMMU",185212,185051005,6320043,33.540439999999997,74.371009999999998,null,{"$f":"TEXT(branch332[[#This Row],[Sol Id]],\"0000\")","v":"0043"}]
["A",44,44,"B","DOORU SHAHABAD","ANANTNAG","ZO ANANTNAG CLSTR -1 ANANTNAG","DOOROO","ANT","ANTCL1","JAKA0DOOROO","DOORU SHAHABAD","ANANTNAG","ANANTNAG","DOORU","J&K",null,"KASHMIR",192211,192051016,6320044,33.570819999999998,75.223190000000002,null,{"$f":"TEXT(branch332[[#This Row],[Sol Id]],\"0000\")","v":"0044"}]
["A",45,45,"B","CHANDNAGAR JAMMU","JAMMU","ZO JAMMU CLSTR -1 JAMMU","TARGET","JAM","JAMCL1","JAKA0TARGET","SANT MARKET, JEWEL CHOWK","JAMMU","JAMMU","JAMMU","J&K",null,"JAMMU",180001,180051005,6320045,32.725659999999998,74.859849999999994,null,{"$f":"TEXT(branch332[[#This Row],[Sol Id]],\"0000\")","v":"0045"}]
["A",46,46,"B","SALHER","JAMMU","ZO JAMMU CLSTR -2 JAMMU","SALHER","JAM","JAMCL2","JAKA0SALHER","BUS ADDA SALHER VILLAGE,POST OFFICE SALHER,","JAMMU","JAMMU","BISHNAH","J&K",null,"JAMMU",181111,180051062,6320046,32.726599999999998,74.857029999999995,null,{"$f":"TEXT(branch332[[#This Row],[Sol Id]],\"0000\")","v":"0046"}]
["A",47,47,"B","BARI BRAHMNA","KATHUA","ZO KATHUA CLSTR SAMBA","CHOOSE","KAT","KATSAM","JAKA0CHOOSE","NATIONAL HIGHWAY","SAMBA","SAMBA","BARI BRAHAMANA","J&K",null,"JAMMU",181134,180051003,6320047,32.636949999999999,74.915030000000002,null,{"$f":"TEXT(branch332[[#This Row],[Sol Id]],\"0000\")","v":"0047"}]
["A",48,48,"B","DALGATE SRINAGAR","SRINAGAR","ZO SRINAGAR CLSTR -1 SRINAGAR","DALGAT","SGR","SGRCL1","JAKA0DALGAT","BOULEVARD ROAD","SRINAGAR","SRINAGAR","SRINAGAR SOUTH","J&K",null,"KASHMIR",190001,190051015,6320048,34.082859999999997,74.834819999999993,null,{"$f":"TEXT(branch332[[#This Row],[Sol Id]],\"0000\")","v":"0048"}]
["A",49,49,"B","CHRAR I SHARIEF","BUDGAM","ZO BUDGAM CLSTR -2 BUDGAM","ALNOOR","BUD","BUDCL2","JAKA0ALNOOR","TEHSIL CHARISHARIEF","BUDGAM","BUDGAM","CHRAR I SHARIEF","J&K",null,"KASHMIR",191112,191051008,6320049,33.862580000000001,74.76943,null,{"$f":"TEXT(branch332[[#This Row],[Sol Id]],\"0000\")","v":"0049"}]
["A",50,50,"B","CHANDNI CHOWK DELHI","DELHI","ZO DELHI CLSTR -2 DELHI","SILVER","DEL","DELCL2","JAKA0SILVER","384-390, LOK NATH BUILDING","DELHI","DELHI",null,"DELHI",null,"ROI",110006,110051003,6320050,28.656369999999999,77.221469999999997,null,{"$f":"TEXT(branch332[[#This Row],[Sol Id]],\"0000\")","v":"0050"}]
["A",51,51,"B","LINK ROAD JAMMU","JAMMU","ZO JAMMU CLSTR -1 JAMMU","LINKRO","JAM","JAMCL1","JAKA0LINKRO","LINK ROAD JAMMU","JAMMU","JAMMU","JAMMU","J&K",null,"JAMMU",180001,180051010,6320051,32.734850000000002,74.86927,null,{"$f":"TEXT(branch332[[#This Row],[Sol Id]],\"0000\")","v":"0051"}]
["A",53,53,"B","CHANDIMARH","RAJOURI","ZO RAJOURI CLSTR POONCH","CHANDI","RAJ","RAJPOO","JAKA0CHANDI","CHANDIMARAH","POONCH","POONCH","SURANKOTE","J&K",null,"JAMMU",185121,185051109,6320309,33.610639999999997,74.35812,null,{"$f":"TEXT(branch332[[#This Row],[Sol Id]],\"0000\")","v":"0053"}]
["A",54,54,"B","PULWAMA","PULWAMA","ZO PULWAMA CLSTR PULWAMA","GOLDEN","PUL","PULPUL","JAKA0GOLDEN","PULWAMA MAIN","PULWAMA","PULWAMA","PULWAMA","J&K",null,"KASHMIR",192301,192051101,6320054,33.87238,74.899569999999997,null,{"$f":"TEXT(branch332[[#This Row],[Sol Id]],\"0000\")","v":"0054"}]
["A",55,55,"B","CANNAUGHT PLACE DELHI","DELHI","ZO DELHI CLSTR -1 DELHI","CIRCUS","DEL","DELCL1","JAKA0CIRCUS","G-40 , IST FLOOR","DELHI","DELHI",null,"DELHI",null,"ROI",110001,110051007,6320055,28.633970000000001,77.222759999999994,null,{"$f":"TEXT(branch332[[#This Row],[Sol Id]],\"0000\")","v":"0055"}]
["A",56,56,"B","SHASTRI MARKET AMRITSAR","KATHUA","ZO KATHUA CLSTR MOHALI","GURUJI","KAT","KATMOH","JAKA0GURUJI","SHASTRI MARKET , AMRITSAR","AMRITSAR","AMRITSAR",null,"PUNJAB",null,"ROI",143001,143051002,6320056,31.622689999999999,74.871309999999994,null,{"$f":"TEXT(branch332[[#This Row],[Sol Id]],\"0000\")","v":"0056"}]
["A",57,57,"B","FATEH KADAL SRINAGAR","SRINAGAR","ZO SRINAGAR CLSTR -2 SRINAGAR","FATTEH","SGR","SGRCL2","JAKA0FATTEH","FATEH KADAL","SRINAGAR","SRINAGAR","SRINAGAR","J&K",null,"KASHMIR",190002,190051020,6320057,34.087179999999996,74.808909999999997,null,{"$f":"TEXT(branch332[[#This Row],[Sol Id]],\"0000\")","v":"0057"}]
["A",58,58,"B","DODA","DODA","ZO DODA CLSTR DODA","DECODE","DOD","DODDOD","JAKA0DECODE","DODA MAIN PIN 182202","DODA","DODA","DODA","J&K",null,"JAMMU",182202,182051101,6320058,33.144849999999998,75.544780000000003,null,{"$f":"TEXT(branch332[[#This Row],[Sol Id]],\"0000\")","v":"0058"}]
["A",59,59,"B","MIRAN SAHIB","JAMMU","ZO JAMMU CLSTR -2 JAMMU","MIRAAN","JAM","JAMCL2","JAKA0MIRAAN","R.S.PORA ROAD","JAMMU","JAMMU","RS PURA","J&K",null,"JAMMU",181101,180051013,6320059,32.644419999999997,74.818550000000002,null,{"$f":"TEXT(branch332[[#This Row],[Sol Id]],\"0000\")","v":"0059"}]
["A",60,60,"B","NAIDYAR","SRINAGAR","ZO SRINAGAR CLSTR -2 SRINAGAR","NIDYAR","SGR","SGRCL2","JAKA0NIDYAR","NAIDYAR, RAINAWARI","SRINAGAR","SRINAGAR","HAZRATBAL","J&K",null,"KASHMIR",190003,190051040,6320060,34.101140000000001,74.829689999999999,null,{"$f":"TEXT(branch332[[#This Row],[Sol Id]],\"0000\")","v":"0060"}]
["A",61,61,"B","BANDIPORA","BARAMULLA","ZO BARAMULLA CLSTR BANDIPORA","WULLAR","BAR","BARBAN","JAKA0WULLAR","BANDIPORA MAIN","BANDIPORA","BANDIPORA","BANDIPORA","J&K",null,"KASHMIR",193502,193051501,6320061,34.420520000000003,74.638140000000007,null,{"$f":"TEXT(branch332[[#This Row],[Sol Id]],\"0000\")","v":"0061"}]
["A",62,62,"B","CHAN ARRORIAN","KATHUA","ZO KATHUA CLSTR KATHUA","AORIAN","KAT","KATKAT","JAKA0AORIAN","CHAN ARORIAN, NATI","KATHUA","KATHUA","MARHEEN","J&K",null,"JAMMU",184147,184051017,6320062,null,null,null,{"$f":"TEXT(branch332[[#This Row],[Sol Id]],\"0000\")","v":"0062"}]
["A",63,63,"B","MAJALTA","UDHAMPUR","ZO UDHAMPUR CLSTR UDHAMPUR","MJALTA","UDM","UDMUDM","JAKA0MJALTA","MAJALTA MAIN MARKET , DISTRICT - UDHAMPUR","UDHAMPUR","UDHAMPUR","MAJALTA","J&K",null,"JAMMU",182127,182051009,6320083,32.724490000000003,75.177750000000003,null,{"$f":"TEXT(branch332[[#This Row],[Sol Id]],\"0000\")","v":"0063"}]
["A",64,64,"B","BASOHLI","KATHUA","ZO KATHUA CLSTR KATHUA","BASOLI","KAT","KATKAT","JAKA0BASOLI","MAIN BAZAR, BASOLI","KATHUA","KATHUA","BASHOLI","J&K",null,"JAMMU",184201,184051018,6320064,32.502360000000003,75.809809999999999,null,{"$f":"TEXT(branch332[[#This Row],[Sol Id]],\"0000\")","v":"0064"}]
["A",65,65,"B","TRAL","PULWAMA","ZO PULWAMA CLSTR PULWAMA","FLORAL","PUL","PULPUL","JAKA0FLORAL","MAIN TRAL MARKET","PULWAMA","PULWAMA","TRAL","J&K",null,"KASHMIR",192123,192051123,6320065,33.926229999999997,75.116529999999997,null,{"$f":"TEXT(branch332[[#This Row],[Sol Id]],\"0000\")","v":"0065"}]
["A",66,66,"B","RAMNAGAR","UDHAMPUR","ZO UDHAMPUR CLSTR UDHAMPUR","RAMNAG","UDM","UDMUDM","JAKA0RAMNAG","THE J&K BANK LTD","UDHAMPUR","UDHAMPUR","RAMNAGAR","J&K",null,"JAMMU",182122,182051010,6320066,32.805520000000001,75.31644,null,{"$f":"TEXT(branch332[[#This Row],[Sol Id]],\"0000\")","v":"0066"}]
["A",67,67,"B","HARI SINGH HIGH STREET SRINAGAR","SRINAGAR","ZO SRINAGAR CLSTR -1 SRINAGAR","STREET","SGR","SGRCL1","JAKA0STREET","HARI SINGH HIGH STREET","SRINAGAR","SRINAGAR","SRINAGAR CENTRAL","J&K",null,"KASHMIR",190001,190051024,6320067,34.070639999999997,74.804649999999995,null,{"$f":"TEXT(branch332[[#This Row],[Sol Id]],\"0000\")","v":"0067"}]
["A",68,68,"B","MAIN BAZAR SOPORE","BARAMULLA","ZO BARAMULLA CLSTR SOPORE","MARKET","BAR","BARSOP","JAKA0MARKET","MAIN BAZAR SOPORE","BARAMULLA","BARAMULLA","SOPORE","J&K",null,"KASHMIR",193201,193051105,6320068,34.286760000000001,74.462400000000002,null,{"$f":"TEXT(branch332[[#This Row],[Sol Id]],\"0000\")","v":"0068"}]
["A",69,69,"B","LEH","LADAKH","ZO LADAKH CLSTR LEH","PRIEST","LAD","LADLEH","JAKA0PRIEST","LEH MAIN MARKET PIN: 194101","LEH","LEH","LEH","LADAKH",null,"LADAKH",194101,194051001,6320069,34.16339,77.583780000000004,null,{"$f":"TEXT(branch332[[#This Row],[Sol Id]],\"0000\")","v":"0069"}]
["A",70,70,"B","KB ADDA BARAMULLA","BARAMULLA","ZO BARAMULLA CLSTR BARAMULLA","KBADDA","BAR","BARBAR","JAKA0KBADDA","PARK ROAD, AHMAD SHOPPING COMPLEX","BARAMULLA","BARAMULLA","BARAMULLA","J&K",null,"KASHMIR",193101,193051026,6320070,34.206980000000001,74.344290000000001,null,{"$f":"TEXT(branch332[[#This Row],[Sol Id]],\"0000\")","v":"0070"}]
["A",71,71,"B","KANGAN","BUDGAM","ZO BUDGAM CLSTR GANDERBAL","KANGAN","BUD","BUDGAN","JAKA0KANGAN","KANGAN GANDERBAL","GANDERBAL","GANDERBAL","KANGAN","J&K",null,"KASHMIR",191202,191051110,6320071,34.263150000000003,74.902850000000001,null,{"$f":"TEXT(branch332[[#This Row],[Sol Id]],\"0000\")","v":"0071"}]
["A",72,72,"B","ZAINA KADAL SRINAGAR","SRINAGAR","ZO SRINAGAR CLSTR -2 SRINAGAR","SACRED","SGR","SGRCL2","JAKA0SACRED","ZAINA KADAL MAIN","SRINAGAR","SRINAGAR","KHAS SRINGAR","J&K",null,"KASHMIR",190006,190051070,6320072,34.093400000000003,74.806110000000004,null,{"$f":"TEXT(branch332[[#This Row],[Sol Id]],\"0000\")","v":"0072"}]
["A",73,73,"B","UPPER GUMMAT JAMMU","JAMMU","ZO JAMMU CLSTR -1 JAMMU","GUMMAT","JAM","JAMCL1","JAKA0GUMMAT","UPPER GUMMAT BAZAAR","JAMMU","JAMMU","JAMMU","J&K",null,"JAMMU",180001,180051028,6320073,32.725940000000001,74.860399999999998,null,{"$f":"TEXT(branch332[[#This Row],[Sol Id]],\"0000\")","v":"0073"}]
["A",74,74,"B","TARZUA","BARAMULLA","ZO BARAMULLA CLSTR SOPORE","TARZUA","BAR","BARSOP","JAKA0TARZUA","TARZUA MAIN MARKET SOPORE","BARAMULLA","BARAMULLA","KHOIE PANZIPORA","J&K",null,"KASHMIR",193201,193051109,6320139,34.251649999999998,74.483009999999993,null,{"$f":"TEXT(branch332[[#This Row],[Sol Id]],\"0000\")","v":"0074"}]
["A",75,75,"B","CHANDOSA","BARAMULLA","ZO BARAMULLA CLSTR BARAMULLA","CNDOSA","BAR","BARBAR","JAKA0CNDOSA","CHANDOSA","BARAMULLA","BARAMULLA","WAGOORA","J&K",null,"KASHMIR",193101,193051025,6320437,34.150550000000003,74.383669999999995,null,{"$f":"TEXT(branch332[[#This Row],[Sol Id]],\"0000\")","v":"0075"}]
["A",76,76,"B","RESIDENCY ROAD JAMMU","JAMMU","ZO JAMMU CLSTR -1 JAMMU","KEEPER","JAM","JAMCL1","JAKA0KEEPER","RESIDENCY ROAD","JAMMU","JAMMU","JAMMU","J&K",null,"JAMMU",180001,180051020,6320076,null,null,null,{"$f":"TEXT(branch332[[#This Row],[Sol Id]],\"0000\")","v":"0076"}]
["A",77,77,"B","GANDHINAGR JAMMU","JAMMU","ZO JAMMU CLSTR -2 JAMMU","GANDHI","JAM","JAMCL2","JAKA0GANDHI","GOLE MARKET, GHANDHI PLAZA","JAMMU","JAMMU","BAHU","J&K",null,"JAMMU",180004,180051008,6320077,32.70279,74.859369999999998,null,{"$f":"TEXT(branch332[[#This Row],[Sol Id]],\"0000\")","v":"0077"}]
["A",78,78,"B","BUDGAM","BUDGAM","ZO BUDGAM CLSTR -1 BUDGAM","MAJLIS","BUD","BUDCL1","JAKA0MAJLIS","BUDGAM","BUDGAM","BUDGAM","BUDGAM","J&K",null,"KASHMIR",191111,191051001,6320078,34.015639999999998,74.721100000000007,null,{"$f":"TEXT(branch332[[#This Row],[Sol Id]],\"0000\")","v":"0078"}]

{"sheet":"Data","index":1,"n_rows":1,"n_cols":4,"rows_kept":1,"cut":false,"hidden":false,"merged":[]}
["Version",8,"2026-07-29","Added Txt to Excel"]